Workbook

Sheet HOME
B7: THE UNITED STATES OBESITY RESPONSE INDEX
B9: Contents
B11: About | C11: Introduction to this index.
B12: Pillars | C12: Comparison of pillar performance across states.
B13: Indicators | C13: Comparison across states for a single selected indicator/pillar.
B14: States | C14: State-level scorecard.
B15: Data table | C15: Entire dataset, in table format.
B16: Scores | C16: Entire scorecard, in table format.

Sheet ABOUT
C1: =HOME!B7 -> THE UNITED STATES OBESITY RESPONSE INDEX
B6: About
B8: The United States Obesity Response Index assesses obesity prevention and management policy in all 50 US states. It seeks to address a gap in understanding the full range of factors that contribute to obesity, the associated risks and which policy interventions truly work. By examining state-level approaches, the index highlights areas where policy is strongest and weakest, signposting where states can learn from each other.
B11: The framework is organised as follows:
B12: • Three pillars: Policy & governance, Food quality & access, Physical activity • Seven sub-pillars, distributed across the pillars • 23 indicators, distributed across the sub-pillars
B15: In addition to these core pillars and indicators, the framework also includes 14 background indicators. These indicators are not scored, but are used to provide more context and to better understand the factors that may influence state-level scores.

Sheet PILLARS
B1: =HOME!B7 -> THE UNITED STATES OBESITY RESPONSE INDEX
B6: SELECT SORT ORDER
B7: Best response to worst
B10: Scores 80-100 - Areas of strength | F10: 80
B11: Scores 60-79 | F11: 60
B12: Scores 40-59 | F12: 40
B13: Scores 20-39 | F13: 20
B14: Scores 0-19 - Areas of development | F14: 0
B16: Score: 0-100, where 100 = strongest obesity response
B17: '=' denotes tied rank
B18: Average = mean score for all states shown in table
B20: OVERALL | G20: 1) Policy and governance | L20: 2) Food quality and access | Q20: 3) Physical activity
C21: Rank | D21: State | E21: Score | H21: Rank | I21: State | J21: Score | M21: Rank | N21: State | O21: Score | R21: Rank | S21: State | T21: Score
A22: =IF($B$7=Lists!$K$4, 51,1) -> 1 | C22: =INDEX('Selected values'!$U$4:$U$54,MATCH(D22,'Selected values'!$S$4:$S$54,0)) -> 1 | D22: =IF($B$7=Lists!$K$2, INDEX('Selected values'!$M$4:$M$54, MATCH($A22,'Selected values'!$O$4:$O$54,0)), INDEX('Selected values'!$M$4:$M$54,MATCH($A22,'Selected values'!$P$4:$P$54,0))) -> Minnesota | E22: =ROUND(INDEX('Selected values'!$N$4:$N$54, MATCH(D22,'Selected values'!$M$4:$M$54,0)),1) -> 69.2 | H22: =INDEX('Selected values'!$AF$4:$AF$54,MATCH(I22,'Selected values'!$AD$4:$AD$54,0)) -> 1 | I22: =IF($B$7=Lists!$K$2, INDEX('Selected values'!$X$4:$X$54, MATCH($A22,'Selected values'!$Z$4:$Z$54,0)), INDEX('Selected values'!$X$4:$X$54,MATCH($A22,'Selected values'!$AA$4:$AA$54,0))) -> Oklahoma | J22: =ROUND(INDEX('Selected values'!$Y$4:$Y$54, MATCH(I22,'Selected values'!$X$4:$X$54,0)),1) -> 67.7 | M22: =INDEX('Selected values'!$AQ$4:$AQ$54,MATCH(N22,'Selected values'!$AO$4:$AO$54,0)) -> 1 | N22: =IF($B$7=Lists!$K$2, INDEX('Selected values'!$AI$4:$AI$54, MATCH($A22,'Selected values'!$AK$4:$AK$54,0)), INDEX('Selected values'!$AI$4:$AI$54,MATCH($A22,'Selected values'!$AL$4:$AL$54,0))) -> Iowa | O22: =ROUND(INDEX('Selected values'!$AJ$4:$AJ$54, MATCH(N22,'Selected values'!$AI$4:$AI$54,0)),1) -> 89.7 | R22: =INDEX('Selected values'!$BB$4:$BB$54,MATCH(S22,'Selected values'!$AZ$4:$AZ$54,0)) -> 1 | S22: =IF($B$7=Lists!$K$2, INDEX('Selected values'!$AT$4:$AT$54, MATCH($A22,'Selected values'!$AV$4:$AV$54,0)), INDEX('Selected values'!$AT$4:$AT$54,MATCH($A22,'Selected values'!$AW$4:$AW$54,0))) -> Virginia | T22: =ROUND(INDEX('Selected values'!$AU$4:$AU$54, MATCH(S22,'Selected values'!$AT$4:$AT$54,0)),1) -> 87.7
A23: =IF($B$7=Lists!$K$4, A22-1,A22+1) -> 2 | C23: =INDEX('Selected values'!$U$4:$U$54,MATCH(D23,'Selected values'!$S$4:$S$54,0)) -> 2 | D23: =IF($B$7=Lists!$K$2, INDEX('Selected values'!$M$4:$M$54, MATCH($A23,'Selected values'!$O$4:$O$54,0)), INDEX('Selected values'!$M$4:$M$54,MATCH($A23,'Selected values'!$P$4:$P$54,0))) -> Kentucky | E23: =ROUND(INDEX('Selected values'!$N$4:$N$54, MATCH(D23,'Selected values'!$M$4:$M$54,0)),1) -> 66.5 | H23: =INDEX('Selected values'!$AF$4:$AF$54,MATCH(I23,'Selected values'!$AD$4:$AD$54,0)) -> 2 | I23: =IF($B$7=Lists!$K$2, INDEX('Selected values'!$X$4:$X$54, MATCH($A23,'Selected values'!$Z$4:$Z$54,0)), INDEX('Selected values'!$X$4:$X$54,MATCH($A23,'Selected values'!$AA$4:$AA$54,0))) -> New Mexico | J23: =ROUND(INDEX('Selected values'!$Y$4:$Y$54, MATCH(I23,'Selected values'!$X$4:$X$54,0)),1) -> 63.8 | M23: =INDEX('Selected values'!$AQ$4:$AQ$54,MATCH(N23,'Selected values'!$AO$4:$AO$54,0)) -> 2 | N23: =IF($B$7=Lists!$K$2, INDEX('Selected values'!$AI$4:$AI$54, MATCH($A23,'Selected values'!$AK$4:$AK$54,0)), INDEX('Selected values'!$AI$4:$AI$54,MATCH($A23,'Selected values'!$AL$4:$AL$54,0))) -> Minnesota | O23: =INDEX('Selected values'!$AJ$4:$AJ$54, MATCH(N23,'Selected values'!$AI$4:$AI$54,0)) -> 88.2 | R23: =INDEX('Selected values'!$BB$4:$BB$54,MATCH(S23,'Selected values'!$AZ$4:$AZ$54,0)) -> 2 | S23: =IF($B$7=Lists!$K$2, INDEX('Selected values'!$AT$4:$AT$54, MATCH($A23,'Selected values'!$AV$4:$AV$54,0)), INDEX('Selected values'!$AT$4:$AT$54,MATCH($A23,'Selected values'!$AW$4:$AW$54,0))) -> California | T23: =ROUND(INDEX('Selected values'!$AU$4:$AU$54, MATCH(S23,'Selected values'!$AT$4:$AT$54,0)),1) -> 73.5
A24: =IF($B$7=Lists!$K$4, A23-1,A23+1) -> 3 | C24: =INDEX('Selected values'!$U$4:$U$54,MATCH(D24,'Selected values'!$S$4:$S$54,0)) -> 3 | D24: =IF($B$7=Lists!$K$2, INDEX('Selected values'!$M$4:$M$54, MATCH($A24,'Selected values'!$O$4:$O$54,0)), INDEX('Selected values'!$M$4:$M$54,MATCH($A24,'Selected values'!$P$4:$P$54,0))) -> Colorado | E24: =ROUND(INDEX('Selected values'!$N$4:$N$54, MATCH(D24,'Selected values'!$M$4:$M$54,0)),1) -> 65.5 | H24: =INDEX('Selected values'!$AF$4:$AF$54,MATCH(I24,'Selected values'!$AD$4:$AD$54,0)) -> 3 | I24: =IF($B$7=Lists!$K$2, INDEX('Selected values'!$X$4:$X$54, MATCH($A24,'Selected values'!$Z$4:$Z$54,0)), INDEX('Selected values'!$X$4:$X$54,MATCH($A24,'Selected values'!$AA$4:$AA$54,0))) -> Nebraska | J24: =ROUND(INDEX('Selected values'!$Y$4:$Y$54, MATCH(I24,'Selected values'!$X$4:$X$54,0)),1) -> 60.0 | M24: =INDEX('Selected values'!$AQ$4:$AQ$54,MATCH(N24,'Selected values'!$AO$4:$AO$54,0)) -> 3 | N24: =IF($B$7=Lists!$K$2, INDEX('Selected values'!$AI$4:$AI$54, MATCH($A24,'Selected values'!$AK$4:$AK$54,0)), INDEX('Selected values'!$AI$4:$AI$54,MATCH($A24,'Selected values'!$AL$4:$AL$54,0))) -> Illinois | O24: =INDEX('Selected values'!$AJ$4:$AJ$54, MATCH(N24,'Selected values'!$AI$4:$AI$54,0)) -> 86.0 | R24: =INDEX('Selected values'!$BB$4:$BB$54,MATCH(S24,'Selected values'!$AZ$4:$AZ$54,0)) -> =3 | S24: =IF($B$7=Lists!$K$2, INDEX('Selected values'!$AT$4:$AT$54, MATCH($A24,'Selected values'!$AV$4:$AV$54,0)), INDEX('Selected values'!$AT$4:$AT$54,MATCH($A24,'Selected values'!$AW$4:$AW$54,0))) -> Illinois | T24: =ROUND(INDEX('Selected values'!$AU$4:$AU$54, MATCH(S24,'Selected values'!$AT$4:$AT$54,0)),1) -> 72.8
A25: =IF($B$7=Lists!$K$4, A24-1,A24+1) -> 4 | C25: =INDEX('Selected values'!$U$4:$U$54,MATCH(D25,'Selected values'!$S$4:$S$54,0)) -> 4 | D25: =IF($B$7=Lists!$K$2, INDEX('Selected values'!$M$4:$M$54, MATCH($A25,'Selected values'!$O$4:$O$54,0)), INDEX('Selected values'!$M$4:$M$54,MATCH($A25,'Selected values'!$P$4:$P$54,0))) -> Iowa | E25: =ROUND(INDEX('Selected values'!$N$4:$N$54, MATCH(D25,'Selected values'!$M$4:$M$54,0)),1) -> 64.4 | H25: =INDEX('Selected values'!$AF$4:$AF$54,MATCH(I25,'Selected values'!$AD$4:$AD$54,0)) -> =4 | I25: =IF($B$7=Lists!$K$2, INDEX('Selected values'!$X$4:$X$54, MATCH($A25,'Selected values'!$Z$4:$Z$54,0)), INDEX('Selected values'!$X$4:$X$54,MATCH($A25,'Selected values'!$AA$4:$AA$54,0))) -> Florida | J25: =ROUND(INDEX('Selected values'!$Y$4:$Y$54, MATCH(I25,'Selected values'!$X$4:$X$54,0)),1) -> 58.8 | M25: =INDEX('Selected values'!$AQ$4:$AQ$54,MATCH(N25,'Selected values'!$AO$4:$AO$54,0)) -> 4 | N25: =IF($B$7=Lists!$K$2, INDEX('Selected values'!$AI$4:$AI$54, MATCH($A25,'Selected values'!$AK$4:$AK$54,0)), INDEX('Selected values'!$AI$4:$AI$54,MATCH($A25,'Selected values'!$AL$4:$AL$54,0))) -> North Carolina | O25: =INDEX('Selected values'!$AJ$4:$AJ$54, MATCH(N25,'Selected values'!$AI$4:$AI$54,0)) -> 84.3 | R25: =INDEX('Selected values'!$BB$4:$BB$54,MATCH(S25,'Selected values'!$AZ$4:$AZ$54,0)) -> =3 | S25: =IF($B$7=Lists!$K$2, INDEX('Selected values'!$AT$4:$AT$54, MATCH($A25,'Selected values'!$AV$4:$AV$54,0)), INDEX('Selected values'!$AT$4:$AT$54,MATCH($A25,'Selected values'!$AW$4:$AW$54,0))) -> Nevada | T25: =ROUND(INDEX('Selected values'!$AU$4:$AU$54, MATCH(S25,'Selected values'!$AT$4:$AT$54,0)),1) -> 72.8
A26: =IF($B$7=Lists!$K$4, A25-1,A25+1) -> 5 | C26: =INDEX('Selected values'!$U$4:$U$54,MATCH(D26,'Selected values'!$S$4:$S$54,0)) -> 5 | D26: =IF($B$7=Lists!$K$2, INDEX('Selected values'!$M$4:$M$54, MATCH($A26,'Selected values'!$O$4:$O$54,0)), INDEX('Selected values'!$M$4:$M$54,MATCH($A26,'Selected values'!$P$4:$P$54,0))) -> Florida | E26: =ROUND(INDEX('Selected values'!$N$4:$N$54, MATCH(D26,'Selected values'!$M$4:$M$54,0)),1) -> 64.1 | H26: =INDEX('Selected values'!$AF$4:$AF$54,MATCH(I26,'Selected values'!$AD$4:$AD$54,0)) -> =4 | I26: =IF($B$7=Lists!$K$2, INDEX('Selected values'!$X$4:$X$54, MATCH($A26,'Selected values'!$Z$4:$Z$54,0)), INDEX('Selected values'!$X$4:$X$54,MATCH($A26,'Selected values'!$AA$4:$AA$54,0))) -> Idaho | J26: =ROUND(INDEX('Selected values'!$Y$4:$Y$54, MATCH(I26,'Selected values'!$X$4:$X$54,0)),1) -> 58.8 | M26: =INDEX('Selected values'!$AQ$4:$AQ$54,MATCH(N26,'Selected values'!$AO$4:$AO$54,0)) -> 5 | N26: =IF($B$7=Lists!$K$2, INDEX('Selected values'!$AI$4:$AI$54, MATCH($A26,'Selected values'!$AK$4:$AK$54,0)), INDEX('Selected values'!$AI$4:$AI$54,MATCH($A26,'Selected values'!$AL$4:$AL$54,0))) -> Maryland | O26: =INDEX('Selected values'!$AJ$4:$AJ$54, MATCH(N26,'Selected values'!$AI$4:$AI$54,0)) -> 84.0 | R26: =INDEX('Selected values'!$BB$4:$BB$54,MATCH(S26,'Selected values'!$AZ$4:$AZ$54,0)) -> 5 | S26: =IF($B$7=Lists!$K$2, INDEX('Selected values'!$AT$4:$AT$54, MATCH($A26,'Selected values'!$AV$4:$AV$54,0)), INDEX('Selected values'!$AT$4:$AT$54,MATCH($A26,'Selected values'!$AW$4:$AW$54,0))) -> Colorado | T26: =ROUND(INDEX('Selected values'!$AU$4:$AU$54, MATCH(S26,'Selected values'!$AT$4:$AT$54,0)),1) -> 72.5
A27: =IF($B$7=Lists!$K$4, A26-1,A26+1) -> 6 | C27: =INDEX('Selected values'!$U$4:$U$54,MATCH(D27,'Selected values'!$S$4:$S$54,0)) -> 6 | D27: =IF($B$7=Lists!$K$2, INDEX('Selected values'!$M$4:$M$54, MATCH($A27,'Selected values'!$O$4:$O$54,0)), INDEX('Selected values'!$M$4:$M$54,MATCH($A27,'Selected values'!$P$4:$P$54,0))) -> Illinois | E27: =ROUND(INDEX('Selected values'!$N$4:$N$54, MATCH(D27,'Selected values'!$M$4:$M$54,0)),1) -> 63.7 | H27: =INDEX('Selected values'!$AF$4:$AF$54,MATCH(I27,'Selected values'!$AD$4:$AD$54,0)) -> =4 | I27: =IF($B$7=Lists!$K$2, INDEX('Selected values'!$X$4:$X$54, MATCH($A27,'Selected values'!$Z$4:$Z$54,0)), INDEX('Selected values'!$X$4:$X$54,MATCH($A27,'Selected values'!$AA$4:$AA$54,0))) -> Mississippi | J27: =ROUND(INDEX('Selected values'!$Y$4:$Y$54, MATCH(I27,'Selected values'!$X$4:$X$54,0)),1) -> 58.8 | M27: =INDEX('Selected values'!$AQ$4:$AQ$54,MATCH(N27,'Selected values'!$AO$4:$AO$54,0)) -> 6 | N27: =IF($B$7=Lists!$K$2, INDEX('Selected values'!$AI$4:$AI$54, MATCH($A27,'Selected values'!$AK$4:$AK$54,0)), INDEX('Selected values'!$AI$4:$AI$54,MATCH($A27,'Selected values'!$AL$4:$AL$54,0))) -> Texas | O27: =INDEX('Selected values'!$AJ$4:$AJ$54, MATCH(N27,'Selected values'!$AI$4:$AI$54,0)) -> 82.0 | R27: =INDEX('Selected values'!$BB$4:$BB$54,MATCH(S27,'Selected values'!$AZ$4:$AZ$54,0)) -> 6 | S27: =IF($B$7=Lists!$K$2, INDEX('Selected values'!$AT$4:$AT$54, MATCH($A27,'Selected values'!$AV$4:$AV$54,0)), INDEX('Selected values'!$AT$4:$AT$54,MATCH($A27,'Selected values'!$AW$4:$AW$54,0))) -> Oregon | T27: =ROUND(INDEX('Selected values'!$AU$4:$AU$54, MATCH(S27,'Selected values'!$AT$4:$AT$54,0)),1) -> 72.0
A28: =IF($B$7=Lists!$K$4, A27-1,A27+1) -> 7 | C28: =INDEX('Selected values'!$U$4:$U$54,MATCH(D28,'Selected values'!$S$4:$S$54,0)) -> 7 | D28: =IF($B$7=Lists!$K$2, INDEX('Selected values'!$M$4:$M$54, MATCH($A28,'Selected values'!$O$4:$O$54,0)), INDEX('Selected values'!$M$4:$M$54,MATCH($A28,'Selected values'!$P$4:$P$54,0))) -> Virginia | E28: =ROUND(INDEX('Selected values'!$N$4:$N$54, MATCH(D28,'Selected values'!$M$4:$M$54,0)),1) -> 63.2 | H28: =INDEX('Selected values'!$AF$4:$AF$54,MATCH(I28,'Selected values'!$AD$4:$AD$54,0)) -> 7 | I28: =IF($B$7=Lists!$K$2, INDEX('Selected values'!$X$4:$X$54, MATCH($A28,'Selected values'!$Z$4:$Z$54,0)), INDEX('Selected values'!$X$4:$X$54,MATCH($A28,'Selected values'!$AA$4:$AA$54,0))) -> Minnesota | J28: =ROUND(INDEX('Selected values'!$Y$4:$Y$54, MATCH(I28,'Selected values'!$X$4:$X$54,0)),1) -> 56.3 | M28: =INDEX('Selected values'!$AQ$4:$AQ$54,MATCH(N28,'Selected values'!$AO$4:$AO$54,0)) -> 7 | N28: =IF($B$7=Lists!$K$2, INDEX('Selected values'!$AI$4:$AI$54, MATCH($A28,'Selected values'!$AK$4:$AK$54,0)), INDEX('Selected values'!$AI$4:$AI$54,MATCH($A28,'Selected values'!$AL$4:$AL$54,0))) -> Kentucky | O28: =INDEX('Selected values'!$AJ$4:$AJ$54, MATCH(N28,'Selected values'!$AI$4:$AI$54,0)) -> 82.0 | R28: =INDEX('Selected values'!$BB$4:$BB$54,MATCH(S28,'Selected values'!$AZ$4:$AZ$54,0)) -> 7 | S28: =IF($B$7=Lists!$K$2, INDEX('Selected values'!$AT$4:$AT$54, MATCH($A28,'Selected values'!$AV$4:$AV$54,0)), INDEX('Selected values'!$AT$4:$AT$54,MATCH($A28,'Selected values'!$AW$4:$AW$54,0))) -> Washington | T28: =ROUND(INDEX('Selected values'!$AU$4:$AU$54, MATCH(S28,'Selected values'!$AT$4:$AT$54,0)),1) -> 71.5
A29: =IF($B$7=Lists!$K$4, A28-1,A28+1) -> 8 | C29: =INDEX('Selected values'!$U$4:$U$54,MATCH(D29,'Selected values'!$S$4:$S$54,0)) -> 8 | D29: =IF($B$7=Lists!$K$2, INDEX('Selected values'!$M$4:$M$54, MATCH($A29,'Selected values'!$O$4:$O$54,0)), INDEX('Selected values'!$M$4:$M$54,MATCH($A29,'Selected values'!$P$4:$P$54,0))) -> Ohio | E29: =ROUND(INDEX('Selected values'!$N$4:$N$54, MATCH(D29,'Selected values'!$M$4:$M$54,0)),1) -> 63.0 | H29: =INDEX('Selected values'!$AF$4:$AF$54,MATCH(I29,'Selected values'!$AD$4:$AD$54,0)) -> =8 | I29: =IF($B$7=Lists!$K$2, INDEX('Selected values'!$X$4:$X$54, MATCH($A29,'Selected values'!$Z$4:$Z$54,0)), INDEX('Selected values'!$X$4:$X$54,MATCH($A29,'Selected values'!$AA$4:$AA$54,0))) -> Nevada | J29: =ROUND(INDEX('Selected values'!$Y$4:$Y$54, MATCH(I29,'Selected values'!$X$4:$X$54,0)),1) -> 55.0 | M29: =INDEX('Selected values'!$AQ$4:$AQ$54,MATCH(N29,'Selected values'!$AO$4:$AO$54,0)) -> 8 | N29: =IF($B$7=Lists!$K$2, INDEX('Selected values'!$AI$4:$AI$54, MATCH($A29,'Selected values'!$AK$4:$AK$54,0)), INDEX('Selected values'!$AI$4:$AI$54,MATCH($A29,'Selected values'!$AL$4:$AL$54,0))) -> Arkansas | O29: =INDEX('Selected values'!$AJ$4:$AJ$54, MATCH(N29,'Selected values'!$AI$4:$AI$54,0)) -> 81.2 | R29: =INDEX('Selected values'!$BB$4:$BB$54,MATCH(S29,'Selected values'!$AZ$4:$AZ$54,0)) -> 8 | S29: =IF($B$7=Lists!$K$2, INDEX('Selected values'!$AT$4:$AT$54, MATCH($A29,'Selected values'!$AV$4:$AV$54,0)), INDEX('Selected values'!$AT$4:$AT$54,MATCH($A29,'Selected values'!$AW$4:$AW$54,0))) -> Utah | T29: =ROUND(INDEX('Selected values'!$AU$4:$AU$54, MATCH(S29,'Selected values'!$AT$4:$AT$54,0)),1) -> 71.3
A30: =IF($B$7=Lists!$K$4, A29-1,A29+1) -> 9 | C30: =INDEX('Selected values'!$U$4:$U$54,MATCH(D30,'Selected values'!$S$4:$S$54,0)) -> 9 | D30: =IF($B$7=Lists!$K$2, INDEX('Selected values'!$M$4:$M$54, MATCH($A30,'Selected values'!$O$4:$O$54,0)), INDEX('Selected values'!$M$4:$M$54,MATCH($A30,'Selected values'!$P$4:$P$54,0))) -> Rhode Island | E30: =ROUND(INDEX('Selected values'!$N$4:$N$54, MATCH(D30,'Selected values'!$M$4:$M$54,0)),1) -> 62.5 | H30: =INDEX('Selected values'!$AF$4:$AF$54,MATCH(I30,'Selected values'!$AD$4:$AD$54,0)) -> =8 | I30: =IF($B$7=Lists!$K$2, INDEX('Selected values'!$X$4:$X$54, MATCH($A30,'Selected values'!$Z$4:$Z$54,0)), INDEX('Selected values'!$X$4:$X$54,MATCH($A30,'Selected values'!$AA$4:$AA$54,0))) -> West Virginia | J30: =ROUND(INDEX('Selected values'!$Y$4:$Y$54, MATCH(I30,'Selected values'!$X$4:$X$54,0)),1) -> 55.0 | M30: =INDEX('Selected values'!$AQ$4:$AQ$54,MATCH(N30,'Selected values'!$AO$4:$AO$54,0)) -> 9 | N30: =IF($B$7=Lists!$K$2, INDEX('Selected values'!$AI$4:$AI$54, MATCH($A30,'Selected values'!$AK$4:$AK$54,0)), INDEX('Selected values'!$AI$4:$AI$54,MATCH($A30,'Selected values'!$AL$4:$AL$54,0))) -> New York | O30: =INDEX('Selected values'!$AJ$4:$AJ$54, MATCH(N30,'Selected values'!$AI$4:$AI$54,0)) -> 79.2 | R30: =INDEX('Selected values'!$BB$4:$BB$54,MATCH(S30,'Selected values'!$AZ$4:$AZ$54,0)) -> 9 | S30: =IF($B$7=Lists!$K$2, INDEX('Selected values'!$AT$4:$AT$54, MATCH($A30,'Selected values'!$AV$4:$AV$54,0)), INDEX('Selected values'!$AT$4:$AT$54,MATCH($A30,'Selected values'!$AW$4:$AW$54,0))) -> Ohio | T30: =ROUND(INDEX('Selected values'!$AU$4:$AU$54, MATCH(S30,'Selected values'!$AT$4:$AT$54,0)),1) -> 71.0
A31: =IF($B$7=Lists!$K$4, A30-1,A30+1) -> 10 | C31: =INDEX('Selected values'!$U$4:$U$54,MATCH(D31,'Selected values'!$S$4:$S$54,0)) -> 10 | D31: =IF($B$7=Lists!$K$2, INDEX('Selected values'!$M$4:$M$54, MATCH($A31,'Selected values'!$O$4:$O$54,0)), INDEX('Selected values'!$M$4:$M$54,MATCH($A31,'Selected values'!$P$4:$P$54,0))) -> Maryland | E31: =ROUND(INDEX('Selected values'!$N$4:$N$54, MATCH(D31,'Selected values'!$M$4:$M$54,0)),1) -> 61.6 | H31: =INDEX('Selected values'!$AF$4:$AF$54,MATCH(I31,'Selected values'!$AD$4:$AD$54,0)) -> 10 | I31: =IF($B$7=Lists!$K$2, INDEX('Selected values'!$X$4:$X$54, MATCH($A31,'Selected values'!$Z$4:$Z$54,0)), INDEX('Selected values'!$X$4:$X$54,MATCH($A31,'Selected values'!$AA$4:$AA$54,0))) -> Louisiana | J31: =ROUND(INDEX('Selected values'!$Y$4:$Y$54, MATCH(I31,'Selected values'!$X$4:$X$54,0)),1) -> 52.5 | M31: =INDEX('Selected values'!$AQ$4:$AQ$54,MATCH(N31,'Selected values'!$AO$4:$AO$54,0)) -> 10 | N31: =IF($B$7=Lists!$K$2, INDEX('Selected values'!$AI$4:$AI$54, MATCH($A31,'Selected values'!$AK$4:$AK$54,0)), INDEX('Selected values'!$AI$4:$AI$54,MATCH($A31,'Selected values'!$AL$4:$AL$54,0))) -> Maine | O31: =INDEX('Selected values'!$AJ$4:$AJ$54, MATCH(N31,'Selected values'!$AI$4:$AI$54,0)) -> 79.0 | R31: =INDEX('Selected values'!$BB$4:$BB$54,MATCH(S31,'Selected values'!$AZ$4:$AZ$54,0)) -> 10 | S31: =IF($B$7=Lists!$K$2, INDEX('Selected values'!$AT$4:$AT$54, MATCH($A31,'Selected values'!$AV$4:$AV$54,0)), INDEX('Selected values'!$AT$4:$AT$54,MATCH($A31,'Selected values'!$AW$4:$AW$54,0))) -> Delaware | T31: =ROUND(INDEX('Selected values'!$AU$4:$AU$54, MATCH(S31,'Selected values'!$AT$4:$AT$54,0)),1) -> 69.8
A32: =IF($B$7=Lists!$K$4, A31-1,A31+1) -> 11 | C32: =INDEX('Selected values'!$U$4:$U$54,MATCH(D32,'Selected values'!$S$4:$S$54,0)) -> 11 | D32: =IF($B$7=Lists!$K$2, INDEX('Selected values'!$M$4:$M$54, MATCH($A32,'Selected values'!$O$4:$O$54,0)), INDEX('Selected values'!$M$4:$M$54,MATCH($A32,'Selected values'!$P$4:$P$54,0))) -> New Mexico | E32: =ROUND(INDEX('Selected values'!$N$4:$N$54, MATCH(D32,'Selected values'!$M$4:$M$54,0)),1) -> 60.6 | H32: =INDEX('Selected values'!$AF$4:$AF$54,MATCH(I32,'Selected values'!$AD$4:$AD$54,0)) -> =11 | I32: =IF($B$7=Lists!$K$2, INDEX('Selected values'!$X$4:$X$54, MATCH($A32,'Selected values'!$Z$4:$Z$54,0)), INDEX('Selected values'!$X$4:$X$54,MATCH($A32,'Selected values'!$AA$4:$AA$54,0))) -> Iowa | J32: =ROUND(INDEX('Selected values'!$Y$4:$Y$54, MATCH(I32,'Selected values'!$X$4:$X$54,0)),1) -> 50.0 | M32: =INDEX('Selected values'!$AQ$4:$AQ$54,MATCH(N32,'Selected values'!$AO$4:$AO$54,0)) -> 11 | N32: =IF($B$7=Lists!$K$2, INDEX('Selected values'!$AI$4:$AI$54, MATCH($A32,'Selected values'!$AK$4:$AK$54,0)), INDEX('Selected values'!$AI$4:$AI$54,MATCH($A32,'Selected values'!$AL$4:$AL$54,0))) -> Wisconsin | O32: =INDEX('Selected values'!$AJ$4:$AJ$54, MATCH(N32,'Selected values'!$AI$4:$AI$54,0)) -> 78.8 | R32: =INDEX('Selected values'!$BB$4:$BB$54,MATCH(S32,'Selected values'!$AZ$4:$AZ$54,0)) -> 11 | S32: =IF($B$7=Lists!$K$2, INDEX('Selected values'!$AT$4:$AT$54, MATCH($A32,'Selected values'!$AV$4:$AV$54,0)), INDEX('Selected values'!$AT$4:$AT$54,MATCH($A32,'Selected values'!$AW$4:$AW$54,0))) -> Indiana | T32: =ROUND(INDEX('Selected values'!$AU$4:$AU$54, MATCH(S32,'Selected values'!$AT$4:$AT$54,0)),1) -> 69.0
A33: =IF($B$7=Lists!$K$4, A32-1,A32+1) -> 12 | C33: =INDEX('Selected values'!$U$4:$U$54,MATCH(D33,'Selected values'!$S$4:$S$54,0)) -> 12 | D33: =IF($B$7=Lists!$K$2, INDEX('Selected values'!$M$4:$M$54, MATCH($A33,'Selected values'!$O$4:$O$54,0)), INDEX('Selected values'!$M$4:$M$54,MATCH($A33,'Selected values'!$P$4:$P$54,0))) -> New York | E33: =ROUND(INDEX('Selected values'!$N$4:$N$54, MATCH(D33,'Selected values'!$M$4:$M$54,0)),1) -> 60.6 | H33: =INDEX('Selected values'!$AF$4:$AF$54,MATCH(I33,'Selected values'!$AD$4:$AD$54,0)) -> =11 | I33: =IF($B$7=Lists!$K$2, INDEX('Selected values'!$X$4:$X$54, MATCH($A33,'Selected values'!$Z$4:$Z$54,0)), INDEX('Selected values'!$X$4:$X$54,MATCH($A33,'Selected values'!$AA$4:$AA$54,0))) -> Kentucky | J33: =ROUND(INDEX('Selected values'!$Y$4:$Y$54, MATCH(I33,'Selected values'!$X$4:$X$54,0)),1) -> 50.0 | M33: =INDEX('Selected values'!$AQ$4:$AQ$54,MATCH(N33,'Selected values'!$AO$4:$AO$54,0)) -> 12 | N33: =IF($B$7=Lists!$K$2, INDEX('Selected values'!$AI$4:$AI$54, MATCH($A33,'Selected values'!$AK$4:$AK$54,0)), INDEX('Selected values'!$AI$4:$AI$54,MATCH($A33,'Selected values'!$AL$4:$AL$54,0))) -> Indiana | O33: =INDEX('Selected values'!$AJ$4:$AJ$54, MATCH(N33,'Selected values'!$AI$4:$AI$54,0)) -> 78.7 | R33: =INDEX('Selected values'!$BB$4:$BB$54,MATCH(S33,'Selected values'!$AZ$4:$AZ$54,0)) -> 12 | S33: =IF($B$7=Lists!$K$2, INDEX('Selected values'!$AT$4:$AT$54, MATCH($A33,'Selected values'!$AV$4:$AV$54,0)), INDEX('Selected values'!$AT$4:$AT$54,MATCH($A33,'Selected values'!$AW$4:$AW$54,0))) -> Oklahoma | T33: =ROUND(INDEX('Selected values'!$AU$4:$AU$54, MATCH(S33,'Selected values'!$AT$4:$AT$54,0)),1) -> 67.8
A34: =IF($B$7=Lists!$K$4, A33-1,A33+1) -> 13 | C34: =INDEX('Selected values'!$U$4:$U$54,MATCH(D34,'Selected values'!$S$4:$S$54,0)) -> 13 | D34: =IF($B$7=Lists!$K$2, INDEX('Selected values'!$M$4:$M$54, MATCH($A34,'Selected values'!$O$4:$O$54,0)), INDEX('Selected values'!$M$4:$M$54,MATCH($A34,'Selected values'!$P$4:$P$54,0))) -> Oklahoma | E34: =ROUND(INDEX('Selected values'!$N$4:$N$54, MATCH(D34,'Selected values'!$M$4:$M$54,0)),1) -> 60.4 | H34: =INDEX('Selected values'!$AF$4:$AF$54,MATCH(I34,'Selected values'!$AD$4:$AD$54,0)) -> =11 | I34: =IF($B$7=Lists!$K$2, INDEX('Selected values'!$X$4:$X$54, MATCH($A34,'Selected values'!$Z$4:$Z$54,0)), INDEX('Selected values'!$X$4:$X$54,MATCH($A34,'Selected values'!$AA$4:$AA$54,0))) -> Ohio | J34: =ROUND(INDEX('Selected values'!$Y$4:$Y$54, MATCH(I34,'Selected values'!$X$4:$X$54,0)),1) -> 50.0 | M34: =INDEX('Selected values'!$AQ$4:$AQ$54,MATCH(N34,'Selected values'!$AO$4:$AO$54,0)) -> 13 | N34: =IF($B$7=Lists!$K$2, INDEX('Selected values'!$AI$4:$AI$54, MATCH($A34,'Selected values'!$AK$4:$AK$54,0)), INDEX('Selected values'!$AI$4:$AI$54,MATCH($A34,'Selected values'!$AL$4:$AL$54,0))) -> Colorado | O34: =INDEX('Selected values'!$AJ$4:$AJ$54, MATCH(N34,'Selected values'!$AI$4:$AI$54,0)) -> 78.3 | R34: =INDEX('Selected values'!$BB$4:$BB$54,MATCH(S34,'Selected values'!$AZ$4:$AZ$54,0)) -> 13 | S34: =IF($B$7=Lists!$K$2, INDEX('Selected values'!$AT$4:$AT$54, MATCH($A34,'Selected values'!$AV$4:$AV$54,0)), INDEX('Selected values'!$AT$4:$AT$54,MATCH($A34,'Selected values'!$AW$4:$AW$54,0))) -> Kentucky | T34: =ROUND(INDEX('Selected values'!$AU$4:$AU$54, MATCH(S34,'Selected values'!$AT$4:$AT$54,0)),1) -> 67.5
A35: =IF($B$7=Lists!$K$4, A34-1,A34+1) -> 14 | C35: =INDEX('Selected values'!$U$4:$U$54,MATCH(D35,'Selected values'!$S$4:$S$54,0)) -> 14 | D35: =IF($B$7=Lists!$K$2, INDEX('Selected values'!$M$4:$M$54, MATCH($A35,'Selected values'!$O$4:$O$54,0)), INDEX('Selected values'!$M$4:$M$54,MATCH($A35,'Selected values'!$P$4:$P$54,0))) -> Washington | E35: =ROUND(INDEX('Selected values'!$N$4:$N$54, MATCH(D35,'Selected values'!$M$4:$M$54,0)),1) -> 60.0 | H35: =INDEX('Selected values'!$AF$4:$AF$54,MATCH(I35,'Selected values'!$AD$4:$AD$54,0)) -> =14 | I35: =IF($B$7=Lists!$K$2, INDEX('Selected values'!$X$4:$X$54, MATCH($A35,'Selected values'!$Z$4:$Z$54,0)), INDEX('Selected values'!$X$4:$X$54,MATCH($A35,'Selected values'!$AA$4:$AA$54,0))) -> California | J35: =ROUND(INDEX('Selected values'!$Y$4:$Y$54, MATCH(I35,'Selected values'!$X$4:$X$54,0)),1) -> 46.3 | M35: =INDEX('Selected values'!$AQ$4:$AQ$54,MATCH(N35,'Selected values'!$AO$4:$AO$54,0)) -> 14 | N35: =IF($B$7=Lists!$K$2, INDEX('Selected values'!$AI$4:$AI$54, MATCH($A35,'Selected values'!$AK$4:$AK$54,0)), INDEX('Selected values'!$AI$4:$AI$54,MATCH($A35,'Selected values'!$AL$4:$AL$54,0))) -> Florida | O35: =INDEX('Selected values'!$AJ$4:$AJ$54, MATCH(N35,'Selected values'!$AI$4:$AI$54,0)) -> 78.3 | R35: =INDEX('Selected values'!$BB$4:$BB$54,MATCH(S35,'Selected values'!$AZ$4:$AZ$54,0)) -> =14 | S35: =IF($B$7=Lists!$K$2, INDEX('Selected values'!$AT$4:$AT$54, MATCH($A35,'Selected values'!$AV$4:$AV$54,0)), INDEX('Selected values'!$AT$4:$AT$54,MATCH($A35,'Selected values'!$AW$4:$AW$54,0))) -> New Jersey | T35: =ROUND(INDEX('Selected values'!$AU$4:$AU$54, MATCH(S35,'Selected values'!$AT$4:$AT$54,0)),1) -> 65.7
A36: =IF($B$7=Lists!$K$4, A35-1,A35+1) -> 15 | C36: =INDEX('Selected values'!$U$4:$U$54,MATCH(D36,'Selected values'!$S$4:$S$54,0)) -> 15 | D36: =IF($B$7=Lists!$K$2, INDEX('Selected values'!$M$4:$M$54, MATCH($A36,'Selected values'!$O$4:$O$54,0)), INDEX('Selected values'!$M$4:$M$54,MATCH($A36,'Selected values'!$P$4:$P$54,0))) -> Nevada | E36: =ROUND(INDEX('Selected values'!$N$4:$N$54, MATCH(D36,'Selected values'!$M$4:$M$54,0)),1) -> 59.3 | H36: =INDEX('Selected values'!$AF$4:$AF$54,MATCH(I36,'Selected values'!$AD$4:$AD$54,0)) -> =14 | I36: =IF($B$7=Lists!$K$2, INDEX('Selected values'!$X$4:$X$54, MATCH($A36,'Selected values'!$Z$4:$Z$54,0)), INDEX('Selected values'!$X$4:$X$54,MATCH($A36,'Selected values'!$AA$4:$AA$54,0))) -> Rhode Island | J36: =ROUND(INDEX('Selected values'!$Y$4:$Y$54, MATCH(I36,'Selected values'!$X$4:$X$54,0)),1) -> 46.3 | M36: =INDEX('Selected values'!$AQ$4:$AQ$54,MATCH(N36,'Selected values'!$AO$4:$AO$54,0)) -> 15 | N36: =IF($B$7=Lists!$K$2, INDEX('Selected values'!$AI$4:$AI$54, MATCH($A36,'Selected values'!$AK$4:$AK$54,0)), INDEX('Selected values'!$AI$4:$AI$54,MATCH($A36,'Selected values'!$AL$4:$AL$54,0))) -> Rhode Island | O36: =INDEX('Selected values'!$AJ$4:$AJ$54, MATCH(N36,'Selected values'!$AI$4:$AI$54,0)) -> 75.6 | R36: =INDEX('Selected values'!$BB$4:$BB$54,MATCH(S36,'Selected values'!$AZ$4:$AZ$54,0)) -> =14 | S36: =IF($B$7=Lists!$K$2, INDEX('Selected values'!$AT$4:$AT$54, MATCH($A36,'Selected values'!$AV$4:$AV$54,0)), INDEX('Selected values'!$AT$4:$AT$54,MATCH($A36,'Selected values'!$AW$4:$AW$54,0))) -> Rhode Island | T36: =ROUND(INDEX('Selected values'!$AU$4:$AU$54, MATCH(S36,'Selected values'!$AT$4:$AT$54,0)),1) -> 65.7
A37: =IF($B$7=Lists!$K$4, A36-1,A36+1) -> 16 | C37: =INDEX('Selected values'!$U$4:$U$54,MATCH(D37,'Selected values'!$S$4:$S$54,0)) -> 16 | D37: =IF($B$7=Lists!$K$2, INDEX('Selected values'!$M$4:$M$54, MATCH($A37,'Selected values'!$O$4:$O$54,0)), INDEX('Selected values'!$M$4:$M$54,MATCH($A37,'Selected values'!$P$4:$P$54,0))) -> Indiana | E37: =ROUND(INDEX('Selected values'!$N$4:$N$54, MATCH(D37,'Selected values'!$M$4:$M$54,0)),1) -> 59.2 | H37: =INDEX('Selected values'!$AF$4:$AF$54,MATCH(I37,'Selected values'!$AD$4:$AD$54,0)) -> 16 | I37: =IF($B$7=Lists!$K$2, INDEX('Selected values'!$X$4:$X$54, MATCH($A37,'Selected values'!$Z$4:$Z$54,0)), INDEX('Selected values'!$X$4:$X$54,MATCH($A37,'Selected values'!$AA$4:$AA$54,0))) -> Colorado | J37: =ROUND(INDEX('Selected values'!$Y$4:$Y$54, MATCH(I37,'Selected values'!$X$4:$X$54,0)),1) -> 45.6 | M37: =INDEX('Selected values'!$AQ$4:$AQ$54,MATCH(N37,'Selected values'!$AO$4:$AO$54,0)) -> 16 | N37: =IF($B$7=Lists!$K$2, INDEX('Selected values'!$AI$4:$AI$54, MATCH($A37,'Selected values'!$AK$4:$AK$54,0)), INDEX('Selected values'!$AI$4:$AI$54,MATCH($A37,'Selected values'!$AL$4:$AL$54,0))) -> Vermont | O37: =INDEX('Selected values'!$AJ$4:$AJ$54, MATCH(N37,'Selected values'!$AI$4:$AI$54,0)) -> 75.2 | R37: =INDEX('Selected values'!$BB$4:$BB$54,MATCH(S37,'Selected values'!$AZ$4:$AZ$54,0)) -> =16 | S37: =IF($B$7=Lists!$K$2, INDEX('Selected values'!$AT$4:$AT$54, MATCH($A37,'Selected values'!$AV$4:$AV$54,0)), INDEX('Selected values'!$AT$4:$AT$54,MATCH($A37,'Selected values'!$AW$4:$AW$54,0))) -> Connecticut | T37: =ROUND(INDEX('Selected values'!$AU$4:$AU$54, MATCH(S37,'Selected values'!$AT$4:$AT$54,0)),1) -> 64.9
A38: =IF($B$7=Lists!$K$4, A37-1,A37+1) -> 17 | C38: =INDEX('Selected values'!$U$4:$U$54,MATCH(D38,'Selected values'!$S$4:$S$54,0)) -> 17 | D38: =IF($B$7=Lists!$K$2, INDEX('Selected values'!$M$4:$M$54, MATCH($A38,'Selected values'!$O$4:$O$54,0)), INDEX('Selected values'!$M$4:$M$54,MATCH($A38,'Selected values'!$P$4:$P$54,0))) -> Wisconsin | E38: =ROUND(INDEX('Selected values'!$N$4:$N$54, MATCH(D38,'Selected values'!$M$4:$M$54,0)),1) -> 58.7 | H38: =INDEX('Selected values'!$AF$4:$AF$54,MATCH(I38,'Selected values'!$AD$4:$AD$54,0)) -> 17 | I38: =IF($B$7=Lists!$K$2, INDEX('Selected values'!$X$4:$X$54, MATCH($A38,'Selected values'!$Z$4:$Z$54,0)), INDEX('Selected values'!$X$4:$X$54,MATCH($A38,'Selected values'!$AA$4:$AA$54,0))) -> Wyoming | J38: =ROUND(INDEX('Selected values'!$Y$4:$Y$54, MATCH(I38,'Selected values'!$X$4:$X$54,0)),1) -> 43.8 | M38: =INDEX('Selected values'!$AQ$4:$AQ$54,MATCH(N38,'Selected values'!$AO$4:$AO$54,0)) -> 17 | N38: =IF($B$7=Lists!$K$2, INDEX('Selected values'!$AI$4:$AI$54, MATCH($A38,'Selected values'!$AK$4:$AK$54,0)), INDEX('Selected values'!$AI$4:$AI$54,MATCH($A38,'Selected values'!$AL$4:$AL$54,0))) -> Washington | O38: =INDEX('Selected values'!$AJ$4:$AJ$54, MATCH(N38,'Selected values'!$AI$4:$AI$54,0)) -> 73.5 | R38: =INDEX('Selected values'!$BB$4:$BB$54,MATCH(S38,'Selected values'!$AZ$4:$AZ$54,0)) -> =16 | S38: =IF($B$7=Lists!$K$2, INDEX('Selected values'!$AT$4:$AT$54, MATCH($A38,'Selected values'!$AV$4:$AV$54,0)), INDEX('Selected values'!$AT$4:$AT$54,MATCH($A38,'Selected values'!$AW$4:$AW$54,0))) -> Hawaii | T38: =ROUND(INDEX('Selected values'!$AU$4:$AU$54, MATCH(S38,'Selected values'!$AT$4:$AT$54,0)),1) -> 64.9
A39: =IF($B$7=Lists!$K$4, A38-1,A38+1) -> 18 | C39: =INDEX('Selected values'!$U$4:$U$54,MATCH(D39,'Selected values'!$S$4:$S$54,0)) -> 18 | D39: =IF($B$7=Lists!$K$2, INDEX('Selected values'!$M$4:$M$54, MATCH($A39,'Selected values'!$O$4:$O$54,0)), INDEX('Selected values'!$M$4:$M$54,MATCH($A39,'Selected values'!$P$4:$P$54,0))) -> North Carolina | E39: =ROUND(INDEX('Selected values'!$N$4:$N$54, MATCH(D39,'Selected values'!$M$4:$M$54,0)),1) -> 58.5 | H39: =INDEX('Selected values'!$AF$4:$AF$54,MATCH(I39,'Selected values'!$AD$4:$AD$54,0)) -> 18 | I39: =IF($B$7=Lists!$K$2, INDEX('Selected values'!$X$4:$X$54, MATCH($A39,'Selected values'!$Z$4:$Z$54,0)), INDEX('Selected values'!$X$4:$X$54,MATCH($A39,'Selected values'!$AA$4:$AA$54,0))) -> Michigan | J39: =ROUND(INDEX('Selected values'!$Y$4:$Y$54, MATCH(I39,'Selected values'!$X$4:$X$54,0)),1) -> 42.1 | M39: =INDEX('Selected values'!$AQ$4:$AQ$54,MATCH(N39,'Selected values'!$AO$4:$AO$54,0)) -> 18 | N39: =IF($B$7=Lists!$K$2, INDEX('Selected values'!$AI$4:$AI$54, MATCH($A39,'Selected values'!$AK$4:$AK$54,0)), INDEX('Selected values'!$AI$4:$AI$54,MATCH($A39,'Selected values'!$AL$4:$AL$54,0))) -> Connecticut | O39: =INDEX('Selected values'!$AJ$4:$AJ$54, MATCH(N39,'Selected values'!$AI$4:$AI$54,0)) -> 68.8 | R39: =INDEX('Selected values'!$BB$4:$BB$54,MATCH(S39,'Selected values'!$AZ$4:$AZ$54,0)) -> =16 | S39: =IF($B$7=Lists!$K$2, INDEX('Selected values'!$AT$4:$AT$54, MATCH($A39,'Selected values'!$AV$4:$AV$54,0)), INDEX('Selected values'!$AT$4:$AT$54,MATCH($A39,'Selected values'!$AW$4:$AW$54,0))) -> New York | T39: =ROUND(INDEX('Selected values'!$AU$4:$AU$54, MATCH(S39,'Selected values'!$AT$4:$AT$54,0)),1) -> 64.9
A40: =IF($B$7=Lists!$K$4, A39-1,A39+1) -> 19 | C40: =INDEX('Selected values'!$U$4:$U$54,MATCH(D40,'Selected values'!$S$4:$S$54,0)) -> 19 | D40: =IF($B$7=Lists!$K$2, INDEX('Selected values'!$M$4:$M$54, MATCH($A40,'Selected values'!$O$4:$O$54,0)), INDEX('Selected values'!$M$4:$M$54,MATCH($A40,'Selected values'!$P$4:$P$54,0))) -> California | E40: =ROUND(INDEX('Selected values'!$N$4:$N$54, MATCH(D40,'Selected values'!$M$4:$M$54,0)),1) -> 58.1 | H40: =INDEX('Selected values'!$AF$4:$AF$54,MATCH(I40,'Selected values'!$AD$4:$AD$54,0)) -> 19 | I40: =IF($B$7=Lists!$K$2, INDEX('Selected values'!$X$4:$X$54, MATCH($A40,'Selected values'!$Z$4:$Z$54,0)), INDEX('Selected values'!$X$4:$X$54,MATCH($A40,'Selected values'!$AA$4:$AA$54,0))) -> Hawaii | J40: =ROUND(INDEX('Selected values'!$Y$4:$Y$54, MATCH(I40,'Selected values'!$X$4:$X$54,0)),1) -> 41.5 | M40: =INDEX('Selected values'!$AQ$4:$AQ$54,MATCH(N40,'Selected values'!$AO$4:$AO$54,0)) -> 19 | N40: =IF($B$7=Lists!$K$2, INDEX('Selected values'!$AI$4:$AI$54, MATCH($A40,'Selected values'!$AK$4:$AK$54,0)), INDEX('Selected values'!$AI$4:$AI$54,MATCH($A40,'Selected values'!$AL$4:$AL$54,0))) -> Tennessee | O40: =INDEX('Selected values'!$AJ$4:$AJ$54, MATCH(N40,'Selected values'!$AI$4:$AI$54,0)) -> 68.2 | R40: =INDEX('Selected values'!$BB$4:$BB$54,MATCH(S40,'Selected values'!$AZ$4:$AZ$54,0)) -> 19 | S40: =IF($B$7=Lists!$K$2, INDEX('Selected values'!$AT$4:$AT$54, MATCH($A40,'Selected values'!$AV$4:$AV$54,0)), INDEX('Selected values'!$AT$4:$AT$54,MATCH($A40,'Selected values'!$AW$4:$AW$54,0))) -> Maryland | T40: =ROUND(INDEX('Selected values'!$AU$4:$AU$54, MATCH(S40,'Selected values'!$AT$4:$AT$54,0)),1) -> 64.7
A41: =IF($B$7=Lists!$K$4, A40-1,A40+1) -> 20 | C41: =INDEX('Selected values'!$U$4:$U$54,MATCH(D41,'Selected values'!$S$4:$S$54,0)) -> 20 | D41: =IF($B$7=Lists!$K$2, INDEX('Selected values'!$M$4:$M$54, MATCH($A41,'Selected values'!$O$4:$O$54,0)), INDEX('Selected values'!$M$4:$M$54,MATCH($A41,'Selected values'!$P$4:$P$54,0))) -> Texas | E41: =ROUND(INDEX('Selected values'!$N$4:$N$54, MATCH(D41,'Selected values'!$M$4:$M$54,0)),1) -> 57.8 | H41: =INDEX('Selected values'!$AF$4:$AF$54,MATCH(I41,'Selected values'!$AD$4:$AD$54,0)) -> 20 | I41: =IF($B$7=Lists!$K$2, INDEX('Selected values'!$X$4:$X$54, MATCH($A41,'Selected values'!$Z$4:$Z$54,0)), INDEX('Selected values'!$X$4:$X$54,MATCH($A41,'Selected values'!$AA$4:$AA$54,0))) -> Montana | J41: =ROUND(INDEX('Selected values'!$Y$4:$Y$54, MATCH(I41,'Selected values'!$X$4:$X$54,0)),1) -> 41.3 | M41: =INDEX('Selected values'!$AQ$4:$AQ$54,MATCH(N41,'Selected values'!$AO$4:$AO$54,0)) -> 20 | N41: =IF($B$7=Lists!$K$2, INDEX('Selected values'!$AI$4:$AI$54, MATCH($A41,'Selected values'!$AK$4:$AK$54,0)), INDEX('Selected values'!$AI$4:$AI$54,MATCH($A41,'Selected values'!$AL$4:$AL$54,0))) -> Ohio | O41: =INDEX('Selected values'!$AJ$4:$AJ$54, MATCH(N41,'Selected values'!$AI$4:$AI$54,0)) -> 68.0 | R41: =INDEX('Selected values'!$BB$4:$BB$54,MATCH(S41,'Selected values'!$AZ$4:$AZ$54,0)) -> 20 | S41: =IF($B$7=Lists!$K$2, INDEX('Selected values'!$AT$4:$AT$54, MATCH($A41,'Selected values'!$AV$4:$AV$54,0)), INDEX('Selected values'!$AT$4:$AT$54,MATCH($A41,'Selected values'!$AW$4:$AW$54,0))) -> Mississippi | T41: =ROUND(INDEX('Selected values'!$AU$4:$AU$54, MATCH(S41,'Selected values'!$AT$4:$AT$54,0)),1) -> 64.5
A42: =IF($B$7=Lists!$K$4, A41-1,A41+1) -> 21 | C42: =INDEX('Selected values'!$U$4:$U$54,MATCH(D42,'Selected values'!$S$4:$S$54,0)) -> 21 | D42: =IF($B$7=Lists!$K$2, INDEX('Selected values'!$M$4:$M$54, MATCH($A42,'Selected values'!$O$4:$O$54,0)), INDEX('Selected values'!$M$4:$M$54,MATCH($A42,'Selected values'!$P$4:$P$54,0))) -> Maine | E42: =ROUND(INDEX('Selected values'!$N$4:$N$54, MATCH(D42,'Selected values'!$M$4:$M$54,0)),1) -> 56.8 | H42: =INDEX('Selected values'!$AF$4:$AF$54,MATCH(I42,'Selected values'!$AD$4:$AD$54,0)) -> 21 | I42: =IF($B$7=Lists!$K$2, INDEX('Selected values'!$X$4:$X$54, MATCH($A42,'Selected values'!$Z$4:$Z$54,0)), INDEX('Selected values'!$X$4:$X$54,MATCH($A42,'Selected values'!$AA$4:$AA$54,0))) -> Missouri | J42: =ROUND(INDEX('Selected values'!$Y$4:$Y$54, MATCH(I42,'Selected values'!$X$4:$X$54,0)),1) -> 40.0 | M42: =INDEX('Selected values'!$AQ$4:$AQ$54,MATCH(N42,'Selected values'!$AO$4:$AO$54,0)) -> 21 | N42: =IF($B$7=Lists!$K$2, INDEX('Selected values'!$AI$4:$AI$54, MATCH($A42,'Selected values'!$AK$4:$AK$54,0)), INDEX('Selected values'!$AI$4:$AI$54,MATCH($A42,'Selected values'!$AL$4:$AL$54,0))) -> North Dakota | O42: =INDEX('Selected values'!$AJ$4:$AJ$54, MATCH(N42,'Selected values'!$AI$4:$AI$54,0)) -> 66.9 | R42: =INDEX('Selected values'!$BB$4:$BB$54,MATCH(S42,'Selected values'!$AZ$4:$AZ$54,0)) -> =21 | S42: =IF($B$7=Lists!$K$2, INDEX('Selected values'!$AT$4:$AT$54, MATCH($A42,'Selected values'!$AV$4:$AV$54,0)), INDEX('Selected values'!$AT$4:$AT$54,MATCH($A42,'Selected values'!$AW$4:$AW$54,0))) -> Minnesota | T42: =ROUND(INDEX('Selected values'!$AU$4:$AU$54, MATCH(S42,'Selected values'!$AT$4:$AT$54,0)),1) -> 63.2
A43: =IF($B$7=Lists!$K$4, A42-1,A42+1) -> 22 | C43: =INDEX('Selected values'!$U$4:$U$54,MATCH(D43,'Selected values'!$S$4:$S$54,0)) -> 22 | D43: =IF($B$7=Lists!$K$2, INDEX('Selected values'!$M$4:$M$54, MATCH($A43,'Selected values'!$O$4:$O$54,0)), INDEX('Selected values'!$M$4:$M$54,MATCH($A43,'Selected values'!$P$4:$P$54,0))) -> Mississippi | E43: =ROUND(INDEX('Selected values'!$N$4:$N$54, MATCH(D43,'Selected values'!$M$4:$M$54,0)),1) -> 55.4 | H43: =INDEX('Selected values'!$AF$4:$AF$54,MATCH(I43,'Selected values'!$AD$4:$AD$54,0)) ->  | I43: =IF($B$7=Lists!$K$2, INDEX('Selected values'!$X$4:$X$54, MATCH($A43,'Selected values'!$Z$4:$Z$54,0)), INDEX('Selected values'!$X$4:$X$54,MATCH($A43,'Selected values'!$AA$4:$AA$54,0))) -> AVERAGE | J43: =ROUND(INDEX('Selected values'!$Y$4:$Y$54, MATCH(I43,'Selected values'!$X$4:$X$54,0)),1) -> 39.5 | M43: =INDEX('Selected values'!$AQ$4:$AQ$54,MATCH(N43,'Selected values'!$AO$4:$AO$54,0)) -> 22 | N43: =IF($B$7=Lists!$K$2, INDEX('Selected values'!$AI$4:$AI$54, MATCH($A43,'Selected values'!$AK$4:$AK$54,0)), INDEX('Selected values'!$AI$4:$AI$54,MATCH($A43,'Selected values'!$AL$4:$AL$54,0))) -> Virginia | O43: =INDEX('Selected values'!$AJ$4:$AJ$54, MATCH(N43,'Selected values'!$AI$4:$AI$54,0)) -> 66.8 | R43: =INDEX('Selected values'!$BB$4:$BB$54,MATCH(S43,'Selected values'!$AZ$4:$AZ$54,0)) -> =21 | S43: =IF($B$7=Lists!$K$2, INDEX('Selected values'!$AT$4:$AT$54, MATCH($A43,'Selected values'!$AV$4:$AV$54,0)), INDEX('Selected values'!$AT$4:$AT$54,MATCH($A43,'Selected values'!$AW$4:$AW$54,0))) -> Pennsylvania | T43: =ROUND(INDEX('Selected values'!$AU$4:$AU$54, MATCH(S43,'Selected values'!$AT$4:$AT$54,0)),1) -> 63.2
A44: =IF($B$7=Lists!$K$4, A43-1,A43+1) -> 23 | C44: =INDEX('Selected values'!$U$4:$U$54,MATCH(D44,'Selected values'!$S$4:$S$54,0)) -> 23 | D44: =IF($B$7=Lists!$K$2, INDEX('Selected values'!$M$4:$M$54, MATCH($A44,'Selected values'!$O$4:$O$54,0)), INDEX('Selected values'!$M$4:$M$54,MATCH($A44,'Selected values'!$P$4:$P$54,0))) -> Hawaii | E44: =ROUND(INDEX('Selected values'!$N$4:$N$54, MATCH(D44,'Selected values'!$M$4:$M$54,0)),1) -> 54.8 | H44: =INDEX('Selected values'!$AF$4:$AF$54,MATCH(I44,'Selected values'!$AD$4:$AD$54,0)) -> 22 | I44: =IF($B$7=Lists!$K$2, INDEX('Selected values'!$X$4:$X$54, MATCH($A44,'Selected values'!$Z$4:$Z$54,0)), INDEX('Selected values'!$X$4:$X$54,MATCH($A44,'Selected values'!$AA$4:$AA$54,0))) -> Pennsylvania | J44: =ROUND(INDEX('Selected values'!$Y$4:$Y$54, MATCH(I44,'Selected values'!$X$4:$X$54,0)),1) -> 38.8 | M44: =INDEX('Selected values'!$AQ$4:$AQ$54,MATCH(N44,'Selected values'!$AO$4:$AO$54,0)) ->  | N44: =IF($B$7=Lists!$K$2, INDEX('Selected values'!$AI$4:$AI$54, MATCH($A44,'Selected values'!$AK$4:$AK$54,0)), INDEX('Selected values'!$AI$4:$AI$54,MATCH($A44,'Selected values'!$AL$4:$AL$54,0))) -> AVERAGE | O44: =INDEX('Selected values'!$AJ$4:$AJ$54, MATCH(N44,'Selected values'!$AI$4:$AI$54,0)) -> 61.6 | R44: =INDEX('Selected values'!$BB$4:$BB$54,MATCH(S44,'Selected values'!$AZ$4:$AZ$54,0)) -> 23 | S44: =IF($B$7=Lists!$K$2, INDEX('Selected values'!$AT$4:$AT$54, MATCH($A44,'Selected values'!$AV$4:$AV$54,0)), INDEX('Selected values'!$AT$4:$AT$54,MATCH($A44,'Selected values'!$AW$4:$AW$54,0))) -> New Hampshire | T44: =ROUND(INDEX('Selected values'!$AU$4:$AU$54, MATCH(S44,'Selected values'!$AT$4:$AT$54,0)),1) -> 62.9
A45: =IF($B$7=Lists!$K$4, A44-1,A44+1) -> 24 | C45: =INDEX('Selected values'!$U$4:$U$54,MATCH(D45,'Selected values'!$S$4:$S$54,0)) -> 24 | D45: =IF($B$7=Lists!$K$2, INDEX('Selected values'!$M$4:$M$54, MATCH($A45,'Selected values'!$O$4:$O$54,0)), INDEX('Selected values'!$M$4:$M$54,MATCH($A45,'Selected values'!$P$4:$P$54,0))) -> Louisiana | E45: =ROUND(INDEX('Selected values'!$N$4:$N$54, MATCH(D45,'Selected values'!$M$4:$M$54,0)),1) -> 54.8 | H45: =INDEX('Selected values'!$AF$4:$AF$54,MATCH(I45,'Selected values'!$AD$4:$AD$54,0)) -> =23 | I45: =IF($B$7=Lists!$K$2, INDEX('Selected values'!$X$4:$X$54, MATCH($A45,'Selected values'!$Z$4:$Z$54,0)), INDEX('Selected values'!$X$4:$X$54,MATCH($A45,'Selected values'!$AA$4:$AA$54,0))) -> New York | J45: =ROUND(INDEX('Selected values'!$Y$4:$Y$54, MATCH(I45,'Selected values'!$X$4:$X$54,0)),1) -> 37.5 | M45: =INDEX('Selected values'!$AQ$4:$AQ$54,MATCH(N45,'Selected values'!$AO$4:$AO$54,0)) -> 23 | N45: =IF($B$7=Lists!$K$2, INDEX('Selected values'!$AI$4:$AI$54, MATCH($A45,'Selected values'!$AK$4:$AK$54,0)), INDEX('Selected values'!$AI$4:$AI$54,MATCH($A45,'Selected values'!$AL$4:$AL$54,0))) -> Massachusetts | O45: =INDEX('Selected values'!$AJ$4:$AJ$54, MATCH(N45,'Selected values'!$AI$4:$AI$54,0)) -> 58.5 | R45: =INDEX('Selected values'!$BB$4:$BB$54,MATCH(S45,'Selected values'!$AZ$4:$AZ$54,0)) -> 24 | S45: =IF($B$7=Lists!$K$2, INDEX('Selected values'!$AT$4:$AT$54, MATCH($A45,'Selected values'!$AV$4:$AV$54,0)), INDEX('Selected values'!$AT$4:$AT$54,MATCH($A45,'Selected values'!$AW$4:$AW$54,0))) -> Wisconsin | T45: =ROUND(INDEX('Selected values'!$AU$4:$AU$54, MATCH(S45,'Selected values'!$AT$4:$AT$54,0)),1) -> 62.7
A46: =IF($B$7=Lists!$K$4, A45-1,A45+1) -> 25 | C46: =INDEX('Selected values'!$U$4:$U$54,MATCH(D46,'Selected values'!$S$4:$S$54,0)) -> 25 | D46: =IF($B$7=Lists!$K$2, INDEX('Selected values'!$M$4:$M$54, MATCH($A46,'Selected values'!$O$4:$O$54,0)), INDEX('Selected values'!$M$4:$M$54,MATCH($A46,'Selected values'!$P$4:$P$54,0))) -> Vermont | E46: =ROUND(INDEX('Selected values'!$N$4:$N$54, MATCH(D46,'Selected values'!$M$4:$M$54,0)),1) -> 54.4 | H46: =INDEX('Selected values'!$AF$4:$AF$54,MATCH(I46,'Selected values'!$AD$4:$AD$54,0)) -> =23 | I46: =IF($B$7=Lists!$K$2, INDEX('Selected values'!$X$4:$X$54, MATCH($A46,'Selected values'!$Z$4:$Z$54,0)), INDEX('Selected values'!$X$4:$X$54,MATCH($A46,'Selected values'!$AA$4:$AA$54,0))) -> Texas | J46: =ROUND(INDEX('Selected values'!$Y$4:$Y$54, MATCH(I46,'Selected values'!$X$4:$X$54,0)),1) -> 37.5 | M46: =INDEX('Selected values'!$AQ$4:$AQ$54,MATCH(N46,'Selected values'!$AO$4:$AO$54,0)) -> 24 | N46: =IF($B$7=Lists!$K$2, INDEX('Selected values'!$AI$4:$AI$54, MATCH($A46,'Selected values'!$AK$4:$AK$54,0)), INDEX('Selected values'!$AI$4:$AI$54,MATCH($A46,'Selected values'!$AL$4:$AL$54,0))) -> Hawaii | O46: =INDEX('Selected values'!$AJ$4:$AJ$54, MATCH(N46,'Selected values'!$AI$4:$AI$54,0)) -> 58.0 | R46: =INDEX('Selected values'!$BB$4:$BB$54,MATCH(S46,'Selected values'!$AZ$4:$AZ$54,0)) ->  | S46: =IF($B$7=Lists!$K$2, INDEX('Selected values'!$AT$4:$AT$54, MATCH($A46,'Selected values'!$AV$4:$AV$54,0)), INDEX('Selected values'!$AT$4:$AT$54,MATCH($A46,'Selected values'!$AW$4:$AW$54,0))) -> AVERAGE | T46: =ROUND(INDEX('Selected values'!$AU$4:$AU$54, MATCH(S46,'Selected values'!$AT$4:$AT$54,0)),1) -> 61.6
A47: =IF($B$7=Lists!$K$4, A46-1,A46+1) -> 26 | C47: =INDEX('Selected values'!$U$4:$U$54,MATCH(D47,'Selected values'!$S$4:$S$54,0)) ->  | D47: =IF($B$7=Lists!$K$2, INDEX('Selected values'!$M$4:$M$54, MATCH($A47,'Selected values'!$O$4:$O$54,0)), INDEX('Selected values'!$M$4:$M$54,MATCH($A47,'Selected values'!$P$4:$P$54,0))) -> AVERAGE | E47: =ROUND(INDEX('Selected values'!$N$4:$N$54, MATCH(D47,'Selected values'!$M$4:$M$54,0)),1) -> 54.2 | H47: =INDEX('Selected values'!$AF$4:$AF$54,MATCH(I47,'Selected values'!$AD$4:$AD$54,0)) -> 25 | I47: =IF($B$7=Lists!$K$2, INDEX('Selected values'!$X$4:$X$54, MATCH($A47,'Selected values'!$Z$4:$Z$54,0)), INDEX('Selected values'!$X$4:$X$54,MATCH($A47,'Selected values'!$AA$4:$AA$54,0))) -> Maryland | J47: =ROUND(INDEX('Selected values'!$Y$4:$Y$54, MATCH(I47,'Selected values'!$X$4:$X$54,0)),1) -> 36.3 | M47: =INDEX('Selected values'!$AQ$4:$AQ$54,MATCH(N47,'Selected values'!$AO$4:$AO$54,0)) -> 25 | N47: =IF($B$7=Lists!$K$2, INDEX('Selected values'!$AI$4:$AI$54, MATCH($A47,'Selected values'!$AK$4:$AK$54,0)), INDEX('Selected values'!$AI$4:$AI$54,MATCH($A47,'Selected values'!$AL$4:$AL$54,0))) -> New Mexico | O47: =INDEX('Selected values'!$AJ$4:$AJ$54, MATCH(N47,'Selected values'!$AI$4:$AI$54,0)) -> 57.5 | R47: =INDEX('Selected values'!$BB$4:$BB$54,MATCH(S47,'Selected values'!$AZ$4:$AZ$54,0)) -> 25 | S47: =IF($B$7=Lists!$K$2, INDEX('Selected values'!$AT$4:$AT$54, MATCH($A47,'Selected values'!$AV$4:$AV$54,0)), INDEX('Selected values'!$AT$4:$AT$54,MATCH($A47,'Selected values'!$AW$4:$AW$54,0))) -> Alaska | T47: =ROUND(INDEX('Selected values'!$AU$4:$AU$54, MATCH(S47,'Selected values'!$AT$4:$AT$54,0)),1) -> 61.4
A48: =IF($B$7=Lists!$K$4, A47-1,A47+1) -> 27 | C48: =INDEX('Selected values'!$U$4:$U$54,MATCH(D48,'Selected values'!$S$4:$S$54,0)) -> 26 | D48: =IF($B$7=Lists!$K$2, INDEX('Selected values'!$M$4:$M$54, MATCH($A48,'Selected values'!$O$4:$O$54,0)), INDEX('Selected values'!$M$4:$M$54,MATCH($A48,'Selected values'!$P$4:$P$54,0))) -> Connecticut | E48: =ROUND(INDEX('Selected values'!$N$4:$N$54, MATCH(D48,'Selected values'!$M$4:$M$54,0)),1) -> 54.1 | H48: =INDEX('Selected values'!$AF$4:$AF$54,MATCH(I48,'Selected values'!$AD$4:$AD$54,0)) -> 26 | I48: =IF($B$7=Lists!$K$2, INDEX('Selected values'!$X$4:$X$54, MATCH($A48,'Selected values'!$Z$4:$Z$54,0)), INDEX('Selected values'!$X$4:$X$54,MATCH($A48,'Selected values'!$AA$4:$AA$54,0))) -> Oregon | J48: =ROUND(INDEX('Selected values'!$Y$4:$Y$54, MATCH(I48,'Selected values'!$X$4:$X$54,0)),1) -> 35.4 | M48: =INDEX('Selected values'!$AQ$4:$AQ$54,MATCH(N48,'Selected values'!$AO$4:$AO$54,0)) -> 26 | N48: =IF($B$7=Lists!$K$2, INDEX('Selected values'!$AI$4:$AI$54, MATCH($A48,'Selected values'!$AK$4:$AK$54,0)), INDEX('Selected values'!$AI$4:$AI$54,MATCH($A48,'Selected values'!$AL$4:$AL$54,0))) -> Pennsylvania | O48: =INDEX('Selected values'!$AJ$4:$AJ$54, MATCH(N48,'Selected values'!$AI$4:$AI$54,0)) -> 57.5 | R48: =INDEX('Selected values'!$BB$4:$BB$54,MATCH(S48,'Selected values'!$AZ$4:$AZ$54,0)) -> 26 | S48: =IF($B$7=Lists!$K$2, INDEX('Selected values'!$AT$4:$AT$54, MATCH($A48,'Selected values'!$AV$4:$AV$54,0)), INDEX('Selected values'!$AT$4:$AT$54,MATCH($A48,'Selected values'!$AW$4:$AW$54,0))) -> North Carolina | T48: =ROUND(INDEX('Selected values'!$AU$4:$AU$54, MATCH(S48,'Selected values'!$AT$4:$AT$54,0)),1) -> 61.2
A49: =IF($B$7=Lists!$K$4, A48-1,A48+1) -> 28 | C49: =INDEX('Selected values'!$U$4:$U$54,MATCH(D49,'Selected values'!$S$4:$S$54,0)) -> 27 | D49: =IF($B$7=Lists!$K$2, INDEX('Selected values'!$M$4:$M$54, MATCH($A49,'Selected values'!$O$4:$O$54,0)), INDEX('Selected values'!$M$4:$M$54,MATCH($A49,'Selected values'!$P$4:$P$54,0))) -> Arkansas | E49: =ROUND(INDEX('Selected values'!$N$4:$N$54, MATCH(D49,'Selected values'!$M$4:$M$54,0)),1) -> 54.1 | H49: =INDEX('Selected values'!$AF$4:$AF$54,MATCH(I49,'Selected values'!$AD$4:$AD$54,0)) -> =27 | I49: =IF($B$7=Lists!$K$2, INDEX('Selected values'!$X$4:$X$54, MATCH($A49,'Selected values'!$Z$4:$Z$54,0)), INDEX('Selected values'!$X$4:$X$54,MATCH($A49,'Selected values'!$AA$4:$AA$54,0))) -> South Dakota | J49: =ROUND(INDEX('Selected values'!$Y$4:$Y$54, MATCH(I49,'Selected values'!$X$4:$X$54,0)),1) -> 35.0 | M49: =INDEX('Selected values'!$AQ$4:$AQ$54,MATCH(N49,'Selected values'!$AO$4:$AO$54,0)) -> 27 | N49: =IF($B$7=Lists!$K$2, INDEX('Selected values'!$AI$4:$AI$54, MATCH($A49,'Selected values'!$AK$4:$AK$54,0)), INDEX('Selected values'!$AI$4:$AI$54,MATCH($A49,'Selected values'!$AL$4:$AL$54,0))) -> Michigan | O49: =INDEX('Selected values'!$AJ$4:$AJ$54, MATCH(N49,'Selected values'!$AI$4:$AI$54,0)) -> 56.0 | R49: =INDEX('Selected values'!$BB$4:$BB$54,MATCH(S49,'Selected values'!$AZ$4:$AZ$54,0)) -> =27 | S49: =IF($B$7=Lists!$K$2, INDEX('Selected values'!$AT$4:$AT$54, MATCH($A49,'Selected values'!$AV$4:$AV$54,0)), INDEX('Selected values'!$AT$4:$AT$54,MATCH($A49,'Selected values'!$AW$4:$AW$54,0))) -> Missouri | T49: =ROUND(INDEX('Selected values'!$AU$4:$AU$54, MATCH(S49,'Selected values'!$AT$4:$AT$54,0)),1) -> 60.9
A50: =IF($B$7=Lists!$K$4, A49-1,A49+1) -> 29 | C50: =INDEX('Selected values'!$U$4:$U$54,MATCH(D50,'Selected values'!$S$4:$S$54,0)) -> 28 | D50: =IF($B$7=Lists!$K$2, INDEX('Selected values'!$M$4:$M$54, MATCH($A50,'Selected values'!$O$4:$O$54,0)), INDEX('Selected values'!$M$4:$M$54,MATCH($A50,'Selected values'!$P$4:$P$54,0))) -> West Virginia | E50: =ROUND(INDEX('Selected values'!$N$4:$N$54, MATCH(D50,'Selected values'!$M$4:$M$54,0)),1) -> 54.1 | H50: =INDEX('Selected values'!$AF$4:$AF$54,MATCH(I50,'Selected values'!$AD$4:$AD$54,0)) -> =27 | I50: =IF($B$7=Lists!$K$2, INDEX('Selected values'!$X$4:$X$54, MATCH($A50,'Selected values'!$Z$4:$Z$54,0)), INDEX('Selected values'!$X$4:$X$54,MATCH($A50,'Selected values'!$AA$4:$AA$54,0))) -> Tennessee | J50: =ROUND(INDEX('Selected values'!$Y$4:$Y$54, MATCH(I50,'Selected values'!$X$4:$X$54,0)),1) -> 35.0 | M50: =INDEX('Selected values'!$AQ$4:$AQ$54,MATCH(N50,'Selected values'!$AO$4:$AO$54,0)) -> 28 | N50: =IF($B$7=Lists!$K$2, INDEX('Selected values'!$AI$4:$AI$54, MATCH($A50,'Selected values'!$AK$4:$AK$54,0)), INDEX('Selected values'!$AI$4:$AI$54,MATCH($A50,'Selected values'!$AL$4:$AL$54,0))) -> South Carolina | O50: =INDEX('Selected values'!$AJ$4:$AJ$54, MATCH(N50,'Selected values'!$AI$4:$AI$54,0)) -> 54.8 | R50: =INDEX('Selected values'!$BB$4:$BB$54,MATCH(S50,'Selected values'!$AZ$4:$AZ$54,0)) -> =27 | S50: =IF($B$7=Lists!$K$2, INDEX('Selected values'!$AT$4:$AT$54, MATCH($A50,'Selected values'!$AV$4:$AV$54,0)), INDEX('Selected values'!$AT$4:$AT$54,MATCH($A50,'Selected values'!$AW$4:$AW$54,0))) -> Wyoming | T50: =ROUND(INDEX('Selected values'!$AU$4:$AU$54, MATCH(S50,'Selected values'!$AT$4:$AT$54,0)),1) -> 60.9
A51: =IF($B$7=Lists!$K$4, A50-1,A50+1) -> 30 | C51: =INDEX('Selected values'!$U$4:$U$54,MATCH(D51,'Selected values'!$S$4:$S$54,0)) -> 29 | D51: =IF($B$7=Lists!$K$2, INDEX('Selected values'!$M$4:$M$54, MATCH($A51,'Selected values'!$O$4:$O$54,0)), INDEX('Selected values'!$M$4:$M$54,MATCH($A51,'Selected values'!$P$4:$P$54,0))) -> Tennessee | E51: =ROUND(INDEX('Selected values'!$N$4:$N$54, MATCH(D51,'Selected values'!$M$4:$M$54,0)),1) -> 53.9 | H51: =INDEX('Selected values'!$AF$4:$AF$54,MATCH(I51,'Selected values'!$AD$4:$AD$54,0)) -> =27 | I51: =IF($B$7=Lists!$K$2, INDEX('Selected values'!$X$4:$X$54, MATCH($A51,'Selected values'!$Z$4:$Z$54,0)), INDEX('Selected values'!$X$4:$X$54,MATCH($A51,'Selected values'!$AA$4:$AA$54,0))) -> Utah | J51: =ROUND(INDEX('Selected values'!$Y$4:$Y$54, MATCH(I51,'Selected values'!$X$4:$X$54,0)),1) -> 35.0 | M51: =INDEX('Selected values'!$AQ$4:$AQ$54,MATCH(N51,'Selected values'!$AO$4:$AO$54,0)) -> 29 | N51: =IF($B$7=Lists!$K$2, INDEX('Selected values'!$AI$4:$AI$54, MATCH($A51,'Selected values'!$AK$4:$AK$54,0)), INDEX('Selected values'!$AI$4:$AI$54,MATCH($A51,'Selected values'!$AL$4:$AL$54,0))) -> California | O51: =INDEX('Selected values'!$AJ$4:$AJ$54, MATCH(N51,'Selected values'!$AI$4:$AI$54,0)) -> 54.6 | R51: =INDEX('Selected values'!$BB$4:$BB$54,MATCH(S51,'Selected values'!$AZ$4:$AZ$54,0)) -> =29 | S51: =IF($B$7=Lists!$K$2, INDEX('Selected values'!$AT$4:$AT$54, MATCH($A51,'Selected values'!$AV$4:$AV$54,0)), INDEX('Selected values'!$AT$4:$AT$54,MATCH($A51,'Selected values'!$AW$4:$AW$54,0))) -> Louisiana | T51: =ROUND(INDEX('Selected values'!$AU$4:$AU$54, MATCH(S51,'Selected values'!$AT$4:$AT$54,0)),1) -> 60.7
A52: =IF($B$7=Lists!$K$4, A51-1,A51+1) -> 31 | C52: =INDEX('Selected values'!$U$4:$U$54,MATCH(D52,'Selected values'!$S$4:$S$54,0)) -> 30 | D52: =IF($B$7=Lists!$K$2, INDEX('Selected values'!$M$4:$M$54, MATCH($A52,'Selected values'!$O$4:$O$54,0)), INDEX('Selected values'!$M$4:$M$54,MATCH($A52,'Selected values'!$P$4:$P$54,0))) -> Pennsylvania | E52: =ROUND(INDEX('Selected values'!$N$4:$N$54, MATCH(D52,'Selected values'!$M$4:$M$54,0)),1) -> 53.1 | H52: =INDEX('Selected values'!$AF$4:$AF$54,MATCH(I52,'Selected values'!$AD$4:$AD$54,0)) -> =27 | I52: =IF($B$7=Lists!$K$2, INDEX('Selected values'!$X$4:$X$54, MATCH($A52,'Selected values'!$Z$4:$Z$54,0)), INDEX('Selected values'!$X$4:$X$54,MATCH($A52,'Selected values'!$AA$4:$AA$54,0))) -> Virginia | J52: =ROUND(INDEX('Selected values'!$Y$4:$Y$54, MATCH(I52,'Selected values'!$X$4:$X$54,0)),1) -> 35.0 | M52: =INDEX('Selected values'!$AQ$4:$AQ$54,MATCH(N52,'Selected values'!$AO$4:$AO$54,0)) -> 30 | N52: =IF($B$7=Lists!$K$2, INDEX('Selected values'!$AI$4:$AI$54, MATCH($A52,'Selected values'!$AK$4:$AK$54,0)), INDEX('Selected values'!$AI$4:$AI$54,MATCH($A52,'Selected values'!$AL$4:$AL$54,0))) -> Oregon | O52: =INDEX('Selected values'!$AJ$4:$AJ$54, MATCH(N52,'Selected values'!$AI$4:$AI$54,0)) -> 51.2 | R52: =INDEX('Selected values'!$BB$4:$BB$54,MATCH(S52,'Selected values'!$AZ$4:$AZ$54,0)) -> =29 | S52: =IF($B$7=Lists!$K$2, INDEX('Selected values'!$AT$4:$AT$54, MATCH($A52,'Selected values'!$AV$4:$AV$54,0)), INDEX('Selected values'!$AT$4:$AT$54,MATCH($A52,'Selected values'!$AW$4:$AW$54,0))) -> New Mexico | T52: =ROUND(INDEX('Selected values'!$AU$4:$AU$54, MATCH(S52,'Selected values'!$AT$4:$AT$54,0)),1) -> 60.7
A53: =IF($B$7=Lists!$K$4, A52-1,A52+1) -> 32 | C53: =INDEX('Selected values'!$U$4:$U$54,MATCH(D53,'Selected values'!$S$4:$S$54,0)) -> 31 | D53: =IF($B$7=Lists!$K$2, INDEX('Selected values'!$M$4:$M$54, MATCH($A53,'Selected values'!$O$4:$O$54,0)), INDEX('Selected values'!$M$4:$M$54,MATCH($A53,'Selected values'!$P$4:$P$54,0))) -> Oregon | E53: =ROUND(INDEX('Selected values'!$N$4:$N$54, MATCH(D53,'Selected values'!$M$4:$M$54,0)),1) -> 52.9 | H53: =INDEX('Selected values'!$AF$4:$AF$54,MATCH(I53,'Selected values'!$AD$4:$AD$54,0)) -> =27 | I53: =IF($B$7=Lists!$K$2, INDEX('Selected values'!$X$4:$X$54, MATCH($A53,'Selected values'!$Z$4:$Z$54,0)), INDEX('Selected values'!$X$4:$X$54,MATCH($A53,'Selected values'!$AA$4:$AA$54,0))) -> Washington | J53: =ROUND(INDEX('Selected values'!$Y$4:$Y$54, MATCH(I53,'Selected values'!$X$4:$X$54,0)),1) -> 35.0 | M53: =INDEX('Selected values'!$AQ$4:$AQ$54,MATCH(N53,'Selected values'!$AO$4:$AO$54,0)) -> 31 | N53: =IF($B$7=Lists!$K$2, INDEX('Selected values'!$AI$4:$AI$54, MATCH($A53,'Selected values'!$AK$4:$AK$54,0)), INDEX('Selected values'!$AI$4:$AI$54,MATCH($A53,'Selected values'!$AL$4:$AL$54,0))) -> Louisiana | O53: =INDEX('Selected values'!$AJ$4:$AJ$54, MATCH(N53,'Selected values'!$AI$4:$AI$54,0)) -> 51.2 | R53: =INDEX('Selected values'!$BB$4:$BB$54,MATCH(S53,'Selected values'!$AZ$4:$AZ$54,0)) -> 31 | S53: =IF($B$7=Lists!$K$2, INDEX('Selected values'!$AT$4:$AT$54, MATCH($A53,'Selected values'!$AV$4:$AV$54,0)), INDEX('Selected values'!$AT$4:$AT$54,MATCH($A53,'Selected values'!$AW$4:$AW$54,0))) -> Montana | T53: =ROUND(INDEX('Selected values'!$AU$4:$AU$54, MATCH(S53,'Selected values'!$AT$4:$AT$54,0)),1) -> 60.2
A54: =IF($B$7=Lists!$K$4, A53-1,A53+1) -> 33 | C54: =INDEX('Selected values'!$U$4:$U$54,MATCH(D54,'Selected values'!$S$4:$S$54,0)) -> 32 | D54: =IF($B$7=Lists!$K$2, INDEX('Selected values'!$M$4:$M$54, MATCH($A54,'Selected values'!$O$4:$O$54,0)), INDEX('Selected values'!$M$4:$M$54,MATCH($A54,'Selected values'!$P$4:$P$54,0))) -> Idaho | E54: =ROUND(INDEX('Selected values'!$N$4:$N$54, MATCH(D54,'Selected values'!$M$4:$M$54,0)),1) -> 52.1 | H54: =INDEX('Selected values'!$AF$4:$AF$54,MATCH(I54,'Selected values'!$AD$4:$AD$54,0)) -> 32 | I54: =IF($B$7=Lists!$K$2, INDEX('Selected values'!$X$4:$X$54, MATCH($A54,'Selected values'!$Z$4:$Z$54,0)), INDEX('Selected values'!$X$4:$X$54,MATCH($A54,'Selected values'!$AA$4:$AA$54,0))) -> Wisconsin | J54: =ROUND(INDEX('Selected values'!$Y$4:$Y$54, MATCH(I54,'Selected values'!$X$4:$X$54,0)),1) -> 34.6 | M54: =INDEX('Selected values'!$AQ$4:$AQ$54,MATCH(N54,'Selected values'!$AO$4:$AO$54,0)) -> 32 | N54: =IF($B$7=Lists!$K$2, INDEX('Selected values'!$AI$4:$AI$54, MATCH($A54,'Selected values'!$AK$4:$AK$54,0)), INDEX('Selected values'!$AI$4:$AI$54,MATCH($A54,'Selected values'!$AL$4:$AL$54,0))) -> West Virginia | O54: =INDEX('Selected values'!$AJ$4:$AJ$54, MATCH(N54,'Selected values'!$AI$4:$AI$54,0)) -> 50.8 | R54: =INDEX('Selected values'!$BB$4:$BB$54,MATCH(S54,'Selected values'!$AZ$4:$AZ$54,0)) -> 32 | S54: =IF($B$7=Lists!$K$2, INDEX('Selected values'!$AT$4:$AT$54, MATCH($A54,'Selected values'!$AV$4:$AV$54,0)), INDEX('Selected values'!$AT$4:$AT$54,MATCH($A54,'Selected values'!$AW$4:$AW$54,0))) -> South Dakota | T54: =ROUND(INDEX('Selected values'!$AU$4:$AU$54, MATCH(S54,'Selected values'!$AT$4:$AT$54,0)),1) -> 59.9
A55: =IF($B$7=Lists!$K$4, A54-1,A54+1) -> 34 | C55: =INDEX('Selected values'!$U$4:$U$54,MATCH(D55,'Selected values'!$S$4:$S$54,0)) -> 33 | D55: =IF($B$7=Lists!$K$2, INDEX('Selected values'!$M$4:$M$54, MATCH($A55,'Selected values'!$O$4:$O$54,0)), INDEX('Selected values'!$M$4:$M$54,MATCH($A55,'Selected values'!$P$4:$P$54,0))) -> Michigan | E55: =ROUND(INDEX('Selected values'!$N$4:$N$54, MATCH(D55,'Selected values'!$M$4:$M$54,0)),1) -> 51.0 | H55: =INDEX('Selected values'!$AF$4:$AF$54,MATCH(I55,'Selected values'!$AD$4:$AD$54,0)) -> 33 | I55: =IF($B$7=Lists!$K$2, INDEX('Selected values'!$X$4:$X$54, MATCH($A55,'Selected values'!$Z$4:$Z$54,0)), INDEX('Selected values'!$X$4:$X$54,MATCH($A55,'Selected values'!$AA$4:$AA$54,0))) -> Maine | J55: =ROUND(INDEX('Selected values'!$Y$4:$Y$54, MATCH(I55,'Selected values'!$X$4:$X$54,0)),1) -> 33.1 | M55: =INDEX('Selected values'!$AQ$4:$AQ$54,MATCH(N55,'Selected values'!$AO$4:$AO$54,0)) -> 33 | N55: =IF($B$7=Lists!$K$2, INDEX('Selected values'!$AI$4:$AI$54, MATCH($A55,'Selected values'!$AK$4:$AK$54,0)), INDEX('Selected values'!$AI$4:$AI$54,MATCH($A55,'Selected values'!$AL$4:$AL$54,0))) -> Alaska | O55: =INDEX('Selected values'!$AJ$4:$AJ$54, MATCH(N55,'Selected values'!$AI$4:$AI$54,0)) -> 50.3 | R55: =INDEX('Selected values'!$BB$4:$BB$54,MATCH(S55,'Selected values'!$AZ$4:$AZ$54,0)) -> 33 | S55: =IF($B$7=Lists!$K$2, INDEX('Selected values'!$AT$4:$AT$54, MATCH($A55,'Selected values'!$AV$4:$AV$54,0)), INDEX('Selected values'!$AT$4:$AT$54,MATCH($A55,'Selected values'!$AW$4:$AW$54,0))) -> Vermont | T55: =ROUND(INDEX('Selected values'!$AU$4:$AU$54, MATCH(S55,'Selected values'!$AT$4:$AT$54,0)),1) -> 59.2
A56: =IF($B$7=Lists!$K$4, A55-1,A55+1) -> 35 | C56: =INDEX('Selected values'!$U$4:$U$54,MATCH(D56,'Selected values'!$S$4:$S$54,0)) -> 34 | D56: =IF($B$7=Lists!$K$2, INDEX('Selected values'!$M$4:$M$54, MATCH($A56,'Selected values'!$O$4:$O$54,0)), INDEX('Selected values'!$M$4:$M$54,MATCH($A56,'Selected values'!$P$4:$P$54,0))) -> Utah | E56: =ROUND(INDEX('Selected values'!$N$4:$N$54, MATCH(D56,'Selected values'!$M$4:$M$54,0)),1) -> 50.5 | H56: =INDEX('Selected values'!$AF$4:$AF$54,MATCH(I56,'Selected values'!$AD$4:$AD$54,0)) -> =34 | I56: =IF($B$7=Lists!$K$2, INDEX('Selected values'!$X$4:$X$54, MATCH($A56,'Selected values'!$Z$4:$Z$54,0)), INDEX('Selected values'!$X$4:$X$54,MATCH($A56,'Selected values'!$AA$4:$AA$54,0))) -> Alaska | J56: =ROUND(INDEX('Selected values'!$Y$4:$Y$54, MATCH(I56,'Selected values'!$X$4:$X$54,0)),1) -> 32.5 | M56: =INDEX('Selected values'!$AQ$4:$AQ$54,MATCH(N56,'Selected values'!$AO$4:$AO$54,0)) -> 34 | N56: =IF($B$7=Lists!$K$2, INDEX('Selected values'!$AI$4:$AI$54, MATCH($A56,'Selected values'!$AK$4:$AK$54,0)), INDEX('Selected values'!$AI$4:$AI$54,MATCH($A56,'Selected values'!$AL$4:$AL$54,0))) -> Nevada | O56: =INDEX('Selected values'!$AJ$4:$AJ$54, MATCH(N56,'Selected values'!$AI$4:$AI$54,0)) -> 50.2 | R56: =INDEX('Selected values'!$BB$4:$BB$54,MATCH(S56,'Selected values'!$AZ$4:$AZ$54,0)) -> 34 | S56: =IF($B$7=Lists!$K$2, INDEX('Selected values'!$AT$4:$AT$54, MATCH($A56,'Selected values'!$AV$4:$AV$54,0)), INDEX('Selected values'!$AT$4:$AT$54,MATCH($A56,'Selected values'!$AW$4:$AW$54,0))) -> Tennessee | T56: =ROUND(INDEX('Selected values'!$AU$4:$AU$54, MATCH(S56,'Selected values'!$AT$4:$AT$54,0)),1) -> 58.7
A57: =IF($B$7=Lists!$K$4, A56-1,A56+1) -> 36 | C57: =INDEX('Selected values'!$U$4:$U$54,MATCH(D57,'Selected values'!$S$4:$S$54,0)) -> 35 | D57: =IF($B$7=Lists!$K$2, INDEX('Selected values'!$M$4:$M$54, MATCH($A57,'Selected values'!$O$4:$O$54,0)), INDEX('Selected values'!$M$4:$M$54,MATCH($A57,'Selected values'!$P$4:$P$54,0))) -> Nebraska | E57: =ROUND(INDEX('Selected values'!$N$4:$N$54, MATCH(D57,'Selected values'!$M$4:$M$54,0)),1) -> 50.3 | H57: =INDEX('Selected values'!$AF$4:$AF$54,MATCH(I57,'Selected values'!$AD$4:$AD$54,0)) -> =34 | I57: =IF($B$7=Lists!$K$2, INDEX('Selected values'!$X$4:$X$54, MATCH($A57,'Selected values'!$Z$4:$Z$54,0)), INDEX('Selected values'!$X$4:$X$54,MATCH($A57,'Selected values'!$AA$4:$AA$54,0))) -> Illinois | J57: =ROUND(INDEX('Selected values'!$Y$4:$Y$54, MATCH(I57,'Selected values'!$X$4:$X$54,0)),1) -> 32.5 | M57: =INDEX('Selected values'!$AQ$4:$AQ$54,MATCH(N57,'Selected values'!$AO$4:$AO$54,0)) -> 35 | N57: =IF($B$7=Lists!$K$2, INDEX('Selected values'!$AI$4:$AI$54, MATCH($A57,'Selected values'!$AK$4:$AK$54,0)), INDEX('Selected values'!$AI$4:$AI$54,MATCH($A57,'Selected values'!$AL$4:$AL$54,0))) -> New Jersey | O57: =INDEX('Selected values'!$AJ$4:$AJ$54, MATCH(N57,'Selected values'!$AI$4:$AI$54,0)) -> 49.9 | R57: =INDEX('Selected values'!$BB$4:$BB$54,MATCH(S57,'Selected values'!$AZ$4:$AZ$54,0)) -> 35 | S57: =IF($B$7=Lists!$K$2, INDEX('Selected values'!$AT$4:$AT$54, MATCH($A57,'Selected values'!$AV$4:$AV$54,0)), INDEX('Selected values'!$AT$4:$AT$54,MATCH($A57,'Selected values'!$AW$4:$AW$54,0))) -> Maine | T57: =ROUND(INDEX('Selected values'!$AU$4:$AU$54, MATCH(S57,'Selected values'!$AT$4:$AT$54,0)),1) -> 58.4
A58: =IF($B$7=Lists!$K$4, A57-1,A57+1) -> 37 | C58: =INDEX('Selected values'!$U$4:$U$54,MATCH(D58,'Selected values'!$S$4:$S$54,0)) -> 36 | D58: =IF($B$7=Lists!$K$2, INDEX('Selected values'!$M$4:$M$54, MATCH($A58,'Selected values'!$O$4:$O$54,0)), INDEX('Selected values'!$M$4:$M$54,MATCH($A58,'Selected values'!$P$4:$P$54,0))) -> Wyoming | E58: =ROUND(INDEX('Selected values'!$N$4:$N$54, MATCH(D58,'Selected values'!$M$4:$M$54,0)),1) -> 49.0 | H58: =INDEX('Selected values'!$AF$4:$AF$54,MATCH(I58,'Selected values'!$AD$4:$AD$54,0)) -> 36 | I58: =IF($B$7=Lists!$K$2, INDEX('Selected values'!$X$4:$X$54, MATCH($A58,'Selected values'!$Z$4:$Z$54,0)), INDEX('Selected values'!$X$4:$X$54,MATCH($A58,'Selected values'!$AA$4:$AA$54,0))) -> Delaware | J58: =ROUND(INDEX('Selected values'!$Y$4:$Y$54, MATCH(I58,'Selected values'!$X$4:$X$54,0)),1) -> 31.3 | M58: =INDEX('Selected values'!$AQ$4:$AQ$54,MATCH(N58,'Selected values'!$AO$4:$AO$54,0)) -> 36 | N58: =IF($B$7=Lists!$K$2, INDEX('Selected values'!$AI$4:$AI$54, MATCH($A58,'Selected values'!$AK$4:$AK$54,0)), INDEX('Selected values'!$AI$4:$AI$54,MATCH($A58,'Selected values'!$AL$4:$AL$54,0))) -> Arizona | O58: =INDEX('Selected values'!$AJ$4:$AJ$54, MATCH(N58,'Selected values'!$AI$4:$AI$54,0)) -> 49.9 | R58: =INDEX('Selected values'!$BB$4:$BB$54,MATCH(S58,'Selected values'!$AZ$4:$AZ$54,0)) -> 36 | S58: =IF($B$7=Lists!$K$2, INDEX('Selected values'!$AT$4:$AT$54, MATCH($A58,'Selected values'!$AV$4:$AV$54,0)), INDEX('Selected values'!$AT$4:$AT$54,MATCH($A58,'Selected values'!$AW$4:$AW$54,0))) -> Arkansas | T58: =ROUND(INDEX('Selected values'!$AU$4:$AU$54, MATCH(S58,'Selected values'!$AT$4:$AT$54,0)),1) -> 57.4
A59: =IF($B$7=Lists!$K$4, A58-1,A58+1) -> 38 | C59: =INDEX('Selected values'!$U$4:$U$54,MATCH(D59,'Selected values'!$S$4:$S$54,0)) -> 37 | D59: =IF($B$7=Lists!$K$2, INDEX('Selected values'!$M$4:$M$54, MATCH($A59,'Selected values'!$O$4:$O$54,0)), INDEX('Selected values'!$M$4:$M$54,MATCH($A59,'Selected values'!$P$4:$P$54,0))) -> Missouri | E59: =ROUND(INDEX('Selected values'!$N$4:$N$54, MATCH(D59,'Selected values'!$M$4:$M$54,0)),1) -> 48.9 | H59: =INDEX('Selected values'!$AF$4:$AF$54,MATCH(I59,'Selected values'!$AD$4:$AD$54,0)) -> =37 | I59: =IF($B$7=Lists!$K$2, INDEX('Selected values'!$X$4:$X$54, MATCH($A59,'Selected values'!$Z$4:$Z$54,0)), INDEX('Selected values'!$X$4:$X$54,MATCH($A59,'Selected values'!$AA$4:$AA$54,0))) -> Indiana | J59: =ROUND(INDEX('Selected values'!$Y$4:$Y$54, MATCH(I59,'Selected values'!$X$4:$X$54,0)),1) -> 30.0 | M59: =INDEX('Selected values'!$AQ$4:$AQ$54,MATCH(N59,'Selected values'!$AO$4:$AO$54,0)) -> 37 | N59: =IF($B$7=Lists!$K$2, INDEX('Selected values'!$AI$4:$AI$54, MATCH($A59,'Selected values'!$AK$4:$AK$54,0)), INDEX('Selected values'!$AI$4:$AI$54,MATCH($A59,'Selected values'!$AL$4:$AL$54,0))) -> Georgia | O59: =INDEX('Selected values'!$AJ$4:$AJ$54, MATCH(N59,'Selected values'!$AI$4:$AI$54,0)) -> 49.7 | R59: =INDEX('Selected values'!$BB$4:$BB$54,MATCH(S59,'Selected values'!$AZ$4:$AZ$54,0)) -> 37 | S59: =IF($B$7=Lists!$K$2, INDEX('Selected values'!$AT$4:$AT$54, MATCH($A59,'Selected values'!$AV$4:$AV$54,0)), INDEX('Selected values'!$AT$4:$AT$54,MATCH($A59,'Selected values'!$AW$4:$AW$54,0))) -> Massachusetts | T59: =ROUND(INDEX('Selected values'!$AU$4:$AU$54, MATCH(S59,'Selected values'!$AT$4:$AT$54,0)),1) -> 57.1
A60: =IF($B$7=Lists!$K$4, A59-1,A59+1) -> 39 | C60: =INDEX('Selected values'!$U$4:$U$54,MATCH(D60,'Selected values'!$S$4:$S$54,0)) -> 38 | D60: =IF($B$7=Lists!$K$2, INDEX('Selected values'!$M$4:$M$54, MATCH($A60,'Selected values'!$O$4:$O$54,0)), INDEX('Selected values'!$M$4:$M$54,MATCH($A60,'Selected values'!$P$4:$P$54,0))) -> Delaware | E60: =ROUND(INDEX('Selected values'!$N$4:$N$54, MATCH(D60,'Selected values'!$M$4:$M$54,0)),1) -> 48.9 | H60: =INDEX('Selected values'!$AF$4:$AF$54,MATCH(I60,'Selected values'!$AD$4:$AD$54,0)) -> =37 | I60: =IF($B$7=Lists!$K$2, INDEX('Selected values'!$X$4:$X$54, MATCH($A60,'Selected values'!$Z$4:$Z$54,0)), INDEX('Selected values'!$X$4:$X$54,MATCH($A60,'Selected values'!$AA$4:$AA$54,0))) -> Massachusetts | J60: =ROUND(INDEX('Selected values'!$Y$4:$Y$54, MATCH(I60,'Selected values'!$X$4:$X$54,0)),1) -> 30.0 | M60: =INDEX('Selected values'!$AQ$4:$AQ$54,MATCH(N60,'Selected values'!$AO$4:$AO$54,0)) -> 38 | N60: =IF($B$7=Lists!$K$2, INDEX('Selected values'!$AI$4:$AI$54, MATCH($A60,'Selected values'!$AK$4:$AK$54,0)), INDEX('Selected values'!$AI$4:$AI$54,MATCH($A60,'Selected values'!$AL$4:$AL$54,0))) -> South Dakota | O60: =INDEX('Selected values'!$AJ$4:$AJ$54, MATCH(N60,'Selected values'!$AI$4:$AI$54,0)) -> 46.2 | R60: =INDEX('Selected values'!$BB$4:$BB$54,MATCH(S60,'Selected values'!$AZ$4:$AZ$54,0)) -> 38 | S60: =IF($B$7=Lists!$K$2, INDEX('Selected values'!$AT$4:$AT$54, MATCH($A60,'Selected values'!$AV$4:$AV$54,0)), INDEX('Selected values'!$AT$4:$AT$54,MATCH($A60,'Selected values'!$AW$4:$AW$54,0))) -> Alabama | T60: =ROUND(INDEX('Selected values'!$AU$4:$AU$54, MATCH(S60,'Selected values'!$AT$4:$AT$54,0)),1) -> 56.9
A61: =IF($B$7=Lists!$K$4, A60-1,A60+1) -> 40 | C61: =INDEX('Selected values'!$U$4:$U$54,MATCH(D61,'Selected values'!$S$4:$S$54,0)) -> 39 | D61: =IF($B$7=Lists!$K$2, INDEX('Selected values'!$M$4:$M$54, MATCH($A61,'Selected values'!$O$4:$O$54,0)), INDEX('Selected values'!$M$4:$M$54,MATCH($A61,'Selected values'!$P$4:$P$54,0))) -> Massachusetts | E61: =ROUND(INDEX('Selected values'!$N$4:$N$54, MATCH(D61,'Selected values'!$M$4:$M$54,0)),1) -> 48.5 | H61: =INDEX('Selected values'!$AF$4:$AF$54,MATCH(I61,'Selected values'!$AD$4:$AD$54,0)) -> =37 | I61: =IF($B$7=Lists!$K$2, INDEX('Selected values'!$X$4:$X$54, MATCH($A61,'Selected values'!$Z$4:$Z$54,0)), INDEX('Selected values'!$X$4:$X$54,MATCH($A61,'Selected values'!$AA$4:$AA$54,0))) -> North Carolina | J61: =ROUND(INDEX('Selected values'!$Y$4:$Y$54, MATCH(I61,'Selected values'!$X$4:$X$54,0)),1) -> 30.0 | M61: =INDEX('Selected values'!$AQ$4:$AQ$54,MATCH(N61,'Selected values'!$AO$4:$AO$54,0)) -> 39 | N61: =IF($B$7=Lists!$K$2, INDEX('Selected values'!$AI$4:$AI$54, MATCH($A61,'Selected values'!$AK$4:$AK$54,0)), INDEX('Selected values'!$AI$4:$AI$54,MATCH($A61,'Selected values'!$AL$4:$AL$54,0))) -> Alabama | O61: =INDEX('Selected values'!$AJ$4:$AJ$54, MATCH(N61,'Selected values'!$AI$4:$AI$54,0)) -> 45.8 | R61: =INDEX('Selected values'!$BB$4:$BB$54,MATCH(S61,'Selected values'!$AZ$4:$AZ$54,0)) -> 39 | S61: =IF($B$7=Lists!$K$2, INDEX('Selected values'!$AT$4:$AT$54, MATCH($A61,'Selected values'!$AV$4:$AV$54,0)), INDEX('Selected values'!$AT$4:$AT$54,MATCH($A61,'Selected values'!$AW$4:$AW$54,0))) -> West Virginia | T61: =ROUND(INDEX('Selected values'!$AU$4:$AU$54, MATCH(S61,'Selected values'!$AT$4:$AT$54,0)),1) -> 56.4
A62: =IF($B$7=Lists!$K$4, A61-1,A61+1) -> 41 | C62: =INDEX('Selected values'!$U$4:$U$54,MATCH(D62,'Selected values'!$S$4:$S$54,0)) -> 40 | D62: =IF($B$7=Lists!$K$2, INDEX('Selected values'!$M$4:$M$54, MATCH($A62,'Selected values'!$O$4:$O$54,0)), INDEX('Selected values'!$M$4:$M$54,MATCH($A62,'Selected values'!$P$4:$P$54,0))) -> New Jersey | E62: =ROUND(INDEX('Selected values'!$N$4:$N$54, MATCH(D62,'Selected values'!$M$4:$M$54,0)),1) -> 48.1 | H62: =INDEX('Selected values'!$AF$4:$AF$54,MATCH(I62,'Selected values'!$AD$4:$AD$54,0)) -> =40 | I62: =IF($B$7=Lists!$K$2, INDEX('Selected values'!$X$4:$X$54, MATCH($A62,'Selected values'!$Z$4:$Z$54,0)), INDEX('Selected values'!$X$4:$X$54,MATCH($A62,'Selected values'!$AA$4:$AA$54,0))) -> Connecticut | J62: =ROUND(INDEX('Selected values'!$Y$4:$Y$54, MATCH(I62,'Selected values'!$X$4:$X$54,0)),1) -> 28.8 | M62: =INDEX('Selected values'!$AQ$4:$AQ$54,MATCH(N62,'Selected values'!$AO$4:$AO$54,0)) -> 40 | N62: =IF($B$7=Lists!$K$2, INDEX('Selected values'!$AI$4:$AI$54, MATCH($A62,'Selected values'!$AK$4:$AK$54,0)), INDEX('Selected values'!$AI$4:$AI$54,MATCH($A62,'Selected values'!$AL$4:$AL$54,0))) -> Missouri | O62: =INDEX('Selected values'!$AJ$4:$AJ$54, MATCH(N62,'Selected values'!$AI$4:$AI$54,0)) -> 45.7 | R62: =INDEX('Selected values'!$BB$4:$BB$54,MATCH(S62,'Selected values'!$AZ$4:$AZ$54,0)) -> 40 | S62: =IF($B$7=Lists!$K$2, INDEX('Selected values'!$AT$4:$AT$54, MATCH($A62,'Selected values'!$AV$4:$AV$54,0)), INDEX('Selected values'!$AT$4:$AT$54,MATCH($A62,'Selected values'!$AW$4:$AW$54,0))) -> Florida | T62: =ROUND(INDEX('Selected values'!$AU$4:$AU$54, MATCH(S62,'Selected values'!$AT$4:$AT$54,0)),1) -> 55.3
A63: =IF($B$7=Lists!$K$4, A62-1,A62+1) -> 42 | C63: =INDEX('Selected values'!$U$4:$U$54,MATCH(D63,'Selected values'!$S$4:$S$54,0)) -> 41 | D63: =IF($B$7=Lists!$K$2, INDEX('Selected values'!$M$4:$M$54, MATCH($A63,'Selected values'!$O$4:$O$54,0)), INDEX('Selected values'!$M$4:$M$54,MATCH($A63,'Selected values'!$P$4:$P$54,0))) -> Alaska | E63: =ROUND(INDEX('Selected values'!$N$4:$N$54, MATCH(D63,'Selected values'!$M$4:$M$54,0)),1) -> 48.1 | H63: =INDEX('Selected values'!$AF$4:$AF$54,MATCH(I63,'Selected values'!$AD$4:$AD$54,0)) -> =40 | I63: =IF($B$7=Lists!$K$2, INDEX('Selected values'!$X$4:$X$54, MATCH($A63,'Selected values'!$Z$4:$Z$54,0)), INDEX('Selected values'!$X$4:$X$54,MATCH($A63,'Selected values'!$AA$4:$AA$54,0))) -> New Hampshire | J63: =ROUND(INDEX('Selected values'!$Y$4:$Y$54, MATCH(I63,'Selected values'!$X$4:$X$54,0)),1) -> 28.8 | M63: =INDEX('Selected values'!$AQ$4:$AQ$54,MATCH(N63,'Selected values'!$AO$4:$AO$54,0)) -> 41 | N63: =IF($B$7=Lists!$K$2, INDEX('Selected values'!$AI$4:$AI$54, MATCH($A63,'Selected values'!$AK$4:$AK$54,0)), INDEX('Selected values'!$AI$4:$AI$54,MATCH($A63,'Selected values'!$AL$4:$AL$54,0))) -> Oklahoma | O63: =INDEX('Selected values'!$AJ$4:$AJ$54, MATCH(N63,'Selected values'!$AI$4:$AI$54,0)) -> 45.6 | R63: =INDEX('Selected values'!$BB$4:$BB$54,MATCH(S63,'Selected values'!$AZ$4:$AZ$54,0)) -> 41 | S63: =IF($B$7=Lists!$K$2, INDEX('Selected values'!$AT$4:$AT$54, MATCH($A63,'Selected values'!$AV$4:$AV$54,0)), INDEX('Selected values'!$AT$4:$AT$54,MATCH($A63,'Selected values'!$AW$4:$AW$54,0))) -> Michigan | T63: =ROUND(INDEX('Selected values'!$AU$4:$AU$54, MATCH(S63,'Selected values'!$AT$4:$AT$54,0)),1) -> 54.8
A64: =IF($B$7=Lists!$K$4, A63-1,A63+1) -> 43 | C64: =INDEX('Selected values'!$U$4:$U$54,MATCH(D64,'Selected values'!$S$4:$S$54,0)) -> 42 | D64: =IF($B$7=Lists!$K$2, INDEX('Selected values'!$M$4:$M$54, MATCH($A64,'Selected values'!$O$4:$O$54,0)), INDEX('Selected values'!$M$4:$M$54,MATCH($A64,'Selected values'!$P$4:$P$54,0))) -> South Dakota | E64: =ROUND(INDEX('Selected values'!$N$4:$N$54, MATCH(D64,'Selected values'!$M$4:$M$54,0)),1) -> 47.1 | H64: =INDEX('Selected values'!$AF$4:$AF$54,MATCH(I64,'Selected values'!$AD$4:$AD$54,0)) -> =40 | I64: =IF($B$7=Lists!$K$2, INDEX('Selected values'!$X$4:$X$54, MATCH($A64,'Selected values'!$Z$4:$Z$54,0)), INDEX('Selected values'!$X$4:$X$54,MATCH($A64,'Selected values'!$AA$4:$AA$54,0))) -> New Jersey | J64: =ROUND(INDEX('Selected values'!$Y$4:$Y$54, MATCH(I64,'Selected values'!$X$4:$X$54,0)),1) -> 28.8 | M64: =INDEX('Selected values'!$AQ$4:$AQ$54,MATCH(N64,'Selected values'!$AO$4:$AO$54,0)) -> 42 | N64: =IF($B$7=Lists!$K$2, INDEX('Selected values'!$AI$4:$AI$54, MATCH($A64,'Selected values'!$AK$4:$AK$54,0)), INDEX('Selected values'!$AI$4:$AI$54,MATCH($A64,'Selected values'!$AL$4:$AL$54,0))) -> Delaware | O64: =INDEX('Selected values'!$AJ$4:$AJ$54, MATCH(N64,'Selected values'!$AI$4:$AI$54,0)) -> 45.6 | R64: =INDEX('Selected values'!$BB$4:$BB$54,MATCH(S64,'Selected values'!$AZ$4:$AZ$54,0)) -> 42 | S64: =IF($B$7=Lists!$K$2, INDEX('Selected values'!$AT$4:$AT$54, MATCH($A64,'Selected values'!$AV$4:$AV$54,0)), INDEX('Selected values'!$AT$4:$AT$54,MATCH($A64,'Selected values'!$AW$4:$AW$54,0))) -> Texas | T64: =ROUND(INDEX('Selected values'!$AU$4:$AU$54, MATCH(S64,'Selected values'!$AT$4:$AT$54,0)),1) -> 53.8
A65: =IF($B$7=Lists!$K$4, A64-1,A64+1) -> 44 | C65: =INDEX('Selected values'!$U$4:$U$54,MATCH(D65,'Selected values'!$S$4:$S$54,0)) -> 43 | D65: =IF($B$7=Lists!$K$2, INDEX('Selected values'!$M$4:$M$54, MATCH($A65,'Selected values'!$O$4:$O$54,0)), INDEX('Selected values'!$M$4:$M$54,MATCH($A65,'Selected values'!$P$4:$P$54,0))) -> North Dakota | E65: =ROUND(INDEX('Selected values'!$N$4:$N$54, MATCH(D65,'Selected values'!$M$4:$M$54,0)),1) -> 45.3 | H65: =INDEX('Selected values'!$AF$4:$AF$54,MATCH(I65,'Selected values'!$AD$4:$AD$54,0)) -> =40 | I65: =IF($B$7=Lists!$K$2, INDEX('Selected values'!$X$4:$X$54, MATCH($A65,'Selected values'!$Z$4:$Z$54,0)), INDEX('Selected values'!$X$4:$X$54,MATCH($A65,'Selected values'!$AA$4:$AA$54,0))) -> Vermont | J65: =ROUND(INDEX('Selected values'!$Y$4:$Y$54, MATCH(I65,'Selected values'!$X$4:$X$54,0)),1) -> 28.8 | M65: =INDEX('Selected values'!$AQ$4:$AQ$54,MATCH(N65,'Selected values'!$AO$4:$AO$54,0)) -> 43 | N65: =IF($B$7=Lists!$K$2, INDEX('Selected values'!$AI$4:$AI$54, MATCH($A65,'Selected values'!$AK$4:$AK$54,0)), INDEX('Selected values'!$AI$4:$AI$54,MATCH($A65,'Selected values'!$AL$4:$AL$54,0))) -> Utah | O65: =INDEX('Selected values'!$AJ$4:$AJ$54, MATCH(N65,'Selected values'!$AI$4:$AI$54,0)) -> 45.4 | R65: =INDEX('Selected values'!$BB$4:$BB$54,MATCH(S65,'Selected values'!$AZ$4:$AZ$54,0)) -> 43 | S65: =IF($B$7=Lists!$K$2, INDEX('Selected values'!$AT$4:$AT$54, MATCH($A65,'Selected values'!$AV$4:$AV$54,0)), INDEX('Selected values'!$AT$4:$AT$54,MATCH($A65,'Selected values'!$AW$4:$AW$54,0))) -> Iowa | T65: =ROUND(INDEX('Selected values'!$AU$4:$AU$54, MATCH(S65,'Selected values'!$AT$4:$AT$54,0)),1) -> 53.3
A66: =IF($B$7=Lists!$K$4, A65-1,A65+1) -> 45 | C66: =INDEX('Selected values'!$U$4:$U$54,MATCH(D66,'Selected values'!$S$4:$S$54,0)) -> 44 | D66: =IF($B$7=Lists!$K$2, INDEX('Selected values'!$M$4:$M$54, MATCH($A66,'Selected values'!$O$4:$O$54,0)), INDEX('Selected values'!$M$4:$M$54,MATCH($A66,'Selected values'!$P$4:$P$54,0))) -> Montana | E66: =ROUND(INDEX('Selected values'!$N$4:$N$54, MATCH(D66,'Selected values'!$M$4:$M$54,0)),1) -> 45.1 | H66: =INDEX('Selected values'!$AF$4:$AF$54,MATCH(I66,'Selected values'!$AD$4:$AD$54,0)) -> 44 | I66: =IF($B$7=Lists!$K$2, INDEX('Selected values'!$X$4:$X$54, MATCH($A66,'Selected values'!$Z$4:$Z$54,0)), INDEX('Selected values'!$X$4:$X$54,MATCH($A66,'Selected values'!$AA$4:$AA$54,0))) -> Alabama | J66: =ROUND(INDEX('Selected values'!$Y$4:$Y$54, MATCH(I66,'Selected values'!$X$4:$X$54,0)),1) -> 28.3 | M66: =INDEX('Selected values'!$AQ$4:$AQ$54,MATCH(N66,'Selected values'!$AO$4:$AO$54,0)) -> 44 | N66: =IF($B$7=Lists!$K$2, INDEX('Selected values'!$AI$4:$AI$54, MATCH($A66,'Selected values'!$AK$4:$AK$54,0)), INDEX('Selected values'!$AI$4:$AI$54,MATCH($A66,'Selected values'!$AL$4:$AL$54,0))) -> Idaho | O66: =INDEX('Selected values'!$AJ$4:$AJ$54, MATCH(N66,'Selected values'!$AI$4:$AI$54,0)) -> 45.1 | R66: =INDEX('Selected values'!$BB$4:$BB$54,MATCH(S66,'Selected values'!$AZ$4:$AZ$54,0)) -> 44 | S66: =IF($B$7=Lists!$K$2, INDEX('Selected values'!$AT$4:$AT$54, MATCH($A66,'Selected values'!$AV$4:$AV$54,0)), INDEX('Selected values'!$AT$4:$AT$54,MATCH($A66,'Selected values'!$AW$4:$AW$54,0))) -> Idaho | T66: =ROUND(INDEX('Selected values'!$AU$4:$AU$54, MATCH(S66,'Selected values'!$AT$4:$AT$54,0)),1) -> 52.6
A67: =IF($B$7=Lists!$K$4, A66-1,A66+1) -> 46 | C67: =INDEX('Selected values'!$U$4:$U$54,MATCH(D67,'Selected values'!$S$4:$S$54,0)) -> 45 | D67: =IF($B$7=Lists!$K$2, INDEX('Selected values'!$M$4:$M$54, MATCH($A67,'Selected values'!$O$4:$O$54,0)), INDEX('Selected values'!$M$4:$M$54,MATCH($A67,'Selected values'!$P$4:$P$54,0))) -> Alabama | E67: =ROUND(INDEX('Selected values'!$N$4:$N$54, MATCH(D67,'Selected values'!$M$4:$M$54,0)),1) -> 43.7 | H67: =INDEX('Selected values'!$AF$4:$AF$54,MATCH(I67,'Selected values'!$AD$4:$AD$54,0)) -> =45 | I67: =IF($B$7=Lists!$K$2, INDEX('Selected values'!$X$4:$X$54, MATCH($A67,'Selected values'!$Z$4:$Z$54,0)), INDEX('Selected values'!$X$4:$X$54,MATCH($A67,'Selected values'!$AA$4:$AA$54,0))) -> Kansas | J67: =ROUND(INDEX('Selected values'!$Y$4:$Y$54, MATCH(I67,'Selected values'!$X$4:$X$54,0)),1) -> 25.0 | M67: =INDEX('Selected values'!$AQ$4:$AQ$54,MATCH(N67,'Selected values'!$AO$4:$AO$54,0)) -> 45 | N67: =IF($B$7=Lists!$K$2, INDEX('Selected values'!$AI$4:$AI$54, MATCH($A67,'Selected values'!$AK$4:$AK$54,0)), INDEX('Selected values'!$AI$4:$AI$54,MATCH($A67,'Selected values'!$AL$4:$AL$54,0))) -> Nebraska | O67: =INDEX('Selected values'!$AJ$4:$AJ$54, MATCH(N67,'Selected values'!$AI$4:$AI$54,0)) -> 44.8 | R67: =INDEX('Selected values'!$BB$4:$BB$54,MATCH(S67,'Selected values'!$AZ$4:$AZ$54,0)) -> 45 | S67: =IF($B$7=Lists!$K$2, INDEX('Selected values'!$AT$4:$AT$54, MATCH($A67,'Selected values'!$AV$4:$AV$54,0)), INDEX('Selected values'!$AT$4:$AT$54,MATCH($A67,'Selected values'!$AW$4:$AW$54,0))) -> Georgia | T67: =ROUND(INDEX('Selected values'!$AU$4:$AU$54, MATCH(S67,'Selected values'!$AT$4:$AT$54,0)),1) -> 52.1
A68: =IF($B$7=Lists!$K$4, A67-1,A67+1) -> 47 | C68: =INDEX('Selected values'!$U$4:$U$54,MATCH(D68,'Selected values'!$S$4:$S$54,0)) -> 46 | D68: =IF($B$7=Lists!$K$2, INDEX('Selected values'!$M$4:$M$54, MATCH($A68,'Selected values'!$O$4:$O$54,0)), INDEX('Selected values'!$M$4:$M$54,MATCH($A68,'Selected values'!$P$4:$P$54,0))) -> New Hampshire | E68: =ROUND(INDEX('Selected values'!$N$4:$N$54, MATCH(D68,'Selected values'!$M$4:$M$54,0)),1) -> 43.7 | H68: =INDEX('Selected values'!$AF$4:$AF$54,MATCH(I68,'Selected values'!$AD$4:$AD$54,0)) -> =45 | I68: =IF($B$7=Lists!$K$2, INDEX('Selected values'!$X$4:$X$54, MATCH($A68,'Selected values'!$Z$4:$Z$54,0)), INDEX('Selected values'!$X$4:$X$54,MATCH($A68,'Selected values'!$AA$4:$AA$54,0))) -> North Dakota | J68: =ROUND(INDEX('Selected values'!$Y$4:$Y$54, MATCH(I68,'Selected values'!$X$4:$X$54,0)),1) -> 25.0 | M68: =INDEX('Selected values'!$AQ$4:$AQ$54,MATCH(N68,'Selected values'!$AO$4:$AO$54,0)) -> 46 | N68: =IF($B$7=Lists!$K$2, INDEX('Selected values'!$AI$4:$AI$54, MATCH($A68,'Selected values'!$AK$4:$AK$54,0)), INDEX('Selected values'!$AI$4:$AI$54,MATCH($A68,'Selected values'!$AL$4:$AL$54,0))) -> Kansas | O68: =INDEX('Selected values'!$AJ$4:$AJ$54, MATCH(N68,'Selected values'!$AI$4:$AI$54,0)) -> 44.2 | R68: =INDEX('Selected values'!$BB$4:$BB$54,MATCH(S68,'Selected values'!$AZ$4:$AZ$54,0)) -> 46 | S68: =IF($B$7=Lists!$K$2, INDEX('Selected values'!$AT$4:$AT$54, MATCH($A68,'Selected values'!$AV$4:$AV$54,0)), INDEX('Selected values'!$AT$4:$AT$54,MATCH($A68,'Selected values'!$AW$4:$AW$54,0))) -> Arizona | T68: =ROUND(INDEX('Selected values'!$AU$4:$AU$54, MATCH(S68,'Selected values'!$AT$4:$AT$54,0)),1) -> 46.5
A69: =IF($B$7=Lists!$K$4, A68-1,A68+1) -> 48 | C69: =INDEX('Selected values'!$U$4:$U$54,MATCH(D69,'Selected values'!$S$4:$S$54,0)) -> 47 | D69: =IF($B$7=Lists!$K$2, INDEX('Selected values'!$M$4:$M$54, MATCH($A69,'Selected values'!$O$4:$O$54,0)), INDEX('Selected values'!$M$4:$M$54,MATCH($A69,'Selected values'!$P$4:$P$54,0))) -> South Carolina | E69: =ROUND(INDEX('Selected values'!$N$4:$N$54, MATCH(D69,'Selected values'!$M$4:$M$54,0)),1) -> 40.3 | H69: =INDEX('Selected values'!$AF$4:$AF$54,MATCH(I69,'Selected values'!$AD$4:$AD$54,0)) -> =47 | I69: =IF($B$7=Lists!$K$2, INDEX('Selected values'!$X$4:$X$54, MATCH($A69,'Selected values'!$Z$4:$Z$54,0)), INDEX('Selected values'!$X$4:$X$54,MATCH($A69,'Selected values'!$AA$4:$AA$54,0))) -> Arkansas | J69: =ROUND(INDEX('Selected values'!$Y$4:$Y$54, MATCH(I69,'Selected values'!$X$4:$X$54,0)),1) -> 23.8 | M69: =INDEX('Selected values'!$AQ$4:$AQ$54,MATCH(N69,'Selected values'!$AO$4:$AO$54,0)) -> 47 | N69: =IF($B$7=Lists!$K$2, INDEX('Selected values'!$AI$4:$AI$54, MATCH($A69,'Selected values'!$AK$4:$AK$54,0)), INDEX('Selected values'!$AI$4:$AI$54,MATCH($A69,'Selected values'!$AL$4:$AL$54,0))) -> Mississippi | O69: =INDEX('Selected values'!$AJ$4:$AJ$54, MATCH(N69,'Selected values'!$AI$4:$AI$54,0)) -> 43.0 | R69: =INDEX('Selected values'!$BB$4:$BB$54,MATCH(S69,'Selected values'!$AZ$4:$AZ$54,0)) -> 47 | S69: =IF($B$7=Lists!$K$2, INDEX('Selected values'!$AT$4:$AT$54, MATCH($A69,'Selected values'!$AV$4:$AV$54,0)), INDEX('Selected values'!$AT$4:$AT$54,MATCH($A69,'Selected values'!$AW$4:$AW$54,0))) -> Nebraska | T69: =ROUND(INDEX('Selected values'!$AU$4:$AU$54, MATCH(S69,'Selected values'!$AT$4:$AT$54,0)),1) -> 46.3
A70: =IF($B$7=Lists!$K$4, A69-1,A69+1) -> 49 | C70: =INDEX('Selected values'!$U$4:$U$54,MATCH(D70,'Selected values'!$S$4:$S$54,0)) -> 48 | D70: =IF($B$7=Lists!$K$2, INDEX('Selected values'!$M$4:$M$54, MATCH($A70,'Selected values'!$O$4:$O$54,0)), INDEX('Selected values'!$M$4:$M$54,MATCH($A70,'Selected values'!$P$4:$P$54,0))) -> Georgia | E70: =ROUND(INDEX('Selected values'!$N$4:$N$54, MATCH(D70,'Selected values'!$M$4:$M$54,0)),1) -> 39.8 | H70: =INDEX('Selected values'!$AF$4:$AF$54,MATCH(I70,'Selected values'!$AD$4:$AD$54,0)) -> =47 | I70: =IF($B$7=Lists!$K$2, INDEX('Selected values'!$X$4:$X$54, MATCH($A70,'Selected values'!$Z$4:$Z$54,0)), INDEX('Selected values'!$X$4:$X$54,MATCH($A70,'Selected values'!$AA$4:$AA$54,0))) -> South Carolina | J70: =ROUND(INDEX('Selected values'!$Y$4:$Y$54, MATCH(I70,'Selected values'!$X$4:$X$54,0)),1) -> 23.8 | M70: =INDEX('Selected values'!$AQ$4:$AQ$54,MATCH(N70,'Selected values'!$AO$4:$AO$54,0)) -> 48 | N70: =IF($B$7=Lists!$K$2, INDEX('Selected values'!$AI$4:$AI$54, MATCH($A70,'Selected values'!$AK$4:$AK$54,0)), INDEX('Selected values'!$AI$4:$AI$54,MATCH($A70,'Selected values'!$AL$4:$AL$54,0))) -> Wyoming | O70: =INDEX('Selected values'!$AJ$4:$AJ$54, MATCH(N70,'Selected values'!$AI$4:$AI$54,0)) -> 42.3 | R70: =INDEX('Selected values'!$BB$4:$BB$54,MATCH(S70,'Selected values'!$AZ$4:$AZ$54,0)) -> 48 | S70: =IF($B$7=Lists!$K$2, INDEX('Selected values'!$AT$4:$AT$54, MATCH($A70,'Selected values'!$AV$4:$AV$54,0)), INDEX('Selected values'!$AT$4:$AT$54,MATCH($A70,'Selected values'!$AW$4:$AW$54,0))) -> Kansas | T70: =ROUND(INDEX('Selected values'!$AU$4:$AU$54, MATCH(S70,'Selected values'!$AT$4:$AT$54,0)),1) -> 45.0
A71: =IF($B$7=Lists!$K$4, A70-1,A70+1) -> 50 | C71: =INDEX('Selected values'!$U$4:$U$54,MATCH(D71,'Selected values'!$S$4:$S$54,0)) -> 49 | D71: =IF($B$7=Lists!$K$2, INDEX('Selected values'!$M$4:$M$54, MATCH($A71,'Selected values'!$O$4:$O$54,0)), INDEX('Selected values'!$M$4:$M$54,MATCH($A71,'Selected values'!$P$4:$P$54,0))) -> Arizona | E71: =ROUND(INDEX('Selected values'!$N$4:$N$54, MATCH(D71,'Selected values'!$M$4:$M$54,0)),1) -> 38.8 | H71: =INDEX('Selected values'!$AF$4:$AF$54,MATCH(I71,'Selected values'!$AD$4:$AD$54,0)) -> 49 | I71: =IF($B$7=Lists!$K$2, INDEX('Selected values'!$X$4:$X$54, MATCH($A71,'Selected values'!$Z$4:$Z$54,0)), INDEX('Selected values'!$X$4:$X$54,MATCH($A71,'Selected values'!$AA$4:$AA$54,0))) -> Arizona | J71: =ROUND(INDEX('Selected values'!$Y$4:$Y$54, MATCH(I71,'Selected values'!$X$4:$X$54,0)),1) -> 20.0 | M71: =INDEX('Selected values'!$AQ$4:$AQ$54,MATCH(N71,'Selected values'!$AO$4:$AO$54,0)) -> 49 | N71: =IF($B$7=Lists!$K$2, INDEX('Selected values'!$AI$4:$AI$54, MATCH($A71,'Selected values'!$AK$4:$AK$54,0)), INDEX('Selected values'!$AI$4:$AI$54,MATCH($A71,'Selected values'!$AL$4:$AL$54,0))) -> New Hampshire | O71: =INDEX('Selected values'!$AJ$4:$AJ$54, MATCH(N71,'Selected values'!$AI$4:$AI$54,0)) -> 39.3 | R71: =INDEX('Selected values'!$BB$4:$BB$54,MATCH(S71,'Selected values'!$AZ$4:$AZ$54,0)) -> 49 | S71: =IF($B$7=Lists!$K$2, INDEX('Selected values'!$AT$4:$AT$54, MATCH($A71,'Selected values'!$AV$4:$AV$54,0)), INDEX('Selected values'!$AT$4:$AT$54,MATCH($A71,'Selected values'!$AW$4:$AW$54,0))) -> North Dakota | T71: =ROUND(INDEX('Selected values'!$AU$4:$AU$54, MATCH(S71,'Selected values'!$AT$4:$AT$54,0)),1) -> 44.0
A72: =IF($B$7=Lists!$K$4, A71-1,A71+1) -> 51 | C72: =INDEX('Selected values'!$U$4:$U$54,MATCH(D72,'Selected values'!$S$4:$S$54,0)) -> 50 | D72: =IF($B$7=Lists!$K$2, INDEX('Selected values'!$M$4:$M$54, MATCH($A72,'Selected values'!$O$4:$O$54,0)), INDEX('Selected values'!$M$4:$M$54,MATCH($A72,'Selected values'!$P$4:$P$54,0))) -> Kansas | E72: =ROUND(INDEX('Selected values'!$N$4:$N$54, MATCH(D72,'Selected values'!$M$4:$M$54,0)),1) -> 38.1 | H72: =INDEX('Selected values'!$AF$4:$AF$54,MATCH(I72,'Selected values'!$AD$4:$AD$54,0)) -> 50 | I72: =IF($B$7=Lists!$K$2, INDEX('Selected values'!$X$4:$X$54, MATCH($A72,'Selected values'!$Z$4:$Z$54,0)), INDEX('Selected values'!$X$4:$X$54,MATCH($A72,'Selected values'!$AA$4:$AA$54,0))) -> Georgia | J72: =ROUND(INDEX('Selected values'!$Y$4:$Y$54, MATCH(I72,'Selected values'!$X$4:$X$54,0)),1) -> 17.5 | M72: =INDEX('Selected values'!$AQ$4:$AQ$54,MATCH(N72,'Selected values'!$AO$4:$AO$54,0)) -> 50 | N72: =IF($B$7=Lists!$K$2, INDEX('Selected values'!$AI$4:$AI$54, MATCH($A72,'Selected values'!$AK$4:$AK$54,0)), INDEX('Selected values'!$AI$4:$AI$54,MATCH($A72,'Selected values'!$AL$4:$AL$54,0))) -> Montana | O72: =INDEX('Selected values'!$AJ$4:$AJ$54, MATCH(N72,'Selected values'!$AI$4:$AI$54,0)) -> 34.0 | R72: =INDEX('Selected values'!$BB$4:$BB$54,MATCH(S72,'Selected values'!$AZ$4:$AZ$54,0)) -> 50 | S72: =IF($B$7=Lists!$K$2, INDEX('Selected values'!$AT$4:$AT$54, MATCH($A72,'Selected values'!$AV$4:$AV$54,0)), INDEX('Selected values'!$AT$4:$AT$54,MATCH($A72,'Selected values'!$AW$4:$AW$54,0))) -> South Carolina | T72: =ROUND(INDEX('Selected values'!$AU$4:$AU$54, MATCH(S72,'Selected values'!$AT$4:$AT$54,0)),1) -> 42.3

Sheet INDICATORS
C1: =HOME!B7 -> THE UNITED STATES OBESITY RESPONSE INDEX
C6: SELECT PILLAR
C7: OVERALL
C8: =INDEX(Lists!D2:D6, MATCH(C7,Lists!C2:C6,0)) -> OVERALL
C9: SELECT INDICATOR | E9: SELECT SORT ORDER
C10: OVERALL | E10: Best response to worst
H13: =INDEX(Lists!$F$2:$F$59, MATCH($C10,Lists!$H$2:$H$59,0)) -> 0
C14: =IF(INDEX('DATA TABLE'!$D$10:$D$68, MATCH($H$13,'DATA TABLE'!$B$10:$B$68,0))="","","Description:") -> Description: | H14: =INDEX(Lists!I2:I59, MATCH(H15,Lists!H2:H59,0)) -> Overall index
C15: =IF(C7="Background indicators", CONCATENATE((INDEX('DATA TABLE'!$D$10:$D$68, MATCH($H$13,'DATA TABLE'!$B$10:$B$68,0)))," (", (INDEX('DATA TABLE'!$I$10:$I$68, MATCH($H$13,'DATA TABLE'!$B$10:$B$68,0))),")",CHAR(10), CHAR(10), (INDEX('DATA TABLE'!$H$10:$H$68, MATCH($H$13,'DATA TABLE'!$B$10:$B$68,0)))),IF(INDEX('DATA TABLE'!$D$10:$D$68, MATCH($H$13,'DATA TABLE'!$B$10:$B$68,0))="","",INDEX('DATA TABLE'!$D$10:$D$68, MATCH($H$13,'DATA TABLE'!$B$10:$B$68,0)))) -> Composite measure, scored as the weighted average of the following pillar scores: 1. Policy and governance 2. Food quality and access 3. Physical activity | H15: =C10 -> OVERALL
G16: =IF($E$10=Lists!$K$4,50,1) -> 1
G17: =IF($E$10=Lists!$K$4,G16-1,G16+1) -> 2 | I17: Rank | J17: State | K17: Score | L17: Data
G18: =IF($E$10=Lists!$K$4,G17-1,G17+1) -> 3 | K18: 0-100, where 100 = strongest obesity response | L18: =IF(C27="","",C27) -> 
G19: =IF($C$7="Background indicators",1,IF($E$10=Lists!$K$4,51,1)) -> 1 | I19: =IF(K19="Not scored","",INDEX('Selected values'!$J$4:$J$54,MATCH($J19,'Selected values'!$H$4:$H$54,0))) -> 1 | J19: =IF($E$10=Lists!$K$2, INDEX('Selected values'!$B$4:$B$54, MATCH($G19,'Selected values'!$D$4:$D$54,0)), INDEX('Selected values'!$B$4:$B$54,MATCH($G19,'Selected values'!$E$4:$E$54,0))) -> Minnesota | K19: =IFERROR(ROUND(INDEX('Selected values'!$C$4:$C$54, MATCH($J19,'Selected values'!$B$4:$B$54,0)),1), "Not scored") -> 69.2 | L19: =IF(INDEX('DATA TABLE'!$J$10:$BG$68, MATCH($H$13,'DATA TABLE'!$B$10:$B$68,0), MATCH($J19,'DATA TABLE'!$J$9:$BG$9,0))="","",INDEX('DATA TABLE'!$J$10:$BG$68, MATCH($H$13,'DATA TABLE'!$B$10:$B$68,0), MATCH($J19,'DATA TABLE'!$J$9:$BG$9,0))) -> 
G20: =IF($C$7="Background indicators",G19+1,IF($E$10=Lists!$K$4, G19-1,G19+1)) -> 2 | I20: =IF(K20="Not scored","",INDEX('Selected values'!$J$4:$J$54,MATCH($J20,'Selected values'!$H$4:$H$54,0))) -> 2 | J20: =IF($E$10=Lists!$K$2, INDEX('Selected values'!$B$4:$B$54, MATCH($G20,'Selected values'!$D$4:$D$54,0)), INDEX('Selected values'!$B$4:$B$54,MATCH($G20,'Selected values'!$E$4:$E$54,0))) -> Kentucky | K20: =IFERROR(ROUND(INDEX('Selected values'!$C$4:$C$54, MATCH($J20,'Selected values'!$B$4:$B$54,0)),1), "Not scored") -> 66.5 | L20: =IF(J20="AVERAGE","",IF(INDEX('DATA TABLE'!$J$10:$BG$68, MATCH($H$13,'DATA TABLE'!$B$10:$B$68,0), MATCH($J20,'DATA TABLE'!$J$9:$BG$9,0))="","",INDEX('DATA TABLE'!$J$10:$BG$68, MATCH($H$13,'DATA TABLE'!$B$10:$B$68,0), MATCH($J20,'DATA TABLE'!$J$9:$BG$9,0)))) -> 
G21: =IF($C$7="Background indicators",G20+1,IF($E$10=Lists!$K$4, G20-1,G20+1)) -> 3 | I21: =IF(K21="Not scored","",INDEX('Selected values'!$J$4:$J$54,MATCH($J21,'Selected values'!$H$4:$H$54,0))) -> 3 | J21: =IF($E$10=Lists!$K$2, INDEX('Selected values'!$B$4:$B$54, MATCH($G21,'Selected values'!$D$4:$D$54,0)), INDEX('Selected values'!$B$4:$B$54,MATCH($G21,'Selected values'!$E$4:$E$54,0))) -> Colorado | K21: =IFERROR(ROUND(INDEX('Selected values'!$C$4:$C$54, MATCH($J21,'Selected values'!$B$4:$B$54,0)),1), "Not scored") -> 65.5 | L21: =IF(J21="AVERAGE","",IF(INDEX('DATA TABLE'!$J$10:$BG$68, MATCH($H$13,'DATA TABLE'!$B$10:$B$68,0), MATCH($J21,'DATA TABLE'!$J$9:$BG$9,0))="","",INDEX('DATA TABLE'!$J$10:$BG$68, MATCH($H$13,'DATA TABLE'!$B$10:$B$68,0), MATCH($J21,'DATA TABLE'!$J$9:$BG$9,0)))) -> 
G22: =IF($C$7="Background indicators",G21+1,IF($E$10=Lists!$K$4, G21-1,G21+1)) -> 4 | I22: =IF(K22="Not scored","",INDEX('Selected values'!$J$4:$J$54,MATCH($J22,'Selected values'!$H$4:$H$54,0))) -> 4 | J22: =IF($E$10=Lists!$K$2, INDEX('Selected values'!$B$4:$B$54, MATCH($G22,'Selected values'!$D$4:$D$54,0)), INDEX('Selected values'!$B$4:$B$54,MATCH($G22,'Selected values'!$E$4:$E$54,0))) -> Iowa | K22: =IFERROR(ROUND(INDEX('Selected values'!$C$4:$C$54, MATCH($J22,'Selected values'!$B$4:$B$54,0)),1), "Not scored") -> 64.4 | L22: =IF(J22="AVERAGE","",IF(INDEX('DATA TABLE'!$J$10:$BG$68, MATCH($H$13,'DATA TABLE'!$B$10:$B$68,0), MATCH($J22,'DATA TABLE'!$J$9:$BG$9,0))="","",INDEX('DATA TABLE'!$J$10:$BG$68, MATCH($H$13,'DATA TABLE'!$B$10:$B$68,0), MATCH($J22,'DATA TABLE'!$J$9:$BG$9,0)))) -> 
C23: =IF(INDEX('DATA TABLE'!$E$10:$E$68, MATCH($H$13,'DATA TABLE'!$B$10:$B$68,0))="","","Source:") -> Source: | G23: =IF($C$7="Background indicators",G22+1,IF($E$10=Lists!$K$4, G22-1,G22+1)) -> 5 | I23: =IF(K23="Not scored","",INDEX('Selected values'!$J$4:$J$54,MATCH($J23,'Selected values'!$H$4:$H$54,0))) -> 5 | J23: =IF($E$10=Lists!$K$2, INDEX('Selected values'!$B$4:$B$54, MATCH($G23,'Selected values'!$D$4:$D$54,0)), INDEX('Selected values'!$B$4:$B$54,MATCH($G23,'Selected values'!$E$4:$E$54,0))) -> Florida | K23: =IFERROR(ROUND(INDEX('Selected values'!$C$4:$C$54, MATCH($J23,'Selected values'!$B$4:$B$54,0)),1), "Not scored") -> 64.1 | L23: =IF(J23="AVERAGE","",IF(INDEX('DATA TABLE'!$J$10:$BG$68, MATCH($H$13,'DATA TABLE'!$B$10:$B$68,0), MATCH($J23,'DATA TABLE'!$J$9:$BG$9,0))="","",INDEX('DATA TABLE'!$J$10:$BG$68, MATCH($H$13,'DATA TABLE'!$B$10:$B$68,0), MATCH($J23,'DATA TABLE'!$J$9:$BG$9,0)))) -> 
C24: =IF(INDEX('DATA TABLE'!$E$10:$E$68, MATCH($H$13,'DATA TABLE'!$B$10:$B$68,0))="","",INDEX('DATA TABLE'!$E$10:$E$68, MATCH($H$13,'DATA TABLE'!$B$10:$B$68,0))) -> Economist Impact calculations | G24: =IF($C$7="Background indicators",G23+1,IF($E$10=Lists!$K$4, G23-1,G23+1)) -> 6 | I24: =IF(K24="Not scored","",INDEX('Selected values'!$J$4:$J$54,MATCH($J24,'Selected values'!$H$4:$H$54,0))) -> 6 | J24: =IF($E$10=Lists!$K$2, INDEX('Selected values'!$B$4:$B$54, MATCH($G24,'Selected values'!$D$4:$D$54,0)), INDEX('Selected values'!$B$4:$B$54,MATCH($G24,'Selected values'!$E$4:$E$54,0))) -> Illinois | K24: =IFERROR(ROUND(INDEX('Selected values'!$C$4:$C$54, MATCH($J24,'Selected values'!$B$4:$B$54,0)),1), "Not scored") -> 63.7 | L24: =IF(J24="AVERAGE","",IF(INDEX('DATA TABLE'!$J$10:$BG$68, MATCH($H$13,'DATA TABLE'!$B$10:$B$68,0), MATCH($J24,'DATA TABLE'!$J$9:$BG$9,0))="","",INDEX('DATA TABLE'!$J$10:$BG$68, MATCH($H$13,'DATA TABLE'!$B$10:$B$68,0), MATCH($J24,'DATA TABLE'!$J$9:$BG$9,0)))) -> 
G25: =IF($C$7="Background indicators",G24+1,IF($E$10=Lists!$K$4, G24-1,G24+1)) -> 7 | I25: =IF(K25="Not scored","",INDEX('Selected values'!$J$4:$J$54,MATCH($J25,'Selected values'!$H$4:$H$54,0))) -> 7 | J25: =IF($E$10=Lists!$K$2, INDEX('Selected values'!$B$4:$B$54, MATCH($G25,'Selected values'!$D$4:$D$54,0)), INDEX('Selected values'!$B$4:$B$54,MATCH($G25,'Selected values'!$E$4:$E$54,0))) -> Virginia | K25: =IFERROR(ROUND(INDEX('Selected values'!$C$4:$C$54, MATCH($J25,'Selected values'!$B$4:$B$54,0)),1), "Not scored") -> 63.2 | L25: =IF(J25="AVERAGE","",IF(INDEX('DATA TABLE'!$J$10:$BG$68, MATCH($H$13,'DATA TABLE'!$B$10:$B$68,0), MATCH($J25,'DATA TABLE'!$J$9:$BG$9,0))="","",INDEX('DATA TABLE'!$J$10:$BG$68, MATCH($H$13,'DATA TABLE'!$B$10:$B$68,0), MATCH($J25,'DATA TABLE'!$J$9:$BG$9,0)))) -> 
C26: =IF((INDEX('DATA TABLE'!$G$10:$G$68,MATCH($H$13,'DATA TABLE'!$B$10:$B$68,0)))="","","Measurement:") ->  | G26: =IF($C$7="Background indicators",G25+1,IF($E$10=Lists!$K$4, G25-1,G25+1)) -> 8 | I26: =IF(K26="Not scored","",INDEX('Selected values'!$J$4:$J$54,MATCH($J26,'Selected values'!$H$4:$H$54,0))) -> 8 | J26: =IF($E$10=Lists!$K$2, INDEX('Selected values'!$B$4:$B$54, MATCH($G26,'Selected values'!$D$4:$D$54,0)), INDEX('Selected values'!$B$4:$B$54,MATCH($G26,'Selected values'!$E$4:$E$54,0))) -> Ohio | K26: =IFERROR(ROUND(INDEX('Selected values'!$C$4:$C$54, MATCH($J26,'Selected values'!$B$4:$B$54,0)),1), "Not scored") -> 63.0 | L26: =IF(J26="AVERAGE","",IF(INDEX('DATA TABLE'!$J$10:$BG$68, MATCH($H$13,'DATA TABLE'!$B$10:$B$68,0), MATCH($J26,'DATA TABLE'!$J$9:$BG$9,0))="","",INDEX('DATA TABLE'!$J$10:$BG$68, MATCH($H$13,'DATA TABLE'!$B$10:$B$68,0), MATCH($J26,'DATA TABLE'!$J$9:$BG$9,0)))) -> 
C27: =IF(INDEX('DATA TABLE'!$G$10:$G$68, MATCH($H$13,'DATA TABLE'!$B$10:$B$68,0))="","",INDEX('DATA TABLE'!$G$10:$G$68, MATCH($H$13,'DATA TABLE'!$B$10:$B$68,0))) ->  | G27: =IF($C$7="Background indicators",G26+1,IF($E$10=Lists!$K$4, G26-1,G26+1)) -> 9 | I27: =IF(K27="Not scored","",INDEX('Selected values'!$J$4:$J$54,MATCH($J27,'Selected values'!$H$4:$H$54,0))) -> 9 | J27: =IF($E$10=Lists!$K$2, INDEX('Selected values'!$B$4:$B$54, MATCH($G27,'Selected values'!$D$4:$D$54,0)), INDEX('Selected values'!$B$4:$B$54,MATCH($G27,'Selected values'!$E$4:$E$54,0))) -> Rhode Island | K27: =IFERROR(ROUND(INDEX('Selected values'!$C$4:$C$54, MATCH($J27,'Selected values'!$B$4:$B$54,0)),1), "Not scored") -> 62.5 | L27: =IF(J27="AVERAGE","",IF(INDEX('DATA TABLE'!$J$10:$BG$68, MATCH($H$13,'DATA TABLE'!$B$10:$B$68,0), MATCH($J27,'DATA TABLE'!$J$9:$BG$9,0))="","",INDEX('DATA TABLE'!$J$10:$BG$68, MATCH($H$13,'DATA TABLE'!$B$10:$B$68,0), MATCH($J27,'DATA TABLE'!$J$9:$BG$9,0)))) -> 
G28: =IF($C$7="Background indicators",G27+1,IF($E$10=Lists!$K$4, G27-1,G27+1)) -> 10 | I28: =IF(K28="Not scored","",INDEX('Selected values'!$J$4:$J$54,MATCH($J28,'Selected values'!$H$4:$H$54,0))) -> 10 | J28: =IF($E$10=Lists!$K$2, INDEX('Selected values'!$B$4:$B$54, MATCH($G28,'Selected values'!$D$4:$D$54,0)), INDEX('Selected values'!$B$4:$B$54,MATCH($G28,'Selected values'!$E$4:$E$54,0))) -> Maryland | K28: =IFERROR(ROUND(INDEX('Selected values'!$C$4:$C$54, MATCH($J28,'Selected values'!$B$4:$B$54,0)),1), "Not scored") -> 61.6 | L28: =IF(J28="AVERAGE","",IF(INDEX('DATA TABLE'!$J$10:$BG$68, MATCH($H$13,'DATA TABLE'!$B$10:$B$68,0), MATCH($J28,'DATA TABLE'!$J$9:$BG$9,0))="","",INDEX('DATA TABLE'!$J$10:$BG$68, MATCH($H$13,'DATA TABLE'!$B$10:$B$68,0), MATCH($J28,'DATA TABLE'!$J$9:$BG$9,0)))) -> 
C29: =IF(INDEX('DATA TABLE'!$F$10:$F$68, MATCH($H$13,'DATA TABLE'!$B$10:$B$68,0))="","",INDEX('DATA TABLE'!$F$10:$F$68, MATCH($H$13,'DATA TABLE'!$B$10:$B$68,0))) ->  | G29: =IF($C$7="Background indicators",G28+1,IF($E$10=Lists!$K$4, G28-1,G28+1)) -> 11 | I29: =IF(K29="Not scored","",INDEX('Selected values'!$J$4:$J$54,MATCH($J29,'Selected values'!$H$4:$H$54,0))) -> 11 | J29: =IF($E$10=Lists!$K$2, INDEX('Selected values'!$B$4:$B$54, MATCH($G29,'Selected values'!$D$4:$D$54,0)), INDEX('Selected values'!$B$4:$B$54,MATCH($G29,'Selected values'!$E$4:$E$54,0))) -> New Mexico | K29: =IFERROR(ROUND(INDEX('Selected values'!$C$4:$C$54, MATCH($J29,'Selected values'!$B$4:$B$54,0)),1), "Not scored") -> 60.6 | L29: =IF(J29="AVERAGE","",IF(INDEX('DATA TABLE'!$J$10:$BG$68, MATCH($H$13,'DATA TABLE'!$B$10:$B$68,0), MATCH($J29,'DATA TABLE'!$J$9:$BG$9,0))="","",INDEX('DATA TABLE'!$J$10:$BG$68, MATCH($H$13,'DATA TABLE'!$B$10:$B$68,0), MATCH($J29,'DATA TABLE'!$J$9:$BG$9,0)))) -> 
G30: =IF($C$7="Background indicators",G29+1,IF($E$10=Lists!$K$4, G29-1,G29+1)) -> 12 | I30: =IF(K30="Not scored","",INDEX('Selected values'!$J$4:$J$54,MATCH($J30,'Selected values'!$H$4:$H$54,0))) -> 12 | J30: =IF($E$10=Lists!$K$2, INDEX('Selected values'!$B$4:$B$54, MATCH($G30,'Selected values'!$D$4:$D$54,0)), INDEX('Selected values'!$B$4:$B$54,MATCH($G30,'Selected values'!$E$4:$E$54,0))) -> New York | K30: =IFERROR(ROUND(INDEX('Selected values'!$C$4:$C$54, MATCH($J30,'Selected values'!$B$4:$B$54,0)),1), "Not scored") -> 60.6 | L30: =IF(J30="AVERAGE","",IF(INDEX('DATA TABLE'!$J$10:$BG$68, MATCH($H$13,'DATA TABLE'!$B$10:$B$68,0), MATCH($J30,'DATA TABLE'!$J$9:$BG$9,0))="","",INDEX('DATA TABLE'!$J$10:$BG$68, MATCH($H$13,'DATA TABLE'!$B$10:$B$68,0), MATCH($J30,'DATA TABLE'!$J$9:$BG$9,0)))) -> 
G31: =IF($C$7="Background indicators",G30+1,IF($E$10=Lists!$K$4, G30-1,G30+1)) -> 13 | I31: =IF(K31="Not scored","",INDEX('Selected values'!$J$4:$J$54,MATCH($J31,'Selected values'!$H$4:$H$54,0))) -> 13 | J31: =IF($E$10=Lists!$K$2, INDEX('Selected values'!$B$4:$B$54, MATCH($G31,'Selected values'!$D$4:$D$54,0)), INDEX('Selected values'!$B$4:$B$54,MATCH($G31,'Selected values'!$E$4:$E$54,0))) -> Oklahoma | K31: =IFERROR(ROUND(INDEX('Selected values'!$C$4:$C$54, MATCH($J31,'Selected values'!$B$4:$B$54,0)),1), "Not scored") -> 60.4 | L31: =IF(J31="AVERAGE","",IF(INDEX('DATA TABLE'!$J$10:$BG$68, MATCH($H$13,'DATA TABLE'!$B$10:$B$68,0), MATCH($J31,'DATA TABLE'!$J$9:$BG$9,0))="","",INDEX('DATA TABLE'!$J$10:$BG$68, MATCH($H$13,'DATA TABLE'!$B$10:$B$68,0), MATCH($J31,'DATA TABLE'!$J$9:$BG$9,0)))) -> 
G32: =IF($C$7="Background indicators",G31+1,IF($E$10=Lists!$K$4, G31-1,G31+1)) -> 14 | I32: =IF(K32="Not scored","",INDEX('Selected values'!$J$4:$J$54,MATCH($J32,'Selected values'!$H$4:$H$54,0))) -> 14 | J32: =IF($E$10=Lists!$K$2, INDEX('Selected values'!$B$4:$B$54, MATCH($G32,'Selected values'!$D$4:$D$54,0)), INDEX('Selected values'!$B$4:$B$54,MATCH($G32,'Selected values'!$E$4:$E$54,0))) -> Washington | K32: =IFERROR(ROUND(INDEX('Selected values'!$C$4:$C$54, MATCH($J32,'Selected values'!$B$4:$B$54,0)),1), "Not scored") -> 60.0 | L32: =IF(J32="AVERAGE","",IF(INDEX('DATA TABLE'!$J$10:$BG$68, MATCH($H$13,'DATA TABLE'!$B$10:$B$68,0), MATCH($J32,'DATA TABLE'!$J$9:$BG$9,0))="","",INDEX('DATA TABLE'!$J$10:$BG$68, MATCH($H$13,'DATA TABLE'!$B$10:$B$68,0), MATCH($J32,'DATA TABLE'!$J$9:$BG$9,0)))) -> 
G33: =IF($C$7="Background indicators",G32+1,IF($E$10=Lists!$K$4, G32-1,G32+1)) -> 15 | I33: =IF(K33="Not scored","",INDEX('Selected values'!$J$4:$J$54,MATCH($J33,'Selected values'!$H$4:$H$54,0))) -> 15 | J33: =IF($E$10=Lists!$K$2, INDEX('Selected values'!$B$4:$B$54, MATCH($G33,'Selected values'!$D$4:$D$54,0)), INDEX('Selected values'!$B$4:$B$54,MATCH($G33,'Selected values'!$E$4:$E$54,0))) -> Nevada | K33: =IFERROR(ROUND(INDEX('Selected values'!$C$4:$C$54, MATCH($J33,'Selected values'!$B$4:$B$54,0)),1), "Not scored") -> 59.3 | L33: =IF(J33="AVERAGE","",IF(INDEX('DATA TABLE'!$J$10:$BG$68, MATCH($H$13,'DATA TABLE'!$B$10:$B$68,0), MATCH($J33,'DATA TABLE'!$J$9:$BG$9,0))="","",INDEX('DATA TABLE'!$J$10:$BG$68, MATCH($H$13,'DATA TABLE'!$B$10:$B$68,0), MATCH($J33,'DATA TABLE'!$J$9:$BG$9,0)))) -> 
G34: =IF($C$7="Background indicators",G33+1,IF($E$10=Lists!$K$4, G33-1,G33+1)) -> 16 | I34: =IF(K34="Not scored","",INDEX('Selected values'!$J$4:$J$54,MATCH($J34,'Selected values'!$H$4:$H$54,0))) -> 16 | J34: =IF($E$10=Lists!$K$2, INDEX('Selected values'!$B$4:$B$54, MATCH($G34,'Selected values'!$D$4:$D$54,0)), INDEX('Selected values'!$B$4:$B$54,MATCH($G34,'Selected values'!$E$4:$E$54,0))) -> Indiana | K34: =IFERROR(ROUND(INDEX('Selected values'!$C$4:$C$54, MATCH($J34,'Selected values'!$B$4:$B$54,0)),1), "Not scored") -> 59.2 | L34: =IF(J34="AVERAGE","",IF(INDEX('DATA TABLE'!$J$10:$BG$68, MATCH($H$13,'DATA TABLE'!$B$10:$B$68,0), MATCH($J34,'DATA TABLE'!$J$9:$BG$9,0))="","",INDEX('DATA TABLE'!$J$10:$BG$68, MATCH($H$13,'DATA TABLE'!$B$10:$B$68,0), MATCH($J34,'DATA TABLE'!$J$9:$BG$9,0)))) -> 
G35: =IF($C$7="Background indicators",G34+1,IF($E$10=Lists!$K$4, G34-1,G34+1)) -> 17 | I35: =IF(K35="Not scored","",INDEX('Selected values'!$J$4:$J$54,MATCH($J35,'Selected values'!$H$4:$H$54,0))) -> 17 | J35: =IF($E$10=Lists!$K$2, INDEX('Selected values'!$B$4:$B$54, MATCH($G35,'Selected values'!$D$4:$D$54,0)), INDEX('Selected values'!$B$4:$B$54,MATCH($G35,'Selected values'!$E$4:$E$54,0))) -> Wisconsin | K35: =IFERROR(ROUND(INDEX('Selected values'!$C$4:$C$54, MATCH($J35,'Selected values'!$B$4:$B$54,0)),1), "Not scored") -> 58.7 | L35: =IF(J35="AVERAGE","",IF(INDEX('DATA TABLE'!$J$10:$BG$68, MATCH($H$13,'DATA TABLE'!$B$10:$B$68,0), MATCH($J35,'DATA TABLE'!$J$9:$BG$9,0))="","",INDEX('DATA TABLE'!$J$10:$BG$68, MATCH($H$13,'DATA TABLE'!$B$10:$B$68,0), MATCH($J35,'DATA TABLE'!$J$9:$BG$9,0)))) -> 
G36: =IF($C$7="Background indicators",G35+1,IF($E$10=Lists!$K$4, G35-1,G35+1)) -> 18 | I36: =IF(K36="Not scored","",INDEX('Selected values'!$J$4:$J$54,MATCH($J36,'Selected values'!$H$4:$H$54,0))) -> 18 | J36: =IF($E$10=Lists!$K$2, INDEX('Selected values'!$B$4:$B$54, MATCH($G36,'Selected values'!$D$4:$D$54,0)), INDEX('Selected values'!$B$4:$B$54,MATCH($G36,'Selected values'!$E$4:$E$54,0))) -> North Carolina | K36: =IFERROR(ROUND(INDEX('Selected values'!$C$4:$C$54, MATCH($J36,'Selected values'!$B$4:$B$54,0)),1), "Not scored") -> 58.5 | L36: =IF(J36="AVERAGE","",IF(INDEX('DATA TABLE'!$J$10:$BG$68, MATCH($H$13,'DATA TABLE'!$B$10:$B$68,0), MATCH($J36,'DATA TABLE'!$J$9:$BG$9,0))="","",INDEX('DATA TABLE'!$J$10:$BG$68, MATCH($H$13,'DATA TABLE'!$B$10:$B$68,0), MATCH($J36,'DATA TABLE'!$J$9:$BG$9,0)))) -> 
G37: =IF($C$7="Background indicators",G36+1,IF($E$10=Lists!$K$4, G36-1,G36+1)) -> 19 | I37: =IF(K37="Not scored","",INDEX('Selected values'!$J$4:$J$54,MATCH($J37,'Selected values'!$H$4:$H$54,0))) -> 19 | J37: =IF($E$10=Lists!$K$2, INDEX('Selected values'!$B$4:$B$54, MATCH($G37,'Selected values'!$D$4:$D$54,0)), INDEX('Selected values'!$B$4:$B$54,MATCH($G37,'Selected values'!$E$4:$E$54,0))) -> California | K37: =IFERROR(ROUND(INDEX('Selected values'!$C$4:$C$54, MATCH($J37,'Selected values'!$B$4:$B$54,0)),1), "Not scored") -> 58.1 | L37: =IF(J37="AVERAGE","",IF(INDEX('DATA TABLE'!$J$10:$BG$68, MATCH($H$13,'DATA TABLE'!$B$10:$B$68,0), MATCH($J37,'DATA TABLE'!$J$9:$BG$9,0))="","",INDEX('DATA TABLE'!$J$10:$BG$68, MATCH($H$13,'DATA TABLE'!$B$10:$B$68,0), MATCH($J37,'DATA TABLE'!$J$9:$BG$9,0)))) -> 
G38: =IF($C$7="Background indicators",G37+1,IF($E$10=Lists!$K$4, G37-1,G37+1)) -> 20 | I38: =IF(K38="Not scored","",INDEX('Selected values'!$J$4:$J$54,MATCH($J38,'Selected values'!$H$4:$H$54,0))) -> 20 | J38: =IF($E$10=Lists!$K$2, INDEX('Selected values'!$B$4:$B$54, MATCH($G38,'Selected values'!$D$4:$D$54,0)), INDEX('Selected values'!$B$4:$B$54,MATCH($G38,'Selected values'!$E$4:$E$54,0))) -> Texas | K38: =IFERROR(ROUND(INDEX('Selected values'!$C$4:$C$54, MATCH($J38,'Selected values'!$B$4:$B$54,0)),1), "Not scored") -> 57.8 | L38: =IF(J38="AVERAGE","",IF(INDEX('DATA TABLE'!$J$10:$BG$68, MATCH($H$13,'DATA TABLE'!$B$10:$B$68,0), MATCH($J38,'DATA TABLE'!$J$9:$BG$9,0))="","",INDEX('DATA TABLE'!$J$10:$BG$68, MATCH($H$13,'DATA TABLE'!$B$10:$B$68,0), MATCH($J38,'DATA TABLE'!$J$9:$BG$9,0)))) -> 
G39: =IF($C$7="Background indicators",G38+1,IF($E$10=Lists!$K$4, G38-1,G38+1)) -> 21 | I39: =IF(K39="Not scored","",INDEX('Selected values'!$J$4:$J$54,MATCH($J39,'Selected values'!$H$4:$H$54,0))) -> 21 | J39: =IF($E$10=Lists!$K$2, INDEX('Selected values'!$B$4:$B$54, MATCH($G39,'Selected values'!$D$4:$D$54,0)), INDEX('Selected values'!$B$4:$B$54,MATCH($G39,'Selected values'!$E$4:$E$54,0))) -> Maine | K39: =IFERROR(ROUND(INDEX('Selected values'!$C$4:$C$54, MATCH($J39,'Selected values'!$B$4:$B$54,0)),1), "Not scored") -> 56.8 | L39: =IF(J39="AVERAGE","",IF(INDEX('DATA TABLE'!$J$10:$BG$68, MATCH($H$13,'DATA TABLE'!$B$10:$B$68,0), MATCH($J39,'DATA TABLE'!$J$9:$BG$9,0))="","",INDEX('DATA TABLE'!$J$10:$BG$68, MATCH($H$13,'DATA TABLE'!$B$10:$B$68,0), MATCH($J39,'DATA TABLE'!$J$9:$BG$9,0)))) -> 
G40: =IF($C$7="Background indicators",G39+1,IF($E$10=Lists!$K$4, G39-1,G39+1)) -> 22 | I40: =IF(K40="Not scored","",INDEX('Selected values'!$J$4:$J$54,MATCH($J40,'Selected values'!$H$4:$H$54,0))) -> 22 | J40: =IF($E$10=Lists!$K$2, INDEX('Selected values'!$B$4:$B$54, MATCH($G40,'Selected values'!$D$4:$D$54,0)), INDEX('Selected values'!$B$4:$B$54,MATCH($G40,'Selected values'!$E$4:$E$54,0))) -> Mississippi | K40: =IFERROR(ROUND(INDEX('Selected values'!$C$4:$C$54, MATCH($J40,'Selected values'!$B$4:$B$54,0)),1), "Not scored") -> 55.4 | L40: =IF(J40="AVERAGE","",IF(INDEX('DATA TABLE'!$J$10:$BG$68, MATCH($H$13,'DATA TABLE'!$B$10:$B$68,0), MATCH($J40,'DATA TABLE'!$J$9:$BG$9,0))="","",INDEX('DATA TABLE'!$J$10:$BG$68, MATCH($H$13,'DATA TABLE'!$B$10:$B$68,0), MATCH($J40,'DATA TABLE'!$J$9:$BG$9,0)))) -> 
G41: =IF($C$7="Background indicators",G40+1,IF($E$10=Lists!$K$4, G40-1,G40+1)) -> 23 | I41: =IF(K41="Not scored","",INDEX('Selected values'!$J$4:$J$54,MATCH($J41,'Selected values'!$H$4:$H$54,0))) -> 23 | J41: =IF($E$10=Lists!$K$2, INDEX('Selected values'!$B$4:$B$54, MATCH($G41,'Selected values'!$D$4:$D$54,0)), INDEX('Selected values'!$B$4:$B$54,MATCH($G41,'Selected values'!$E$4:$E$54,0))) -> Hawaii | K41: =IFERROR(ROUND(INDEX('Selected values'!$C$4:$C$54, MATCH($J41,'Selected values'!$B$4:$B$54,0)),1), "Not scored") -> 54.8 | L41: =IF(J41="AVERAGE","",IF(INDEX('DATA TABLE'!$J$10:$BG$68, MATCH($H$13,'DATA TABLE'!$B$10:$B$68,0), MATCH($J41,'DATA TABLE'!$J$9:$BG$9,0))="","",INDEX('DATA TABLE'!$J$10:$BG$68, MATCH($H$13,'DATA TABLE'!$B$10:$B$68,0), MATCH($J41,'DATA TABLE'!$J$9:$BG$9,0)))) -> 
G42: =IF($C$7="Background indicators",G41+1,IF($E$10=Lists!$K$4, G41-1,G41+1)) -> 24 | I42: =IF(K42="Not scored","",INDEX('Selected values'!$J$4:$J$54,MATCH($J42,'Selected values'!$H$4:$H$54,0))) -> 24 | J42: =IF($E$10=Lists!$K$2, INDEX('Selected values'!$B$4:$B$54, MATCH($G42,'Selected values'!$D$4:$D$54,0)), INDEX('Selected values'!$B$4:$B$54,MATCH($G42,'Selected values'!$E$4:$E$54,0))) -> Louisiana | K42: =IFERROR(ROUND(INDEX('Selected values'!$C$4:$C$54, MATCH($J42,'Selected values'!$B$4:$B$54,0)),1), "Not scored") -> 54.8 | L42: =IF(J42="AVERAGE","",IF(INDEX('DATA TABLE'!$J$10:$BG$68, MATCH($H$13,'DATA TABLE'!$B$10:$B$68,0), MATCH($J42,'DATA TABLE'!$J$9:$BG$9,0))="","",INDEX('DATA TABLE'!$J$10:$BG$68, MATCH($H$13,'DATA TABLE'!$B$10:$B$68,0), MATCH($J42,'DATA TABLE'!$J$9:$BG$9,0)))) -> 
G43: =IF($C$7="Background indicators",G42+1,IF($E$10=Lists!$K$4, G42-1,G42+1)) -> 25 | I43: =IF(K43="Not scored","",INDEX('Selected values'!$J$4:$J$54,MATCH($J43,'Selected values'!$H$4:$H$54,0))) -> 25 | J43: =IF($E$10=Lists!$K$2, INDEX('Selected values'!$B$4:$B$54, MATCH($G43,'Selected values'!$D$4:$D$54,0)), INDEX('Selected values'!$B$4:$B$54,MATCH($G43,'Selected values'!$E$4:$E$54,0))) -> Vermont | K43: =IFERROR(ROUND(INDEX('Selected values'!$C$4:$C$54, MATCH($J43,'Selected values'!$B$4:$B$54,0)),1), "Not scored") -> 54.4 | L43: =IF(J43="AVERAGE","",IF(INDEX('DATA TABLE'!$J$10:$BG$68, MATCH($H$13,'DATA TABLE'!$B$10:$B$68,0), MATCH($J43,'DATA TABLE'!$J$9:$BG$9,0))="","",INDEX('DATA TABLE'!$J$10:$BG$68, MATCH($H$13,'DATA TABLE'!$B$10:$B$68,0), MATCH($J43,'DATA TABLE'!$J$9:$BG$9,0)))) -> 
G44: =IF($C$7="Background indicators",G43+1,IF($E$10=Lists!$K$4, G43-1,G43+1)) -> 26 | I44: =IF(K44="Not scored","",INDEX('Selected values'!$J$4:$J$54,MATCH($J44,'Selected values'!$H$4:$H$54,0))) ->  | J44: =IF($E$10=Lists!$K$2, INDEX('Selected values'!$B$4:$B$54, MATCH($G44,'Selected values'!$D$4:$D$54,0)), INDEX('Selected values'!$B$4:$B$54,MATCH($G44,'Selected values'!$E$4:$E$54,0))) -> AVERAGE | K44: =IFERROR(ROUND(INDEX('Selected values'!$C$4:$C$54, MATCH($J44,'Selected values'!$B$4:$B$54,0)),1), "Not scored") -> 54.2 | L44: =IF(J44="AVERAGE","",IF(INDEX('DATA TABLE'!$J$10:$BG$68, MATCH($H$13,'DATA TABLE'!$B$10:$B$68,0), MATCH($J44,'DATA TABLE'!$J$9:$BG$9,0))="","",INDEX('DATA TABLE'!$J$10:$BG$68, MATCH($H$13,'DATA TABLE'!$B$10:$B$68,0), MATCH($J44,'DATA TABLE'!$J$9:$BG$9,0)))) -> 
G45: =IF($C$7="Background indicators",G44+1,IF($E$10=Lists!$K$4, G44-1,G44+1)) -> 27 | I45: =IF(K45="Not scored","",INDEX('Selected values'!$J$4:$J$54,MATCH($J45,'Selected values'!$H$4:$H$54,0))) -> 26 | J45: =IF($E$10=Lists!$K$2, INDEX('Selected values'!$B$4:$B$54, MATCH($G45,'Selected values'!$D$4:$D$54,0)), INDEX('Selected values'!$B$4:$B$54,MATCH($G45,'Selected values'!$E$4:$E$54,0))) -> Connecticut | K45: =IFERROR(ROUND(INDEX('Selected values'!$C$4:$C$54, MATCH($J45,'Selected values'!$B$4:$B$54,0)),1), "Not scored") -> 54.1 | L45: =IF(J45="AVERAGE","",IF(INDEX('DATA TABLE'!$J$10:$BG$68, MATCH($H$13,'DATA TABLE'!$B$10:$B$68,0), MATCH($J45,'DATA TABLE'!$J$9:$BG$9,0))="","",INDEX('DATA TABLE'!$J$10:$BG$68, MATCH($H$13,'DATA TABLE'!$B$10:$B$68,0), MATCH($J45,'DATA TABLE'!$J$9:$BG$9,0)))) -> 
G46: =IF($C$7="Background indicators",G45+1,IF($E$10=Lists!$K$4, G45-1,G45+1)) -> 28 | I46: =IF(K46="Not scored","",INDEX('Selected values'!$J$4:$J$54,MATCH($J46,'Selected values'!$H$4:$H$54,0))) -> 27 | J46: =IF($E$10=Lists!$K$2, INDEX('Selected values'!$B$4:$B$54, MATCH($G46,'Selected values'!$D$4:$D$54,0)), INDEX('Selected values'!$B$4:$B$54,MATCH($G46,'Selected values'!$E$4:$E$54,0))) -> Arkansas | K46: =IFERROR(ROUND(INDEX('Selected values'!$C$4:$C$54, MATCH($J46,'Selected values'!$B$4:$B$54,0)),1), "Not scored") -> 54.1 | L46: =IF(J46="AVERAGE","",IF(INDEX('DATA TABLE'!$J$10:$BG$68, MATCH($H$13,'DATA TABLE'!$B$10:$B$68,0), MATCH($J46,'DATA TABLE'!$J$9:$BG$9,0))="","",INDEX('DATA TABLE'!$J$10:$BG$68, MATCH($H$13,'DATA TABLE'!$B$10:$B$68,0), MATCH($J46,'DATA TABLE'!$J$9:$BG$9,0)))) -> 
G47: =IF($C$7="Background indicators",G46+1,IF($E$10=Lists!$K$4, G46-1,G46+1)) -> 29 | I47: =IF(K47="Not scored","",INDEX('Selected values'!$J$4:$J$54,MATCH($J47,'Selected values'!$H$4:$H$54,0))) -> 28 | J47: =IF($E$10=Lists!$K$2, INDEX('Selected values'!$B$4:$B$54, MATCH($G47,'Selected values'!$D$4:$D$54,0)), INDEX('Selected values'!$B$4:$B$54,MATCH($G47,'Selected values'!$E$4:$E$54,0))) -> West Virginia | K47: =IFERROR(ROUND(INDEX('Selected values'!$C$4:$C$54, MATCH($J47,'Selected values'!$B$4:$B$54,0)),1), "Not scored") -> 54.1 | L47: =IF(J47="AVERAGE","",IF(INDEX('DATA TABLE'!$J$10:$BG$68, MATCH($H$13,'DATA TABLE'!$B$10:$B$68,0), MATCH($J47,'DATA TABLE'!$J$9:$BG$9,0))="","",INDEX('DATA TABLE'!$J$10:$BG$68, MATCH($H$13,'DATA TABLE'!$B$10:$B$68,0), MATCH($J47,'DATA TABLE'!$J$9:$BG$9,0)))) -> 
G48: =IF($C$7="Background indicators",G47+1,IF($E$10=Lists!$K$4, G47-1,G47+1)) -> 30 | I48: =IF(K48="Not scored","",INDEX('Selected values'!$J$4:$J$54,MATCH($J48,'Selected values'!$H$4:$H$54,0))) -> 29 | J48: =IF($E$10=Lists!$K$2, INDEX('Selected values'!$B$4:$B$54, MATCH($G48,'Selected values'!$D$4:$D$54,0)), INDEX('Selected values'!$B$4:$B$54,MATCH($G48,'Selected values'!$E$4:$E$54,0))) -> Tennessee | K48: =IFERROR(ROUND(INDEX('Selected values'!$C$4:$C$54, MATCH($J48,'Selected values'!$B$4:$B$54,0)),1), "Not scored") -> 53.9 | L48: =IF(J48="AVERAGE","",IF(INDEX('DATA TABLE'!$J$10:$BG$68, MATCH($H$13,'DATA TABLE'!$B$10:$B$68,0), MATCH($J48,'DATA TABLE'!$J$9:$BG$9,0))="","",INDEX('DATA TABLE'!$J$10:$BG$68, MATCH($H$13,'DATA TABLE'!$B$10:$B$68,0), MATCH($J48,'DATA TABLE'!$J$9:$BG$9,0)))) -> 
G49: =IF($C$7="Background indicators",G48+1,IF($E$10=Lists!$K$4, G48-1,G48+1)) -> 31 | I49: =IF(K49="Not scored","",INDEX('Selected values'!$J$4:$J$54,MATCH($J49,'Selected values'!$H$4:$H$54,0))) -> 30 | J49: =IF($E$10=Lists!$K$2, INDEX('Selected values'!$B$4:$B$54, MATCH($G49,'Selected values'!$D$4:$D$54,0)), INDEX('Selected values'!$B$4:$B$54,MATCH($G49,'Selected values'!$E$4:$E$54,0))) -> Pennsylvania | K49: =IFERROR(ROUND(INDEX('Selected values'!$C$4:$C$54, MATCH($J49,'Selected values'!$B$4:$B$54,0)),1), "Not scored") -> 53.1 | L49: =IF(J49="AVERAGE","",IF(INDEX('DATA TABLE'!$J$10:$BG$68, MATCH($H$13,'DATA TABLE'!$B$10:$B$68,0), MATCH($J49,'DATA TABLE'!$J$9:$BG$9,0))="","",INDEX('DATA TABLE'!$J$10:$BG$68, MATCH($H$13,'DATA TABLE'!$B$10:$B$68,0), MATCH($J49,'DATA TABLE'!$J$9:$BG$9,0)))) -> 
G50: =IF($C$7="Background indicators",G49+1,IF($E$10=Lists!$K$4, G49-1,G49+1)) -> 32 | I50: =IF(K50="Not scored","",INDEX('Selected values'!$J$4:$J$54,MATCH($J50,'Selected values'!$H$4:$H$54,0))) -> 31 | J50: =IF($E$10=Lists!$K$2, INDEX('Selected values'!$B$4:$B$54, MATCH($G50,'Selected values'!$D$4:$D$54,0)), INDEX('Selected values'!$B$4:$B$54,MATCH($G50,'Selected values'!$E$4:$E$54,0))) -> Oregon | K50: =IFERROR(ROUND(INDEX('Selected values'!$C$4:$C$54, MATCH($J50,'Selected values'!$B$4:$B$54,0)),1), "Not scored") -> 52.9 | L50: =IF(J50="AVERAGE","",IF(INDEX('DATA TABLE'!$J$10:$BG$68, MATCH($H$13,'DATA TABLE'!$B$10:$B$68,0), MATCH($J50,'DATA TABLE'!$J$9:$BG$9,0))="","",INDEX('DATA TABLE'!$J$10:$BG$68, MATCH($H$13,'DATA TABLE'!$B$10:$B$68,0), MATCH($J50,'DATA TABLE'!$J$9:$BG$9,0)))) -> 
G51: =IF($C$7="Background indicators",G50+1,IF($E$10=Lists!$K$4, G50-1,G50+1)) -> 33 | I51: =IF(K51="Not scored","",INDEX('Selected values'!$J$4:$J$54,MATCH($J51,'Selected values'!$H$4:$H$54,0))) -> 32 | J51: =IF($E$10=Lists!$K$2, INDEX('Selected values'!$B$4:$B$54, MATCH($G51,'Selected values'!$D$4:$D$54,0)), INDEX('Selected values'!$B$4:$B$54,MATCH($G51,'Selected values'!$E$4:$E$54,0))) -> Idaho | K51: =IFERROR(ROUND(INDEX('Selected values'!$C$4:$C$54, MATCH($J51,'Selected values'!$B$4:$B$54,0)),1), "Not scored") -> 52.1 | L51: =IF(J51="AVERAGE","",IF(INDEX('DATA TABLE'!$J$10:$BG$68, MATCH($H$13,'DATA TABLE'!$B$10:$B$68,0), MATCH($J51,'DATA TABLE'!$J$9:$BG$9,0))="","",INDEX('DATA TABLE'!$J$10:$BG$68, MATCH($H$13,'DATA TABLE'!$B$10:$B$68,0), MATCH($J51,'DATA TABLE'!$J$9:$BG$9,0)))) -> 
G52: =IF($C$7="Background indicators",G51+1,IF($E$10=Lists!$K$4, G51-1,G51+1)) -> 34 | I52: =IF(K52="Not scored","",INDEX('Selected values'!$J$4:$J$54,MATCH($J52,'Selected values'!$H$4:$H$54,0))) -> 33 | J52: =IF($E$10=Lists!$K$2, INDEX('Selected values'!$B$4:$B$54, MATCH($G52,'Selected values'!$D$4:$D$54,0)), INDEX('Selected values'!$B$4:$B$54,MATCH($G52,'Selected values'!$E$4:$E$54,0))) -> Michigan | K52: =IFERROR(ROUND(INDEX('Selected values'!$C$4:$C$54, MATCH($J52,'Selected values'!$B$4:$B$54,0)),1), "Not scored") -> 51.0 | L52: =IF(J52="AVERAGE","",IF(INDEX('DATA TABLE'!$J$10:$BG$68, MATCH($H$13,'DATA TABLE'!$B$10:$B$68,0), MATCH($J52,'DATA TABLE'!$J$9:$BG$9,0))="","",INDEX('DATA TABLE'!$J$10:$BG$68, MATCH($H$13,'DATA TABLE'!$B$10:$B$68,0), MATCH($J52,'DATA TABLE'!$J$9:$BG$9,0)))) -> 
G53: =IF($C$7="Background indicators",G52+1,IF($E$10=Lists!$K$4, G52-1,G52+1)) -> 35 | I53: =IF(K53="Not scored","",INDEX('Selected values'!$J$4:$J$54,MATCH($J53,'Selected values'!$H$4:$H$54,0))) -> 34 | J53: =IF($E$10=Lists!$K$2, INDEX('Selected values'!$B$4:$B$54, MATCH($G53,'Selected values'!$D$4:$D$54,0)), INDEX('Selected values'!$B$4:$B$54,MATCH($G53,'Selected values'!$E$4:$E$54,0))) -> Utah | K53: =IFERROR(ROUND(INDEX('Selected values'!$C$4:$C$54, MATCH($J53,'Selected values'!$B$4:$B$54,0)),1), "Not scored") -> 50.5 | L53: =IF(J53="AVERAGE","",IF(INDEX('DATA TABLE'!$J$10:$BG$68, MATCH($H$13,'DATA TABLE'!$B$10:$B$68,0), MATCH($J53,'DATA TABLE'!$J$9:$BG$9,0))="","",INDEX('DATA TABLE'!$J$10:$BG$68, MATCH($H$13,'DATA TABLE'!$B$10:$B$68,0), MATCH($J53,'DATA TABLE'!$J$9:$BG$9,0)))) -> 
G54: =IF($C$7="Background indicators",G53+1,IF($E$10=Lists!$K$4, G53-1,G53+1)) -> 36 | I54: =IF(K54="Not scored","",INDEX('Selected values'!$J$4:$J$54,MATCH($J54,'Selected values'!$H$4:$H$54,0))) -> 35 | J54: =IF($E$10=Lists!$K$2, INDEX('Selected values'!$B$4:$B$54, MATCH($G54,'Selected values'!$D$4:$D$54,0)), INDEX('Selected values'!$B$4:$B$54,MATCH($G54,'Selected values'!$E$4:$E$54,0))) -> Nebraska | K54: =IFERROR(ROUND(INDEX('Selected values'!$C$4:$C$54, MATCH($J54,'Selected values'!$B$4:$B$54,0)),1), "Not scored") -> 50.3 | L54: =IF(J54="AVERAGE","",IF(INDEX('DATA TABLE'!$J$10:$BG$68, MATCH($H$13,'DATA TABLE'!$B$10:$B$68,0), MATCH($J54,'DATA TABLE'!$J$9:$BG$9,0))="","",INDEX('DATA TABLE'!$J$10:$BG$68, MATCH($H$13,'DATA TABLE'!$B$10:$B$68,0), MATCH($J54,'DATA TABLE'!$J$9:$BG$9,0)))) -> 
G55: =IF($C$7="Background indicators",G54+1,IF($E$10=Lists!$K$4, G54-1,G54+1)) -> 37 | I55: =IF(K55="Not scored","",INDEX('Selected values'!$J$4:$J$54,MATCH($J55,'Selected values'!$H$4:$H$54,0))) -> 36 | J55: =IF($E$10=Lists!$K$2, INDEX('Selected values'!$B$4:$B$54, MATCH($G55,'Selected values'!$D$4:$D$54,0)), INDEX('Selected values'!$B$4:$B$54,MATCH($G55,'Selected values'!$E$4:$E$54,0))) -> Wyoming | K55: =IFERROR(ROUND(INDEX('Selected values'!$C$4:$C$54, MATCH($J55,'Selected values'!$B$4:$B$54,0)),1), "Not scored") -> 49.0 | L55: =IF(J55="AVERAGE","",IF(INDEX('DATA TABLE'!$J$10:$BG$68, MATCH($H$13,'DATA TABLE'!$B$10:$B$68,0), MATCH($J55,'DATA TABLE'!$J$9:$BG$9,0))="","",INDEX('DATA TABLE'!$J$10:$BG$68, MATCH($H$13,'DATA TABLE'!$B$10:$B$68,0), MATCH($J55,'DATA TABLE'!$J$9:$BG$9,0)))) -> 
G56: =IF($C$7="Background indicators",G55+1,IF($E$10=Lists!$K$4, G55-1,G55+1)) -> 38 | I56: =IF(K56="Not scored","",INDEX('Selected values'!$J$4:$J$54,MATCH($J56,'Selected values'!$H$4:$H$54,0))) -> 37 | J56: =IF($E$10=Lists!$K$2, INDEX('Selected values'!$B$4:$B$54, MATCH($G56,'Selected values'!$D$4:$D$54,0)), INDEX('Selected values'!$B$4:$B$54,MATCH($G56,'Selected values'!$E$4:$E$54,0))) -> Missouri | K56: =IFERROR(ROUND(INDEX('Selected values'!$C$4:$C$54, MATCH($J56,'Selected values'!$B$4:$B$54,0)),1), "Not scored") -> 48.9 | L56: =IF(J56="AVERAGE","",IF(INDEX('DATA TABLE'!$J$10:$BG$68, MATCH($H$13,'DATA TABLE'!$B$10:$B$68,0), MATCH($J56,'DATA TABLE'!$J$9:$BG$9,0))="","",INDEX('DATA TABLE'!$J$10:$BG$68, MATCH($H$13,'DATA TABLE'!$B$10:$B$68,0), MATCH($J56,'DATA TABLE'!$J$9:$BG$9,0)))) -> 
G57: =IF($C$7="Background indicators",G56+1,IF($E$10=Lists!$K$4, G56-1,G56+1)) -> 39 | I57: =IF(K57="Not scored","",INDEX('Selected values'!$J$4:$J$54,MATCH($J57,'Selected values'!$H$4:$H$54,0))) -> 38 | J57: =IF($E$10=Lists!$K$2, INDEX('Selected values'!$B$4:$B$54, MATCH($G57,'Selected values'!$D$4:$D$54,0)), INDEX('Selected values'!$B$4:$B$54,MATCH($G57,'Selected values'!$E$4:$E$54,0))) -> Delaware | K57: =IFERROR(ROUND(INDEX('Selected values'!$C$4:$C$54, MATCH($J57,'Selected values'!$B$4:$B$54,0)),1), "Not scored") -> 48.9 | L57: =IF(J57="AVERAGE","",IF(INDEX('DATA TABLE'!$J$10:$BG$68, MATCH($H$13,'DATA TABLE'!$B$10:$B$68,0), MATCH($J57,'DATA TABLE'!$J$9:$BG$9,0))="","",INDEX('DATA TABLE'!$J$10:$BG$68, MATCH($H$13,'DATA TABLE'!$B$10:$B$68,0), MATCH($J57,'DATA TABLE'!$J$9:$BG$9,0)))) -> 
G58: =IF($C$7="Background indicators",G57+1,IF($E$10=Lists!$K$4, G57-1,G57+1)) -> 40 | I58: =IF(K58="Not scored","",INDEX('Selected values'!$J$4:$J$54,MATCH($J58,'Selected values'!$H$4:$H$54,0))) -> 39 | J58: =IF($E$10=Lists!$K$2, INDEX('Selected values'!$B$4:$B$54, MATCH($G58,'Selected values'!$D$4:$D$54,0)), INDEX('Selected values'!$B$4:$B$54,MATCH($G58,'Selected values'!$E$4:$E$54,0))) -> Massachusetts | K58: =IFERROR(ROUND(INDEX('Selected values'!$C$4:$C$54, MATCH($J58,'Selected values'!$B$4:$B$54,0)),1), "Not scored") -> 48.5 | L58: =IF(J58="AVERAGE","",IF(INDEX('DATA TABLE'!$J$10:$BG$68, MATCH($H$13,'DATA TABLE'!$B$10:$B$68,0), MATCH($J58,'DATA TABLE'!$J$9:$BG$9,0))="","",INDEX('DATA TABLE'!$J$10:$BG$68, MATCH($H$13,'DATA TABLE'!$B$10:$B$68,0), MATCH($J58,'DATA TABLE'!$J$9:$BG$9,0)))) -> 
G59: =IF($C$7="Background indicators",G58+1,IF($E$10=Lists!$K$4, G58-1,G58+1)) -> 41 | I59: =IF(K59="Not scored","",INDEX('Selected values'!$J$4:$J$54,MATCH($J59,'Selected values'!$H$4:$H$54,0))) -> 40 | J59: =IF($E$10=Lists!$K$2, INDEX('Selected values'!$B$4:$B$54, MATCH($G59,'Selected values'!$D$4:$D$54,0)), INDEX('Selected values'!$B$4:$B$54,MATCH($G59,'Selected values'!$E$4:$E$54,0))) -> New Jersey | K59: =IFERROR(ROUND(INDEX('Selected values'!$C$4:$C$54, MATCH($J59,'Selected values'!$B$4:$B$54,0)),1), "Not scored") -> 48.1 | L59: =IF(J59="AVERAGE","",IF(INDEX('DATA TABLE'!$J$10:$BG$68, MATCH($H$13,'DATA TABLE'!$B$10:$B$68,0), MATCH($J59,'DATA TABLE'!$J$9:$BG$9,0))="","",INDEX('DATA TABLE'!$J$10:$BG$68, MATCH($H$13,'DATA TABLE'!$B$10:$B$68,0), MATCH($J59,'DATA TABLE'!$J$9:$BG$9,0)))) -> 
G60: =IF($C$7="Background indicators",G59+1,IF($E$10=Lists!$K$4, G59-1,G59+1)) -> 42 | I60: =IF(K60="Not scored","",INDEX('Selected values'!$J$4:$J$54,MATCH($J60,'Selected values'!$H$4:$H$54,0))) -> 41 | J60: =IF($E$10=Lists!$K$2, INDEX('Selected values'!$B$4:$B$54, MATCH($G60,'Selected values'!$D$4:$D$54,0)), INDEX('Selected values'!$B$4:$B$54,MATCH($G60,'Selected values'!$E$4:$E$54,0))) -> Alaska | K60: =IFERROR(ROUND(INDEX('Selected values'!$C$4:$C$54, MATCH($J60,'Selected values'!$B$4:$B$54,0)),1), "Not scored") -> 48.1 | L60: =IF(J60="AVERAGE","",IF(INDEX('DATA TABLE'!$J$10:$BG$68, MATCH($H$13,'DATA TABLE'!$B$10:$B$68,0), MATCH($J60,'DATA TABLE'!$J$9:$BG$9,0))="","",INDEX('DATA TABLE'!$J$10:$BG$68, MATCH($H$13,'DATA TABLE'!$B$10:$B$68,0), MATCH($J60,'DATA TABLE'!$J$9:$BG$9,0)))) -> 
G61: =IF($C$7="Background indicators",G60+1,IF($E$10=Lists!$K$4, G60-1,G60+1)) -> 43 | I61: =IF(K61="Not scored","",INDEX('Selected values'!$J$4:$J$54,MATCH($J61,'Selected values'!$H$4:$H$54,0))) -> 42 | J61: =IF($E$10=Lists!$K$2, INDEX('Selected values'!$B$4:$B$54, MATCH($G61,'Selected values'!$D$4:$D$54,0)), INDEX('Selected values'!$B$4:$B$54,MATCH($G61,'Selected values'!$E$4:$E$54,0))) -> South Dakota | K61: =IFERROR(ROUND(INDEX('Selected values'!$C$4:$C$54, MATCH($J61,'Selected values'!$B$4:$B$54,0)),1), "Not scored") -> 47.1 | L61: =IF(J61="AVERAGE","",IF(INDEX('DATA TABLE'!$J$10:$BG$68, MATCH($H$13,'DATA TABLE'!$B$10:$B$68,0), MATCH($J61,'DATA TABLE'!$J$9:$BG$9,0))="","",INDEX('DATA TABLE'!$J$10:$BG$68, MATCH($H$13,'DATA TABLE'!$B$10:$B$68,0), MATCH($J61,'DATA TABLE'!$J$9:$BG$9,0)))) -> 
G62: =IF($C$7="Background indicators",G61+1,IF($E$10=Lists!$K$4, G61-1,G61+1)) -> 44 | I62: =IF(K62="Not scored","",INDEX('Selected values'!$J$4:$J$54,MATCH($J62,'Selected values'!$H$4:$H$54,0))) -> 43 | J62: =IF($E$10=Lists!$K$2, INDEX('Selected values'!$B$4:$B$54, MATCH($G62,'Selected values'!$D$4:$D$54,0)), INDEX('Selected values'!$B$4:$B$54,MATCH($G62,'Selected values'!$E$4:$E$54,0))) -> North Dakota | K62: =IFERROR(ROUND(INDEX('Selected values'!$C$4:$C$54, MATCH($J62,'Selected values'!$B$4:$B$54,0)),1), "Not scored") -> 45.3 | L62: =IF(J62="AVERAGE","",IF(INDEX('DATA TABLE'!$J$10:$BG$68, MATCH($H$13,'DATA TABLE'!$B$10:$B$68,0), MATCH($J62,'DATA TABLE'!$J$9:$BG$9,0))="","",INDEX('DATA TABLE'!$J$10:$BG$68, MATCH($H$13,'DATA TABLE'!$B$10:$B$68,0), MATCH($J62,'DATA TABLE'!$J$9:$BG$9,0)))) -> 
G63: =IF($C$7="Background indicators",G62+1,IF($E$10=Lists!$K$4, G62-1,G62+1)) -> 45 | I63: =IF(K63="Not scored","",INDEX('Selected values'!$J$4:$J$54,MATCH($J63,'Selected values'!$H$4:$H$54,0))) -> 44 | J63: =IF($E$10=Lists!$K$2, INDEX('Selected values'!$B$4:$B$54, MATCH($G63,'Selected values'!$D$4:$D$54,0)), INDEX('Selected values'!$B$4:$B$54,MATCH($G63,'Selected values'!$E$4:$E$54,0))) -> Montana | K63: =IFERROR(ROUND(INDEX('Selected values'!$C$4:$C$54, MATCH($J63,'Selected values'!$B$4:$B$54,0)),1), "Not scored") -> 45.1 | L63: =IF(J63="AVERAGE","",IF(INDEX('DATA TABLE'!$J$10:$BG$68, MATCH($H$13,'DATA TABLE'!$B$10:$B$68,0), MATCH($J63,'DATA TABLE'!$J$9:$BG$9,0))="","",INDEX('DATA TABLE'!$J$10:$BG$68, MATCH($H$13,'DATA TABLE'!$B$10:$B$68,0), MATCH($J63,'DATA TABLE'!$J$9:$BG$9,0)))) -> 
G64: =IF($C$7="Background indicators",G63+1,IF($E$10=Lists!$K$4, G63-1,G63+1)) -> 46 | I64: =IF(K64="Not scored","",INDEX('Selected values'!$J$4:$J$54,MATCH($J64,'Selected values'!$H$4:$H$54,0))) -> 45 | J64: =IF($E$10=Lists!$K$2, INDEX('Selected values'!$B$4:$B$54, MATCH($G64,'Selected values'!$D$4:$D$54,0)), INDEX('Selected values'!$B$4:$B$54,MATCH($G64,'Selected values'!$E$4:$E$54,0))) -> Alabama | K64: =IFERROR(ROUND(INDEX('Selected values'!$C$4:$C$54, MATCH($J64,'Selected values'!$B$4:$B$54,0)),1), "Not scored") -> 43.7 | L64: =IF(J64="AVERAGE","",IF(INDEX('DATA TABLE'!$J$10:$BG$68, MATCH($H$13,'DATA TABLE'!$B$10:$B$68,0), MATCH($J64,'DATA TABLE'!$J$9:$BG$9,0))="","",INDEX('DATA TABLE'!$J$10:$BG$68, MATCH($H$13,'DATA TABLE'!$B$10:$B$68,0), MATCH($J64,'DATA TABLE'!$J$9:$BG$9,0)))) -> 
G65: =IF($C$7="Background indicators",G64+1,IF($E$10=Lists!$K$4, G64-1,G64+1)) -> 47 | I65: =IF(K65="Not scored","",INDEX('Selected values'!$J$4:$J$54,MATCH($J65,'Selected values'!$H$4:$H$54,0))) -> 46 | J65: =IF($E$10=Lists!$K$2, INDEX('Selected values'!$B$4:$B$54, MATCH($G65,'Selected values'!$D$4:$D$54,0)), INDEX('Selected values'!$B$4:$B$54,MATCH($G65,'Selected values'!$E$4:$E$54,0))) -> New Hampshire | K65: =IFERROR(ROUND(INDEX('Selected values'!$C$4:$C$54, MATCH($J65,'Selected values'!$B$4:$B$54,0)),1), "Not scored") -> 43.7 | L65: =IF(J65="AVERAGE","",IF(INDEX('DATA TABLE'!$J$10:$BG$68, MATCH($H$13,'DATA TABLE'!$B$10:$B$68,0), MATCH($J65,'DATA TABLE'!$J$9:$BG$9,0))="","",INDEX('DATA TABLE'!$J$10:$BG$68, MATCH($H$13,'DATA TABLE'!$B$10:$B$68,0), MATCH($J65,'DATA TABLE'!$J$9:$BG$9,0)))) -> 
G66: =IF($C$7="Background indicators",G65+1,IF($E$10=Lists!$K$4, G65-1,G65+1)) -> 48 | I66: =IF(K66="Not scored","",INDEX('Selected values'!$J$4:$J$54,MATCH($J66,'Selected values'!$H$4:$H$54,0))) -> 47 | J66: =IF($E$10=Lists!$K$2, INDEX('Selected values'!$B$4:$B$54, MATCH($G66,'Selected values'!$D$4:$D$54,0)), INDEX('Selected values'!$B$4:$B$54,MATCH($G66,'Selected values'!$E$4:$E$54,0))) -> South Carolina | K66: =IFERROR(ROUND(INDEX('Selected values'!$C$4:$C$54, MATCH($J66,'Selected values'!$B$4:$B$54,0)),1), "Not scored") -> 40.3 | L66: =IF(J66="AVERAGE","",IF(INDEX('DATA TABLE'!$J$10:$BG$68, MATCH($H$13,'DATA TABLE'!$B$10:$B$68,0), MATCH($J66,'DATA TABLE'!$J$9:$BG$9,0))="","",INDEX('DATA TABLE'!$J$10:$BG$68, MATCH($H$13,'DATA TABLE'!$B$10:$B$68,0), MATCH($J66,'DATA TABLE'!$J$9:$BG$9,0)))) -> 
G67: =IF($C$7="Background indicators",G66+1,IF($E$10=Lists!$K$4, G66-1,G66+1)) -> 49 | I67: =IF(K67="Not scored","",INDEX('Selected values'!$J$4:$J$54,MATCH($J67,'Selected values'!$H$4:$H$54,0))) -> 48 | J67: =IF($E$10=Lists!$K$2, INDEX('Selected values'!$B$4:$B$54, MATCH($G67,'Selected values'!$D$4:$D$54,0)), INDEX('Selected values'!$B$4:$B$54,MATCH($G67,'Selected values'!$E$4:$E$54,0))) -> Georgia | K67: =IFERROR(ROUND(INDEX('Selected values'!$C$4:$C$54, MATCH($J67,'Selected values'!$B$4:$B$54,0)),1), "Not scored") -> 39.8 | L67: =IF(J67="AVERAGE","",IF(INDEX('DATA TABLE'!$J$10:$BG$68, MATCH($H$13,'DATA TABLE'!$B$10:$B$68,0), MATCH($J67,'DATA TABLE'!$J$9:$BG$9,0))="","",INDEX('DATA TABLE'!$J$10:$BG$68, MATCH($H$13,'DATA TABLE'!$B$10:$B$68,0), MATCH($J67,'DATA TABLE'!$J$9:$BG$9,0)))) -> 
G68: =IF($C$7="Background indicators",G67+1,IF($E$10=Lists!$K$4, G67-1,G67+1)) -> 50 | I68: =IF(K68="Not scored","",INDEX('Selected values'!$J$4:$J$54,MATCH($J68,'Selected values'!$H$4:$H$54,0))) -> 49 | J68: =IF($E$10=Lists!$K$2, INDEX('Selected values'!$B$4:$B$54, MATCH($G68,'Selected values'!$D$4:$D$54,0)), INDEX('Selected values'!$B$4:$B$54,MATCH($G68,'Selected values'!$E$4:$E$54,0))) -> Arizona | K68: =IFERROR(ROUND(INDEX('Selected values'!$C$4:$C$54, MATCH($J68,'Selected values'!$B$4:$B$54,0)),1), "Not scored") -> 38.8 | L68: =IF(J68="AVERAGE","",IF(INDEX('DATA TABLE'!$J$10:$BG$68, MATCH($H$13,'DATA TABLE'!$B$10:$B$68,0), MATCH($J68,'DATA TABLE'!$J$9:$BG$9,0))="","",INDEX('DATA TABLE'!$J$10:$BG$68, MATCH($H$13,'DATA TABLE'!$B$10:$B$68,0), MATCH($J68,'DATA TABLE'!$J$9:$BG$9,0)))) -> 
G69: =IF($C$7="Background indicators",G68+1,IF($E$10=Lists!$K$4, G68-1,G68+1)) -> 51 | I69: =IF(K69="Not scored","",INDEX('Selected values'!$J$4:$J$54,MATCH($J69,'Selected values'!$H$4:$H$54,0))) -> 50 | J69: =IF($E$10=Lists!$K$2, INDEX('Selected values'!$B$4:$B$54, MATCH($G69,'Selected values'!$D$4:$D$54,0)), INDEX('Selected values'!$B$4:$B$54,MATCH($G69,'Selected values'!$E$4:$E$54,0))) -> Kansas | K69: =IFERROR(ROUND(INDEX('Selected values'!$C$4:$C$54, MATCH($J69,'Selected values'!$B$4:$B$54,0)),1), "Not scored") -> 38.1 | L69: =IF(C7="Background indicators","",IF(J69="AVERAGE","",IF(INDEX('DATA TABLE'!$J$10:$BG$68, MATCH($H$13,'DATA TABLE'!$B$10:$B$68,0), MATCH($J69,'DATA TABLE'!$J$9:$BG$9,0))="","",INDEX('DATA TABLE'!$J$10:$BG$68, MATCH($H$13,'DATA TABLE'!$B$10:$B$68,0), MATCH($J69,'DATA TABLE'!$J$9:$BG$9,0))))) -> 
H71: '=' denotes tied rank
H72: Average = mean score for all states shown in table
I74: Scores 80-100 - Areas of strength | K74: 80
I75: Scores 60-79 | K75: 60
I76: Scores 40-59 | K76: 40
I77: Scores 20-39 | K77: 20
I78: Scores 0-19 - Areas of development | K78: 0

Sheet STATES
C1: =HOME!B7 -> THE UNITED STATES OBESITY RESPONSE INDEX
C6: SELECT STATE
C7: Alabama
C10: =C7 -> Alabama
C12: Scores 80-100 - Areas of strength | E12: 80
C13: Scores 60-79 | E13: 60
C14: Scores 40-59 | E14: 40
C15: Scores 20-39 | E15: 20
C16: Scores 0-19 - Areas of development | E16: 0
C18: Overall pillar and subpillar scores
E20: Score
E21: 0-100, where 100 = strongest obesity response
B22: 0 | C22: =INDEX(Lists!$H$2:$H$59,MATCH($B22,Lists!$F$2:$F$59,0)) -> OVERALL | E22: =ROUND(INDEX('SCORE TABLE'!$F$10:$BC$45, MATCH($B22,'SCORE TABLE'!$B$10:$B$45,0), MATCH($C$10,'SCORE TABLE'!$F$9:$BC$9,0)),1) -> 43.7
B23: 1 | C23: =INDEX(Lists!$H$2:$H$59,MATCH($B23,Lists!$F$2:$F$59,0)) -> 1) Policy and governance | E23: =ROUND(INDEX('SCORE TABLE'!$F$10:$BC$45, MATCH($B23,'SCORE TABLE'!$B$10:$B$45,0), MATCH($C$10,'SCORE TABLE'!$F$9:$BC$9,0)),1) -> 28.3
B24: 1.1 | C24: =INDEX(Lists!$H$2:$H$59,MATCH($B24,Lists!$F$2:$F$59,0)) -> 1.1) Obesity-related policy | E24: =ROUND(INDEX('SCORE TABLE'!$F$10:$BC$45, MATCH($B24,'SCORE TABLE'!$B$10:$B$45,0), MATCH($C$10,'SCORE TABLE'!$F$9:$BC$9,0)),1) -> 31.7
B25: 1.2 | C25: =INDEX(Lists!$H$2:$H$59,MATCH($B25,Lists!$F$2:$F$59,0)) -> 1.2) Availability and affordability of obesity-related care | E25: =ROUND(INDEX('SCORE TABLE'!$F$10:$BC$45, MATCH($B25,'SCORE TABLE'!$B$10:$B$45,0), MATCH($C$10,'SCORE TABLE'!$F$9:$BC$9,0)),1) -> 25.0
B26: 2 | C26: =INDEX(Lists!$H$2:$H$59,MATCH($B26,Lists!$F$2:$F$59,0)) -> 2) Food quality and access | E26: =ROUND(INDEX('SCORE TABLE'!$F$10:$BC$45, MATCH($B26,'SCORE TABLE'!$B$10:$B$45,0), MATCH($C$10,'SCORE TABLE'!$F$9:$BC$9,0)),1) -> 45.8
B27: 2.1 | C27: =INDEX(Lists!$H$2:$H$59,MATCH($B27,Lists!$F$2:$F$59,0)) -> 2.1) Food access and affordability | E27: =ROUND(INDEX('SCORE TABLE'!$F$10:$BC$45, MATCH($B27,'SCORE TABLE'!$B$10:$B$45,0), MATCH($C$10,'SCORE TABLE'!$F$9:$BC$9,0)),1) -> 70.7
B28: 2.2 | C28: =INDEX(Lists!$H$2:$H$59,MATCH($B28,Lists!$F$2:$F$59,0)) -> 2.2) Nutrition regulation | E28: =ROUND(INDEX('SCORE TABLE'!$F$10:$BC$45, MATCH($B28,'SCORE TABLE'!$B$10:$B$45,0), MATCH($C$10,'SCORE TABLE'!$F$9:$BC$9,0)),1) -> 0.0
B29: 2.3 | C29: =INDEX(Lists!$H$2:$H$59,MATCH($B29,Lists!$F$2:$F$59,0)) -> 2.3) Nutrition in schools | E29: =ROUND(INDEX('SCORE TABLE'!$F$10:$BC$45, MATCH($B29,'SCORE TABLE'!$B$10:$B$45,0), MATCH($C$10,'SCORE TABLE'!$F$9:$BC$9,0)),1) -> 66.7
B30: 3 | C30: =INDEX(Lists!$H$2:$H$59,MATCH($B30,Lists!$F$2:$F$59,0)) -> 3) Physical activity | E30: =ROUND(INDEX('SCORE TABLE'!$F$10:$BC$45, MATCH($B30,'SCORE TABLE'!$B$10:$B$45,0), MATCH($C$10,'SCORE TABLE'!$F$9:$BC$9,0)),1) -> 56.9
B31: 3.1 | C31: =INDEX(Lists!$H$2:$H$59,MATCH($B31,Lists!$F$2:$F$59,0)) -> 3.1) Physical activity among the population | E31: =ROUND(INDEX('SCORE TABLE'!$F$10:$BC$45, MATCH($B31,'SCORE TABLE'!$B$10:$B$45,0), MATCH($C$10,'SCORE TABLE'!$F$9:$BC$9,0)),1) -> 63.8
B32: 3.2 | C32: =INDEX(Lists!$H$2:$H$59,MATCH($B32,Lists!$F$2:$F$59,0)) -> 3.2) Physical activity among children | E32: =ROUND(INDEX('SCORE TABLE'!$F$10:$BC$45, MATCH($B32,'SCORE TABLE'!$B$10:$B$45,0), MATCH($C$10,'SCORE TABLE'!$F$9:$BC$9,0)),1) -> 50.0
C35: Detailed scorecard
E37: Score | G37: Data
E38: 0-100, where 100 = strongest obesity response
B39: 1 | C39: =INDEX(Lists!$H$2:$H$59,MATCH($B39,Lists!$F$2:$F$59,0)) -> 1) Policy and governance | D39: =INDEX(Lists!$H$2:$H$59,MATCH($B39,Lists!$F$2:$F$59,0)) -> 1) Policy and governance | E39: =INDEX(Lists!$H$2:$H$59,MATCH($B39,Lists!$F$2:$F$59,0)) -> 1) Policy and governance | F39: =INDEX(Lists!$H$2:$H$59,MATCH($B39,Lists!$F$2:$F$59,0)) -> 1) Policy and governance | G39: =INDEX(Lists!$H$2:$H$59,MATCH($B39,Lists!$F$2:$F$59,0)) -> 1) Policy and governance | H39: =INDEX(Lists!$H$2:$H$59,MATCH($B39,Lists!$F$2:$F$59,0)) -> 1) Policy and governance | I39: =INDEX(Lists!$H$2:$H$59,MATCH($B39,Lists!$F$2:$F$59,0)) -> 1) Policy and governance | J39: =INDEX(Lists!$H$2:$H$59,MATCH($B39,Lists!$F$2:$F$59,0)) -> 1) Policy and governance
B40: 1.1 | C40: =INDEX(Lists!$H$2:$H$59,MATCH($B40,Lists!$F$2:$F$59,0)) -> 1.1) Obesity-related policy | D40: =INDEX(Lists!$H$2:$H$59,MATCH($B40,Lists!$F$2:$F$59,0)) -> 1.1) Obesity-related policy | E40: =INDEX(Lists!$H$2:$H$59,MATCH($B40,Lists!$F$2:$F$59,0)) -> 1.1) Obesity-related policy | F40: =INDEX(Lists!$H$2:$H$59,MATCH($B40,Lists!$F$2:$F$59,0)) -> 1.1) Obesity-related policy | G40: =INDEX(Lists!$H$2:$H$59,MATCH($B40,Lists!$F$2:$F$59,0)) -> 1.1) Obesity-related policy | H40: =INDEX(Lists!$H$2:$H$59,MATCH($B40,Lists!$F$2:$F$59,0)) -> 1.1) Obesity-related policy | I40: =INDEX(Lists!$H$2:$H$59,MATCH($B40,Lists!$F$2:$F$59,0)) -> 1.1) Obesity-related policy | J40: =INDEX(Lists!$H$2:$H$59,MATCH($B40,Lists!$F$2:$F$59,0)) -> 1.1) Obesity-related policy
B41: 1.1.1 | C41: =INDEX(Lists!$H$2:$H$59,MATCH($B41,Lists!$F$2:$F$59,0)) -> 1.1.1) Health policy/strategy/plan that includes obesity | E41: =IFERROR(ROUND(INDEX('SCORE TABLE'!$F$10:$BC$45, MATCH($B41,'SCORE TABLE'!$B$10:$B$45,0), MATCH($C$10,'SCORE TABLE'!$F$9:$BC$9,0)),1),"Not scored") -> 0.0 | G41: =IF(INDEX('DATA TABLE'!$J$10:$BG$68, MATCH($B41,'DATA TABLE'!$B$10:$B$68,0), MATCH($C$10,'DATA TABLE'!$J$9:$BG$9,0))="","",INDEX('DATA TABLE'!$J$10:$BG$68, MATCH($B41,'DATA TABLE'!$B$10:$B$68,0), MATCH($C$10,'DATA TABLE'!$J$9:$BG$9,0))) -> 0 | H41: =IF(INDEX(Data_summary!$G$3:$BD$38, MATCH($B41,Data_summary!$C$3:$C$38,0),MATCH($C$10,Data_summary!$G$2:$BD$2,0))="","",INDEX(Data_summary!$G$3:$BD$38, MATCH($B41,Data_summary!$C$3:$C$38,0),MATCH($C$10,Data_summary!$G$2:$BD$2,0))) -> While obesity was identified as a priority area in the 2015 State of Alabama Community Health Improvement Plan - which was valid from 2015 to 2019 - obesity is not included among the priority areas in the 2024-2029 State Health Improvement Plan (Alabama Department of Public Health, State Health Improvement Plan 2024-2029, 2024). | J41: =IF(INDEX('DATA TABLE'!$G$10:$G$68,MATCH($B41,'DATA TABLE'!$B$10:$B$68,0))="",CONCATENATE("(",INDEX('DATA TABLE'!$E$10:$E$68,MATCH($B41,'DATA TABLE'!$B$10:$B$68,0)),")"), CONCATENATE(INDEX('DATA TABLE'!$G$10:$G$68,MATCH($B41,'DATA TABLE'!$B$10:$B$68,0))," (",INDEX('DATA TABLE'!$E$10:$E$68,MATCH($B41,'DATA TABLE'!$B$10:$B$68,0)),")")) -> Qualitative rating 0-1; 1=best (Economist Impact research)
B42: 1.1.2 | C42: =INDEX(Lists!$H$2:$H$59,MATCH($B42,Lists!$F$2:$F$59,0)) -> 1.1.2) Definition of obesity | E42: =IFERROR(ROUND(INDEX('SCORE TABLE'!$F$10:$BC$45, MATCH($B42,'SCORE TABLE'!$B$10:$B$45,0), MATCH($C$10,'SCORE TABLE'!$F$9:$BC$9,0)),1),"Not scored") -> 100.0 | G42: =IF(INDEX('DATA TABLE'!$J$10:$BG$68, MATCH($B42,'DATA TABLE'!$B$10:$B$68,0), MATCH($C$10,'DATA TABLE'!$J$9:$BG$9,0))="","",INDEX('DATA TABLE'!$J$10:$BG$68, MATCH($B42,'DATA TABLE'!$B$10:$B$68,0), MATCH($C$10,'DATA TABLE'!$J$9:$BG$9,0))) -> 2 | H42: =IF(INDEX(Data_summary!$G$3:$BD$38, MATCH($B42,Data_summary!$C$3:$C$38,0),MATCH($C$10,Data_summary!$G$2:$BD$2,0))="","",INDEX(Data_summary!$G$3:$BD$38, MATCH($B42,Data_summary!$C$3:$C$38,0),MATCH($C$10,Data_summary!$G$2:$BD$2,0))) -> Alabama's state-level plan for reducing the prevalence of obesity - the Alabama Physical Activity and Nutrition Plan 2023-2033 - defines obesity as a chronic disease and connects obesity to its related chronic diseases, including heart disease, cancer, stroke and diabetes (Alabama Wellness Alliance, Alabama Physical Activity and Nutrition Plan 2023-2033, 2022). | J42: =IF(INDEX('DATA TABLE'!$G$10:$G$68,MATCH($B42,'DATA TABLE'!$B$10:$B$68,0))="",CONCATENATE("(",INDEX('DATA TABLE'!$E$10:$E$68,MATCH($B42,'DATA TABLE'!$B$10:$B$68,0)),")"), CONCATENATE(INDEX('DATA TABLE'!$G$10:$G$68,MATCH($B42,'DATA TABLE'!$B$10:$B$68,0))," (",INDEX('DATA TABLE'!$E$10:$E$68,MATCH($B42,'DATA TABLE'!$B$10:$B$68,0)),")")) -> Qualitative rating 0-2; 2=best (Economist Impact research)
B43: 1.1.3 | C43: =INDEX(Lists!$H$2:$H$59,MATCH($B43,Lists!$F$2:$F$59,0)) -> 1.1.3) Obesity-related policy/strategy/plan | E43: =IFERROR(ROUND(INDEX('SCORE TABLE'!$F$10:$BC$45, MATCH($B43,'SCORE TABLE'!$B$10:$B$45,0), MATCH($C$10,'SCORE TABLE'!$F$9:$BC$9,0)),1),"Not scored") -> 58.3 | G43: =IF(INDEX('DATA TABLE'!$J$10:$BG$68, MATCH($B43,'DATA TABLE'!$B$10:$B$68,0), MATCH($C$10,'DATA TABLE'!$J$9:$BG$9,0))="","",INDEX('DATA TABLE'!$J$10:$BG$68, MATCH($B43,'DATA TABLE'!$B$10:$B$68,0), MATCH($C$10,'DATA TABLE'!$J$9:$BG$9,0))) ->  | H43: =IF(INDEX(Data_summary!$G$3:$BD$38, MATCH($B43,Data_summary!$C$3:$C$38,0),MATCH($C$10,Data_summary!$G$2:$BD$2,0))="","",INDEX(Data_summary!$G$3:$BD$38, MATCH($B43,Data_summary!$C$3:$C$38,0),MATCH($C$10,Data_summary!$G$2:$BD$2,0))) ->  | J43: =IF(INDEX('DATA TABLE'!$G$10:$G$68,MATCH($B43,'DATA TABLE'!$B$10:$B$68,0))="",CONCATENATE("(",INDEX('DATA TABLE'!$E$10:$E$68,MATCH($B43,'DATA TABLE'!$B$10:$B$68,0)),")"), CONCATENATE(INDEX('DATA TABLE'!$G$10:$G$68,MATCH($B43,'DATA TABLE'!$B$10:$B$68,0))," (",INDEX('DATA TABLE'!$E$10:$E$68,MATCH($B43,'DATA TABLE'!$B$10:$B$68,0)),")")) -> (Economist Impact calculations)
B44: 1.1.3a | C44: =INDEX(Lists!$H$2:$H$59,MATCH($B44,Lists!$F$2:$F$59,0)) -> 1.1.3a) Existence of an obesity-related policy/strategy/plan | E44: =IFERROR(ROUND(INDEX('SCORE TABLE'!$F$10:$BC$45, MATCH($B44,'SCORE TABLE'!$B$10:$B$45,0), MATCH($C$10,'SCORE TABLE'!$F$9:$BC$9,0)),1),"Not scored") -> 100.0 | G44: =IF(INDEX('DATA TABLE'!$J$10:$BG$68, MATCH($B44,'DATA TABLE'!$B$10:$B$68,0), MATCH($C$10,'DATA TABLE'!$J$9:$BG$9,0))="","",INDEX('DATA TABLE'!$J$10:$BG$68, MATCH($B44,'DATA TABLE'!$B$10:$B$68,0), MATCH($C$10,'DATA TABLE'!$J$9:$BG$9,0))) -> 2 | H44: =IF(INDEX(Data_summary!$G$3:$BD$38, MATCH($B44,Data_summary!$C$3:$C$38,0),MATCH($C$10,Data_summary!$G$2:$BD$2,0))="","",INDEX(Data_summary!$G$3:$BD$38, MATCH($B44,Data_summary!$C$3:$C$38,0),MATCH($C$10,Data_summary!$G$2:$BD$2,0))) -> Alabama has a valid state-level plan in place containing specific goals and strategies for reducing obesity prevalence - the Alabama Physical Activity and Nutrition Plan 2023-2033 (Alabama Wellness Alliance, Alabama Physical Activity and Nutrition Plan 2023-2033, 2022). | J44: =IF(INDEX('DATA TABLE'!$G$10:$G$68,MATCH($B44,'DATA TABLE'!$B$10:$B$68,0))="",CONCATENATE("(",INDEX('DATA TABLE'!$E$10:$E$68,MATCH($B44,'DATA TABLE'!$B$10:$B$68,0)),")"), CONCATENATE(INDEX('DATA TABLE'!$G$10:$G$68,MATCH($B44,'DATA TABLE'!$B$10:$B$68,0))," (",INDEX('DATA TABLE'!$E$10:$E$68,MATCH($B44,'DATA TABLE'!$B$10:$B$68,0)),")")) -> Qualitative rating 0-2; 2=best (Economist Impact research)
B45: 1.1.3b | C45: =INDEX(Lists!$H$2:$H$59,MATCH($B45,Lists!$F$2:$F$59,0)) -> 1.1.3b) Engagement with stakeholders during development | E45: =IFERROR(ROUND(INDEX('SCORE TABLE'!$F$10:$BC$45, MATCH($B45,'SCORE TABLE'!$B$10:$B$45,0), MATCH($C$10,'SCORE TABLE'!$F$9:$BC$9,0)),1),"Not scored") -> 66.7 | G45: =IF(INDEX('DATA TABLE'!$J$10:$BG$68, MATCH($B45,'DATA TABLE'!$B$10:$B$68,0), MATCH($C$10,'DATA TABLE'!$J$9:$BG$9,0))="","",INDEX('DATA TABLE'!$J$10:$BG$68, MATCH($B45,'DATA TABLE'!$B$10:$B$68,0), MATCH($C$10,'DATA TABLE'!$J$9:$BG$9,0))) -> 2 | H45: =IF(INDEX(Data_summary!$G$3:$BD$38, MATCH($B45,Data_summary!$C$3:$C$38,0),MATCH($C$10,Data_summary!$G$2:$BD$2,0))="","",INDEX(Data_summary!$G$3:$BD$38, MATCH($B45,Data_summary!$C$3:$C$38,0),MATCH($C$10,Data_summary!$G$2:$BD$2,0))) -> The development of Alabama's state-level plan for reducing the prevalence of obesity - the Alabama Physical Activity and Nutrition Plan 2023-2033 - involved stakeholders from multiple sectors, including representatives from healthcare, education, business/industry, agriculture, public health, transportation/community planning, recreation/sports, and faith-based organisations. However, there is no evidence that individuals living with obesity were consulted (Alabama Wellness Alliance, Alabama Physical Activity and Nutrition Plan 2023-2033, 2022). | J45: =IF(INDEX('DATA TABLE'!$G$10:$G$68,MATCH($B45,'DATA TABLE'!$B$10:$B$68,0))="",CONCATENATE("(",INDEX('DATA TABLE'!$E$10:$E$68,MATCH($B45,'DATA TABLE'!$B$10:$B$68,0)),")"), CONCATENATE(INDEX('DATA TABLE'!$G$10:$G$68,MATCH($B45,'DATA TABLE'!$B$10:$B$68,0))," (",INDEX('DATA TABLE'!$E$10:$E$68,MATCH($B45,'DATA TABLE'!$B$10:$B$68,0)),")")) -> Qualitative rating 0-3; 3=best (Economist Impact research)
B46: 1.1.3c | C46: =INDEX(Lists!$H$2:$H$59,MATCH($B46,Lists!$F$2:$F$59,0)) -> 1.1.3c) Measures for obesity prevention | E46: =IFERROR(ROUND(INDEX('SCORE TABLE'!$F$10:$BC$45, MATCH($B46,'SCORE TABLE'!$B$10:$B$45,0), MATCH($C$10,'SCORE TABLE'!$F$9:$BC$9,0)),1),"Not scored") -> 100.0 | G46: =IF(INDEX('DATA TABLE'!$J$10:$BG$68, MATCH($B46,'DATA TABLE'!$B$10:$B$68,0), MATCH($C$10,'DATA TABLE'!$J$9:$BG$9,0))="","",INDEX('DATA TABLE'!$J$10:$BG$68, MATCH($B46,'DATA TABLE'!$B$10:$B$68,0), MATCH($C$10,'DATA TABLE'!$J$9:$BG$9,0))) -> 3 | H46: =IF(INDEX(Data_summary!$G$3:$BD$38, MATCH($B46,Data_summary!$C$3:$C$38,0),MATCH($C$10,Data_summary!$G$2:$BD$2,0))="","",INDEX(Data_summary!$G$3:$BD$38, MATCH($B46,Data_summary!$C$3:$C$38,0),MATCH($C$10,Data_summary!$G$2:$BD$2,0))) -> Alabama's state-level plan for reducing the prevalence of obesity - the Alabama Physical Activity and Nutrition Plan 2023-2033 - contains several measures for obesity prevention across the population, with specific targets, implementation strategies and methods of evaluation (Alabama Wellness Alliance, Alabama Physical Activity and Nutrition Plan 2023-2033, 2022). | J46: =IF(INDEX('DATA TABLE'!$G$10:$G$68,MATCH($B46,'DATA TABLE'!$B$10:$B$68,0))="",CONCATENATE("(",INDEX('DATA TABLE'!$E$10:$E$68,MATCH($B46,'DATA TABLE'!$B$10:$B$68,0)),")"), CONCATENATE(INDEX('DATA TABLE'!$G$10:$G$68,MATCH($B46,'DATA TABLE'!$B$10:$B$68,0))," (",INDEX('DATA TABLE'!$E$10:$E$68,MATCH($B46,'DATA TABLE'!$B$10:$B$68,0)),")")) -> Qualitative rating 0-3; 3=best (Economist Impact research)
B47: 1.1.3d | C47: =INDEX(Lists!$H$2:$H$59,MATCH($B47,Lists!$F$2:$F$59,0)) -> 1.1.3d) Measures for obesity management | E47: =IFERROR(ROUND(INDEX('SCORE TABLE'!$F$10:$BC$45, MATCH($B47,'SCORE TABLE'!$B$10:$B$45,0), MATCH($C$10,'SCORE TABLE'!$F$9:$BC$9,0)),1),"Not scored") -> 0.0 | G47: =IF(INDEX('DATA TABLE'!$J$10:$BG$68, MATCH($B47,'DATA TABLE'!$B$10:$B$68,0), MATCH($C$10,'DATA TABLE'!$J$9:$BG$9,0))="","",INDEX('DATA TABLE'!$J$10:$BG$68, MATCH($B47,'DATA TABLE'!$B$10:$B$68,0), MATCH($C$10,'DATA TABLE'!$J$9:$BG$9,0))) -> 0 | H47: =IF(INDEX(Data_summary!$G$3:$BD$38, MATCH($B47,Data_summary!$C$3:$C$38,0),MATCH($C$10,Data_summary!$G$2:$BD$2,0))="","",INDEX(Data_summary!$G$3:$BD$38, MATCH($B47,Data_summary!$C$3:$C$38,0),MATCH($C$10,Data_summary!$G$2:$BD$2,0))) -> Alabama's state-level plan for reducing the prevalence of obesity - the Alabama Physical Activity and Nutrition Plan 2023-2033 - does not contain measures for obesity management (Alabama Wellness Alliance, Alabama Physical Activity and Nutrition Plan 2023-2033, 2022). | J47: =IF(INDEX('DATA TABLE'!$G$10:$G$68,MATCH($B47,'DATA TABLE'!$B$10:$B$68,0))="",CONCATENATE("(",INDEX('DATA TABLE'!$E$10:$E$68,MATCH($B47,'DATA TABLE'!$B$10:$B$68,0)),")"), CONCATENATE(INDEX('DATA TABLE'!$G$10:$G$68,MATCH($B47,'DATA TABLE'!$B$10:$B$68,0))," (",INDEX('DATA TABLE'!$E$10:$E$68,MATCH($B47,'DATA TABLE'!$B$10:$B$68,0)),")")) -> Qualitative rating 0-3; 3=best (Economist Impact research)
B48: 1.1.3e | C48: =INDEX(Lists!$H$2:$H$59,MATCH($B48,Lists!$F$2:$F$59,0)) -> 1.1.3e) Targets for obesity prevalence reduction | E48: =IFERROR(ROUND(INDEX('SCORE TABLE'!$F$10:$BC$45, MATCH($B48,'SCORE TABLE'!$B$10:$B$45,0), MATCH($C$10,'SCORE TABLE'!$F$9:$BC$9,0)),1),"Not scored") -> 0.0 | G48: =IF(INDEX('DATA TABLE'!$J$10:$BG$68, MATCH($B48,'DATA TABLE'!$B$10:$B$68,0), MATCH($C$10,'DATA TABLE'!$J$9:$BG$9,0))="","",INDEX('DATA TABLE'!$J$10:$BG$68, MATCH($B48,'DATA TABLE'!$B$10:$B$68,0), MATCH($C$10,'DATA TABLE'!$J$9:$BG$9,0))) -> 0 | H48: =IF(INDEX(Data_summary!$G$3:$BD$38, MATCH($B48,Data_summary!$C$3:$C$38,0),MATCH($C$10,Data_summary!$G$2:$BD$2,0))="","",INDEX(Data_summary!$G$3:$BD$38, MATCH($B48,Data_summary!$C$3:$C$38,0),MATCH($C$10,Data_summary!$G$2:$BD$2,0))) -> Alabama's state-level plan for reducing the prevalence of obesity - the Alabama Physical Activity and Nutrition Plan 2023-2033 - does not contain numerical, time-bound targets for obesity prevalence reduction (Alabama Wellness Alliance, Alabama Physical Activity and Nutrition Plan 2023-2033, 2022). | J48: =IF(INDEX('DATA TABLE'!$G$10:$G$68,MATCH($B48,'DATA TABLE'!$B$10:$B$68,0))="",CONCATENATE("(",INDEX('DATA TABLE'!$E$10:$E$68,MATCH($B48,'DATA TABLE'!$B$10:$B$68,0)),")"), CONCATENATE(INDEX('DATA TABLE'!$G$10:$G$68,MATCH($B48,'DATA TABLE'!$B$10:$B$68,0))," (",INDEX('DATA TABLE'!$E$10:$E$68,MATCH($B48,'DATA TABLE'!$B$10:$B$68,0)),")")) -> Qualitative rating 0-2; 2=best (Economist Impact research)
B49: 1.1.3f | C49: =INDEX(Lists!$H$2:$H$59,MATCH($B49,Lists!$F$2:$F$59,0)) -> 1.1.3f) Focus on vulnerable groups | E49: =IFERROR(ROUND(INDEX('SCORE TABLE'!$F$10:$BC$45, MATCH($B49,'SCORE TABLE'!$B$10:$B$45,0), MATCH($C$10,'SCORE TABLE'!$F$9:$BC$9,0)),1),"Not scored") -> 100.0 | G49: =IF(INDEX('DATA TABLE'!$J$10:$BG$68, MATCH($B49,'DATA TABLE'!$B$10:$B$68,0), MATCH($C$10,'DATA TABLE'!$J$9:$BG$9,0))="","",INDEX('DATA TABLE'!$J$10:$BG$68, MATCH($B49,'DATA TABLE'!$B$10:$B$68,0), MATCH($C$10,'DATA TABLE'!$J$9:$BG$9,0))) -> 2 | H49: =IF(INDEX(Data_summary!$G$3:$BD$38, MATCH($B49,Data_summary!$C$3:$C$38,0),MATCH($C$10,Data_summary!$G$2:$BD$2,0))="","",INDEX(Data_summary!$G$3:$BD$38, MATCH($B49,Data_summary!$C$3:$C$38,0),MATCH($C$10,Data_summary!$G$2:$BD$2,0))) -> Alabama's state-level plan for reducing the prevalence of obesity - the Alabama Physical Activity and Nutrition Plan 2023-2033 - includes a particular focus on the prevention of obesity in groups at increased risk of developing obesity. The plan explicitly recognises health disparities across marginalised groups and establishes specific, actionable recommendations to improve access to resources and healthy opportunities for at-risk groups (Alabama Wellness Alliance, Alabama Physical Activity and Nutrition Plan 2023-2033, 2022). | J49: =IF(INDEX('DATA TABLE'!$G$10:$G$68,MATCH($B49,'DATA TABLE'!$B$10:$B$68,0))="",CONCATENATE("(",INDEX('DATA TABLE'!$E$10:$E$68,MATCH($B49,'DATA TABLE'!$B$10:$B$68,0)),")"), CONCATENATE(INDEX('DATA TABLE'!$G$10:$G$68,MATCH($B49,'DATA TABLE'!$B$10:$B$68,0))," (",INDEX('DATA TABLE'!$E$10:$E$68,MATCH($B49,'DATA TABLE'!$B$10:$B$68,0)),")")) -> Qualitative rating 0-2; 2=best (Economist Impact research)
B50: 1.1.3g | C50: =INDEX(Lists!$H$2:$H$59,MATCH($B50,Lists!$F$2:$F$59,0)) -> 1.1.3g) Obesity-related stigma and discrimination | E50: =IFERROR(ROUND(INDEX('SCORE TABLE'!$F$10:$BC$45, MATCH($B50,'SCORE TABLE'!$B$10:$B$45,0), MATCH($C$10,'SCORE TABLE'!$F$9:$BC$9,0)),1),"Not scored") -> 0.0 | G50: =IF(INDEX('DATA TABLE'!$J$10:$BG$68, MATCH($B50,'DATA TABLE'!$B$10:$B$68,0), MATCH($C$10,'DATA TABLE'!$J$9:$BG$9,0))="","",INDEX('DATA TABLE'!$J$10:$BG$68, MATCH($B50,'DATA TABLE'!$B$10:$B$68,0), MATCH($C$10,'DATA TABLE'!$J$9:$BG$9,0))) -> 0 | H50: =IF(INDEX(Data_summary!$G$3:$BD$38, MATCH($B50,Data_summary!$C$3:$C$38,0),MATCH($C$10,Data_summary!$G$2:$BD$2,0))="","",INDEX(Data_summary!$G$3:$BD$38, MATCH($B50,Data_summary!$C$3:$C$38,0),MATCH($C$10,Data_summary!$G$2:$BD$2,0))) -> Alabama's state-level plan for reducing obesity prevalence - the Alabama Physical Activity and Nutrition Plan 2023-2033 - does not mention obesity-related stigma or discrimination (Alabama Wellness Alliance, Alabama Physical Activity and Nutrition Plan 2023-2033, 2022). | J50: =IF(INDEX('DATA TABLE'!$G$10:$G$68,MATCH($B50,'DATA TABLE'!$B$10:$B$68,0))="",CONCATENATE("(",INDEX('DATA TABLE'!$E$10:$E$68,MATCH($B50,'DATA TABLE'!$B$10:$B$68,0)),")"), CONCATENATE(INDEX('DATA TABLE'!$G$10:$G$68,MATCH($B50,'DATA TABLE'!$B$10:$B$68,0))," (",INDEX('DATA TABLE'!$E$10:$E$68,MATCH($B50,'DATA TABLE'!$B$10:$B$68,0)),")")) -> Qualitative rating 0-2; 2=best (Economist Impact research)
B51: 1.1.4 | C51: =INDEX(Lists!$H$2:$H$59,MATCH($B51,Lists!$F$2:$F$59,0)) -> 1.1.4) Obesity-related funding | E51: =IFERROR(ROUND(INDEX('SCORE TABLE'!$F$10:$BC$45, MATCH($B51,'SCORE TABLE'!$B$10:$B$45,0), MATCH($C$10,'SCORE TABLE'!$F$9:$BC$9,0)),1),"Not scored") -> 0.0 | G51: =IF(INDEX('DATA TABLE'!$J$10:$BG$68, MATCH($B51,'DATA TABLE'!$B$10:$B$68,0), MATCH($C$10,'DATA TABLE'!$J$9:$BG$9,0))="","",INDEX('DATA TABLE'!$J$10:$BG$68, MATCH($B51,'DATA TABLE'!$B$10:$B$68,0), MATCH($C$10,'DATA TABLE'!$J$9:$BG$9,0))) -> 0 | H51: =IF(INDEX(Data_summary!$G$3:$BD$38, MATCH($B51,Data_summary!$C$3:$C$38,0),MATCH($C$10,Data_summary!$G$2:$BD$2,0))="","",INDEX(Data_summary!$G$3:$BD$38, MATCH($B51,Data_summary!$C$3:$C$38,0),MATCH($C$10,Data_summary!$G$2:$BD$2,0))) -> There is no evidence that Alabama has allocated a dedicated budget or funding for the implementation of the Alabama Physical Activity and Nutrition Plan (ALPAN) 2023-2033, its state-level plan for reducing the prevalence of obesity (Alabama Wellness Alliance, Alabama Physical Activity and Nutrition Plan 2023-2033, 2022). | J51: =IF(INDEX('DATA TABLE'!$G$10:$G$68,MATCH($B51,'DATA TABLE'!$B$10:$B$68,0))="",CONCATENATE("(",INDEX('DATA TABLE'!$E$10:$E$68,MATCH($B51,'DATA TABLE'!$B$10:$B$68,0)),")"), CONCATENATE(INDEX('DATA TABLE'!$G$10:$G$68,MATCH($B51,'DATA TABLE'!$B$10:$B$68,0))," (",INDEX('DATA TABLE'!$E$10:$E$68,MATCH($B51,'DATA TABLE'!$B$10:$B$68,0)),")")) -> Qualitative rating 0-1; 1=best (Economist Impact research)
B52: 1.1.5 | C52: =INDEX(Lists!$H$2:$H$59,MATCH($B52,Lists!$F$2:$F$59,0)) -> 1.1.5) Weight-related discrimination | E52: =IFERROR(ROUND(INDEX('SCORE TABLE'!$F$10:$BC$45, MATCH($B52,'SCORE TABLE'!$B$10:$B$45,0), MATCH($C$10,'SCORE TABLE'!$F$9:$BC$9,0)),1),"Not scored") -> 0.0 | G52: =IF(INDEX('DATA TABLE'!$J$10:$BG$68, MATCH($B52,'DATA TABLE'!$B$10:$B$68,0), MATCH($C$10,'DATA TABLE'!$J$9:$BG$9,0))="","",INDEX('DATA TABLE'!$J$10:$BG$68, MATCH($B52,'DATA TABLE'!$B$10:$B$68,0), MATCH($C$10,'DATA TABLE'!$J$9:$BG$9,0))) -> 0 | H52: =IF(INDEX(Data_summary!$G$3:$BD$38, MATCH($B52,Data_summary!$C$3:$C$38,0),MATCH($C$10,Data_summary!$G$2:$BD$2,0))="","",INDEX(Data_summary!$G$3:$BD$38, MATCH($B52,Data_summary!$C$3:$C$38,0),MATCH($C$10,Data_summary!$G$2:$BD$2,0))) -> Alabama does not have a state-level law that prohibits weight-based discrimination or classifies weight as a protected characteristic. | J52: =IF(INDEX('DATA TABLE'!$G$10:$G$68,MATCH($B52,'DATA TABLE'!$B$10:$B$68,0))="",CONCATENATE("(",INDEX('DATA TABLE'!$E$10:$E$68,MATCH($B52,'DATA TABLE'!$B$10:$B$68,0)),")"), CONCATENATE(INDEX('DATA TABLE'!$G$10:$G$68,MATCH($B52,'DATA TABLE'!$B$10:$B$68,0))," (",INDEX('DATA TABLE'!$E$10:$E$68,MATCH($B52,'DATA TABLE'!$B$10:$B$68,0)),")")) -> Qualitative rating 0-1; 1=best (Economist Impact research)
B53: 1.2 | C53: =INDEX(Lists!$H$2:$H$59,MATCH($B53,Lists!$F$2:$F$59,0)) -> 1.2) Availability and affordability of obesity-related care | D53: =INDEX(Lists!$H$2:$H$59,MATCH($B53,Lists!$F$2:$F$59,0)) -> 1.2) Availability and affordability of obesity-related care | E53: =INDEX(Lists!$H$2:$H$59,MATCH($B53,Lists!$F$2:$F$59,0)) -> 1.2) Availability and affordability of obesity-related care | F53: =INDEX(Lists!$H$2:$H$59,MATCH($B53,Lists!$F$2:$F$59,0)) -> 1.2) Availability and affordability of obesity-related care | G53: =INDEX(Lists!$H$2:$H$59,MATCH($B53,Lists!$F$2:$F$59,0)) -> 1.2) Availability and affordability of obesity-related care | H53: =INDEX(Lists!$H$2:$H$59,MATCH($B53,Lists!$F$2:$F$59,0)) -> 1.2) Availability and affordability of obesity-related care | I53: =INDEX(Lists!$H$2:$H$59,MATCH($B53,Lists!$F$2:$F$59,0)) -> 1.2) Availability and affordability of obesity-related care | J53: =INDEX(Lists!$H$2:$H$59,MATCH($B53,Lists!$F$2:$F$59,0)) -> 1.2) Availability and affordability of obesity-related care
B54: 1.2.1 | C54: =INDEX(Lists!$H$2:$H$59,MATCH($B54,Lists!$F$2:$F$59,0)) -> 1.2.1) Obesity treatment coverage | E54: =IFERROR(ROUND(INDEX('SCORE TABLE'!$F$10:$BC$45, MATCH($B54,'SCORE TABLE'!$B$10:$B$45,0), MATCH($C$10,'SCORE TABLE'!$F$9:$BC$9,0)),1),"Not scored") -> 50.0 | G54: =IF(INDEX('DATA TABLE'!$J$10:$BG$68, MATCH($B54,'DATA TABLE'!$B$10:$B$68,0), MATCH($C$10,'DATA TABLE'!$J$9:$BG$9,0))="","",INDEX('DATA TABLE'!$J$10:$BG$68, MATCH($B54,'DATA TABLE'!$B$10:$B$68,0), MATCH($C$10,'DATA TABLE'!$J$9:$BG$9,0))) -> 2 | H54: =IF(INDEX(Data_summary!$G$3:$BD$38, MATCH($B54,Data_summary!$C$3:$C$38,0),MATCH($C$10,Data_summary!$G$2:$BD$2,0))="","",INDEX(Data_summary!$G$3:$BD$38, MATCH($B54,Data_summary!$C$3:$C$38,0),MATCH($C$10,Data_summary!$G$2:$BD$2,0))) -> In Alabama, Medicaid covers bariatric surgery and intensive behavioural therapy with limitations (Alabama Medicaid, Frequently Asked Questions - Medicaid Benefits; STOP Obesity Alliance, Medicaid Obesity Coverage State Snapshot: Alabama, 2024). | J54: =IF(INDEX('DATA TABLE'!$G$10:$G$68,MATCH($B54,'DATA TABLE'!$B$10:$B$68,0))="",CONCATENATE("(",INDEX('DATA TABLE'!$E$10:$E$68,MATCH($B54,'DATA TABLE'!$B$10:$B$68,0)),")"), CONCATENATE(INDEX('DATA TABLE'!$G$10:$G$68,MATCH($B54,'DATA TABLE'!$B$10:$B$68,0))," (",INDEX('DATA TABLE'!$E$10:$E$68,MATCH($B54,'DATA TABLE'!$B$10:$B$68,0)),")")) -> Qualitative rating 0-4; 4=best (Economist Impact research)
B55: 1.2.2 | C55: =INDEX(Lists!$H$2:$H$59,MATCH($B55,Lists!$F$2:$F$59,0)) -> 1.2.2) State-level weight loss programmes | E55: =IFERROR(ROUND(INDEX('SCORE TABLE'!$F$10:$BC$45, MATCH($B55,'SCORE TABLE'!$B$10:$B$45,0), MATCH($C$10,'SCORE TABLE'!$F$9:$BC$9,0)),1),"Not scored") -> 0.0 | G55: =IF(INDEX('DATA TABLE'!$J$10:$BG$68, MATCH($B55,'DATA TABLE'!$B$10:$B$68,0), MATCH($C$10,'DATA TABLE'!$J$9:$BG$9,0))="","",INDEX('DATA TABLE'!$J$10:$BG$68, MATCH($B55,'DATA TABLE'!$B$10:$B$68,0), MATCH($C$10,'DATA TABLE'!$J$9:$BG$9,0))) -> 0 | H55: =IF(INDEX(Data_summary!$G$3:$BD$38, MATCH($B55,Data_summary!$C$3:$C$38,0),MATCH($C$10,Data_summary!$G$2:$BD$2,0))="","",INDEX(Data_summary!$G$3:$BD$38, MATCH($B55,Data_summary!$C$3:$C$38,0),MATCH($C$10,Data_summary!$G$2:$BD$2,0))) -> There is no evidence that Alabama has implemented Healthy Behaviour Incentive Programmes (HBIPs) in Medicaid to encourage weight loss. | J55: =IF(INDEX('DATA TABLE'!$G$10:$G$68,MATCH($B55,'DATA TABLE'!$B$10:$B$68,0))="",CONCATENATE("(",INDEX('DATA TABLE'!$E$10:$E$68,MATCH($B55,'DATA TABLE'!$B$10:$B$68,0)),")"), CONCATENATE(INDEX('DATA TABLE'!$G$10:$G$68,MATCH($B55,'DATA TABLE'!$B$10:$B$68,0))," (",INDEX('DATA TABLE'!$E$10:$E$68,MATCH($B55,'DATA TABLE'!$B$10:$B$68,0)),")")) -> Qualitative rating 0-1; 1=best (Economist Impact research)
B56: 2 | C56: =INDEX(Lists!$H$2:$H$59,MATCH($B56,Lists!$F$2:$F$59,0)) -> 2) Food quality and access | D56: =INDEX(Lists!$H$2:$H$59,MATCH($B56,Lists!$F$2:$F$59,0)) -> 2) Food quality and access | E56: =INDEX(Lists!$H$2:$H$59,MATCH($B56,Lists!$F$2:$F$59,0)) -> 2) Food quality and access | F56: =INDEX(Lists!$H$2:$H$59,MATCH($B56,Lists!$F$2:$F$59,0)) -> 2) Food quality and access | G56: =INDEX(Lists!$H$2:$H$59,MATCH($B56,Lists!$F$2:$F$59,0)) -> 2) Food quality and access | H56: =INDEX(Lists!$H$2:$H$59,MATCH($B56,Lists!$F$2:$F$59,0)) -> 2) Food quality and access | I56: =INDEX(Lists!$H$2:$H$59,MATCH($B56,Lists!$F$2:$F$59,0)) -> 2) Food quality and access | J56: =INDEX(Lists!$H$2:$H$59,MATCH($B56,Lists!$F$2:$F$59,0)) -> 2) Food quality and access
B57: 2.1 | C57: =INDEX(Lists!$H$2:$H$59,MATCH($B57,Lists!$F$2:$F$59,0)) -> 2.1) Food access and affordability | D57: =INDEX(Lists!$H$2:$H$59,MATCH($B57,Lists!$F$2:$F$59,0)) -> 2.1) Food access and affordability | E57: =INDEX(Lists!$H$2:$H$59,MATCH($B57,Lists!$F$2:$F$59,0)) -> 2.1) Food access and affordability | F57: =INDEX(Lists!$H$2:$H$59,MATCH($B57,Lists!$F$2:$F$59,0)) -> 2.1) Food access and affordability | G57: =INDEX(Lists!$H$2:$H$59,MATCH($B57,Lists!$F$2:$F$59,0)) -> 2.1) Food access and affordability | H57: =INDEX(Lists!$H$2:$H$59,MATCH($B57,Lists!$F$2:$F$59,0)) -> 2.1) Food access and affordability | I57: =INDEX(Lists!$H$2:$H$59,MATCH($B57,Lists!$F$2:$F$59,0)) -> 2.1) Food access and affordability | J57: =INDEX(Lists!$H$2:$H$59,MATCH($B57,Lists!$F$2:$F$59,0)) -> 2.1) Food access and affordability
B58: 2.1.1 | C58: =INDEX(Lists!$H$2:$H$59,MATCH($B58,Lists!$F$2:$F$59,0)) -> 2.1.1) Level of food security | E58: =IFERROR(ROUND(INDEX('SCORE TABLE'!$F$10:$BC$45, MATCH($B58,'SCORE TABLE'!$B$10:$B$45,0), MATCH($C$10,'SCORE TABLE'!$F$9:$BC$9,0)),1),"Not scored") -> 88.0 | G58: =IF(INDEX('DATA TABLE'!$J$10:$BG$68, MATCH($B58,'DATA TABLE'!$B$10:$B$68,0), MATCH($C$10,'DATA TABLE'!$J$9:$BG$9,0))="","",INDEX('DATA TABLE'!$J$10:$BG$68, MATCH($B58,'DATA TABLE'!$B$10:$B$68,0), MATCH($C$10,'DATA TABLE'!$J$9:$BG$9,0))) -> 88 | H58: =IF(INDEX(Data_summary!$G$3:$BD$38, MATCH($B58,Data_summary!$C$3:$C$38,0),MATCH($C$10,Data_summary!$G$2:$BD$2,0))="","",INDEX(Data_summary!$G$3:$BD$38, MATCH($B58,Data_summary!$C$3:$C$38,0),MATCH($C$10,Data_summary!$G$2:$BD$2,0))) -> According to the U.S. Department of Agriculture (USDA) Economic Research Service, 88% of households in Alabama are food secure (USDA, Economic Research Service, Household food security in the United States in 2023, 2024). | J58: =IF(INDEX('DATA TABLE'!$G$10:$G$68,MATCH($B58,'DATA TABLE'!$B$10:$B$68,0))="",CONCATENATE("(",INDEX('DATA TABLE'!$E$10:$E$68,MATCH($B58,'DATA TABLE'!$B$10:$B$68,0)),")"), CONCATENATE(INDEX('DATA TABLE'!$G$10:$G$68,MATCH($B58,'DATA TABLE'!$B$10:$B$68,0))," (",INDEX('DATA TABLE'!$E$10:$E$68,MATCH($B58,'DATA TABLE'!$B$10:$B$68,0)),")")) -> % of households experiencing food security (United States Department of Agriculture)
B59: 2.1.2 | C59: =INDEX(Lists!$H$2:$H$59,MATCH($B59,Lists!$F$2:$F$59,0)) -> 2.1.2) Nutrition programmes for lower-income individuals | E59: =IFERROR(ROUND(INDEX('SCORE TABLE'!$F$10:$BC$45, MATCH($B59,'SCORE TABLE'!$B$10:$B$45,0), MATCH($C$10,'SCORE TABLE'!$F$9:$BC$9,0)),1),"Not scored") -> 53.3 | G59: =IF(INDEX('DATA TABLE'!$J$10:$BG$68, MATCH($B59,'DATA TABLE'!$B$10:$B$68,0), MATCH($C$10,'DATA TABLE'!$J$9:$BG$9,0))="","",INDEX('DATA TABLE'!$J$10:$BG$68, MATCH($B59,'DATA TABLE'!$B$10:$B$68,0), MATCH($C$10,'DATA TABLE'!$J$9:$BG$9,0))) ->  | H59: =IF(INDEX(Data_summary!$G$3:$BD$38, MATCH($B59,Data_summary!$C$3:$C$38,0),MATCH($C$10,Data_summary!$G$2:$BD$2,0))="","",INDEX(Data_summary!$G$3:$BD$38, MATCH($B59,Data_summary!$C$3:$C$38,0),MATCH($C$10,Data_summary!$G$2:$BD$2,0))) ->  | J59: =IF(INDEX('DATA TABLE'!$G$10:$G$68,MATCH($B59,'DATA TABLE'!$B$10:$B$68,0))="",CONCATENATE("(",INDEX('DATA TABLE'!$E$10:$E$68,MATCH($B59,'DATA TABLE'!$B$10:$B$68,0)),")"), CONCATENATE(INDEX('DATA TABLE'!$G$10:$G$68,MATCH($B59,'DATA TABLE'!$B$10:$B$68,0))," (",INDEX('DATA TABLE'!$E$10:$E$68,MATCH($B59,'DATA TABLE'!$B$10:$B$68,0)),")")) -> (Economist Impact calculations)
B60: 2.1.2a | C60: =INDEX(Lists!$H$2:$H$59,MATCH($B60,Lists!$F$2:$F$59,0)) -> 2.1.2a) Supplemental Nutrition Assistance Program (SNAP): monthly benefit per person, adjusted for regional price parities | E60: =IFERROR(ROUND(INDEX('SCORE TABLE'!$F$10:$BC$45, MATCH($B60,'SCORE TABLE'!$B$10:$B$45,0), MATCH($C$10,'SCORE TABLE'!$F$9:$BC$9,0)),1),"Not scored") -> 25.6 | G60: =IF(INDEX('DATA TABLE'!$J$10:$BG$68, MATCH($B60,'DATA TABLE'!$B$10:$B$68,0), MATCH($C$10,'DATA TABLE'!$J$9:$BG$9,0))="","",INDEX('DATA TABLE'!$J$10:$BG$68, MATCH($B60,'DATA TABLE'!$B$10:$B$68,0), MATCH($C$10,'DATA TABLE'!$J$9:$BG$9,0))) -> 207.07 | H60: =IF(INDEX(Data_summary!$G$3:$BD$38, MATCH($B60,Data_summary!$C$3:$C$38,0),MATCH($C$10,Data_summary!$G$2:$BD$2,0))="","",INDEX(Data_summary!$G$3:$BD$38, MATCH($B60,Data_summary!$C$3:$C$38,0),MATCH($C$10,Data_summary!$G$2:$BD$2,0))) -> The average benefit for SNAP per person in Alabama is 197.83 USD (USDA, SNAP Data Tables, 2024). When adjusted for regional price parities, this is equivalent to 207.07 USD (United States Bureau of Economic Analysis, 2023). | J60: =IF(INDEX('DATA TABLE'!$G$10:$G$68,MATCH($B60,'DATA TABLE'!$B$10:$B$68,0))="",CONCATENATE("(",INDEX('DATA TABLE'!$E$10:$E$68,MATCH($B60,'DATA TABLE'!$B$10:$B$68,0)),")"), CONCATENATE(INDEX('DATA TABLE'!$G$10:$G$68,MATCH($B60,'DATA TABLE'!$B$10:$B$68,0))," (",INDEX('DATA TABLE'!$E$10:$E$68,MATCH($B60,'DATA TABLE'!$B$10:$B$68,0)),")")) -> Average monthly SNAP benefit per person (US$), adjusted for regional price parities (United States Department of Agriculture; United States Bureau of Economic Analysis)
B61: 2.1.2b | C61: =INDEX(Lists!$H$2:$H$59,MATCH($B61,Lists!$F$2:$F$59,0)) -> 2.1.2b) Supplemental Nutrition Assistance Program (SNAP): participation rate | E61: =IFERROR(ROUND(INDEX('SCORE TABLE'!$F$10:$BC$45, MATCH($B61,'SCORE TABLE'!$B$10:$B$45,0), MATCH($C$10,'SCORE TABLE'!$F$9:$BC$9,0)),1),"Not scored") -> 81.0 | G61: =IF(INDEX('DATA TABLE'!$J$10:$BG$68, MATCH($B61,'DATA TABLE'!$B$10:$B$68,0), MATCH($C$10,'DATA TABLE'!$J$9:$BG$9,0))="","",INDEX('DATA TABLE'!$J$10:$BG$68, MATCH($B61,'DATA TABLE'!$B$10:$B$68,0), MATCH($C$10,'DATA TABLE'!$J$9:$BG$9,0))) -> 81 | H61: =IF(INDEX(Data_summary!$G$3:$BD$38, MATCH($B61,Data_summary!$C$3:$C$38,0),MATCH($C$10,Data_summary!$G$2:$BD$2,0))="","",INDEX(Data_summary!$G$3:$BD$38, MATCH($B61,Data_summary!$C$3:$C$38,0),MATCH($C$10,Data_summary!$G$2:$BD$2,0))) -> According to the USDA, 81% of eligible participants in Alabama use SNAP (USDA, Reaching Those in Need: Estimates of SNAP Participation Rates in 2020, 2020). | J61: =IF(INDEX('DATA TABLE'!$G$10:$G$68,MATCH($B61,'DATA TABLE'!$B$10:$B$68,0))="",CONCATENATE("(",INDEX('DATA TABLE'!$E$10:$E$68,MATCH($B61,'DATA TABLE'!$B$10:$B$68,0)),")"), CONCATENATE(INDEX('DATA TABLE'!$G$10:$G$68,MATCH($B61,'DATA TABLE'!$B$10:$B$68,0))," (",INDEX('DATA TABLE'!$E$10:$E$68,MATCH($B61,'DATA TABLE'!$B$10:$B$68,0)),")")) -> SNAP participation rate (%) (United States Department of Agriculture)
B62: 2.2 | C62: =INDEX(Lists!$H$2:$H$59,MATCH($B62,Lists!$F$2:$F$59,0)) -> 2.2) Nutrition regulation | D62: =INDEX(Lists!$H$2:$H$59,MATCH($B62,Lists!$F$2:$F$59,0)) -> 2.2) Nutrition regulation | E62: =INDEX(Lists!$H$2:$H$59,MATCH($B62,Lists!$F$2:$F$59,0)) -> 2.2) Nutrition regulation | F62: =INDEX(Lists!$H$2:$H$59,MATCH($B62,Lists!$F$2:$F$59,0)) -> 2.2) Nutrition regulation | G62: =INDEX(Lists!$H$2:$H$59,MATCH($B62,Lists!$F$2:$F$59,0)) -> 2.2) Nutrition regulation | H62: =INDEX(Lists!$H$2:$H$59,MATCH($B62,Lists!$F$2:$F$59,0)) -> 2.2) Nutrition regulation | I62: =INDEX(Lists!$H$2:$H$59,MATCH($B62,Lists!$F$2:$F$59,0)) -> 2.2) Nutrition regulation | J62: =INDEX(Lists!$H$2:$H$59,MATCH($B62,Lists!$F$2:$F$59,0)) -> 2.2) Nutrition regulation
B63: 2.2.1 | C63: =INDEX(Lists!$H$2:$H$59,MATCH($B63,Lists!$F$2:$F$59,0)) -> 2.2.1) Taxes on unhealthy food and beverages | E63: =IFERROR(ROUND(INDEX('SCORE TABLE'!$F$10:$BC$45, MATCH($B63,'SCORE TABLE'!$B$10:$B$45,0), MATCH($C$10,'SCORE TABLE'!$F$9:$BC$9,0)),1),"Not scored") -> 0.0 | G63: =IF(INDEX('DATA TABLE'!$J$10:$BG$68, MATCH($B63,'DATA TABLE'!$B$10:$B$68,0), MATCH($C$10,'DATA TABLE'!$J$9:$BG$9,0))="","",INDEX('DATA TABLE'!$J$10:$BG$68, MATCH($B63,'DATA TABLE'!$B$10:$B$68,0), MATCH($C$10,'DATA TABLE'!$J$9:$BG$9,0))) -> 0 | H63: =IF(INDEX(Data_summary!$G$3:$BD$38, MATCH($B63,Data_summary!$C$3:$C$38,0),MATCH($C$10,Data_summary!$G$2:$BD$2,0))="","",INDEX(Data_summary!$G$3:$BD$38, MATCH($B63,Data_summary!$C$3:$C$38,0),MATCH($C$10,Data_summary!$G$2:$BD$2,0))) -> Alabama does not levy higher taxes on unhealthy food or beverages than other products for human consumption (Alabama Department of Revenue, Sales and Use Tax Rates). | J63: =IF(INDEX('DATA TABLE'!$G$10:$G$68,MATCH($B63,'DATA TABLE'!$B$10:$B$68,0))="",CONCATENATE("(",INDEX('DATA TABLE'!$E$10:$E$68,MATCH($B63,'DATA TABLE'!$B$10:$B$68,0)),")"), CONCATENATE(INDEX('DATA TABLE'!$G$10:$G$68,MATCH($B63,'DATA TABLE'!$B$10:$B$68,0))," (",INDEX('DATA TABLE'!$E$10:$E$68,MATCH($B63,'DATA TABLE'!$B$10:$B$68,0)),")")) -> Qualitative rating 0-2; 2=best (Economist Impact research)
B64: 2.3 | C64: =INDEX(Lists!$H$2:$H$59,MATCH($B64,Lists!$F$2:$F$59,0)) -> 2.3) Nutrition in schools | D64: =INDEX(Lists!$H$2:$H$59,MATCH($B64,Lists!$F$2:$F$59,0)) -> 2.3) Nutrition in schools | E64: =INDEX(Lists!$H$2:$H$59,MATCH($B64,Lists!$F$2:$F$59,0)) -> 2.3) Nutrition in schools | F64: =INDEX(Lists!$H$2:$H$59,MATCH($B64,Lists!$F$2:$F$59,0)) -> 2.3) Nutrition in schools | G64: =INDEX(Lists!$H$2:$H$59,MATCH($B64,Lists!$F$2:$F$59,0)) -> 2.3) Nutrition in schools | H64: =INDEX(Lists!$H$2:$H$59,MATCH($B64,Lists!$F$2:$F$59,0)) -> 2.3) Nutrition in schools | I64: =INDEX(Lists!$H$2:$H$59,MATCH($B64,Lists!$F$2:$F$59,0)) -> 2.3) Nutrition in schools | J64: =INDEX(Lists!$H$2:$H$59,MATCH($B64,Lists!$F$2:$F$59,0)) -> 2.3) Nutrition in schools
B65: 2.3.1 | C65: =INDEX(Lists!$H$2:$H$59,MATCH($B65,Lists!$F$2:$F$59,0)) -> 2.3.1) School nutrition standards | E65: =IFERROR(ROUND(INDEX('SCORE TABLE'!$F$10:$BC$45, MATCH($B65,'SCORE TABLE'!$B$10:$B$45,0), MATCH($C$10,'SCORE TABLE'!$F$9:$BC$9,0)),1),"Not scored") -> 100.0 | G65: =IF(INDEX('DATA TABLE'!$J$10:$BG$68, MATCH($B65,'DATA TABLE'!$B$10:$B$68,0), MATCH($C$10,'DATA TABLE'!$J$9:$BG$9,0))="","",INDEX('DATA TABLE'!$J$10:$BG$68, MATCH($B65,'DATA TABLE'!$B$10:$B$68,0), MATCH($C$10,'DATA TABLE'!$J$9:$BG$9,0))) -> 1 | H65: =IF(INDEX(Data_summary!$G$3:$BD$38, MATCH($B65,Data_summary!$C$3:$C$38,0),MATCH($C$10,Data_summary!$G$2:$BD$2,0))="","",INDEX(Data_summary!$G$3:$BD$38, MATCH($B65,Data_summary!$C$3:$C$38,0),MATCH($C$10,Data_summary!$G$2:$BD$2,0))) -> Alabama adheres to federal standards establishing nutritional guidelines for school foods, and publishes detailed meal standards for school meals (Alabama Legislature, Ala. Admin. Code 290-080-030-.01; Alabama Child Nutrition Program, USDA Meal Pattern, 2023). | J65: =IF(INDEX('DATA TABLE'!$G$10:$G$68,MATCH($B65,'DATA TABLE'!$B$10:$B$68,0))="",CONCATENATE("(",INDEX('DATA TABLE'!$E$10:$E$68,MATCH($B65,'DATA TABLE'!$B$10:$B$68,0)),")"), CONCATENATE(INDEX('DATA TABLE'!$G$10:$G$68,MATCH($B65,'DATA TABLE'!$B$10:$B$68,0))," (",INDEX('DATA TABLE'!$E$10:$E$68,MATCH($B65,'DATA TABLE'!$B$10:$B$68,0)),")")) -> Qualitative rating 0-1; 1=best (Economist Impact research)
B66: 2.3.2 | C66: =INDEX(Lists!$H$2:$H$59,MATCH($B66,Lists!$F$2:$F$59,0)) -> 2.3.2) Nutrition education | E66: =IFERROR(ROUND(INDEX('SCORE TABLE'!$F$10:$BC$45, MATCH($B66,'SCORE TABLE'!$B$10:$B$45,0), MATCH($C$10,'SCORE TABLE'!$F$9:$BC$9,0)),1),"Not scored") -> 100.0 | G66: =IF(INDEX('DATA TABLE'!$J$10:$BG$68, MATCH($B66,'DATA TABLE'!$B$10:$B$68,0), MATCH($C$10,'DATA TABLE'!$J$9:$BG$9,0))="","",INDEX('DATA TABLE'!$J$10:$BG$68, MATCH($B66,'DATA TABLE'!$B$10:$B$68,0), MATCH($C$10,'DATA TABLE'!$J$9:$BG$9,0))) -> 1 | H66: =IF(INDEX(Data_summary!$G$3:$BD$38, MATCH($B66,Data_summary!$C$3:$C$38,0),MATCH($C$10,Data_summary!$G$2:$BD$2,0))="","",INDEX(Data_summary!$G$3:$BD$38, MATCH($B66,Data_summary!$C$3:$C$38,0),MATCH($C$10,Data_summary!$G$2:$BD$2,0))) -> Alabama mandates nutrition education in schools for grades Kindergarten to Grade 12 (Alabama State Department of Education, Course of Study: Health Education, 2019). | J66: =IF(INDEX('DATA TABLE'!$G$10:$G$68,MATCH($B66,'DATA TABLE'!$B$10:$B$68,0))="",CONCATENATE("(",INDEX('DATA TABLE'!$E$10:$E$68,MATCH($B66,'DATA TABLE'!$B$10:$B$68,0)),")"), CONCATENATE(INDEX('DATA TABLE'!$G$10:$G$68,MATCH($B66,'DATA TABLE'!$B$10:$B$68,0))," (",INDEX('DATA TABLE'!$E$10:$E$68,MATCH($B66,'DATA TABLE'!$B$10:$B$68,0)),")")) -> Qualitative rating 0-1; 1=best (Economist Impact research)
B67: 2.3.3 | C67: =INDEX(Lists!$H$2:$H$59,MATCH($B67,Lists!$F$2:$F$59,0)) -> 2.3.3) Universal free school meals | E67: =IFERROR(ROUND(INDEX('SCORE TABLE'!$F$10:$BC$45, MATCH($B67,'SCORE TABLE'!$B$10:$B$45,0), MATCH($C$10,'SCORE TABLE'!$F$9:$BC$9,0)),1),"Not scored") -> 0.0 | G67: =IF(INDEX('DATA TABLE'!$J$10:$BG$68, MATCH($B67,'DATA TABLE'!$B$10:$B$68,0), MATCH($C$10,'DATA TABLE'!$J$9:$BG$9,0))="","",INDEX('DATA TABLE'!$J$10:$BG$68, MATCH($B67,'DATA TABLE'!$B$10:$B$68,0), MATCH($C$10,'DATA TABLE'!$J$9:$BG$9,0))) -> 0 | H67: =IF(INDEX(Data_summary!$G$3:$BD$38, MATCH($B67,Data_summary!$C$3:$C$38,0),MATCH($C$10,Data_summary!$G$2:$BD$2,0))="","",INDEX(Data_summary!$G$3:$BD$38, MATCH($B67,Data_summary!$C$3:$C$38,0),MATCH($C$10,Data_summary!$G$2:$BD$2,0))) -> In Alabama, students are eligible to receive free or reduced-price meals at school based on their family's income, provided that their school participates in the federal free lunch programme. However, the provision of free school meals is not mandated in the state (Alabama State Department of Education, Frequently Asked Questions About Free and Reduced Price School Meals, 2022). | J67: =IF(INDEX('DATA TABLE'!$G$10:$G$68,MATCH($B67,'DATA TABLE'!$B$10:$B$68,0))="",CONCATENATE("(",INDEX('DATA TABLE'!$E$10:$E$68,MATCH($B67,'DATA TABLE'!$B$10:$B$68,0)),")"), CONCATENATE(INDEX('DATA TABLE'!$G$10:$G$68,MATCH($B67,'DATA TABLE'!$B$10:$B$68,0))," (",INDEX('DATA TABLE'!$E$10:$E$68,MATCH($B67,'DATA TABLE'!$B$10:$B$68,0)),")")) -> Qualitative rating 0-2; 2=best (Economist Impact research)
B68: 3 | C68: =INDEX(Lists!$H$2:$H$59,MATCH($B68,Lists!$F$2:$F$59,0)) -> 3) Physical activity | D68: =INDEX(Lists!$H$2:$H$59,MATCH($B68,Lists!$F$2:$F$59,0)) -> 3) Physical activity | E68: =INDEX(Lists!$H$2:$H$59,MATCH($B68,Lists!$F$2:$F$59,0)) -> 3) Physical activity | F68: =INDEX(Lists!$H$2:$H$59,MATCH($B68,Lists!$F$2:$F$59,0)) -> 3) Physical activity | G68: =INDEX(Lists!$H$2:$H$59,MATCH($B68,Lists!$F$2:$F$59,0)) -> 3) Physical activity | H68: =INDEX(Lists!$H$2:$H$59,MATCH($B68,Lists!$F$2:$F$59,0)) -> 3) Physical activity | I68: =INDEX(Lists!$H$2:$H$59,MATCH($B68,Lists!$F$2:$F$59,0)) -> 3) Physical activity | J68: =INDEX(Lists!$H$2:$H$59,MATCH($B68,Lists!$F$2:$F$59,0)) -> 3) Physical activity
B69: 3.1 | C69: =INDEX(Lists!$H$2:$H$59,MATCH($B69,Lists!$F$2:$F$59,0)) -> 3.1) Physical activity among the population | D69: =INDEX(Lists!$H$2:$H$59,MATCH($B69,Lists!$F$2:$F$59,0)) -> 3.1) Physical activity among the population | E69: =INDEX(Lists!$H$2:$H$59,MATCH($B69,Lists!$F$2:$F$59,0)) -> 3.1) Physical activity among the population | F69: =INDEX(Lists!$H$2:$H$59,MATCH($B69,Lists!$F$2:$F$59,0)) -> 3.1) Physical activity among the population | G69: =INDEX(Lists!$H$2:$H$59,MATCH($B69,Lists!$F$2:$F$59,0)) -> 3.1) Physical activity among the population | H69: =INDEX(Lists!$H$2:$H$59,MATCH($B69,Lists!$F$2:$F$59,0)) -> 3.1) Physical activity among the population | I69: =INDEX(Lists!$H$2:$H$59,MATCH($B69,Lists!$F$2:$F$59,0)) -> 3.1) Physical activity among the population | J69: =INDEX(Lists!$H$2:$H$59,MATCH($B69,Lists!$F$2:$F$59,0)) -> 3.1) Physical activity among the population
B70: 3.1.1 | C70: =INDEX(Lists!$H$2:$H$59,MATCH($B70,Lists!$F$2:$F$59,0)) -> 3.1.1) Promotion of physical activity | E70: =IFERROR(ROUND(INDEX('SCORE TABLE'!$F$10:$BC$45, MATCH($B70,'SCORE TABLE'!$B$10:$B$45,0), MATCH($C$10,'SCORE TABLE'!$F$9:$BC$9,0)),1),"Not scored") -> 66.7 | G70: =IF(INDEX('DATA TABLE'!$J$10:$BG$68, MATCH($B70,'DATA TABLE'!$B$10:$B$68,0), MATCH($C$10,'DATA TABLE'!$J$9:$BG$9,0))="","",INDEX('DATA TABLE'!$J$10:$BG$68, MATCH($B70,'DATA TABLE'!$B$10:$B$68,0), MATCH($C$10,'DATA TABLE'!$J$9:$BG$9,0))) -> 2 | H70: =IF(INDEX(Data_summary!$G$3:$BD$38, MATCH($B70,Data_summary!$C$3:$C$38,0),MATCH($C$10,Data_summary!$G$2:$BD$2,0))="","",INDEX(Data_summary!$G$3:$BD$38, MATCH($B70,Data_summary!$C$3:$C$38,0),MATCH($C$10,Data_summary!$G$2:$BD$2,0))) -> The Alabama Physical Activity and Nutrition Plan (ALPAN) 2023-2033 seeks to promote physical activity amongst the population, and Alabama has established statewide policies promoting physical activity through initiatives like the For Every Body campaign and Get Alabama Moving programme. Further, the state is committed to promoting active travel, such as walking and biking, through the implementation of its Alabama Statewide Bicycle and Pedestrian Plan. However, there are no specific policies in place focused on reducing car usage (Alabama Wellness Alliance, Alabama Physical Activity and Nutrition Plan 2023-2033, 2022; Alabama Department of Public Health, For Every Body Campaign; Alabama Department of Public Health, Get Moving Alabama; Alabama Department of Transportation, Alabama Statewide Bicycle and Pedestrian Plan, 2017). | J70: =IF(INDEX('DATA TABLE'!$G$10:$G$68,MATCH($B70,'DATA TABLE'!$B$10:$B$68,0))="",CONCATENATE("(",INDEX('DATA TABLE'!$E$10:$E$68,MATCH($B70,'DATA TABLE'!$B$10:$B$68,0)),")"), CONCATENATE(INDEX('DATA TABLE'!$G$10:$G$68,MATCH($B70,'DATA TABLE'!$B$10:$B$68,0))," (",INDEX('DATA TABLE'!$E$10:$E$68,MATCH($B70,'DATA TABLE'!$B$10:$B$68,0)),")")) -> Qualitative rating 0-3; 3=best (Economist Impact research)
B71: 3.1.2 | C71: =INDEX(Lists!$H$2:$H$59,MATCH($B71,Lists!$F$2:$F$59,0)) -> 3.1.2) Access to exercise facilities | E71: =IFERROR(ROUND(INDEX('SCORE TABLE'!$F$10:$BC$45, MATCH($B71,'SCORE TABLE'!$B$10:$B$45,0), MATCH($C$10,'SCORE TABLE'!$F$9:$BC$9,0)),1),"Not scored") -> 61.0 | G71: =IF(INDEX('DATA TABLE'!$J$10:$BG$68, MATCH($B71,'DATA TABLE'!$B$10:$B$68,0), MATCH($C$10,'DATA TABLE'!$J$9:$BG$9,0))="","",INDEX('DATA TABLE'!$J$10:$BG$68, MATCH($B71,'DATA TABLE'!$B$10:$B$68,0), MATCH($C$10,'DATA TABLE'!$J$9:$BG$9,0))) -> 61 | H71: =IF(INDEX(Data_summary!$G$3:$BD$38, MATCH($B71,Data_summary!$C$3:$C$38,0),MATCH($C$10,Data_summary!$G$2:$BD$2,0))="","",INDEX(Data_summary!$G$3:$BD$38, MATCH($B71,Data_summary!$C$3:$C$38,0),MATCH($C$10,Data_summary!$G$2:$BD$2,0))) -> 61% of people in Alabama have adequate access to locations for physical activity as of 2025. (University of Wisconsin Population Health Institute, County Health Rankings & Roadmaps, Alabama, 2025). | J71: =IF(INDEX('DATA TABLE'!$G$10:$G$68,MATCH($B71,'DATA TABLE'!$B$10:$B$68,0))="",CONCATENATE("(",INDEX('DATA TABLE'!$E$10:$E$68,MATCH($B71,'DATA TABLE'!$B$10:$B$68,0)),")"), CONCATENATE(INDEX('DATA TABLE'!$G$10:$G$68,MATCH($B71,'DATA TABLE'!$B$10:$B$68,0))," (",INDEX('DATA TABLE'!$E$10:$E$68,MATCH($B71,'DATA TABLE'!$B$10:$B$68,0)),")")) -> % of population with adequate access to locations for physical activity (University of Wisconsin Population Health Institute)
B72: 3.2 | C72: =INDEX(Lists!$H$2:$H$59,MATCH($B72,Lists!$F$2:$F$59,0)) -> 3.2) Physical activity among children | D72: =INDEX(Lists!$H$2:$H$59,MATCH($B72,Lists!$F$2:$F$59,0)) -> 3.2) Physical activity among children | E72: =INDEX(Lists!$H$2:$H$59,MATCH($B72,Lists!$F$2:$F$59,0)) -> 3.2) Physical activity among children | F72: =INDEX(Lists!$H$2:$H$59,MATCH($B72,Lists!$F$2:$F$59,0)) -> 3.2) Physical activity among children | G72: =INDEX(Lists!$H$2:$H$59,MATCH($B72,Lists!$F$2:$F$59,0)) -> 3.2) Physical activity among children | H72: =INDEX(Lists!$H$2:$H$59,MATCH($B72,Lists!$F$2:$F$59,0)) -> 3.2) Physical activity among children | I72: =INDEX(Lists!$H$2:$H$59,MATCH($B72,Lists!$F$2:$F$59,0)) -> 3.2) Physical activity among children | J72: =INDEX(Lists!$H$2:$H$59,MATCH($B72,Lists!$F$2:$F$59,0)) -> 3.2) Physical activity among children
B73: 3.2.1 | C73: =INDEX(Lists!$H$2:$H$59,MATCH($B73,Lists!$F$2:$F$59,0)) -> 3.2.1) Physical activity mandates | E73: =IFERROR(ROUND(INDEX('SCORE TABLE'!$F$10:$BC$45, MATCH($B73,'SCORE TABLE'!$B$10:$B$45,0), MATCH($C$10,'SCORE TABLE'!$F$9:$BC$9,0)),1),"Not scored") -> 50.0 | G73: =IF(INDEX('DATA TABLE'!$J$10:$BG$68, MATCH($B73,'DATA TABLE'!$B$10:$B$68,0), MATCH($C$10,'DATA TABLE'!$J$9:$BG$9,0))="","",INDEX('DATA TABLE'!$J$10:$BG$68, MATCH($B73,'DATA TABLE'!$B$10:$B$68,0), MATCH($C$10,'DATA TABLE'!$J$9:$BG$9,0))) -> 1 | H73: =IF(INDEX(Data_summary!$G$3:$BD$38, MATCH($B73,Data_summary!$C$3:$C$38,0),MATCH($C$10,Data_summary!$G$2:$BD$2,0))="","",INDEX(Data_summary!$G$3:$BD$38, MATCH($B73,Data_summary!$C$3:$C$38,0),MATCH($C$10,Data_summary!$G$2:$BD$2,0))) -> Alabama mandates public schools to provide students with a minimum of 30 minutes of physical activity daily for grades Kindergarten to Grade 5 and a minimum of 50 minutes daily for Grades 6 to 8 (Alabama State Department of Education, Alabama Course of Study: Physical Education, 2019). | J73: =IF(INDEX('DATA TABLE'!$G$10:$G$68,MATCH($B73,'DATA TABLE'!$B$10:$B$68,0))="",CONCATENATE("(",INDEX('DATA TABLE'!$E$10:$E$68,MATCH($B73,'DATA TABLE'!$B$10:$B$68,0)),")"), CONCATENATE(INDEX('DATA TABLE'!$G$10:$G$68,MATCH($B73,'DATA TABLE'!$B$10:$B$68,0))," (",INDEX('DATA TABLE'!$E$10:$E$68,MATCH($B73,'DATA TABLE'!$B$10:$B$68,0)),")")) -> Qualitative rating 0-2; 2=best (Economist Impact research)
C74: Background indicators
B75: BG01 | C75: =INDEX(Lists!$H$2:$H$59,MATCH($B75,Lists!$F$2:$F$59,0)) -> BG01) Adult obesity prevalence | E75: =IFERROR(INDEX('SCORE TABLE'!$F$10:$BC$45, MATCH($B75,'SCORE TABLE'!$B$10:$B$45,0), MATCH($C$10,'SCORE TABLE'!$F$9:$BC$9,0)),"Not scored") -> Not scored | G75: =IF(INDEX('DATA TABLE'!$J$10:$BG$68, MATCH($B75,'DATA TABLE'!$B$10:$B$68,0), MATCH($C$10,'DATA TABLE'!$J$9:$BG$9,0))="","",INDEX('DATA TABLE'!$J$10:$BG$68, MATCH($B75,'DATA TABLE'!$B$10:$B$68,0), MATCH($C$10,'DATA TABLE'!$J$9:$BG$9,0))) -> 39.2 | J75: =IF(INDEX('DATA TABLE'!$G$10:$G$68,MATCH($B75,'DATA TABLE'!$B$10:$B$68,0))="",CONCATENATE("(",INDEX('DATA TABLE'!$E$10:$E$68,MATCH($B75,'DATA TABLE'!$B$10:$B$68,0)),")"), CONCATENATE(INDEX('DATA TABLE'!$G$10:$G$68,MATCH($B75,'DATA TABLE'!$B$10:$B$68,0))," (",INDEX('DATA TABLE'!$E$10:$E$68,MATCH($B75,'DATA TABLE'!$B$10:$B$68,0)),")")) -> % of people (CDC 2023 Behavioral Risk Factor Surveillance System)
B76: BG02a | C76: =INDEX(Lists!$H$2:$H$59,MATCH($B76,Lists!$F$2:$F$59,0)) -> BG02a) Obesity prevalence by gender: Men | E76: =IFERROR(INDEX('SCORE TABLE'!$F$10:$BC$45, MATCH($B76,'SCORE TABLE'!$B$10:$B$45,0), MATCH($C$10,'SCORE TABLE'!$F$9:$BC$9,0)),"Not scored") -> Not scored | G76: =IF(INDEX('DATA TABLE'!$J$10:$BG$68, MATCH($B76,'DATA TABLE'!$B$10:$B$68,0), MATCH($C$10,'DATA TABLE'!$J$9:$BG$9,0))="","",INDEX('DATA TABLE'!$J$10:$BG$68, MATCH($B76,'DATA TABLE'!$B$10:$B$68,0), MATCH($C$10,'DATA TABLE'!$J$9:$BG$9,0))) -> 37.8 | J76: =IF(INDEX('DATA TABLE'!$G$10:$G$68,MATCH($B76,'DATA TABLE'!$B$10:$B$68,0))="",CONCATENATE("(",INDEX('DATA TABLE'!$E$10:$E$68,MATCH($B76,'DATA TABLE'!$B$10:$B$68,0)),")"), CONCATENATE(INDEX('DATA TABLE'!$G$10:$G$68,MATCH($B76,'DATA TABLE'!$B$10:$B$68,0))," (",INDEX('DATA TABLE'!$E$10:$E$68,MATCH($B76,'DATA TABLE'!$B$10:$B$68,0)),")")) -> % of men (CDC 2023 Behavioral Risk Factor Surveillance System)
B77: BG02b | C77: =INDEX(Lists!$H$2:$H$59,MATCH($B77,Lists!$F$2:$F$59,0)) -> BG02b) Obesity prevalence by gender: Women | E77: =IFERROR(INDEX('SCORE TABLE'!$F$10:$BC$45, MATCH($B77,'SCORE TABLE'!$B$10:$B$45,0), MATCH($C$10,'SCORE TABLE'!$F$9:$BC$9,0)),"Not scored") -> Not scored | G77: =IF(INDEX('DATA TABLE'!$J$10:$BG$68, MATCH($B77,'DATA TABLE'!$B$10:$B$68,0), MATCH($C$10,'DATA TABLE'!$J$9:$BG$9,0))="","",INDEX('DATA TABLE'!$J$10:$BG$68, MATCH($B77,'DATA TABLE'!$B$10:$B$68,0), MATCH($C$10,'DATA TABLE'!$J$9:$BG$9,0))) -> 40.7 | J77: =IF(INDEX('DATA TABLE'!$G$10:$G$68,MATCH($B77,'DATA TABLE'!$B$10:$B$68,0))="",CONCATENATE("(",INDEX('DATA TABLE'!$E$10:$E$68,MATCH($B77,'DATA TABLE'!$B$10:$B$68,0)),")"), CONCATENATE(INDEX('DATA TABLE'!$G$10:$G$68,MATCH($B77,'DATA TABLE'!$B$10:$B$68,0))," (",INDEX('DATA TABLE'!$E$10:$E$68,MATCH($B77,'DATA TABLE'!$B$10:$B$68,0)),")")) -> % of women (CDC 2023 Behavioral Risk Factor Surveillance System)
B78: BG03a | C78: =INDEX(Lists!$H$2:$H$59,MATCH($B78,Lists!$F$2:$F$59,0)) -> BG03a) Obesity prevalence by race/ethnicity: White | E78: =IFERROR(INDEX('SCORE TABLE'!$F$10:$BC$45, MATCH($B78,'SCORE TABLE'!$B$10:$B$45,0), MATCH($C$10,'SCORE TABLE'!$F$9:$BC$9,0)),"Not scored") -> Not scored | G78: =IF(INDEX('DATA TABLE'!$J$10:$BG$68, MATCH($B78,'DATA TABLE'!$B$10:$B$68,0), MATCH($C$10,'DATA TABLE'!$J$9:$BG$9,0))="","",INDEX('DATA TABLE'!$J$10:$BG$68, MATCH($B78,'DATA TABLE'!$B$10:$B$68,0), MATCH($C$10,'DATA TABLE'!$J$9:$BG$9,0))) -> 36 | J78: =IF(INDEX('DATA TABLE'!$G$10:$G$68,MATCH($B78,'DATA TABLE'!$B$10:$B$68,0))="",CONCATENATE("(",INDEX('DATA TABLE'!$E$10:$E$68,MATCH($B78,'DATA TABLE'!$B$10:$B$68,0)),")"), CONCATENATE(INDEX('DATA TABLE'!$G$10:$G$68,MATCH($B78,'DATA TABLE'!$B$10:$B$68,0))," (",INDEX('DATA TABLE'!$E$10:$E$68,MATCH($B78,'DATA TABLE'!$B$10:$B$68,0)),")")) -> % of people by race/ethnicity (CDC 2023 Behavioral Risk Factor Surveillance System)
B79: BG03b | C79: =INDEX(Lists!$H$2:$H$59,MATCH($B79,Lists!$F$2:$F$59,0)) -> BG03b) Obesity prevalence by race/ethnicity: Black | E79: =IFERROR(INDEX('SCORE TABLE'!$F$10:$BC$45, MATCH($B79,'SCORE TABLE'!$B$10:$B$45,0), MATCH($C$10,'SCORE TABLE'!$F$9:$BC$9,0)),"Not scored") -> Not scored | G79: =IF(INDEX('DATA TABLE'!$J$10:$BG$68, MATCH($B79,'DATA TABLE'!$B$10:$B$68,0), MATCH($C$10,'DATA TABLE'!$J$9:$BG$9,0))="","",INDEX('DATA TABLE'!$J$10:$BG$68, MATCH($B79,'DATA TABLE'!$B$10:$B$68,0), MATCH($C$10,'DATA TABLE'!$J$9:$BG$9,0))) -> 49.1 | J79: =IF(INDEX('DATA TABLE'!$G$10:$G$68,MATCH($B79,'DATA TABLE'!$B$10:$B$68,0))="",CONCATENATE("(",INDEX('DATA TABLE'!$E$10:$E$68,MATCH($B79,'DATA TABLE'!$B$10:$B$68,0)),")"), CONCATENATE(INDEX('DATA TABLE'!$G$10:$G$68,MATCH($B79,'DATA TABLE'!$B$10:$B$68,0))," (",INDEX('DATA TABLE'!$E$10:$E$68,MATCH($B79,'DATA TABLE'!$B$10:$B$68,0)),")")) -> % of people by race/ethnicity (CDC 2023 Behavioral Risk Factor Surveillance System)
B80: BG03c | C80: =INDEX(Lists!$H$2:$H$59,MATCH($B80,Lists!$F$2:$F$59,0)) -> BG03c) Obesity prevalence by race/ethnicity: Hispanic | E80: =IFERROR(INDEX('SCORE TABLE'!$F$10:$BC$45, MATCH($B80,'SCORE TABLE'!$B$10:$B$45,0), MATCH($C$10,'SCORE TABLE'!$F$9:$BC$9,0)),"Not scored") -> Not scored | G80: =IF(INDEX('DATA TABLE'!$J$10:$BG$68, MATCH($B80,'DATA TABLE'!$B$10:$B$68,0), MATCH($C$10,'DATA TABLE'!$J$9:$BG$9,0))="","",INDEX('DATA TABLE'!$J$10:$BG$68, MATCH($B80,'DATA TABLE'!$B$10:$B$68,0), MATCH($C$10,'DATA TABLE'!$J$9:$BG$9,0))) -> 36.6 | J80: =IF(INDEX('DATA TABLE'!$G$10:$G$68,MATCH($B80,'DATA TABLE'!$B$10:$B$68,0))="",CONCATENATE("(",INDEX('DATA TABLE'!$E$10:$E$68,MATCH($B80,'DATA TABLE'!$B$10:$B$68,0)),")"), CONCATENATE(INDEX('DATA TABLE'!$G$10:$G$68,MATCH($B80,'DATA TABLE'!$B$10:$B$68,0))," (",INDEX('DATA TABLE'!$E$10:$E$68,MATCH($B80,'DATA TABLE'!$B$10:$B$68,0)),")")) -> % of people by race/ethnicity (CDC 2023 Behavioral Risk Factor Surveillance System)
B81: BG03d | C81: =INDEX(Lists!$H$2:$H$59,MATCH($B81,Lists!$F$2:$F$59,0)) -> BG03d) Obesity prevalence by race/ethnicity: Asian/Native Hawaiian or Pacific Islander | E81: =IFERROR(INDEX('SCORE TABLE'!$F$10:$BC$45, MATCH($B81,'SCORE TABLE'!$B$10:$B$45,0), MATCH($C$10,'SCORE TABLE'!$F$9:$BC$9,0)),"Not scored") -> Not scored | G81: =IF(INDEX('DATA TABLE'!$J$10:$BG$68, MATCH($B81,'DATA TABLE'!$B$10:$B$68,0), MATCH($C$10,'DATA TABLE'!$J$9:$BG$9,0))="","",INDEX('DATA TABLE'!$J$10:$BG$68, MATCH($B81,'DATA TABLE'!$B$10:$B$68,0), MATCH($C$10,'DATA TABLE'!$J$9:$BG$9,0))) -> No data | J81: =IF(INDEX('DATA TABLE'!$G$10:$G$68,MATCH($B81,'DATA TABLE'!$B$10:$B$68,0))="",CONCATENATE("(",INDEX('DATA TABLE'!$E$10:$E$68,MATCH($B81,'DATA TABLE'!$B$10:$B$68,0)),")"), CONCATENATE(INDEX('DATA TABLE'!$G$10:$G$68,MATCH($B81,'DATA TABLE'!$B$10:$B$68,0))," (",INDEX('DATA TABLE'!$E$10:$E$68,MATCH($B81,'DATA TABLE'!$B$10:$B$68,0)),")")) -> % of people by race/ethnicity (CDC 2023 Behavioral Risk Factor Surveillance System)
B82: BG04a | C82: =INDEX(Lists!$H$2:$H$59,MATCH($B82,Lists!$F$2:$F$59,0)) -> BG04a) Obesity prevalence by education level: Less than high school | E82: =IFERROR(INDEX('SCORE TABLE'!$F$10:$BC$45, MATCH($B82,'SCORE TABLE'!$B$10:$B$45,0), MATCH($C$10,'SCORE TABLE'!$F$9:$BC$9,0)),"Not scored") -> Not scored | G82: =IF(INDEX('DATA TABLE'!$J$10:$BG$68, MATCH($B82,'DATA TABLE'!$B$10:$B$68,0), MATCH($C$10,'DATA TABLE'!$J$9:$BG$9,0))="","",INDEX('DATA TABLE'!$J$10:$BG$68, MATCH($B82,'DATA TABLE'!$B$10:$B$68,0), MATCH($C$10,'DATA TABLE'!$J$9:$BG$9,0))) -> 39.8 | J82: =IF(INDEX('DATA TABLE'!$G$10:$G$68,MATCH($B82,'DATA TABLE'!$B$10:$B$68,0))="",CONCATENATE("(",INDEX('DATA TABLE'!$E$10:$E$68,MATCH($B82,'DATA TABLE'!$B$10:$B$68,0)),")"), CONCATENATE(INDEX('DATA TABLE'!$G$10:$G$68,MATCH($B82,'DATA TABLE'!$B$10:$B$68,0))," (",INDEX('DATA TABLE'!$E$10:$E$68,MATCH($B82,'DATA TABLE'!$B$10:$B$68,0)),")")) -> % of people by education level (CDC 2022 Behavioral Risk Factor Surveillance System)
B83: BG04b | C83: =INDEX(Lists!$H$2:$H$59,MATCH($B83,Lists!$F$2:$F$59,0)) -> BG04b) Obesity prevalence by education level: High school or GED | E83: =IFERROR(INDEX('SCORE TABLE'!$F$10:$BC$45, MATCH($B83,'SCORE TABLE'!$B$10:$B$45,0), MATCH($C$10,'SCORE TABLE'!$F$9:$BC$9,0)),"Not scored") -> Not scored | G83: =IF(INDEX('DATA TABLE'!$J$10:$BG$68, MATCH($B83,'DATA TABLE'!$B$10:$B$68,0), MATCH($C$10,'DATA TABLE'!$J$9:$BG$9,0))="","",INDEX('DATA TABLE'!$J$10:$BG$68, MATCH($B83,'DATA TABLE'!$B$10:$B$68,0), MATCH($C$10,'DATA TABLE'!$J$9:$BG$9,0))) -> 42.2 | J83: =IF(INDEX('DATA TABLE'!$G$10:$G$68,MATCH($B83,'DATA TABLE'!$B$10:$B$68,0))="",CONCATENATE("(",INDEX('DATA TABLE'!$E$10:$E$68,MATCH($B83,'DATA TABLE'!$B$10:$B$68,0)),")"), CONCATENATE(INDEX('DATA TABLE'!$G$10:$G$68,MATCH($B83,'DATA TABLE'!$B$10:$B$68,0))," (",INDEX('DATA TABLE'!$E$10:$E$68,MATCH($B83,'DATA TABLE'!$B$10:$B$68,0)),")")) -> % of people by education level (CDC 2022 Behavioral Risk Factor Surveillance System)
B84: BG04c | C84: =INDEX(Lists!$H$2:$H$59,MATCH($B84,Lists!$F$2:$F$59,0)) -> BG04c) Obesity prevalence by education level: Some post-high school | E84: =IFERROR(INDEX('SCORE TABLE'!$F$10:$BC$45, MATCH($B84,'SCORE TABLE'!$B$10:$B$45,0), MATCH($C$10,'SCORE TABLE'!$F$9:$BC$9,0)),"Not scored") -> Not scored | G84: =IF(INDEX('DATA TABLE'!$J$10:$BG$68, MATCH($B84,'DATA TABLE'!$B$10:$B$68,0), MATCH($C$10,'DATA TABLE'!$J$9:$BG$9,0))="","",INDEX('DATA TABLE'!$J$10:$BG$68, MATCH($B84,'DATA TABLE'!$B$10:$B$68,0), MATCH($C$10,'DATA TABLE'!$J$9:$BG$9,0))) -> 44.2 | J84: =IF(INDEX('DATA TABLE'!$G$10:$G$68,MATCH($B84,'DATA TABLE'!$B$10:$B$68,0))="",CONCATENATE("(",INDEX('DATA TABLE'!$E$10:$E$68,MATCH($B84,'DATA TABLE'!$B$10:$B$68,0)),")"), CONCATENATE(INDEX('DATA TABLE'!$G$10:$G$68,MATCH($B84,'DATA TABLE'!$B$10:$B$68,0))," (",INDEX('DATA TABLE'!$E$10:$E$68,MATCH($B84,'DATA TABLE'!$B$10:$B$68,0)),")")) -> % of people by education level (CDC 2022 Behavioral Risk Factor Surveillance System)
B85: BG04d | C85: =INDEX(Lists!$H$2:$H$59,MATCH($B85,Lists!$F$2:$F$59,0)) -> BG04d) Obesity prevalence by education level: College grad | E85: =IFERROR(INDEX('SCORE TABLE'!$F$10:$BC$45, MATCH($B85,'SCORE TABLE'!$B$10:$B$45,0), MATCH($C$10,'SCORE TABLE'!$F$9:$BC$9,0)),"Not scored") -> Not scored | G85: =IF(INDEX('DATA TABLE'!$J$10:$BG$68, MATCH($B85,'DATA TABLE'!$B$10:$B$68,0), MATCH($C$10,'DATA TABLE'!$J$9:$BG$9,0))="","",INDEX('DATA TABLE'!$J$10:$BG$68, MATCH($B85,'DATA TABLE'!$B$10:$B$68,0), MATCH($C$10,'DATA TABLE'!$J$9:$BG$9,0))) -> 36.9 | J85: =IF(INDEX('DATA TABLE'!$G$10:$G$68,MATCH($B85,'DATA TABLE'!$B$10:$B$68,0))="",CONCATENATE("(",INDEX('DATA TABLE'!$E$10:$E$68,MATCH($B85,'DATA TABLE'!$B$10:$B$68,0)),")"), CONCATENATE(INDEX('DATA TABLE'!$G$10:$G$68,MATCH($B85,'DATA TABLE'!$B$10:$B$68,0))," (",INDEX('DATA TABLE'!$E$10:$E$68,MATCH($B85,'DATA TABLE'!$B$10:$B$68,0)),")")) -> % of people by education level (CDC 2022 Behavioral Risk Factor Surveillance System)
B86: BG05a | C86: =INDEX(Lists!$H$2:$H$59,MATCH($B86,Lists!$F$2:$F$59,0)) -> BG05a) Obesity prevalence by rural/urban area: Metro | E86: =IFERROR(INDEX('SCORE TABLE'!$F$10:$BC$45, MATCH($B86,'SCORE TABLE'!$B$10:$B$45,0), MATCH($C$10,'SCORE TABLE'!$F$9:$BC$9,0)),"Not scored") -> Not scored | G86: =IF(INDEX('DATA TABLE'!$J$10:$BG$68, MATCH($B86,'DATA TABLE'!$B$10:$B$68,0), MATCH($C$10,'DATA TABLE'!$J$9:$BG$9,0))="","",INDEX('DATA TABLE'!$J$10:$BG$68, MATCH($B86,'DATA TABLE'!$B$10:$B$68,0), MATCH($C$10,'DATA TABLE'!$J$9:$BG$9,0))) -> 38.7 | J86: =IF(INDEX('DATA TABLE'!$G$10:$G$68,MATCH($B86,'DATA TABLE'!$B$10:$B$68,0))="",CONCATENATE("(",INDEX('DATA TABLE'!$E$10:$E$68,MATCH($B86,'DATA TABLE'!$B$10:$B$68,0)),")"), CONCATENATE(INDEX('DATA TABLE'!$G$10:$G$68,MATCH($B86,'DATA TABLE'!$B$10:$B$68,0))," (",INDEX('DATA TABLE'!$E$10:$E$68,MATCH($B86,'DATA TABLE'!$B$10:$B$68,0)),")")) -> % of people in metropolitan areas (CDC 2022 Behavioral Risk Factor Surveillance System)
B87: BG05b | C87: =INDEX(Lists!$H$2:$H$59,MATCH($B87,Lists!$F$2:$F$59,0)) -> BG05b) Obesity prevalence by rural/urban area: Non-metro | E87: =IFERROR(INDEX('SCORE TABLE'!$F$10:$BC$45, MATCH($B87,'SCORE TABLE'!$B$10:$B$45,0), MATCH($C$10,'SCORE TABLE'!$F$9:$BC$9,0)),"Not scored") -> Not scored | G87: =IF(INDEX('DATA TABLE'!$J$10:$BG$68, MATCH($B87,'DATA TABLE'!$B$10:$B$68,0), MATCH($C$10,'DATA TABLE'!$J$9:$BG$9,0))="","",INDEX('DATA TABLE'!$J$10:$BG$68, MATCH($B87,'DATA TABLE'!$B$10:$B$68,0), MATCH($C$10,'DATA TABLE'!$J$9:$BG$9,0))) -> 40.9 | J87: =IF(INDEX('DATA TABLE'!$G$10:$G$68,MATCH($B87,'DATA TABLE'!$B$10:$B$68,0))="",CONCATENATE("(",INDEX('DATA TABLE'!$E$10:$E$68,MATCH($B87,'DATA TABLE'!$B$10:$B$68,0)),")"), CONCATENATE(INDEX('DATA TABLE'!$G$10:$G$68,MATCH($B87,'DATA TABLE'!$B$10:$B$68,0))," (",INDEX('DATA TABLE'!$E$10:$E$68,MATCH($B87,'DATA TABLE'!$B$10:$B$68,0)),")")) -> % of people in non-metropolitan areas (CDC 2022 Behavioral Risk Factor Surveillance System)
B88: BG06 | C88: =INDEX(Lists!$H$2:$H$59,MATCH($B88,Lists!$F$2:$F$59,0)) -> BG06) Childhood obesity prevalence | E88: =IFERROR(INDEX('SCORE TABLE'!$F$10:$BC$45, MATCH($B88,'SCORE TABLE'!$B$10:$B$45,0), MATCH($C$10,'SCORE TABLE'!$F$9:$BC$9,0)),"Not scored") -> Not scored | G88: =IF(INDEX('DATA TABLE'!$J$10:$BG$68, MATCH($B88,'DATA TABLE'!$B$10:$B$68,0), MATCH($C$10,'DATA TABLE'!$J$9:$BG$9,0))="","",INDEX('DATA TABLE'!$J$10:$BG$68, MATCH($B88,'DATA TABLE'!$B$10:$B$68,0), MATCH($C$10,'DATA TABLE'!$J$9:$BG$9,0))) -> 22.8 | J88: =IF(INDEX('DATA TABLE'!$G$10:$G$68,MATCH($B88,'DATA TABLE'!$B$10:$B$68,0))="",CONCATENATE("(",INDEX('DATA TABLE'!$E$10:$E$68,MATCH($B88,'DATA TABLE'!$B$10:$B$68,0)),")"), CONCATENATE(INDEX('DATA TABLE'!$G$10:$G$68,MATCH($B88,'DATA TABLE'!$B$10:$B$68,0))," (",INDEX('DATA TABLE'!$E$10:$E$68,MATCH($B88,'DATA TABLE'!$B$10:$B$68,0)),")")) -> % of children (National Survey of Children’s Health)
B89: BG07 | C89: =INDEX(Lists!$H$2:$H$59,MATCH($B89,Lists!$F$2:$F$59,0)) -> BG07) Life expectancy | E89: =IFERROR(INDEX('SCORE TABLE'!$F$10:$BC$45, MATCH($B89,'SCORE TABLE'!$B$10:$B$45,0), MATCH($C$10,'SCORE TABLE'!$F$9:$BC$9,0)),"Not scored") -> Not scored | G89: =IF(INDEX('DATA TABLE'!$J$10:$BG$68, MATCH($B89,'DATA TABLE'!$B$10:$B$68,0), MATCH($C$10,'DATA TABLE'!$J$9:$BG$9,0))="","",INDEX('DATA TABLE'!$J$10:$BG$68, MATCH($B89,'DATA TABLE'!$B$10:$B$68,0), MATCH($C$10,'DATA TABLE'!$J$9:$BG$9,0))) -> 72 | J89: =IF(INDEX('DATA TABLE'!$G$10:$G$68,MATCH($B89,'DATA TABLE'!$B$10:$B$68,0))="",CONCATENATE("(",INDEX('DATA TABLE'!$E$10:$E$68,MATCH($B89,'DATA TABLE'!$B$10:$B$68,0)),")"), CONCATENATE(INDEX('DATA TABLE'!$G$10:$G$68,MATCH($B89,'DATA TABLE'!$B$10:$B$68,0))," (",INDEX('DATA TABLE'!$E$10:$E$68,MATCH($B89,'DATA TABLE'!$B$10:$B$68,0)),")")) -> Years (CDC National Vital Statistics Reports)
B90: BG08 | C90: =INDEX(Lists!$H$2:$H$59,MATCH($B90,Lists!$F$2:$F$59,0)) -> BG08) Household income | E90: =IFERROR(INDEX('SCORE TABLE'!$F$10:$BC$45, MATCH($B90,'SCORE TABLE'!$B$10:$B$45,0), MATCH($C$10,'SCORE TABLE'!$F$9:$BC$9,0)),"Not scored") -> Not scored | G90: =IF(INDEX('DATA TABLE'!$J$10:$BG$68, MATCH($B90,'DATA TABLE'!$B$10:$B$68,0), MATCH($C$10,'DATA TABLE'!$J$9:$BG$9,0))="","",INDEX('DATA TABLE'!$J$10:$BG$68, MATCH($B90,'DATA TABLE'!$B$10:$B$68,0), MATCH($C$10,'DATA TABLE'!$J$9:$BG$9,0))) -> 60660 | J90: =IF(INDEX('DATA TABLE'!$G$10:$G$68,MATCH($B90,'DATA TABLE'!$B$10:$B$68,0))="",CONCATENATE("(",INDEX('DATA TABLE'!$E$10:$E$68,MATCH($B90,'DATA TABLE'!$B$10:$B$68,0)),")"), CONCATENATE(INDEX('DATA TABLE'!$G$10:$G$68,MATCH($B90,'DATA TABLE'!$B$10:$B$68,0))," (",INDEX('DATA TABLE'!$E$10:$E$68,MATCH($B90,'DATA TABLE'!$B$10:$B$68,0)),")")) -> USD (Federal Reserve Bank of St. Louis)
B91: BG09 | C91: =INDEX(Lists!$H$2:$H$59,MATCH($B91,Lists!$F$2:$F$59,0)) -> BG09) Gini Index of Income Inequality | E91: =IFERROR(INDEX('SCORE TABLE'!$F$10:$BC$45, MATCH($B91,'SCORE TABLE'!$B$10:$B$45,0), MATCH($C$10,'SCORE TABLE'!$F$9:$BC$9,0)),"Not scored") -> Not scored | G91: =IF(INDEX('DATA TABLE'!$J$10:$BG$68, MATCH($B91,'DATA TABLE'!$B$10:$B$68,0), MATCH($C$10,'DATA TABLE'!$J$9:$BG$9,0))="","",INDEX('DATA TABLE'!$J$10:$BG$68, MATCH($B91,'DATA TABLE'!$B$10:$B$68,0), MATCH($C$10,'DATA TABLE'!$J$9:$BG$9,0))) -> 0.4771 | J91: =IF(INDEX('DATA TABLE'!$G$10:$G$68,MATCH($B91,'DATA TABLE'!$B$10:$B$68,0))="",CONCATENATE("(",INDEX('DATA TABLE'!$E$10:$E$68,MATCH($B91,'DATA TABLE'!$B$10:$B$68,0)),")"), CONCATENATE(INDEX('DATA TABLE'!$G$10:$G$68,MATCH($B91,'DATA TABLE'!$B$10:$B$68,0))," (",INDEX('DATA TABLE'!$E$10:$E$68,MATCH($B91,'DATA TABLE'!$B$10:$B$68,0)),")")) -> 0-1 (U.S. Census Bureau, 2023 American Community Survey)
B92: BG10 | C92: =INDEX(Lists!$H$2:$H$59,MATCH($B92,Lists!$F$2:$F$59,0)) -> BG10) Location quotient for dietitians and nutritionists | E92: =IFERROR(INDEX('SCORE TABLE'!$F$10:$BC$45, MATCH($B92,'SCORE TABLE'!$B$10:$B$45,0), MATCH($C$10,'SCORE TABLE'!$F$9:$BC$9,0)),"Not scored") -> Not scored | G92: =IF(INDEX('DATA TABLE'!$J$10:$BG$68, MATCH($B92,'DATA TABLE'!$B$10:$B$68,0), MATCH($C$10,'DATA TABLE'!$J$9:$BG$9,0))="","",INDEX('DATA TABLE'!$J$10:$BG$68, MATCH($B92,'DATA TABLE'!$B$10:$B$68,0), MATCH($C$10,'DATA TABLE'!$J$9:$BG$9,0))) -> 0.8 | J92: =IF(INDEX('DATA TABLE'!$G$10:$G$68,MATCH($B92,'DATA TABLE'!$B$10:$B$68,0))="",CONCATENATE("(",INDEX('DATA TABLE'!$E$10:$E$68,MATCH($B92,'DATA TABLE'!$B$10:$B$68,0)),")"), CONCATENATE(INDEX('DATA TABLE'!$G$10:$G$68,MATCH($B92,'DATA TABLE'!$B$10:$B$68,0))," (",INDEX('DATA TABLE'!$E$10:$E$68,MATCH($B92,'DATA TABLE'!$B$10:$B$68,0)),")")) -> (U.S. Bureau of Labor Statistics, 2023)
B93: BG11 | C93: =INDEX(Lists!$H$2:$H$59,MATCH($B93,Lists!$F$2:$F$59,0)) -> BG11) Healthcare spending per capita | E93: =IFERROR(INDEX('SCORE TABLE'!$F$10:$BC$45, MATCH($B93,'SCORE TABLE'!$B$10:$B$45,0), MATCH($C$10,'SCORE TABLE'!$F$9:$BC$9,0)),"Not scored") -> Not scored | G93: =IF(INDEX('DATA TABLE'!$J$10:$BG$68, MATCH($B93,'DATA TABLE'!$B$10:$B$68,0), MATCH($C$10,'DATA TABLE'!$J$9:$BG$9,0))="","",INDEX('DATA TABLE'!$J$10:$BG$68, MATCH($B93,'DATA TABLE'!$B$10:$B$68,0), MATCH($C$10,'DATA TABLE'!$J$9:$BG$9,0))) -> 137 | J93: =IF(INDEX('DATA TABLE'!$G$10:$G$68,MATCH($B93,'DATA TABLE'!$B$10:$B$68,0))="",CONCATENATE("(",INDEX('DATA TABLE'!$E$10:$E$68,MATCH($B93,'DATA TABLE'!$B$10:$B$68,0)),")"), CONCATENATE(INDEX('DATA TABLE'!$G$10:$G$68,MATCH($B93,'DATA TABLE'!$B$10:$B$68,0))," (",INDEX('DATA TABLE'!$E$10:$E$68,MATCH($B93,'DATA TABLE'!$B$10:$B$68,0)),")")) -> USD (CDC, HRSA and Trust for America's Health)
B94: BG12 | C94: =INDEX(Lists!$H$2:$H$59,MATCH($B94,Lists!$F$2:$F$59,0)) -> BG12) Health insured population | E94: =IFERROR(INDEX('SCORE TABLE'!$F$10:$BC$45, MATCH($B94,'SCORE TABLE'!$B$10:$B$45,0), MATCH($C$10,'SCORE TABLE'!$F$9:$BC$9,0)),"Not scored") -> Not scored | G94: =IF(INDEX('DATA TABLE'!$J$10:$BG$68, MATCH($B94,'DATA TABLE'!$B$10:$B$68,0), MATCH($C$10,'DATA TABLE'!$J$9:$BG$9,0))="","",INDEX('DATA TABLE'!$J$10:$BG$68, MATCH($B94,'DATA TABLE'!$B$10:$B$68,0), MATCH($C$10,'DATA TABLE'!$J$9:$BG$9,0))) -> 13.3 | J94: =IF(INDEX('DATA TABLE'!$G$10:$G$68,MATCH($B94,'DATA TABLE'!$B$10:$B$68,0))="",CONCATENATE("(",INDEX('DATA TABLE'!$E$10:$E$68,MATCH($B94,'DATA TABLE'!$B$10:$B$68,0)),")"), CONCATENATE(INDEX('DATA TABLE'!$G$10:$G$68,MATCH($B94,'DATA TABLE'!$B$10:$B$68,0))," (",INDEX('DATA TABLE'!$E$10:$E$68,MATCH($B94,'DATA TABLE'!$B$10:$B$68,0)),")")) -> % of people (U.S. Census Bureau, 2023 American Community Survey)
B95: BG13 | C95: =INDEX(Lists!$H$2:$H$59,MATCH($B95,Lists!$F$2:$F$59,0)) -> BG13) Access to a personal doctor | E95: =IFERROR(INDEX('SCORE TABLE'!$F$10:$BC$45, MATCH($B95,'SCORE TABLE'!$B$10:$B$45,0), MATCH($C$10,'SCORE TABLE'!$F$9:$BC$9,0)),"Not scored") -> Not scored | G95: =IF(INDEX('DATA TABLE'!$J$10:$BG$68, MATCH($B95,'DATA TABLE'!$B$10:$B$68,0), MATCH($C$10,'DATA TABLE'!$J$9:$BG$9,0))="","",INDEX('DATA TABLE'!$J$10:$BG$68, MATCH($B95,'DATA TABLE'!$B$10:$B$68,0), MATCH($C$10,'DATA TABLE'!$J$9:$BG$9,0))) -> 82.4 | J95: =IF(INDEX('DATA TABLE'!$G$10:$G$68,MATCH($B95,'DATA TABLE'!$B$10:$B$68,0))="",CONCATENATE("(",INDEX('DATA TABLE'!$E$10:$E$68,MATCH($B95,'DATA TABLE'!$B$10:$B$68,0)),")"), CONCATENATE(INDEX('DATA TABLE'!$G$10:$G$68,MATCH($B95,'DATA TABLE'!$B$10:$B$68,0))," (",INDEX('DATA TABLE'!$E$10:$E$68,MATCH($B95,'DATA TABLE'!$B$10:$B$68,0)),")")) -> % of people (CDC 2023 Behavioral Risk Factor Surveillance System)
B96: BG14 | C96: =INDEX(Lists!$H$2:$H$59,MATCH($B96,Lists!$F$2:$F$59,0)) -> BG14) Physical activity | E96: =IFERROR(INDEX('SCORE TABLE'!$F$10:$BC$45, MATCH($B96,'SCORE TABLE'!$B$10:$B$45,0), MATCH($C$10,'SCORE TABLE'!$F$9:$BC$9,0)),"Not scored") -> Not scored | G96: =IF(INDEX('DATA TABLE'!$J$10:$BG$68, MATCH($B96,'DATA TABLE'!$B$10:$B$68,0), MATCH($C$10,'DATA TABLE'!$J$9:$BG$9,0))="","",INDEX('DATA TABLE'!$J$10:$BG$68, MATCH($B96,'DATA TABLE'!$B$10:$B$68,0), MATCH($C$10,'DATA TABLE'!$J$9:$BG$9,0))) -> 25 | J96: =IF(INDEX('DATA TABLE'!$G$10:$G$68,MATCH($B96,'DATA TABLE'!$B$10:$B$68,0))="",CONCATENATE("(",INDEX('DATA TABLE'!$E$10:$E$68,MATCH($B96,'DATA TABLE'!$B$10:$B$68,0)),")"), CONCATENATE(INDEX('DATA TABLE'!$G$10:$G$68,MATCH($B96,'DATA TABLE'!$B$10:$B$68,0))," (",INDEX('DATA TABLE'!$E$10:$E$68,MATCH($B96,'DATA TABLE'!$B$10:$B$68,0)),")")) -> % of people (CDC 2023 Behavioral Risk Factor Surveillance System)

Sheet DATA TABLE
C1: =HOME!B7 -> THE UNITED STATES OBESITY RESPONSE INDEX
B6: Data table
B9: No. | C9: Indicator name | D9: Question | E9: Source | F9: Scoring system | G9: Unit | H9: Notes | I9: Year | J9: Alabama | K9: Alaska | L9: Arizona | M9: Arkansas | N9: California | O9: Colorado | P9: Connecticut | Q9: Delaware | R9: Florida | S9: Georgia | T9: Hawaii | U9: Idaho | V9: Illinois | W9: Indiana | X9: Iowa | Y9: Kansas | Z9: Kentucky | AA9: Louisiana | AB9: Maine | AC9: Maryland | AD9: Massachusetts | AE9: Michigan | AF9: Minnesota | AG9: Mississippi | AH9: Missouri | AI9: Montana | AJ9: Nebraska | AK9: Nevada | AL9: New Hampshire | AM9: New Jersey | AN9: New Mexico | AO9: New York | AP9: North Carolina | AQ9: North Dakota | AR9: Ohio | AS9: Oklahoma | AT9: Oregon | AU9: Pennsylvania | AV9: Rhode Island | AW9: South Carolina | AX9: South Dakota | AY9: Tennessee | AZ9: Texas | BA9: Utah | BB9: Vermont | BC9: Virginia | BD9: Washington | BE9: West Virginia | BF9: Wisconsin | BG9: Wyoming
B10: 0 | C10: OVERALL | D10: Composite measure, scored as the weighted average of the following pillar scores: 1. Policy and governance 2. Food quality and access 3. Physical activity | E10: Economist Impact calculations
B11: 1 | C11: Policy and governance
B12: 1.1 | C12: Obesity-related policy
B13: 1.1.1 | C13: Health policy/strategy/plan that includes obesity | D13: Does the state-level health policy/strategy/plan specify obesity as a priority area? | E13: Economist Impact research | F13: 0 = No, or there is either no state-level health policy/strategy/plan in place OR one that is currently valid 1 = Yes | G13: Qualitative rating 0-1; 1=best | J13: 0 | K13: 1 | L13: 0 | M13: 1 | N13: 1 | O13: 0 | P13: 0 | Q13: 0 | R13: 1 | S13: 0 | T13: 1 | U13: 1 | V13: 1 | W13: 0 | X13: 0 | Y13: 0 | Z13: 0 | AA13: 1 | AB13: 0 | AC13: 0 | AD13: 0 | AE13: 0 | AF13: 0 | AG13: 1 | AH13: 1 | AI13: 1 | AJ13: 1 | AK13: 0 | AL13: 0 | AM13: 1 | AN13: 1 | AO13: 0 | AP13: 0 | AQ13: 0 | AR13: 0 | AS13: 1 | AT13: 0 | AU13: 1 | AV13: 1 | AW13: 0 | AX13: 1 | AY13: 1 | AZ13: 0 | BA13: 0 | BB13: 0 | BC13: 1 | BD13: 0 | BE13: 0 | BF13: 0 | BG13: 0
B14: 1.1.2 | C14: Definition of obesity | D14: Does the state define obesity as a chronic disease and connect obesity to its related chronic diseases (e.g cardiovascular disease, diabetes)? | E14: Economist Impact research | F14: 0 = No 1 = Yes, it defines obesity as a chronic disease OR makes reference to other chronic diseases related to obesity (e.g diabetes, cardiovascular disease, obstructive sleep apnea) 2 = Yes, it defines obesity as a chronic disease AND makes reference to other chronic diseases related to obesity (e.g diabetes, cardiovascular disease, obstructive sleep apnea) | G14: Qualitative rating 0-2; 2=best | J14: 2 | K14: 2 | L14: 0 | M14: 0 | N14: 2 | O14: 2 | P14: 2 | Q14: 1 | R14: 1 | S14: 1 | T14: 1 | U14: 1 | V14: 2 | W14: 2 | X14: 1 | Y14: 0 | Z14: 1 | AA14: 1 | AB14: 2 | AC14: 2 | AD14: 1 | AE14: 2 | AF14: 1 | AG14: 2 | AH14: 1 | AI14: 0 | AJ14: 1 | AK14: 2 | AL14: 2 | AM14: 1 | AN14: 2 | AO14: 1 | AP14: 1 | AQ14: 0 | AR14: 1 | AS14: 1 | AT14: 2 | AU14: 2 | AV14: 1 | AW14: 1 | AX14: 1 | AY14: 1 | AZ14: 1 | BA14: 2 | BB14: 2 | BC14: 0 | BD14: 1 | BE14: 2 | BF14: 1 | BG14: 0
B15: 1.1.3 | C15: Obesity-related policy/strategy/plan | D15: Composite measure: comprehensiveness of the obesity-related policy/strategy/plan | E15: Economist Impact calculations
B16: 1.1.3a | C16: Existence of an obesity-related policy/strategy/plan | D16: Does the state have an obesity-related policy/strategy/plan? | E16: Economist Impact research | F16: 0 = No 1 = Yes, but the document is not periodically updated or currently valid 2 = Yes, the document is periodically updated or currently valid | G16: Qualitative rating 0-2; 2=best | J16: 2 | K16: 0 | L16: 1 | M16: 1 | N16: 1 | O16: 2 | P16: 0 | Q16: 1 | R16: 0 | S16: 0 | T16: 2 | U16: 0 | V16: 0 | W16: 1 | X16: 1 | Y16: 0 | Z16: 1 | AA16: 0 | AB16: 2 | AC16: 1 | AD16: 0 | AE16: 2 | AF16: 1 | AG16: 1 | AH16: 0 | AI16: 0 | AJ16: 1 | AK16: 1 | AL16: 0 | AM16: 1 | AN16: 0 | AO16: 1 | AP16: 0 | AQ16: 0 | AR16: 1 | AS16: 2 | AT16: 2 | AU16: 0 | AV16: 2 | AW16: 0 | AX16: 1 | AY16: 1 | AZ16: 2 | BA16: 2 | BB16: 0 | BC16: 0 | BD16: 1 | BE16: 1 | BF16: 2 | BG16: 0
B17: 1.1.3b | C17: Engagement with stakeholders during development | D17: Were stakeholders from various sectors involved in the development of the state-level obesity-related policy/strategy/plan? | E17: Economist Impact research | F17: 0 = No, only health-focused stakeholders were involved in developing the policy OR there is either no state-level obesity-related policy/strategy/plan in place or one that is periodically updated or currently valid 1 = Yes, stakeholders from at least two sectors (e.g health, agriculture, education, finance, urban planning) were involved in developing the policy 2 = Yes, stakeholders from three or more sectors (e.g health, agriculture, education, finance, urban planning) OR people living with obesity were involved in developing the policy 3 = Yes, stakeholders from three or more sectors (e.g health, agriculture, education, finance, urban planning) AND people living with obesity were involved in developing the policy | G17: Qualitative rating 0-3; 3=best | J17: 2 | K17: 0 | L17: 0 | M17: 0 | N17: 0 | O17: 2 | P17: 0 | Q17: 0 | R17: 0 | S17: 0 | T17: 2 | U17: 0 | V17: 0 | W17: 0 | X17: 0 | Y17: 0 | Z17: 0 | AA17: 0 | AB17: 2 | AC17: 0 | AD17: 0 | AE17: 0 | AF17: 0 | AG17: 0 | AH17: 0 | AI17: 0 | AJ17: 0 | AK17: 0 | AL17: 0 | AM17: 0 | AN17: 0 | AO17: 0 | AP17: 0 | AQ17: 0 | AR17: 0 | AS17: 2 | AT17: 0 | AU17: 0 | AV17: 2 | AW17: 0 | AX17: 0 | AY17: 0 | AZ17: 0 | BA17: 2 | BB17: 0 | BC17: 0 | BD17: 0 | BE17: 0 | BF17: 1 | BG17: 0
B18: 1.1.3c | C18: Measures for obesity prevention | D18: Does the state-level obesity-related policy/strategy/plan contain measures for obesity prevention across the population? | E18: Economist Impact research | F18: 0 = No, or there is either no state-level obesity-related policy/strategy/plan in place OR one that is periodically updated or currently valid 1 = Yes, but the measures do not include clear actions or specific targets 2 = Yes, there are measures with clear actions or specific targets, but they lack methods of evaluation 3 = Yes, there are measures with clear actions or specific targets AND methods of evaluation | G18: Qualitative rating 0-3; 3=best | J18: 3 | K18: 0 | L18: 0 | M18: 0 | N18: 0 | O18: 2 | P18: 0 | Q18: 0 | R18: 0 | S18: 0 | T18: 3 | U18: 0 | V18: 0 | W18: 0 | X18: 0 | Y18: 0 | Z18: 0 | AA18: 0 | AB18: 1 | AC18: 0 | AD18: 0 | AE18: 1 | AF18: 0 | AG18: 0 | AH18: 0 | AI18: 0 | AJ18: 0 | AK18: 0 | AL18: 0 | AM18: 0 | AN18: 0 | AO18: 0 | AP18: 0 | AQ18: 0 | AR18: 0 | AS18: 3 | AT18: 3 | AU18: 0 | AV18: 3 | AW18: 0 | AX18: 0 | AY18: 0 | AZ18: 2 | BA18: 2 | BB18: 0 | BC18: 0 | BD18: 0 | BE18: 0 | BF18: 1 | BG18: 0
B19: 1.1.3d | C19: Measures for obesity management | D19: Does the state-level obesity-related policy/strategy/plan contain measures for obesity management across the population? | E19: Economist Impact research | F19: 0 = No, or there is either no state-level obesity-related policy/strategy/plan in place OR one that is periodically updated or currently valid 1 = Yes, but the measures do not include clear actions or specific targets 2 = Yes, there are measures with clear actions or specific targets, but they lack methods of evaluation 3 = Yes, there are measures with clear actions or specific targets AND methods of evaluation | G19: Qualitative rating 0-3; 3=best | J19: 0 | K19: 0 | L19: 0 | M19: 0 | N19: 0 | O19: 2 | P19: 0 | Q19: 0 | R19: 0 | S19: 0 | T19: 3 | U19: 0 | V19: 0 | W19: 0 | X19: 0 | Y19: 0 | Z19: 0 | AA19: 0 | AB19: 0 | AC19: 0 | AD19: 0 | AE19: 1 | AF19: 0 | AG19: 0 | AH19: 0 | AI19: 0 | AJ19: 0 | AK19: 0 | AL19: 0 | AM19: 0 | AN19: 0 | AO19: 0 | AP19: 0 | AQ19: 0 | AR19: 0 | AS19: 3 | AT19: 1 | AU19: 0 | AV19: 1 | AW19: 0 | AX19: 0 | AY19: 0 | AZ19: 1 | BA19: 2 | BB19: 0 | BC19: 0 | BD19: 0 | BE19: 0 | BF19: 0 | BG19: 0
B20: 1.1.3e | C20: Targets for obesity prevalence reduction | D20: Does the state-level obesity-related policy/strategy/plan contain targets for obesity prevalence reduction across the population? | E20: Economist Impact research | F20: 0 = No, or there is either no state-level obesity-related policy/strategy/plan in place OR one that is periodically updated or currently valid 1 = Yes, short-term targets (0-5 years) OR long-term targets (6 years+) 2 = Yes, short-term targets (0-5 years) AND long-term targets (6 years+) | G20: Qualitative rating 0-2; 2=best | J20: 0 | K20: 0 | L20: 0 | M20: 0 | N20: 0 | O20: 1 | P20: 0 | Q20: 0 | R20: 0 | S20: 0 | T20: 1 | U20: 0 | V20: 0 | W20: 0 | X20: 0 | Y20: 0 | Z20: 0 | AA20: 0 | AB20: 0 | AC20: 0 | AD20: 0 | AE20: 0 | AF20: 0 | AG20: 0 | AH20: 0 | AI20: 0 | AJ20: 0 | AK20: 0 | AL20: 0 | AM20: 0 | AN20: 0 | AO20: 0 | AP20: 0 | AQ20: 0 | AR20: 0 | AS20: 1 | AT20: 1 | AU20: 0 | AV20: 0 | AW20: 0 | AX20: 0 | AY20: 0 | AZ20: 0 | BA20: 0 | BB20: 0 | BC20: 0 | BD20: 0 | BE20: 0 | BF20: 0 | BG20: 0
B21: 1.1.3f | C21: Focus on vulnerable groups | D21: Does the state-level obesity-related policy/strategy/plan include a particular focus on the prevention and management of obesity in groups at increased risk of developing obesity? | E21: Economist Impact research | F21: 0 = No, or there is either no state-level obesity-related policy/strategy/plan in place OR one that is periodically updated or currently valid 1 = Yes, but it does not outline specific actions, targeted interventions or comprehensive strategies to address the unique needs of vulnerable and minority groups (e.g children; low-income populations; ethnic or racial minorities) 2 = Yes, it outlines well-defined and actionable measures specifically addressing the needs of vulnerable and minority groups (e.g children; low-income populations; ethnic or racial minorities) | G21: Qualitative rating 0-2; 2=best | J21: 2 | K21: 0 | L21: 0 | M21: 0 | N21: 0 | O21: 1 | P21: 0 | Q21: 0 | R21: 0 | S21: 0 | T21: 2 | U21: 0 | V21: 0 | W21: 0 | X21: 0 | Y21: 0 | Z21: 0 | AA21: 0 | AB21: 1 | AC21: 0 | AD21: 0 | AE21: 0 | AF21: 0 | AG21: 0 | AH21: 0 | AI21: 0 | AJ21: 0 | AK21: 0 | AL21: 0 | AM21: 0 | AN21: 0 | AO21: 0 | AP21: 0 | AQ21: 0 | AR21: 0 | AS21: 2 | AT21: 2 | AU21: 0 | AV21: 2 | AW21: 0 | AX21: 0 | AY21: 0 | AZ21: 0 | BA21: 2 | BB21: 0 | BC21: 0 | BD21: 0 | BE21: 0 | BF21: 2 | BG21: 0
B22: 1.1.3g | C22: Obesity-related stigma and discrimination | D22: Does the state-level obesity-related policy/strategy/plan make reference to obesity-related stigma/discrimination and contain measures to combat it? | E22: Economist Impact research | F22: 0 = No, or there is either no state-level obesity-related policy/strategy/plan in place OR one that is periodically updated or currently valid 1 = Yes, it mentions obesity-related stigma/discrimination BUT does not contain any measures to combat it 2 = Yes, it mentions obesity-related stigma/discrimination AND contains measures to combat it | G22: Qualitative rating 0-2; 2=best | J22: 0 | K22: 0 | L22: 0 | M22: 0 | N22: 0 | O22: 1 | P22: 0 | Q22: 0 | R22: 0 | S22: 0 | T22: 0 | U22: 0 | V22: 0 | W22: 0 | X22: 0 | Y22: 0 | Z22: 0 | AA22: 0 | AB22: 0 | AC22: 0 | AD22: 0 | AE22: 0 | AF22: 0 | AG22: 0 | AH22: 0 | AI22: 0 | AJ22: 0 | AK22: 0 | AL22: 0 | AM22: 0 | AN22: 0 | AO22: 0 | AP22: 0 | AQ22: 0 | AR22: 0 | AS22: 2 | AT22: 1 | AU22: 0 | AV22: 0 | AW22: 0 | AX22: 0 | AY22: 0 | AZ22: 0 | BA22: 0 | BB22: 0 | BC22: 0 | BD22: 0 | BE22: 0 | BF22: 0 | BG22: 0
B23: 1.1.4 | C23: Obesity-related funding | D23: Is there a budget allocated to implement the state-level obesity-related policy/strategy/plan? | E23: Economist Impact research | F23: 0 = No, or there is either no state-level obesity-related policy/strategy/plan in place OR one that is periodically updated or currently valid 1 = Yes | G23: Qualitative rating 0-1; 1=best | J23: 0 | K23: 0 | L23: 0 | M23: 0 | N23: 0 | O23: 1 | P23: 0 | Q23: 0 | R23: 0 | S23: 0 | T23: 0 | U23: 0 | V23: 0 | W23: 0 | X23: 0 | Y23: 0 | Z23: 0 | AA23: 0 | AB23: 0 | AC23: 0 | AD23: 0 | AE23: 0 | AF23: 0 | AG23: 0 | AH23: 0 | AI23: 0 | AJ23: 0 | AK23: 0 | AL23: 0 | AM23: 0 | AN23: 0 | AO23: 0 | AP23: 0 | AQ23: 0 | AR23: 0 | AS23: 0 | AT23: 0 | AU23: 0 | AV23: 0 | AW23: 0 | AX23: 0 | AY23: 0 | AZ23: 1 | BA23: 0 | BB23: 0 | BC23: 0 | BD23: 0 | BE23: 0 | BF23: 0 | BG23: 0
B24: 1.1.5 | C24: Weight-related discrimination | D24: Does the state have a law that prohibits weight-based discrimination and classifies weight as a protected characteristic? | E24: Economist Impact research | F24: 0 = No 1 = Yes | G24: Qualitative rating 0-1; 1=best | J24: 0 | K24: 0 | L24: 0 | M24: 0 | N24: 0 | O24: 0 | P24: 0 | Q24: 0 | R24: 0 | S24: 0 | T24: 0 | U24: 0 | V24: 0 | W24: 0 | X24: 0 | Y24: 0 | Z24: 0 | AA24: 0 | AB24: 0 | AC24: 0 | AD24: 0 | AE24: 1 | AF24: 0 | AG24: 0 | AH24: 0 | AI24: 0 | AJ24: 0 | AK24: 0 | AL24: 0 | AM24: 0 | AN24: 0 | AO24: 0 | AP24: 0 | AQ24: 0 | AR24: 0 | AS24: 0 | AT24: 0 | AU24: 0 | AV24: 0 | AW24: 0 | AX24: 0 | AY24: 0 | AZ24: 0 | BA24: 0 | BB24: 0 | BC24: 0 | BD24: 1 | BE24: 0 | BF24: 0 | BG24: 0
B25: 1.2 | C25: Availability and affordability of obesity-related care
B26: 1.2.1 | C26: Obesity treatment coverage | D26: Are the four elements of comprehensive obesity care (nutrition counseling, intensive behavioral therapy, obesity medications, and metabolic and bariatric surgery) covered by state Medicaid? | E26: Economist Impact research | F26: 0 = No 1 = Yes, one element is covered 2 = Yes, two elements are covered 3 = Yes, three elements are covered 4 = Yes, all four elements are covered | G26: Qualitative rating 0-4; 4=best | J26: 2 | K26: 2 | L26: 3 | M26: 2 | N26: 4 | O26: 3 | P26: 3 | Q26: 4 | R26: 3 | S26: 2 | T26: 3 | U26: 3 | V26: 2 | W26: 3 | X26: 3 | Y26: 4 | Z26: 3 | AA26: 2 | AB26: 3 | AC26: 4 | AD26: 4 | AE26: 3 | AF26: 4 | AG26: 2 | AH26: 4 | AI26: 1 | AJ26: 3 | AK26: 3 | AL26: 3 | AM26: 2 | AN26: 3 | AO26: 1 | AP26: 4 | AQ26: 4 | AR26: 3 | AS26: 3 | AT26: 3 | AU26: 3 | AV26: 4 | AW26: 3 | AX26: 3 | AY26: 3 | AZ26: 3 | BA26: 3 | BB26: 3 | BC26: 4 | BD26: 3 | BE26: 3 | BF26: 4 | BG26: 3
B27: 1.2.2 | C27: State-level weight loss programmes | D27: Does the state implement Healthy Behaviour Incentive Programmes (HBIPs) in Medicaid to encourage weight loss (e.g. through HBIPs that promote physical activity and healthy eating)? | E27: Economist Impact research | F27: 0 = No, the state has not implemented Healthy Behaviour Incentive Programmes (HBIPs) in Medicaid OR the HBIP does not target weight loss 1 = Yes | G27: Qualitative rating 0-1; 1=best | J27: 0 | K27: 0 | L27: 0 | M27: 0 | N27: 0 | O27: 0 | P27: 0 | Q27: 0 | R27: 1 | S27: 0 | T27: 0 | U27: 1 | V27: 0 | W27: 0 | X27: 1 | Y27: 0 | Z27: 1 | AA27: 1 | AB27: 0 | AC27: 0 | AD27: 0 | AE27: 0 | AF27: 1 | AG27: 1 | AH27: 0 | AI27: 1 | AJ27: 1 | AK27: 1 | AL27: 0 | AM27: 0 | AN27: 1 | AO27: 1 | AP27: 0 | AQ27: 0 | AR27: 1 | AS27: 1 | AT27: 0 | AU27: 0 | AV27: 0 | AW27: 0 | AX27: 0 | AY27: 0 | AZ27: 0 | BA27: 0 | BB27: 0 | BC27: 0 | BD27: 0 | BE27: 1 | BF27: 0 | BG27: 1
B28: 2 | C28: Food quality and access
B29: 2.1 | C29: Food access and affordability
B30: 2.1.1 | C30: Level of food security | D30: What is the level of food security in the state? | E30: United States Department of Agriculture | F30: Higher = better | G30: % of households experiencing food security | I30: 2023 | J30: 88 | K30: 90 | L30: 88 | M30: 81 | N30: 89 | O30: 90 | P30: 90 | Q30: 89 | R30: 88 | S30: 87 | T30: 90 | U30: 89 | V30: 88 | W30: 88 | X30: 90 | Y30: 89 | Z30: 85 | AA30: 84 | AB30: 89 | AC30: 90 | AD30: 91 | AE30: 87 | AF30: 91 | AG30: 84 | AH30: 87 | AI30: 91 | AJ30: 87 | AK30: 87 | AL30: 93 | AM30: 90 | AN30: 87 | AO30: 88 | AP30: 89 | AQ30: 91 | AR30: 87 | AS30: 85 | AT30: 87 | AU30: 89 | AV30: 90 | AW30: 86 | AX30: 91 | AY30: 88 | AZ30: 83 | BA30: 88 | BB30: 91 | BC30: 90 | BD30: 90 | BE30: 86 | BF30: 89 | BG30: 87
B31: 2.1.2 | C31: Nutrition programmes for lower-income individuals | D31: Composite measure: Supplemental Nutrition Assistance Program monthly benefit and participation rate | E31: Economist Impact calculations
B32: 2.1.2a | C32: Supplemental Nutrition Assistance Program (SNAP): monthly benefit per person, adjusted for regional price parities | D32: How much does the Supplemental Nutrition Assistance Program (SNAP) cover monthly per person in the state? | E32: United States Department of Agriculture; United States Bureau of Economic Analysis | F32: Higher = better | G32: Average monthly SNAP benefit per person (US$), adjusted for regional price parities | I32: 2024 | J32: 207.07 | K32: 301.26 | L32: 187.07 | M32: 191.7 | N32: 180.44 | O32: 191.66 | P32: 201.7 | Q32: 187.66 | R32: 203.06 | S32: 191.98 | T32: 346.34 | U32: 191.35 | V32: 200.39 | W32: 212.31 | X32: 181.43 | Y32: 188.66 | Z32: 188.19 | AA32: 214.78 | AB32: 183.31 | AC32: 176.6 | AD32: 196.89 | AE32: 183.07 | AF32: 159.05 | AG32: 195.45 | AH32: 204.16 | AI32: 184.17 | AJ32: 194.14 | AK32: 180.64 | AL32: 171.84 | AM32: 184.13 | AN32: 189.63 | AO32: 208.33 | AP32: 207.47 | AQ32: 198.22 | AR32: 210.11 | AS32: 209.47 | AT32: 173.04 | AU32: 181.85 | AV32: 209 | AW32: 314.16 | AX32: 208.03 | AY32: 204.9 | AZ32: 188.97 | BA32: 211.03 | BB32: 204.22 | BC32: 180.29 | BD32: 173.54 | BE32: 179.24 | BF32: 174.95 | BG32: 193.3
B33: 2.1.2b | C33: Supplemental Nutrition Assistance Program (SNAP): participation rate | D33: What is the Supplemental Nutrition Assistance Program (SNAP) participation rate in the state? | E33: United States Department of Agriculture | F33: Higher = better | G33: SNAP participation rate (%) | I33: 2020 | J33: 81 | K33: 81 | L33: 74 | M33: 62 | N33: 66 | O33: 76 | P33: 89 | Q33: 87 | R33: 73 | S33: 72 | T33: 83 | U33: 79 | V33: 100 | W33: 73 | X33: 85 | Y33: 70 | Z33: 65 | AA33: 83 | AB33: 90 | AC33: 85 | AD33: 100 | AE33: 85 | AF33: 76 | AG33: 62 | AH33: 84 | AI33: 79 | AJ33: 78 | AK33: 84 | AL33: 79 | AM33: 72 | AN33: 100 | AO33: 82 | AP33: 74 | AQ33: 66 | AR33: 81 | AS33: 84 | AT33: 100 | AU33: 100 | AV33: 100 | AW33: 69 | AX33: 80 | AY33: 84 | AZ33: 69 | BA33: 74 | BB33: 96 | BC33: 77 | BD33: 94 | BE33: 94 | BF33: 92 | BG33: 49
B34: 2.2 | C34: Nutrition regulation
B35: 2.2.1 | C35: Taxes on unhealthy food and beverages | D35: Does the state levy higher taxes on unhealthy food or beverages than other food or beverage products? | E35: Economist Impact research | F35: 0 = No 1 = The state levies higher taxes on unhealthy food OR unhealthy beverages 2 = The state levies higher taxes on both unhealthy food AND unhealthy beverages | G35: Qualitative rating 0-2; 2=best | J35: 0 | K35: 0 | L35: 0 | M35: 2 | N35: 0 | O35: 2 | P35: 2 | Q35: 0 | R35: 2 | S35: 0 | T35: 0 | U35: 0 | V35: 2 | W35: 2 | X35: 2 | Y35: 0 | Z35: 2 | AA35: 0 | AB35: 2 | AC35: 2 | AD35: 0 | AE35: 0 | AF35: 2 | AG35: 0 | AH35: 0 | AI35: 0 | AJ35: 0 | AK35: 0 | AL35: 0 | AM35: 0 | AN35: 0 | AO35: 2 | AP35: 2 | AQ35: 2 | AR35: 1 | AS35: 0 | AT35: 0 | AU35: 0 | AV35: 2 | AW35: 0 | AX35: 0 | AY35: 1 | AZ35: 2 | BA35: 0 | BB35: 1 | BC35: 1 | BD35: 1 | BE35: 0 | BF35: 2 | BG35: 0
B36: 2.3 | C36: Nutrition in schools
B37: 2.3.1 | C37: School nutrition standards | D37: Does the state have its own nutrition standards for school food and/or adhere to federal nutrition standards for school food? | E37: Economist Impact research | F37: 0 = No 1 = Yes, the state has its own nutrition standards for school food AND/OR adheres to federal nutrition standards for school food | G37: Qualitative rating 0-1; 1=best | J37: 1 | K37: 1 | L37: 1 | M37: 1 | N37: 1 | O37: 1 | P37: 1 | Q37: 1 | R37: 1 | S37: 1 | T37: 1 | U37: 1 | V37: 1 | W37: 1 | X37: 1 | Y37: 1 | Z37: 1 | AA37: 1 | AB37: 1 | AC37: 1 | AD37: 1 | AE37: 1 | AF37: 1 | AG37: 1 | AH37: 1 | AI37: 0 | AJ37: 1 | AK37: 1 | AL37: 1 | AM37: 1 | AN37: 1 | AO37: 1 | AP37: 1 | AQ37: 1 | AR37: 1 | AS37: 1 | AT37: 1 | AU37: 1 | AV37: 1 | AW37: 1 | AX37: 1 | AY37: 1 | AZ37: 1 | BA37: 1 | BB37: 1 | BC37: 1 | BD37: 1 | BE37: 1 | BF37: 1 | BG37: 1
B38: 2.3.2 | C38: Nutrition education | D38: Does the state mandate nutrition education in schools? | E38: Economist Impact research | F38: 0 = No 1 = Yes, the state's curriculum includes nutrition education | G38: Qualitative rating 0-1; 1=best | J38: 1 | K38: 1 | L38: 1 | M38: 1 | N38: 1 | O38: 1 | P38: 0 | Q38: 1 | R38: 1 | S38: 1 | T38: 1 | U38: 1 | V38: 1 | W38: 1 | X38: 1 | Y38: 0 | Z38: 1 | AA38: 1 | AB38: 0 | AC38: 1 | AD38: 1 | AE38: 1 | AF38: 1 | AG38: 1 | AH38: 1 | AI38: 1 | AJ38: 1 | AK38: 1 | AL38: 0 | AM38: 1 | AN38: 1 | AO38: 1 | AP38: 1 | AQ38: 0 | AR38: 1 | AS38: 1 | AT38: 1 | AU38: 1 | AV38: 0 | AW38: 1 | AX38: 1 | AY38: 1 | AZ38: 1 | BA38: 1 | BB38: 1 | BC38: 1 | BD38: 1 | BE38: 1 | BF38: 1 | BG38: 1
B39: 2.3.3 | C39: Universal free school meals | D39: Does the state mandate the provision of free or reduced-price meals in schools? | E39: Economist Impact research | F39: 0 = No 1 = Yes, but only certain students are eligible 2 = Yes, for all students | G39: Qualitative rating 0-2; 2=best | J39: 0 | K39: 0 | L39: 1 | M39: 1 | N39: 2 | O39: 0 | P39: 0 | Q39: 0 | R39: 0 | S39: 1 | T39: 1 | U39: 0 | V39: 1 | W39: 0 | X39: 2 | Y39: 2 | Z39: 1 | AA39: 1 | AB39: 2 | AC39: 1 | AD39: 2 | AE39: 2 | AF39: 2 | AG39: 0 | AH39: 0 | AI39: 0 | AJ39: 0 | AK39: 1 | AL39: 1 | AM39: 1 | AN39: 2 | AO39: 0 | AP39: 1 | AQ39: 0 | AR39: 1 | AS39: 0 | AT39: 1 | AU39: 2 | AV39: 1 | AW39: 1 | AX39: 0 | AY39: 1 | AZ39: 1 | BA39: 0 | BB39: 2 | BC39: 1 | BD39: 2 | BE39: 1 | BF39: 0 | BG39: 0
B40: 3 | C40: Physical activity
B41: 3.1 | C41: Physical activity among the population
B42: 3.1.1 | C42: Promotion of physical activity | D42: Does the state have policies in place to promote physical activity amongst the general population? | E42: Economist Impact research | F42: 0 = No 1 = Yes, but they do not focus on promoting active travel (e.g walking, cycling) or reducing car usage 2 = Yes, they focus on either promoting active travel (e.g walking, cycling) OR reducing car usage 3 = Yes, they focus on both promoting active travel (e.g walking, cycling) AND reducing car usage | G42: Qualitative rating 0-3; 3=best | J42: 2 | K42: 2 | L42: 3 | M42: 2 | N42: 3 | O42: 3 | P42: 2 | Q42: 3 | R42: 1 | S42: 1 | T42: 2 | U42: 1 | V42: 3 | W42: 3 | X42: 1 | Y42: 3 | Z42: 3 | AA42: 2 | AB42: 2 | AC42: 2 | AD42: 1 | AE42: 1 | AF42: 2 | AG42: 3 | AH42: 2 | AI42: 2 | AJ42: 0 | AK42: 3 | AL42: 2 | AM42: 2 | AN42: 2 | AO42: 2 | AP42: 2 | AQ42: 0 | AR42: 3 | AS42: 3 | AT42: 3 | AU42: 2 | AV42: 2 | AW42: 0 | AX42: 2 | AY42: 2 | AZ42: 1 | BA42: 3 | BB42: 2 | BC42: 2 | BD42: 3 | BE42: 2 | BF42: 2 | BG42: 2
B43: 3.1.2 | C43: Access to exercise facilities | D43: What is the level of access to exercise opportunities in the state? | E43: University of Wisconsin Population Health Institute | F43: Higher = better | G43: % of population with adequate access to locations for physical activity | I43: 2025 | J43: 61 | K43: 79 | L43: 86 | M43: 63 | N43: 94 | O43: 90 | P43: 93 | Q43: 79 | R43: 88 | S43: 75 | T43: 93 | U43: 77 | V43: 91 | W43: 76 | X43: 80 | Y43: 80 | Z43: 70 | AA43: 76 | AB43: 67 | AC43: 92 | AD43: 95 | AE43: 86 | AF43: 86 | AG43: 58 | AH43: 77 | AI43: 74 | AJ43: 85 | AK43: 91 | AL43: 85 | AM43: 96 | AN43: 76 | AO43: 93 | AP43: 78 | AQ43: 76 | AR43: 84 | AS43: 71 | AT43: 88 | AU43: 86 | AV43: 96 | AW43: 69 | AX43: 73 | AY43: 68 | AZ43: 82 | BA43: 85 | BB43: 70 | BC43: 84 | BD43: 86 | BE43: 59 | BF43: 84 | BG43: 77
B44: 3.2 | C44: Physical activity among children
B45: 3.2.1 | C45: Physical activity mandates | D45: Does the state mandate physical activity in schools? | E45: Economist Impact research | F45: 0 = No 1 = Yes, but less than 60 minutes per day OR the time period is not specified 2 = Yes, 60 minutes per day (or more), in line with WHO recommendations | G45: Qualitative rating 0-2; 2=best | J45: 1 | K45: 1 | L45: 0 | M45: 1 | N45: 1 | O45: 1 | P45: 1 | Q45: 1 | R45: 1 | S45: 1 | T45: 1 | U45: 1 | V45: 1 | W45: 1 | X45: 1 | Y45: 0 | Z45: 1 | AA45: 1 | AB45: 1 | AC45: 1 | AD45: 1 | AE45: 1 | AF45: 1 | AG45: 1 | AH45: 1 | AI45: 1 | AJ45: 1 | AK45: 1 | AL45: 1 | AM45: 1 | AN45: 1 | AO45: 1 | AP45: 1 | AQ45: 1 | AR45: 1 | AS45: 1 | AT45: 1 | AU45: 1 | AV45: 1 | AW45: 1 | AX45: 1 | AY45: 1 | AZ45: 1 | BA45: 1 | BB45: 1 | BC45: 2 | BD45: 1 | BE45: 1 | BF45: 1 | BG45: 1
C46: BACKGROUND INDICATORS
B47: BG01 | C47: Adult obesity prevalence | D47: % of adults with a body mass index (BMI) greater than or equal to 30 | E47: CDC 2023 Behavioral Risk Factor Surveillance System | G47: % of people | I47: 2023 | J47: 39.2 | K47: 35.20 | L47: 31.90 | M47: 40.00 | N47: 27.70 | O47: 24.90 | P47: 29.40 | Q47: 35.70 | R47: 30.10 | S47: 35.00 | T47: 26.10 | U47: 31.00 | V47: 36.00 | W47: 37.80 | X47: 37.80 | Y47: 35.90 | Z47: 37.70 | AA47: 39.90 | AB47: 32.60 | AC47: 34.10 | AD47: 27.40 | AE47: 35.40 | AF47: 33.30 | AG47: 40.10 | AH47: 35.30 | AI47: 30.50 | AJ47: 36.60 | AK47: 30.80 | AL47: 32.80 | AM47: 28.90 | AN47: 35.30 | AO47: 28.00 | AP47: 34.00 | AQ47: 35.60 | AR47: 36.40 | AS47: 38.70 | AT47: 33.60 | AU47: 33.40 | AV47: 31.60 | AW47: 36.00 | AX47: 36.00 | AY47: 37.60 | AZ47: 34.40 | BA47: 30.20 | BB47: 28.80 | BC47: 34.30 | BD47: 30.60 | BE47: 41.20 | BF47: 35.90 | BG47: 33.30
B48: BG02a | C48: Obesity prevalence by gender: Men | D48: % of men with a body mass index (BMI) greater than or equal to 30 | E48: CDC 2023 Behavioral Risk Factor Surveillance System | G48: % of men | I48: 2023 | J48: 37.8 | K48: 35.9 | L48: 32.1 | M48: 38.4 | N48: 28.4 | O48: 24.5 | P48: 28.8 | Q48: 33.6 | R48: 30.9 | S48: 31.7 | T48: 26.9 | U48: 30.9 | V48: 35.9 | W48: 35.2 | X48: 37 | Y48: 35.7 | Z48: 38.6 | AA48: 38 | AB48: 31.8 | AC48: 32.8 | AD48: 27 | AE48: 33.3 | AF48: 33.4 | AG48: 38 | AH48: 34.5 | AI48: 30 | AJ48: 36.6 | AK48: 29.6 | AL48: 34.7 | AM48: 29.2 | AN48: 37.4 | AO48: 27.3 | AP48: 31.4 | AQ48: 35.8 | AR48: 35.8 | AS48: 38.2 | AT48: 33.1 | AU48: 32.4 | AV48: 31.6 | AW48: 32.3 | AX48: 37.8 | AY48: 35.8 | AZ48: 33.4 | BA48: 30.1 | BB48: 29.4 | BC48: 32.6 | BD48: 30.4 | BE48: 40.1 | BF48: 34.5 | BG48: 32.1
B49: BG02b | C49: Obesity prevalence by gender: Women | D49: % of women with a body mass index (BMI) greater than or equal to 30 | E49: CDC 2023 Behavioral Risk Factor Surveillance System | G49: % of women | I49: 2023 | J49: 40.7 | K49: 34.3 | L49: 31.6 | M49: 41.7 | N49: 26.9 | O49: 25.3 | P49: 30 | Q49: 37.7 | R49: 29.3 | S49: 38.2 | T49: 25.3 | U49: 31 | V49: 36 | W49: 40.5 | X49: 38.6 | Y49: 36.1 | Z49: 36.7 | AA49: 41.8 | AB49: 33.5 | AC49: 35.2 | AD49: 27.8 | AE49: 37.5 | AF49: 33.1 | AG49: 42 | AH49: 36.1 | AI49: 30.9 | AJ49: 36.6 | AK49: 32 | AL49: 30.7 | AM49: 28.6 | AN49: 33.3 | AO49: 28.7 | AP49: 36.6 | AQ49: 35.2 | AR49: 37 | AS49: 39.3 | AT49: 34.2 | AU49: 34.3 | AV49: 31.5 | AW49: 39.6 | AX49: 34.1 | AY49: 39.4 | AZ49: 35.5 | BA49: 30.2 | BB49: 28.1 | BC49: 35.9 | BD49: 30.9 | BE49: 42.2 | BF49: 37.5 | BG49: 34.7
B50: BG03a | C50: Obesity prevalence by race/ethnicity: White | D50: % of adults with a body mass index (BMI) greater than or equal to 30, by race/ethnicity | E50: CDC 2023 Behavioral Risk Factor Surveillance System | G50: % of people by race/ethnicity | I50: 2023 | J50: 36 | K50: 34.5 | L50: 29.4 | M50: 38.1 | N50: 25 | O50: 23.4 | P50: 27.2 | Q50: 35.4 | R50: 29.6 | S50: 32.7 | T50: 19.8 | U50: 30.1 | V50: 36.1 | W50: 37.8 | X50: 37.8 | Y50: 35.2 | Z50: 37.4 | AA50: 35.7 | AB50: 33.1 | AC50: 31.6 | AD50: 26.9 | AE50: 34.7 | AF50: 34 | AG50: 37.1 | AH50: 34.8 | AI50: 29.8 | AJ50: 37.2 | AK50: 29.9 | AL50: 33.2 | AM50: 27.3 | AN50: 30.2 | AO50: 28.2 | AP50: 31.9 | AQ50: 35.4 | AR50: 36.3 | AS50: 37.9 | AT50: 33 | AU50: 34.1 | AV50: 30.8 | AW50: 32.9 | AX50: 36.5 | AY50: 36.3 | AZ50: 33.6 | BA50: 29.3 | BB50: 28.6 | BC50: 34 | BD50: 30.9 | BE50: 41.5 | BF50: 36.2 | BG50: 32.4
B51: BG03b | C51: Obesity prevalence by race/ethnicity: Black | D51: % of adults with a body mass index (BMI) greater than or equal to 30, by race/ethnicity | E51: CDC 2023 Behavioral Risk Factor Surveillance System | G51: % of people by race/ethnicity | I51: 2023 | J51: 49.1 | K51: 46.3 | L51: 33.8 | M51: 50.7 | N51: 36.9 | O51: 28.8 | P51: 42.8 | Q51: 45.1 | R51: 39.2 | S51: 43.2 | T51: 25.7 | U51: No data | V51: 44.2 | W51: 45.2 | X51: 40.8 | Y51: 42.8 | Z51: 41.6 | AA51: 49.2 | AB51: 24.4 | AC51: 41.4 | AD51: 32.1 | AE51: 43.8 | AF51: 34.3 | AG51: 47.7 | AH51: 43 | AI51: No data | AJ51: 36 | AK51: 39.4 | AL51: No data | AM51: 36.1 | AN51: 35.6 | AO51: 35.6 | AP51: 46.9 | AQ51: 27.9 | AR51: 42.3 | AS51: 45.6 | AT51: 35.7 | AU51: 38.3 | AV51: 33.6 | AW51: 46.6 | AX51: 30.8 | AY51: 45.6 | AZ51: 42.1 | BA51: 32.2 | BB51: 20.8 | BC51: 42.9 | BD51: 38.9 | BE51: 42.2 | BF51: 43.1 | BG51: No data
B52: BG03c | C52: Obesity prevalence by race/ethnicity: Hispanic | D52: % of adults with a body mass index (BMI) greater than or equal to 30, by race/ethnicity | E52: CDC 2023 Behavioral Risk Factor Surveillance System | G52: % of people by race/ethnicity | I52: 2023 | J52: 36.6 | K52: 37.1 | L52: 37 | M52: 40.1 | N52: 36.1 | O52: 30.7 | P52: 36.9 | Q52: 28.8 | R52: 28.5 | S52: 35.6 | T52: 33.4 | U52: 36.2 | V52: 38.9 | W52: 38.8 | X52: 37.4 | Y52: 37.2 | Z52: 43.7 | AA52: 36.5 | AB52: 32.2 | AC52: 37.8 | AD52: 39.4 | AE52: 43 | AF52: 31.8 | AG52: 30.6 | AH52: 33.5 | AI52: 38.7 | AJ52: 37.1 | AK52: 33.4 | AL52: 41.9 | AM52: 35.3 | AN52: 39.4 | AO52: 30.7 | AP52: 34.3 | AQ52: 30.9 | AR52: 37.3 | AS52: 42.7 | AT52: 41.2 | AU52: 36.1 | AV52: 38.1 | AW52: 34 | AX52: 29.2 | AY52: 39.6 | AZ52: 35.9 | BA52: 35.7 | BB52: 40.1 | BC52: 31.7 | BD52: 37.9 | BE52: 43.6 | BF52: 36.3 | BG52: 36.9
B53: BG03d | C53: Obesity prevalence by race/ethnicity: Asian/Native Hawaiian or Pacific Islander | D53: % of adults with a body mass index (BMI) greater than or equal to 30, by race/ethnicity | E53: CDC 2023 Behavioral Risk Factor Surveillance System | G53: % of people by race/ethnicity | I53: 2023 | J53: No data | K53: 35.4 | L53: 14.5 | M53: No data | N53: 13.4 | O53: 14.4 | P53: 14.8 | Q53: No data | R53: No data | S53: No data | T53: 24.4 | U53: No data | V53: 9.9 | W53: 12.1 | X53: 19 | Y53: 14.3 | Z53: No data | AA53: 19.9 | AB53: No data | AC53: 14.8 | AD53: 12.1 | AE53: 12.7 | AF53: 18.2 | AG53: No data | AH53: No data | AI53: No data | AJ53: 17.8 | AK53: No data | AL53: No data | AM53: 16.6 | AN53: No data | AO53: 13.9 | AP53: No data | AQ53: No data | AR53: 16.6 | AS53: 17.4 | AT53: 18 | AU53: 17.4 | AV53: No data | AW53: No data | AX53: No data | AY53: No data | AZ53: 14.1 | BA53: 31.1 | BB53: No data | BC53: 13.5 | BD53: 15.5 | BE53: No data | BF53: 12.1 | BG53: No data
B54: BG04a | C54: Obesity prevalence by education level: Less than high school | D54: % of adults with a body mass index (BMI) greater than or equal to 30, by education level | E54: CDC 2022 Behavioral Risk Factor Surveillance System | G54: % of people by education level | I54: 2022 | J54: 39.8 | K54: 36.6 | L54: 37.2 | M54: 49.4 | N54: 35.8 | O54: 30.3 | P54: 35.9 | Q54: 31.6 | R54: 35.2 | S54: 41.2 | T54: 30.3 | U54: 37.7 | V54: 42.4 | W54: 43.9 | X54: 38.6 | Y54: 36.9 | Z54: 34.5 | AA54: 46.3 | AB54: 37.1 | AC54: 41.3 | AD54: 40.1 | AE54: 35.5 | AF54: 36.5 | AG54: 49.8 | AH54: 39.9 | AI54: 30.8 | AJ54: 40.4 | AK54: 29.8 | AL54: 46.6 | AM54: 39 | AN54: 46 | AO54: 31.2 | AP54: 44.4 | AQ54: 38.9 | AR54: 35.7 | AS54: 43 | AT54: 48.8 | AU54: 45.5 | AV54: 40.5 | AW54: 41 | AX54: 33 | AY54: 36.5 | AZ54: 41 | BA54: 37.9 | BB54: 38.2 | BC54: 42.1 | BD54: 41.8 | BE54: 39.2 | BF54: 42.2 | BG54: 40.9
B55: BG04b | C55: Obesity prevalence by education level: High school or GED | D55: % of adults with a body mass index (BMI) greater than or equal to 30, by education level | E55: CDC 2022 Behavioral Risk Factor Surveillance System | G55: % of people by education level | I55: 2022 | J55: 42.2 | K55: 38.1 | L55: 31.3 | M55: 41.8 | N55: 36.6 | O55: 31.5 | P55: 36.4 | Q55: 44.4 | R55: 32.6 | S55: 41.9 | T55: 34.1 | U55: 36 | V55: 43.3 | W55: 41.3 | X55: 42 | Y55: 42.3 | Z55: 40.9 | AA55: 42.2 | AB55: 37.5 | AC55: 40.1 | AD55: 34.7 | AE55: 39.9 | AF55: 39.2 | AG55: 41 | AH55: 38.1 | AI55: 36 | AJ55: 40.8 | AK55: 34 | AL55: 39.1 | AM55: 36 | AN55: 40.9 | AO55: 35 | AP55: 35.8 | AQ55: 38 | AR55: 40.3 | AS55: 41.3 | AT55: 37.9 | AU55: 36.1 | AV55: 39.7 | AW55: 38.4 | AX55: 35.4 | AY55: 40.9 | AZ55: 40.5 | BA55: 35.1 | BB55: 34.4 | BC55: 42.1 | BD55: 36.7 | BE55: 46.3 | BF55: 40 | BG55: 37.7
B56: BG04c | C56: Obesity prevalence by education level: Some post-high school | D56: % of adults with a body mass index (BMI) greater than or equal to 30, by education level | E56: CDC 2022 Behavioral Risk Factor Surveillance System | G56: % of people by education level | I56: 2022 | J56: 44.2 | K56: 40.6 | L56: 39.3 | M56: 43.5 | N56: 33.4 | O56: 31.2 | P56: 35.9 | Q56: 44.3 | R56: 34.8 | S56: 40 | T56: 27.3 | U56: 35 | V56: 42.7 | W56: 41.1 | X56: 42 | Y56: 41.8 | Z56: 40.1 | AA56: 43.9 | AB56: 38.8 | AC56: 39.8 | AD56: 31.2 | AE56: 41.2 | AF56: 39.8 | AG56: 43.4 | AH56: 40.7 | AI56: 34.6 | AJ56: 42 | AK56: 35.8 | AL56: 36.6 | AM56: 32.3 | AN56: 36 | AO56: 34.3 | AP56: 39.6 | AQ56: 41.3 | AR56: 44.4 | AS56: 38 | AT56: 32.1 | AU56: 34.8 | AV56: 32.1 | AW56: 41.3 | AX56: 42.3 | AY56: 42.8 | AZ56: 37.9 | BA56: 36.4 | BB56: 34.4 | BC56: 40.1 | BD56: 36 | BE56: 45.4 | BF56: 39.4 | BG56: 37.4
B57: BG04d | C57: Obesity prevalence by education level: College grad | D57: % of adults with a body mass index (BMI) greater than or equal to 30, by education level | E57: CDC 2022 Behavioral Risk Factor Surveillance System | G57: % of people by education level | I57: 2022 | J57: 36.9 | K57: 31.8 | L57: 27.2 | M57: 35.3 | N57: 19.9 | O57: 20.4 | P57: 24.5 | Q57: 28.1 | R57: 25.9 | S57: 30.4 | T57: 20.3 | U57: 26 | V57: 31 | W57: 35.2 | X57: 35 | Y57: 32 | Z57: 31.6 | AA57: 36.5 | AB57: 25.5 | AC57: 30 | AD57: 22.6 | AE57: 32.2 | AF57: 28.7 | AG57: 36.8 | AH57: 33.2 | AI57: 25.4 | AJ57: 35.1 | AK57: 27.5 | AL57: 27.5 | AM57: 25.1 | AN57: 29.7 | AO57: 23 | AP57: 32.2 | AQ57: 33.6 | AR57: 32.6 | AS57: 33.4 | AT57: 28 | AU57: 25.5 | AV57: 27.8 | AW57: 30.6 | AX57: 37.2 | AY57: 34 | AZ57: 31 | BA57: 27.2 | BB57: 24.3 | BC57: 30.1 | BD57: 24.5 | BE57: 36.7 | BF57: 34.4 | BG57: 27.4
B58: BG05a | C58: Obesity prevalence by rural/urban area: Metro | D58: % of adults in metropolitan areas with a body mass index (BMI) greater than or equal to 30 | E58: CDC 2022 Behavioral Risk Factor Surveillance System | G58: % of people in metropolitan areas | I58: 2022 | J58: 38.7 | K58: 35.7 | L58: 31.7 | M58: 38.2 | N58: 27.6 | O58: 25.1 | P58: 29.4 | Q58: 35.7 | R58: 29.9 | S58: 34.6 | T58: 26 | U58: 30.8 | V58: 35 | W58: 36.8 | X58: 35.8 | Y58: 34.3 | Z58: 33.1 | AA58: 39.3 | AB58: 31.3 | AC58: 34 | AD58: 27.5 | AE58: 34.8 | AF58: 32.3 | AG58: 38.3 | AH58: 34.9 | AI58: 32.2 | AJ58: 35.5 | AK58: 29.9 | AL58: 32.9 | AM58: 28.9 | AN58: 34 | AO58: 27.5 | AP58: 32.2 | AQ58: 33.3 | AR58: 35.2 | AS58: 37.8 | AT58: 33 | AU58: 30.1 | AV58: 31.6 | AW58: 35.4 | AX58: 33.5 | AY58: 36 | AZ58: 34.1 | BA58: 30.4 | BB58: 26.5 | BC58: 33.1 | BD58: 30.3 | BE58: 40.5 | BF58: 35.5 | BG58: 34.7
B59: BG05b | C59: Obesity prevalence by rural/urban area: Non-metro | D59: % of adults in non-metropolitan areas with a body mass index (BMI) greater than or equal to 30 | E59: CDC 2022 Behavioral Risk Factor Surveillance System | G59: % of people in non-metropolitan areas | I59: 2022 | J59: 40.9 | K59: 34 | L59: 35.3 | M59: 42.7 | N59: 30.6 | O59: 23.4 | P59: 26.2 | Q59: No data | R59: 35.8 | S59: 37 | T59: 26.5 | U59: 31.3 | V59: 42.9 | W59: 41.4 | X59: 40.4 | Y59: 39.5 | Z59: 30.2 | AA59: 42.8 | AB59: 34.6 | AC59: 36.3 | AD59: 23.2 | AE59: 37.8 | AF59: 36.4 | AG59: 41.4 | AH59: 36.3 | AI59: 26.8 | AJ59: 38.7 | AK59: 38.8 | AL59: 32.6 | AM59: No data | AN59: 38.1 | AO59: 34.2 | AP59: 40.5 | AQ59: 38 | AR59: 41.4 | AS59: 40.5 | AT59: 36.4 | AU59: 29.4 | AV59: No data | AW59: 39.7 | AX59: 38.7 | AY59: 42 | AZ59: 37.6 | BA59: 27.9 | BB59: 30 | BC59: 40.7 | BD59: 33.6 | BE59: 42.2 | BF59: 37 | BG59: 32.7
B60: BG06 | C60: Childhood obesity prevalence | D60: % of children with a body mass index (BMI) greater than or equal to 30 | E60: National Survey of Children’s Health | G60: % of children | I60: 2023 | J60: 22.8 | K60: 17.9 | L60: 18.7 | M60: 22.7 | N60: 16.9 | O60: 12.5 | P60: 15.8 | Q60: 20.2 | R60: 13.8 | S60: 17.2 | T60: 18.5 | U60: 14.7 | V60: 17 | W60: 16.3 | X60: 16.5 | Y60: 15.1 | Z60: 18.7 | AA60: 23.1 | AB60: 18.9 | AC60: 16.5 | AD60: 12.9 | AE60: 15.5 | AF60: 11.8 | AG60: 25 | AH60: 15.2 | AI60: 14.1 | AJ60: 14 | AK60: 15.6 | AL60: 11.2 | AM60: 16.7 | AN60: 17.2 | AO60: 17 | AP60: 15.6 | AQ60: 13.4 | AR60: 18.3 | AS60: 19.3 | AT60: 14.7 | AU60: 15.5 | AV60: 19.3 | AW60: 18.1 | AX60: 13.1 | AY60: 19.9 | AZ60: 21 | BA60: 12.1 | BB60: 11.2 | BC60: 13.7 | BD60: 14.8 | BE60: 24.1 | BF60: 18.4 | BG60: 13.5
B61: BG07 | C61: Life expectancy | D61: Life expectancy at birth | E61: CDC National Vital Statistics Reports | G61: Years | I61: 2021 | J61: 72 | K61: 74.5 | L61: 75 | M61: 72.5 | N61: 78.3 | O61: 77.7 | P61: 79.2 | Q61: 76.3 | R61: 76.1 | S61: 74.3 | T61: 79.9 | U61: 77.2 | V61: 77.1 | W61: 74.6 | X61: 77.7 | Y61: 76 | Z61: 72.3 | AA61: 72.2 | AB61: 76.7 | AC61: 77.2 | AD61: 79.6 | AE61: 75.7 | AF61: 78.8 | AG61: 70.9 | AH61: 74.6 | AI61: 75.8 | AJ61: 77.8 | AK61: 75.1 | AL61: 78.5 | AM61: 79 | AN61: 73 | AO61: 79 | AP61: 74.9 | AQ61: 77.6 | AR61: 74.5 | AS61: 72.7 | AT61: 77.4 | AU61: 76.4 | AV61: 78.5 | AW61: 73.5 | AX61: 76.6 | AY61: 72.4 | AZ61: 75.4 | BA61: 78.2 | BB61: 78.4 | BC61: 76.8 | BD61: 78.2 | BE61: 71 | BF61: 77.8 | BG61: 75
B62: BG08 | C62: Household income | D62: Real median household income | E62: Federal Reserve Bank of St. Louis | G62: USD | I62: 2023 | J62: 60,660 | K62: 98,190 | L62: 82,660 | M62: 63,250 | N62: 89,870 | O62: 96,640 | P62: 92,240 | Q62: 86,340 | R62: 72,200 | S62: 72,420 | T62: 97,360 | U62: 73,910 | V62: 87,820 | W62: 76,910 | X62: 80,860 | Y62: 84,830 | Z62: 61,980 | AA62: 57,650 | AB62: 75,740 | AC62: 102,000 | AD62: 106,500 | AE62: 76,960 | AF62: 90,340 | AG62: 55,060 | AH62: 78,290 | AI62: 79,220 | AJ62: 89,190 | AK62: 81,310 | AL62: 98,780 | AM62: 91,590 | AN62: 60,980 | AO62: 81,600 | AP62: 68,610 | AQ62: 76,960 | AR62: 73,770 | AS62: 67,330 | AT62: 88,740 | AU62: 79,820 | AV62: 81,860 | AW62: 69,100 | AX62: 81,740 | AY62: 72,700 | AZ62: 79,060 | BA62: 101,200 | BB62: 85,190 | BC62: 96,490 | BD62: 93,440 | BE62: 60,410 | BF62: 79,690 | BG62: 77,200
B63: BG09 | C63: Gini Index of Income Inequality | D63: Gini coefficient | E63: U.S. Census Bureau, 2023 American Community Survey | G63: 0-1 | H63: Note: The Gini coefficient measures inequality on a scale from 0 to 1. Higher values indicate higher inequality. | I63: 2023 | J63: 0.5 | K63: 0.4 | L63: 0.5 | M63: 0.5 | N63: 0.5 | O63: 0.5 | P63: 0.5 | Q63: 0.5 | R63: 0.5 | S63: 0.5 | T63: 0.5 | U63: 0.4 | V63: 0.5 | W63: 0.5 | X63: 0.4 | Y63: 0.5 | Z63: 0.5 | AA63: 0.5 | AB63: 0.5 | AC63: 0.5 | AD63: 0.5 | AE63: 0.5 | AF63: 0.5 | AG63: 0.5 | AH63: 0.5 | AI63: 0.5 | AJ63: 0.5 | AK63: 0.5 | AL63: 0.4 | AM63: 0.5 | AN63: 0.5 | AO63: 0.5 | AP63: 0.5 | AQ63: 0.4 | AR63: 0.5 | AS63: 0.5 | AT63: 0.5 | AU63: 0.5 | AV63: 0.5 | AW63: 0.5 | AX63: 0.5 | AY63: 0.5 | AZ63: 0.5 | BA63: 0.4 | BB63: 0.5 | BC63: 0.5 | BD63: 0.5 | BE63: 0.5 | BF63: 0.4 | BG63: 0.4
B64: BG10 | C64: Location quotient for dietitians and nutritionists | D64: The ratio of the area concentration of occupational employment to the national average concentration | E64: U.S. Bureau of Labor Statistics, 2023 | H64: Note: A location quotient greater than 1 indicates the occupation has a higher share of employment than average, and a location quotient less than 1 indicates the occupation is less prevalent in the area than average. | I64: 2023 | J64: 0.8 | K64: 0.9 | L64: 0.8 | M64: 1.1 | N64: 1.1 | O64: 1 | P64: 1.1 | Q64: 1.5 | R64: 0.9 | S64: 0.7 | T64: 1.2 | U64: 0.6 | V64: 0.8 | W64: 1 | X64: 0.8 | Y64: 0.7 | Z64: 1.1 | AA64: 0.7 | AB64: 0.8 | AC64: 1 | AD64: 1.3 | AE64: 1 | AF64: 1.2 | AG64: 1 | AH64: 1.6 | AI64: 1.2 | AJ64: 1 | AK64: 0.7 | AL64: 0.9 | AM64: 1.1 | AN64: 1.1 | AO64: 1.1 | AP64: 0.9 | AQ64: 0.8 | AR64: 1.1 | AS64: 0.9 | AT64: 0.7 | AU64: 1.3 | AV64: 1.4 | AW64: 0.8 | AX64: 0.9 | AY64: 1 | AZ64: 0.8 | BA64: 1.6 | BB64: 1.2 | BC64: 0.8 | BD64: 1 | BE64: 1.4 | BF64: 1 | BG64: 0.8
B65: BG11 | C65: Healthcare spending per capita | D65: State dollars dedicated to public health per person | E65: CDC, HRSA and Trust for America's Health | G65: USD | I65: 2022-2023 | J65: 137 | K65: 334 | L65: 84 | M65: 128 | N65: 173 | O65: 132 | P65: 119 | Q65: 149 | R65: 77 | S65: 122 | T65: 156 | U65: 119 | V65: 110 | W65: 73 | X65: 105 | Y65: 95 | Z65: 108 | AA65: 130 | AB65: 157 | AC65: 210 | AD65: 205 | AE65: 79 | AF65: 127 | AG65: 119 | AH65: 92 | AI65: 143 | AJ65: 118 | AK65: 66 | AL65: 109 | AM65: 95 | AN65: 300 | AO65: 178 | AP65: 78 | AQ65: 162 | AR65: 97 | AS65: 143 | AT65: 191 | AU65: 79 | AV65: 333 | AW65: 102 | AX65: 136 | AY65: 132 | AZ65: 78 | BA65: 95 | BB65: 206 | BC65: 107 | BD65: 139 | BE65: 161 | BF65: 69 | BG65: 123
B66: BG12 | C66: Health insured population | D66: % of adults with health insurance | E66: U.S. Census Bureau, 2023 American Community Survey | G66: % of people | I66: 2023 | J66: 13.3 | K66: 15.4 | L66: 14.4 | M66: 13 | N66: 10.1 | O66: 9.8 | P66: 7.3 | Q66: 10.1 | R66: 16.5 | S66: 17.2 | T66: 4.9 | U66: 12.9 | V66: 9.6 | W66: 9.5 | X66: 7.5 | Y66: 12.7 | Z66: 8.2 | AA66: 10.6 | AB66: 9 | AC66: 9.3 | AD66: 4.2 | AE66: 6.8 | AF66: 6 | AG66: 15.8 | AH66: 11 | AI66: 12.3 | AJ66: 9.4 | AK66: 16.4 | AL66: 6.9 | AM66: 11.4 | AN66: 14.2 | AO66: 7.6 | AP66: 14.1 | AQ66: 6.5 | AR66: 8.9 | AS66: 16.8 | AT66: 8.4 | AU66: 7.7 | AV66: 6.9 | AW66: 13.7 | AX66: 11.8 | AY66: 13.9 | AZ66: 23.6 | BA66: 10.7 | BB66: 5.2 | BC66: 9.6 | BD66: 9.6 | BE66: 9.3 | BF66: 7 | BG66: 15.8
B67: BG13 | C67: Access to a personal doctor | D67: % of adults who report having a personal doctor/healthcare provider | E67: CDC 2023 Behavioral Risk Factor Surveillance System | G67: % of people | I67: 2023 | J67: 82.4 | K67: 79.1 | L67: 79.8 | M67: 84.8 | N67: 81.5 | O67: 81 | P67: 87.2 | Q67: 87.4 | R67: 80 | S67: 81.6 | T67: 86.9 | U67: 82.8 | V67: 83.4 | W67: 86.4 | X67: 82.2 | Y67: 84.9 | Z67: 88.8 | AA67: 86.3 | AB67: 90.3 | AC67: 89 | AD67: 91 | AE67: 88 | AF67: 83.2 | AG67: 82.3 | AH67: 83.8 | AI67: 80.7 | AJ67: 80.3 | AK67: 73.5 | AL67: 92 | AM67: 85.2 | AN67: 73.5 | AO67: 87.1 | AP67: 83.1 | AQ67: 84 | AR67: 87.4 | AS67: 81.5 | AT67: 84.1 | AU67: 89.8 | AV67: 88.6 | AW67: 82.7 | AX67: 86.3 | AY67: 83 | AZ67: 74.6 | BA67: 71.6 | BB67: 91.6 | BC67: 84.2 | BD67: 85.8 | BE67: 81.3 | BF67: 84.1 | BG67: 76.5
B68: BG14 | C68: Physical activity | D68: % of adults who met the federal physical activity guidelines (150 minutes of moderate or 75 minutes of vigorous aerobic activity and two days of muscle strengthening per week) in the past 30 days | E68: CDC 2023 Behavioral Risk Factor Surveillance System | G68: % of people | I68: 2023 | J68: 25 | K68: 33.9 | L68: 33.3 | M68: 26.8 | N68: 30.1 | O68: 35.4 | P68: 31.4 | Q68: 28.3 | R68: 31.5 | S68: 29.6 | T68: 31.8 | U68: 29.4 | V68: 29.1 | W68: 29.3 | X68: 25.9 | Y68: 26.8 | Z68: 35.3 | AA68: 26.9 | AB68: 31 | AC68: 30.8 | AD68: 31.1 | AE68: 30.2 | AF68: 30.2 | AG68: 23.4 | AH68: 23.7 | AI68: 32.2 | AJ68: 28.2 | AK68: 31 | AL68: 33.1 | AM68: 31.3 | AN68: 30.4 | AO68: 30.8 | AP68: 26 | AQ68: 30.9 | AR68: 30.6 | AS68: 23.4 | AT68: 32.4 | AU68: 49.9 | AV68: 29.9 | AW68: 31.6 | AX68: 26.5 | AY68: 27.4 | AZ68: 30.9 | BA68: 33.1 | BB68: 33.7 | BC68: 31.8 | BD68: 31.8 | BE68: 20.6 | BF68: 27.5 | BG68: 30.1

Sheet SCORE TABLE
C1: =HOME!B7 -> THE UNITED STATES OBESITY RESPONSE INDEX
B6: Score table
B9: No. | C9: Indicator name | D9: Weight | E9: Contribution to overall score | F9: Alabama | G9: Alaska | H9: Arizona | I9: Arkansas | J9: California | K9: Colorado | L9: Connecticut | M9: Delaware | N9: Florida | O9: Georgia | P9: Hawaii | Q9: Idaho | R9: Illinois | S9: Indiana | T9: Iowa | U9: Kansas | V9: Kentucky | W9: Louisiana | X9: Maine | Y9: Maryland | Z9: Massachusetts | AA9: Michigan | AB9: Minnesota | AC9: Mississippi | AD9: Missouri | AE9: Montana | AF9: Nebraska | AG9: Nevada | AH9: New Hampshire | AI9: New Jersey | AJ9: New Mexico | AK9: New York | AL9: North Carolina | AM9: North Dakota | AN9: Ohio | AO9: Oklahoma | AP9: Oregon | AQ9: Pennsylvania | AR9: Rhode Island | AS9: South Carolina | AT9: South Dakota | AU9: Tennessee | AV9: Texas | AW9: Utah | AX9: Vermont | AY9: Virginia | AZ9: Washington | BA9: West Virginia | BB9: Wisconsin | BC9: Wyoming
B10: 0 | C10: OVERALL | F10: =SUM($D11*F11,$D28*F28,$D40*F40) -> 44 | G10: 48 | H10: 39 | I10: 54 | J10: 58 | K10: 65 | L10: 54 | M10: 49 | N10: 64 | O10: 40 | P10: 55 | Q10: 52 | R10: 64 | S10: 59 | T10: 64 | U10: 38 | V10: 66 | W10: 55 | X10: 57 | Y10: 62 | Z10: 49 | AA10: 51 | AB10: 69 | AC10: 55 | AD10: 49 | AE10: 45 | AF10: 50 | AG10: 59 | AH10: 44 | AI10: 48 | AJ10: 61 | AK10: 61 | AL10: =SUM($D11*AL11,$D28*AL28,$D40*AL40) -> 58 | AM10: 45 | AN10: 63 | AO10: 60 | AP10: 53 | AQ10: 53 | AR10: 62 | AS10: 40 | AT10: 47 | AU10: 54 | AV10: 58 | AW10: 51 | AX10: 54 | AY10: 63 | AZ10: 60 | BA10: 54 | BB10: 59 | BC10: 49
B11: 1 | C11: Policy and governance | D11: =1/3 -> 33% | E11: =1/3 -> 33% | F11: =ROUND(SUM($D12*F12,$D25*F25),5) -> 28 | G11: 33 | H11: 20 | I11: 24 | J11: 46 | K11: 46 | L11: 29 | M11: 31 | N11: 59 | O11: 18 | P11: 41 | Q11: 59 | R11: 33 | S11: 30 | T11: 50 | U11: 25 | V11: 50 | W11: 53 | X11: 33 | Y11: 36 | Z11: 30 | AA11: 42 | AB11: 56 | AC11: 59 | AD11: 40 | AE11: 41 | AF11: 60 | AG11: 55 | AH11: 29 | AI11: 29 | AJ11: 64 | AK11: 38 | AL11: =ROUND(SUM($D12*AL12,$D25*AL25),5) -> 30 | AM11: 25 | AN11: 50 | AO11: 68 | AP11: 35 | AQ11: 39 | AR11: 46 | AS11: 24 | AT11: 35 | AU11: 35 | AV11: 38 | AW11: 35 | AX11: 29 | AY11: 35 | AZ11: 35 | BA11: 55 | BB11: 35 | BC11: 44
B12: 1.1 | C12: Obesity-related policy | D12: 50% | E12: =0.5*$E$11 -> 17% | F12: =ROUND(SUM($D13*F13,$D14*F14,$D15*F15,$D23*F23,$D24*F24),5) -> 32 | G12: 40 | H12: 3 | I12: 23 | J12: 43 | K12: 54 | L12: 20 | M12: 13 | N12: 30 | O12: 10 | P12: 45 | Q12: 30 | R12: 40 | S12: 23 | T12: 13 | U12: 0 | V12: 13 | W12: 30 | X12: 29 | Y12: 23 | Z12: 10 | AA12: 47 | AB12: 13 | AC12: 43 | AD12: 30 | AE12: 20 | AF12: 33 | AG12: 23 | AH12: 20 | AI12: 33 | AJ12: 40 | AK12: 13 | AL12: =ROUND(SUM($D13*AL13,$D14*AL14,$D15*AL15,$D23*AL23,$D24*AL24),5) -> 10 | AM12: 0 | AN12: 13 | AO12: 48 | AP12: 33 | AQ12: 40 | AR12: 43 | AS12: 10 | AT12: 33 | AU12: 33 | AV12: 38 | AW12: 33 | AX12: 20 | AY12: 20 | AZ12: 33 | BA12: 23 | BB12: 19 | BC12: 0
B13: 1.1.1 | C13: Health policy/strategy/plan that includes obesity | D13: =1/5 -> 20% | E13: =$E$12/5 -> 3% | F13: =(('DATA TABLE'!J13-0)/(1-0))*100 -> 0 | G13: =(('DATA TABLE'!K13-0)/(1-0))*100 -> 100 | H13: =(('DATA TABLE'!L13-0)/(1-0))*100 -> 0 | I13: =(('DATA TABLE'!M13-0)/(1-0))*100 -> 100 | J13: =(('DATA TABLE'!N13-0)/(1-0))*100 -> 100 | K13: =(('DATA TABLE'!O13-0)/(1-0))*100 -> 0 | L13: =(('DATA TABLE'!P13-0)/(1-0))*100 -> 0 | M13: =(('DATA TABLE'!Q13-0)/(1-0))*100 -> 0 | N13: =(('DATA TABLE'!R13-0)/(1-0))*100 -> 100 | O13: =(('DATA TABLE'!S13-0)/(1-0))*100 -> 0 | P13: =(('DATA TABLE'!T13-0)/(1-0))*100 -> 100 | Q13: =(('DATA TABLE'!U13-0)/(1-0))*100 -> 100 | R13: =(('DATA TABLE'!V13-0)/(1-0))*100 -> 100 | S13: =(('DATA TABLE'!W13-0)/(1-0))*100 -> 0 | T13: =(('DATA TABLE'!X13-0)/(1-0))*100 -> 0 | U13: =(('DATA TABLE'!Y13-0)/(1-0))*100 -> 0 | V13: =(('DATA TABLE'!Z13-0)/(1-0))*100 -> 0 | W13: =(('DATA TABLE'!AA13-0)/(1-0))*100 -> 100 | X13: =(('DATA TABLE'!AB13-0)/(1-0))*100 -> 0 | Y13: =(('DATA TABLE'!AC13-0)/(1-0))*100 -> 0 | Z13: =(('DATA TABLE'!AD13-0)/(1-0))*100 -> 0 | AA13: =(('DATA TABLE'!AE13-0)/(1-0))*100 -> 0 | AB13: =(('DATA TABLE'!AF13-0)/(1-0))*100 -> 0 | AC13: =(('DATA TABLE'!AG13-0)/(1-0))*100 -> 100 | AD13: =(('DATA TABLE'!AH13-0)/(1-0))*100 -> 100 | AE13: =(('DATA TABLE'!AI13-0)/(1-0))*100 -> 100 | AF13: =(('DATA TABLE'!AJ13-0)/(1-0))*100 -> 100 | AG13: =(('DATA TABLE'!AK13-0)/(1-0))*100 -> 0 | AH13: =(('DATA TABLE'!AL13-0)/(1-0))*100 -> 0 | AI13: =(('DATA TABLE'!AM13-0)/(1-0))*100 -> 100 | AJ13: =(('DATA TABLE'!AN13-0)/(1-0))*100 -> 100 | AK13: =(('DATA TABLE'!AO13-0)/(1-0))*100 -> 0 | AL13: =(('DATA TABLE'!AP13-0)/(1-0))*100 -> 0 | AM13: =(('DATA TABLE'!AQ13-0)/(1-0))*100 -> 0 | AN13: =(('DATA TABLE'!AR13-0)/(1-0))*100 -> 0 | AO13: =(('DATA TABLE'!AS13-0)/(1-0))*100 -> 100 | AP13: =(('DATA TABLE'!AT13-0)/(1-0))*100 -> 0 | AQ13: =(('DATA TABLE'!AU13-0)/(1-0))*100 -> 100 | AR13: =(('DATA TABLE'!AV13-0)/(1-0))*100 -> 100 | AS13: =(('DATA TABLE'!AW13-0)/(1-0))*100 -> 0 | AT13: =(('DATA TABLE'!AX13-0)/(1-0))*100 -> 100 | AU13: =(('DATA TABLE'!AY13-0)/(1-0))*100 -> 100 | AV13: =(('DATA TABLE'!AZ13-0)/(1-0))*100 -> 0 | AW13: =(('DATA TABLE'!BA13-0)/(1-0))*100 -> 0 | AX13: =(('DATA TABLE'!BB13-0)/(1-0))*100 -> 0 | AY13: =(('DATA TABLE'!BC13-0)/(1-0))*100 -> 100 | AZ13: =(('DATA TABLE'!BD13-0)/(1-0))*100 -> 0 | BA13: =(('DATA TABLE'!BE13-0)/(1-0))*100 -> 0 | BB13: =(('DATA TABLE'!BF13-0)/(1-0))*100 -> 0 | BC13: =(('DATA TABLE'!BG13-0)/(1-0))*100 -> 0
B14: 1.1.2 | C14: Definition of obesity | D14: =1/5 -> 20% | E14: =$E$12/5 -> 3% | F14: =(('DATA TABLE'!J14-0)/(2-0))*100 -> 100 | G14: =(('DATA TABLE'!K14-0)/(2-0))*100 -> 100 | H14: =(('DATA TABLE'!L14-0)/(2-0))*100 -> 0 | I14: =(('DATA TABLE'!M14-0)/(2-0))*100 -> 0 | J14: =(('DATA TABLE'!N14-0)/(2-0))*100 -> 100 | K14: =(('DATA TABLE'!O14-0)/(2-0))*100 -> 100 | L14: =(('DATA TABLE'!P14-0)/(2-0))*100 -> 100 | M14: =(('DATA TABLE'!Q14-0)/(2-0))*100 -> 50 | N14: =(('DATA TABLE'!R14-0)/(2-0))*100 -> 50 | O14: =(('DATA TABLE'!S14-0)/(2-0))*100 -> 50 | P14: =(('DATA TABLE'!T14-0)/(2-0))*100 -> 50 | Q14: =(('DATA TABLE'!U14-0)/(2-0))*100 -> 50 | R14: =(('DATA TABLE'!V14-0)/(2-0))*100 -> 100 | S14: =(('DATA TABLE'!W14-0)/(2-0))*100 -> 100 | T14: =(('DATA TABLE'!X14-0)/(2-0))*100 -> 50 | U14: =(('DATA TABLE'!Y14-0)/(2-0))*100 -> 0 | V14: =(('DATA TABLE'!Z14-0)/(2-0))*100 -> 50 | W14: =(('DATA TABLE'!AA14-0)/(2-0))*100 -> 50 | X14: =(('DATA TABLE'!AB14-0)/(2-0))*100 -> 100 | Y14: =(('DATA TABLE'!AC14-0)/(2-0))*100 -> 100 | Z14: =(('DATA TABLE'!AD14-0)/(2-0))*100 -> 50 | AA14: =(('DATA TABLE'!AE14-0)/(2-0))*100 -> 100 | AB14: =(('DATA TABLE'!AF14-0)/(2-0))*100 -> 50 | AC14: =(('DATA TABLE'!AG14-0)/(2-0))*100 -> 100 | AD14: =(('DATA TABLE'!AH14-0)/(2-0))*100 -> 50 | AE14: =(('DATA TABLE'!AI14-0)/(2-0))*100 -> 0 | AF14: =(('DATA TABLE'!AJ14-0)/(2-0))*100 -> 50 | AG14: =(('DATA TABLE'!AK14-0)/(2-0))*100 -> 100 | AH14: =(('DATA TABLE'!AL14-0)/(2-0))*100 -> 100 | AI14: =(('DATA TABLE'!AM14-0)/(2-0))*100 -> 50 | AJ14: =(('DATA TABLE'!AN14-0)/(2-0))*100 -> 100 | AK14: =(('DATA TABLE'!AO14-0)/(2-0))*100 -> 50 | AL14: =(('DATA TABLE'!AP14-0)/(2-0))*100 -> 50 | AM14: =(('DATA TABLE'!AQ14-0)/(2-0))*100 -> 0 | AN14: =(('DATA TABLE'!AR14-0)/(2-0))*100 -> 50 | AO14: =(('DATA TABLE'!AS14-0)/(2-0))*100 -> 50 | AP14: =(('DATA TABLE'!AT14-0)/(2-0))*100 -> 100 | AQ14: =(('DATA TABLE'!AU14-0)/(2-0))*100 -> 100 | AR14: =(('DATA TABLE'!AV14-0)/(2-0))*100 -> 50 | AS14: =(('DATA TABLE'!AW14-0)/(2-0))*100 -> 50 | AT14: =(('DATA TABLE'!AX14-0)/(2-0))*100 -> 50 | AU14: =(('DATA TABLE'!AY14-0)/(2-0))*100 -> 50 | AV14: =(('DATA TABLE'!AZ14-0)/(2-0))*100 -> 50 | AW14: =(('DATA TABLE'!BA14-0)/(2-0))*100 -> 100 | AX14: =(('DATA TABLE'!BB14-0)/(2-0))*100 -> 100 | AY14: =(('DATA TABLE'!BC14-0)/(2-0))*100 -> 0 | AZ14: =(('DATA TABLE'!BD14-0)/(2-0))*100 -> 50 | BA14: =(('DATA TABLE'!BE14-0)/(2-0))*100 -> 100 | BB14: =(('DATA TABLE'!BF14-0)/(2-0))*100 -> 50 | BC14: =(('DATA TABLE'!BG14-0)/(2-0))*100 -> 0
B15: 1.1.3 | C15: Obesity-related policy/strategy/plan | D15: =1/5 -> 20% | E15: =$E$12/5 -> 3% | F15: =ROUND(SUMPRODUCT($D16:$D22,F16:F22),5) -> 58 | G15: =ROUND(SUMPRODUCT($D16:$D22,G16:G22),5) -> 0 | H15: 13 | I15: 13 | J15: 13 | K15: 69 | L15: 0 | M15: 13 | N15: 0 | O15: 0 | P15: 77 | Q15: 0 | R15: 0 | S15: 13 | T15: 13 | U15: 0 | V15: 13 | W15: 0 | X15: 44 | Y15: 13 | Z15: 0 | AA15: 33 | AB15: 13 | AC15: 13 | AD15: 0 | AE15: 0 | AF15: 13 | AG15: 13 | AH15: 0 | AI15: 13 | AJ15: 0 | AK15: 13 | AL15: =ROUND(SUMPRODUCT($D16:$D22,AL16:AL22),5) -> 0 | AM15: 0 | AN15: 13 | AO15: 90 | AP15: 67 | AQ15: 0 | AR15: 63 | AS15: 0 | AT15: 13 | AU15: 13 | AV15: 38 | AW15: 63 | AX15: 0 | AY15: 0 | AZ15: 13 | BA15: 13 | BB15: 46 | BC15: 0
B16: 1.1.3a | C16: Existence of an obesity-related policy/strategy/plan | D16: 25% | E16: =D16*$E$15 -> 0.8% | F16: =(('DATA TABLE'!J16-0)/(2-0))*100 -> 100 | G16: =(('DATA TABLE'!K16-0)/(2-0))*100 -> 0 | H16: =(('DATA TABLE'!L16-0)/(2-0))*100 -> 50 | I16: =(('DATA TABLE'!M16-0)/(2-0))*100 -> 50 | J16: =(('DATA TABLE'!N16-0)/(2-0))*100 -> 50 | K16: =(('DATA TABLE'!O16-0)/(2-0))*100 -> 100 | L16: =(('DATA TABLE'!P16-0)/(2-0))*100 -> 0 | M16: =(('DATA TABLE'!Q16-0)/(2-0))*100 -> 50 | N16: =(('DATA TABLE'!R16-0)/(2-0))*100 -> 0 | O16: =(('DATA TABLE'!S16-0)/(2-0))*100 -> 0 | P16: =(('DATA TABLE'!T16-0)/(2-0))*100 -> 100 | Q16: =(('DATA TABLE'!U16-0)/(2-0))*100 -> 0 | R16: =(('DATA TABLE'!V16-0)/(2-0))*100 -> 0 | S16: =(('DATA TABLE'!W16-0)/(2-0))*100 -> 50 | T16: =(('DATA TABLE'!X16-0)/(2-0))*100 -> 50 | U16: =(('DATA TABLE'!Y16-0)/(2-0))*100 -> 0 | V16: =(('DATA TABLE'!Z16-0)/(2-0))*100 -> 50 | W16: =(('DATA TABLE'!AA16-0)/(2-0))*100 -> 0 | X16: =(('DATA TABLE'!AB16-0)/(2-0))*100 -> 100 | Y16: =(('DATA TABLE'!AC16-0)/(2-0))*100 -> 50 | Z16: =(('DATA TABLE'!AD16-0)/(2-0))*100 -> 0 | AA16: =(('DATA TABLE'!AE16-0)/(2-0))*100 -> 100 | AB16: =(('DATA TABLE'!AF16-0)/(2-0))*100 -> 50 | AC16: =(('DATA TABLE'!AG16-0)/(2-0))*100 -> 50 | AD16: =(('DATA TABLE'!AH16-0)/(2-0))*100 -> 0 | AE16: =(('DATA TABLE'!AI16-0)/(2-0))*100 -> 0 | AF16: =(('DATA TABLE'!AJ16-0)/(2-0))*100 -> 50 | AG16: =(('DATA TABLE'!AK16-0)/(2-0))*100 -> 50 | AH16: =(('DATA TABLE'!AL16-0)/(2-0))*100 -> 0 | AI16: =(('DATA TABLE'!AM16-0)/(2-0))*100 -> 50 | AJ16: =(('DATA TABLE'!AN16-0)/(2-0))*100 -> 0 | AK16: =(('DATA TABLE'!AO16-0)/(2-0))*100 -> 50 | AL16: =(('DATA TABLE'!AP16-0)/(2-0))*100 -> 0 | AM16: =(('DATA TABLE'!AQ16-0)/(2-0))*100 -> 0 | AN16: =(('DATA TABLE'!AR16-0)/(2-0))*100 -> 50 | AO16: =(('DATA TABLE'!AS16-0)/(2-0))*100 -> 100 | AP16: =(('DATA TABLE'!AT16-0)/(2-0))*100 -> 100 | AQ16: =(('DATA TABLE'!AU16-0)/(2-0))*100 -> 0 | AR16: =(('DATA TABLE'!AV16-0)/(2-0))*100 -> 100 | AS16: =(('DATA TABLE'!AW16-0)/(2-0))*100 -> 0 | AT16: =(('DATA TABLE'!AX16-0)/(2-0))*100 -> 50 | AU16: =(('DATA TABLE'!AY16-0)/(2-0))*100 -> 50 | AV16: =(('DATA TABLE'!AZ16-0)/(2-0))*100 -> 100 | AW16: =(('DATA TABLE'!BA16-0)/(2-0))*100 -> 100 | AX16: =(('DATA TABLE'!BB16-0)/(2-0))*100 -> 0 | AY16: =(('DATA TABLE'!BC16-0)/(2-0))*100 -> 0 | AZ16: =(('DATA TABLE'!BD16-0)/(2-0))*100 -> 50 | BA16: =(('DATA TABLE'!BE16-0)/(2-0))*100 -> 50 | BB16: =(('DATA TABLE'!BF16-0)/(2-0))*100 -> 100 | BC16: =(('DATA TABLE'!BG16-0)/(2-0))*100 -> 0
B17: 1.1.3b | C17: Engagement with stakeholders during development | D17: 13% | E17: =D17*$E$15 -> 0.4% | F17: =(('DATA TABLE'!J17-0)/(3-0))*100 -> 67 | G17: =(('DATA TABLE'!K17-0)/(3-0))*100 -> 0 | H17: =(('DATA TABLE'!L17-0)/(3-0))*100 -> 0 | I17: =(('DATA TABLE'!M17-0)/(3-0))*100 -> 0 | J17: =(('DATA TABLE'!N17-0)/(3-0))*100 -> 0 | K17: =(('DATA TABLE'!O17-0)/(3-0))*100 -> 67 | L17: =(('DATA TABLE'!P17-0)/(3-0))*100 -> 0 | M17: =(('DATA TABLE'!Q17-0)/(3-0))*100 -> 0 | N17: =(('DATA TABLE'!R17-0)/(3-0))*100 -> 0 | O17: =(('DATA TABLE'!S17-0)/(3-0))*100 -> 0 | P17: =(('DATA TABLE'!T17-0)/(3-0))*100 -> 67 | Q17: =(('DATA TABLE'!U17-0)/(3-0))*100 -> 0 | R17: =(('DATA TABLE'!V17-0)/(3-0))*100 -> 0 | S17: =(('DATA TABLE'!W17-0)/(3-0))*100 -> 0 | T17: =(('DATA TABLE'!X17-0)/(3-0))*100 -> 0 | U17: =(('DATA TABLE'!Y17-0)/(3-0))*100 -> 0 | V17: =(('DATA TABLE'!Z17-0)/(3-0))*100 -> 0 | W17: =(('DATA TABLE'!AA17-0)/(3-0))*100 -> 0 | X17: =(('DATA TABLE'!AB17-0)/(3-0))*100 -> 67 | Y17: =(('DATA TABLE'!AC17-0)/(3-0))*100 -> 0 | Z17: =(('DATA TABLE'!AD17-0)/(3-0))*100 -> 0 | AA17: =(('DATA TABLE'!AE17-0)/(3-0))*100 -> 0 | AB17: =(('DATA TABLE'!AF17-0)/(3-0))*100 -> 0 | AC17: =(('DATA TABLE'!AG17-0)/(3-0))*100 -> 0 | AD17: =(('DATA TABLE'!AH17-0)/(3-0))*100 -> 0 | AE17: =(('DATA TABLE'!AI17-0)/(3-0))*100 -> 0 | AF17: =(('DATA TABLE'!AJ17-0)/(3-0))*100 -> 0 | AG17: =(('DATA TABLE'!AK17-0)/(3-0))*100 -> 0 | AH17: =(('DATA TABLE'!AL17-0)/(3-0))*100 -> 0 | AI17: =(('DATA TABLE'!AM17-0)/(3-0))*100 -> 0 | AJ17: =(('DATA TABLE'!AN17-0)/(3-0))*100 -> 0 | AK17: =(('DATA TABLE'!AO17-0)/(3-0))*100 -> 0 | AL17: =(('DATA TABLE'!AP17-0)/(3-0))*100 -> 0 | AM17: =(('DATA TABLE'!AQ17-0)/(3-0))*100 -> 0 | AN17: =(('DATA TABLE'!AR17-0)/(3-0))*100 -> 0 | AO17: =(('DATA TABLE'!AS17-0)/(3-0))*100 -> 67 | AP17: =(('DATA TABLE'!AT17-0)/(3-0))*100 -> 0 | AQ17: =(('DATA TABLE'!AU17-0)/(3-0))*100 -> 0 | AR17: =(('DATA TABLE'!AV17-0)/(3-0))*100 -> 67 | AS17: =(('DATA TABLE'!AW17-0)/(3-0))*100 -> 0 | AT17: =(('DATA TABLE'!AX17-0)/(3-0))*100 -> 0 | AU17: =(('DATA TABLE'!AY17-0)/(3-0))*100 -> 0 | AV17: =(('DATA TABLE'!AZ17-0)/(3-0))*100 -> 0 | AW17: =(('DATA TABLE'!BA17-0)/(3-0))*100 -> 67 | AX17: =(('DATA TABLE'!BB17-0)/(3-0))*100 -> 0 | AY17: =(('DATA TABLE'!BC17-0)/(3-0))*100 -> 0 | AZ17: =(('DATA TABLE'!BD17-0)/(3-0))*100 -> 0 | BA17: =(('DATA TABLE'!BE17-0)/(3-0))*100 -> 0 | BB17: =(('DATA TABLE'!BF17-0)/(3-0))*100 -> 33 | BC17: =(('DATA TABLE'!BG17-0)/(3-0))*100 -> 0
B18: 1.1.3c | C18: Measures for obesity prevention | D18: 13% | E18: 0.4% | F18: =(('DATA TABLE'!J18-0)/(3-0))*100 -> 100 | G18: =(('DATA TABLE'!K18-0)/(3-0))*100 -> 0 | H18: =(('DATA TABLE'!L18-0)/(3-0))*100 -> 0 | I18: =(('DATA TABLE'!M18-0)/(3-0))*100 -> 0 | J18: =(('DATA TABLE'!N18-0)/(3-0))*100 -> 0 | K18: =(('DATA TABLE'!O18-0)/(3-0))*100 -> 67 | L18: =(('DATA TABLE'!P18-0)/(3-0))*100 -> 0 | M18: =(('DATA TABLE'!Q18-0)/(3-0))*100 -> 0 | N18: =(('DATA TABLE'!R18-0)/(3-0))*100 -> 0 | O18: =(('DATA TABLE'!S18-0)/(3-0))*100 -> 0 | P18: =(('DATA TABLE'!T18-0)/(3-0))*100 -> 100 | Q18: =(('DATA TABLE'!U18-0)/(3-0))*100 -> 0 | R18: =(('DATA TABLE'!V18-0)/(3-0))*100 -> 0 | S18: =(('DATA TABLE'!W18-0)/(3-0))*100 -> 0 | T18: =(('DATA TABLE'!X18-0)/(3-0))*100 -> 0 | U18: =(('DATA TABLE'!Y18-0)/(3-0))*100 -> 0 | V18: =(('DATA TABLE'!Z18-0)/(3-0))*100 -> 0 | W18: =(('DATA TABLE'!AA18-0)/(3-0))*100 -> 0 | X18: =(('DATA TABLE'!AB18-0)/(3-0))*100 -> 33 | Y18: =(('DATA TABLE'!AC18-0)/(3-0))*100 -> 0 | Z18: =(('DATA TABLE'!AD18-0)/(3-0))*100 -> 0 | AA18: =(('DATA TABLE'!AE18-0)/(3-0))*100 -> 33 | AB18: =(('DATA TABLE'!AF18-0)/(3-0))*100 -> 0 | AC18: =(('DATA TABLE'!AG18-0)/(3-0))*100 -> 0 | AD18: =(('DATA TABLE'!AH18-0)/(3-0))*100 -> 0 | AE18: =(('DATA TABLE'!AI18-0)/(3-0))*100 -> 0 | AF18: =(('DATA TABLE'!AJ18-0)/(3-0))*100 -> 0 | AG18: =(('DATA TABLE'!AK18-0)/(3-0))*100 -> 0 | AH18: =(('DATA TABLE'!AL18-0)/(3-0))*100 -> 0 | AI18: =(('DATA TABLE'!AM18-0)/(3-0))*100 -> 0 | AJ18: =(('DATA TABLE'!AN18-0)/(3-0))*100 -> 0 | AK18: =(('DATA TABLE'!AO18-0)/(3-0))*100 -> 0 | AL18: =(('DATA TABLE'!AP18-0)/(3-0))*100 -> 0 | AM18: =(('DATA TABLE'!AQ18-0)/(3-0))*100 -> 0 | AN18: =(('DATA TABLE'!AR18-0)/(3-0))*100 -> 0 | AO18: =(('DATA TABLE'!AS18-0)/(3-0))*100 -> 100 | AP18: =(('DATA TABLE'!AT18-0)/(3-0))*100 -> 100 | AQ18: =(('DATA TABLE'!AU18-0)/(3-0))*100 -> 0 | AR18: =(('DATA TABLE'!AV18-0)/(3-0))*100 -> 100 | AS18: =(('DATA TABLE'!AW18-0)/(3-0))*100 -> 0 | AT18: =(('DATA TABLE'!AX18-0)/(3-0))*100 -> 0 | AU18: =(('DATA TABLE'!AY18-0)/(3-0))*100 -> 0 | AV18: =(('DATA TABLE'!AZ18-0)/(3-0))*100 -> 67 | AW18: =(('DATA TABLE'!BA18-0)/(3-0))*100 -> 67 | AX18: =(('DATA TABLE'!BB18-0)/(3-0))*100 -> 0 | AY18: =(('DATA TABLE'!BC18-0)/(3-0))*100 -> 0 | AZ18: =(('DATA TABLE'!BD18-0)/(3-0))*100 -> 0 | BA18: =(('DATA TABLE'!BE18-0)/(3-0))*100 -> 0 | BB18: =(('DATA TABLE'!BF18-0)/(3-0))*100 -> 33 | BC18: =(('DATA TABLE'!BG18-0)/(3-0))*100 -> 0
B19: 1.1.3d | C19: Measures for obesity management | D19: 13% | E19: 0.4% | F19: =(('DATA TABLE'!J19-0)/(3-0))*100 -> 0 | G19: =(('DATA TABLE'!K19-0)/(3-0))*100 -> 0 | H19: =(('DATA TABLE'!L19-0)/(3-0))*100 -> 0 | I19: =(('DATA TABLE'!M19-0)/(3-0))*100 -> 0 | J19: =(('DATA TABLE'!N19-0)/(3-0))*100 -> 0 | K19: =(('DATA TABLE'!O19-0)/(3-0))*100 -> 67 | L19: =(('DATA TABLE'!P19-0)/(3-0))*100 -> 0 | M19: =(('DATA TABLE'!Q19-0)/(3-0))*100 -> 0 | N19: =(('DATA TABLE'!R19-0)/(3-0))*100 -> 0 | O19: =(('DATA TABLE'!S19-0)/(3-0))*100 -> 0 | P19: =(('DATA TABLE'!T19-0)/(3-0))*100 -> 100 | Q19: =(('DATA TABLE'!U19-0)/(3-0))*100 -> 0 | R19: =(('DATA TABLE'!V19-0)/(3-0))*100 -> 0 | S19: =(('DATA TABLE'!W19-0)/(3-0))*100 -> 0 | T19: =(('DATA TABLE'!X19-0)/(3-0))*100 -> 0 | U19: =(('DATA TABLE'!Y19-0)/(3-0))*100 -> 0 | V19: =(('DATA TABLE'!Z19-0)/(3-0))*100 -> 0 | W19: =(('DATA TABLE'!AA19-0)/(3-0))*100 -> 0 | X19: =(('DATA TABLE'!AB19-0)/(3-0))*100 -> 0 | Y19: =(('DATA TABLE'!AC19-0)/(3-0))*100 -> 0 | Z19: =(('DATA TABLE'!AD19-0)/(3-0))*100 -> 0 | AA19: =(('DATA TABLE'!AE19-0)/(3-0))*100 -> 33 | AB19: =(('DATA TABLE'!AF19-0)/(3-0))*100 -> 0 | AC19: =(('DATA TABLE'!AG19-0)/(3-0))*100 -> 0 | AD19: =(('DATA TABLE'!AH19-0)/(3-0))*100 -> 0 | AE19: =(('DATA TABLE'!AI19-0)/(3-0))*100 -> 0 | AF19: =(('DATA TABLE'!AJ19-0)/(3-0))*100 -> 0 | AG19: =(('DATA TABLE'!AK19-0)/(3-0))*100 -> 0 | AH19: =(('DATA TABLE'!AL19-0)/(3-0))*100 -> 0 | AI19: =(('DATA TABLE'!AM19-0)/(3-0))*100 -> 0 | AJ19: =(('DATA TABLE'!AN19-0)/(3-0))*100 -> 0 | AK19: =(('DATA TABLE'!AO19-0)/(3-0))*100 -> 0 | AL19: =(('DATA TABLE'!AP19-0)/(3-0))*100 -> 0 | AM19: =(('DATA TABLE'!AQ19-0)/(3-0))*100 -> 0 | AN19: =(('DATA TABLE'!AR19-0)/(3-0))*100 -> 0 | AO19: =(('DATA TABLE'!AS19-0)/(3-0))*100 -> 100 | AP19: =(('DATA TABLE'!AT19-0)/(3-0))*100 -> 33 | AQ19: =(('DATA TABLE'!AU19-0)/(3-0))*100 -> 0 | AR19: =(('DATA TABLE'!AV19-0)/(3-0))*100 -> 33 | AS19: =(('DATA TABLE'!AW19-0)/(3-0))*100 -> 0 | AT19: =(('DATA TABLE'!AX19-0)/(3-0))*100 -> 0 | AU19: =(('DATA TABLE'!AY19-0)/(3-0))*100 -> 0 | AV19: =(('DATA TABLE'!AZ19-0)/(3-0))*100 -> 33 | AW19: =(('DATA TABLE'!BA19-0)/(3-0))*100 -> 67 | AX19: =(('DATA TABLE'!BB19-0)/(3-0))*100 -> 0 | AY19: =(('DATA TABLE'!BC19-0)/(3-0))*100 -> 0 | AZ19: =(('DATA TABLE'!BD19-0)/(3-0))*100 -> 0 | BA19: =(('DATA TABLE'!BE19-0)/(3-0))*100 -> 0 | BB19: =(('DATA TABLE'!BF19-0)/(3-0))*100 -> 0 | BC19: =(('DATA TABLE'!BG19-0)/(3-0))*100 -> 0
B20: 1.1.3e | C20: Targets for obesity prevalence reduction | D20: 13% | E20: 0.4% | F20: =(('DATA TABLE'!J20-0)/(2-0))*100 -> 0 | G20: =(('DATA TABLE'!K20-0)/(2-0))*100 -> 0 | H20: =(('DATA TABLE'!L20-0)/(2-0))*100 -> 0 | I20: =(('DATA TABLE'!M20-0)/(2-0))*100 -> 0 | J20: =(('DATA TABLE'!N20-0)/(2-0))*100 -> 0 | K20: =(('DATA TABLE'!O20-0)/(2-0))*100 -> 50 | L20: =(('DATA TABLE'!P20-0)/(2-0))*100 -> 0 | M20: =(('DATA TABLE'!Q20-0)/(2-0))*100 -> 0 | N20: =(('DATA TABLE'!R20-0)/(2-0))*100 -> 0 | O20: =(('DATA TABLE'!S20-0)/(2-0))*100 -> 0 | P20: =(('DATA TABLE'!T20-0)/(2-0))*100 -> 50 | Q20: =(('DATA TABLE'!U20-0)/(2-0))*100 -> 0 | R20: =(('DATA TABLE'!V20-0)/(2-0))*100 -> 0 | S20: =(('DATA TABLE'!W20-0)/(2-0))*100 -> 0 | T20: =(('DATA TABLE'!X20-0)/(2-0))*100 -> 0 | U20: =(('DATA TABLE'!Y20-0)/(2-0))*100 -> 0 | V20: =(('DATA TABLE'!Z20-0)/(2-0))*100 -> 0 | W20: =(('DATA TABLE'!AA20-0)/(2-0))*100 -> 0 | X20: =(('DATA TABLE'!AB20-0)/(2-0))*100 -> 0 | Y20: =(('DATA TABLE'!AC20-0)/(2-0))*100 -> 0 | Z20: =(('DATA TABLE'!AD20-0)/(2-0))*100 -> 0 | AA20: =(('DATA TABLE'!AE20-0)/(2-0))*100 -> 0 | AB20: =(('DATA TABLE'!AF20-0)/(2-0))*100 -> 0 | AC20: =(('DATA TABLE'!AG20-0)/(2-0))*100 -> 0 | AD20: =(('DATA TABLE'!AH20-0)/(2-0))*100 -> 0 | AE20: =(('DATA TABLE'!AI20-0)/(2-0))*100 -> 0 | AF20: =(('DATA TABLE'!AJ20-0)/(2-0))*100 -> 0 | AG20: =(('DATA TABLE'!AK20-0)/(2-0))*100 -> 0 | AH20: =(('DATA TABLE'!AL20-0)/(2-0))*100 -> 0 | AI20: =(('DATA TABLE'!AM20-0)/(2-0))*100 -> 0 | AJ20: =(('DATA TABLE'!AN20-0)/(2-0))*100 -> 0 | AK20: =(('DATA TABLE'!AO20-0)/(2-0))*100 -> 0 | AL20: =(('DATA TABLE'!AP20-0)/(2-0))*100 -> 0 | AM20: =(('DATA TABLE'!AQ20-0)/(2-0))*100 -> 0 | AN20: =(('DATA TABLE'!AR20-0)/(2-0))*100 -> 0 | AO20: =(('DATA TABLE'!AS20-0)/(2-0))*100 -> 50 | AP20: =(('DATA TABLE'!AT20-0)/(2-0))*100 -> 50 | AQ20: =(('DATA TABLE'!AU20-0)/(2-0))*100 -> 0 | AR20: =(('DATA TABLE'!AV20-0)/(2-0))*100 -> 0 | AS20: =(('DATA TABLE'!AW20-0)/(2-0))*100 -> 0 | AT20: =(('DATA TABLE'!AX20-0)/(2-0))*100 -> 0 | AU20: =(('DATA TABLE'!AY20-0)/(2-0))*100 -> 0 | AV20: =(('DATA TABLE'!AZ20-0)/(2-0))*100 -> 0 | AW20: =(('DATA TABLE'!BA20-0)/(2-0))*100 -> 0 | AX20: =(('DATA TABLE'!BB20-0)/(2-0))*100 -> 0 | AY20: =(('DATA TABLE'!BC20-0)/(2-0))*100 -> 0 | AZ20: =(('DATA TABLE'!BD20-0)/(2-0))*100 -> 0 | BA20: =(('DATA TABLE'!BE20-0)/(2-0))*100 -> 0 | BB20: =(('DATA TABLE'!BF20-0)/(2-0))*100 -> 0 | BC20: =(('DATA TABLE'!BG20-0)/(2-0))*100 -> 0
B21: 1.1.3f | C21: Focus on vulnerable groups | D21: 13% | E21: 0.4% | F21: =(('DATA TABLE'!J21-0)/(2-0))*100 -> 100 | G21: =(('DATA TABLE'!K21-0)/(2-0))*100 -> 0 | H21: =(('DATA TABLE'!L21-0)/(2-0))*100 -> 0 | I21: =(('DATA TABLE'!M21-0)/(2-0))*100 -> 0 | J21: =(('DATA TABLE'!N21-0)/(2-0))*100 -> 0 | K21: =(('DATA TABLE'!O21-0)/(2-0))*100 -> 50 | L21: =(('DATA TABLE'!P21-0)/(2-0))*100 -> 0 | M21: =(('DATA TABLE'!Q21-0)/(2-0))*100 -> 0 | N21: =(('DATA TABLE'!R21-0)/(2-0))*100 -> 0 | O21: =(('DATA TABLE'!S21-0)/(2-0))*100 -> 0 | P21: =(('DATA TABLE'!T21-0)/(2-0))*100 -> 100 | Q21: =(('DATA TABLE'!U21-0)/(2-0))*100 -> 0 | R21: =(('DATA TABLE'!V21-0)/(2-0))*100 -> 0 | S21: =(('DATA TABLE'!W21-0)/(2-0))*100 -> 0 | T21: =(('DATA TABLE'!X21-0)/(2-0))*100 -> 0 | U21: =(('DATA TABLE'!Y21-0)/(2-0))*100 -> 0 | V21: =(('DATA TABLE'!Z21-0)/(2-0))*100 -> 0 | W21: =(('DATA TABLE'!AA21-0)/(2-0))*100 -> 0 | X21: =(('DATA TABLE'!AB21-0)/(2-0))*100 -> 50 | Y21: =(('DATA TABLE'!AC21-0)/(2-0))*100 -> 0 | Z21: =(('DATA TABLE'!AD21-0)/(2-0))*100 -> 0 | AA21: =(('DATA TABLE'!AE21-0)/(2-0))*100 -> 0 | AB21: =(('DATA TABLE'!AF21-0)/(2-0))*100 -> 0 | AC21: =(('DATA TABLE'!AG21-0)/(2-0))*100 -> 0 | AD21: =(('DATA TABLE'!AH21-0)/(2-0))*100 -> 0 | AE21: =(('DATA TABLE'!AI21-0)/(2-0))*100 -> 0 | AF21: =(('DATA TABLE'!AJ21-0)/(2-0))*100 -> 0 | AG21: =(('DATA TABLE'!AK21-0)/(2-0))*100 -> 0 | AH21: =(('DATA TABLE'!AL21-0)/(2-0))*100 -> 0 | AI21: =(('DATA TABLE'!AM21-0)/(2-0))*100 -> 0 | AJ21: =(('DATA TABLE'!AN21-0)/(2-0))*100 -> 0 | AK21: =(('DATA TABLE'!AO21-0)/(2-0))*100 -> 0 | AL21: =(('DATA TABLE'!AP21-0)/(2-0))*100 -> 0 | AM21: =(('DATA TABLE'!AQ21-0)/(2-0))*100 -> 0 | AN21: =(('DATA TABLE'!AR21-0)/(2-0))*100 -> 0 | AO21: =(('DATA TABLE'!AS21-0)/(2-0))*100 -> 100 | AP21: =(('DATA TABLE'!AT21-0)/(2-0))*100 -> 100 | AQ21: =(('DATA TABLE'!AU21-0)/(2-0))*100 -> 0 | AR21: =(('DATA TABLE'!AV21-0)/(2-0))*100 -> 100 | AS21: =(('DATA TABLE'!AW21-0)/(2-0))*100 -> 0 | AT21: =(('DATA TABLE'!AX21-0)/(2-0))*100 -> 0 | AU21: =(('DATA TABLE'!AY21-0)/(2-0))*100 -> 0 | AV21: =(('DATA TABLE'!AZ21-0)/(2-0))*100 -> 0 | AW21: =(('DATA TABLE'!BA21-0)/(2-0))*100 -> 100 | AX21: =(('DATA TABLE'!BB21-0)/(2-0))*100 -> 0 | AY21: =(('DATA TABLE'!BC21-0)/(2-0))*100 -> 0 | AZ21: =(('DATA TABLE'!BD21-0)/(2-0))*100 -> 0 | BA21: =(('DATA TABLE'!BE21-0)/(2-0))*100 -> 0 | BB21: =(('DATA TABLE'!BF21-0)/(2-0))*100 -> 100 | BC21: =(('DATA TABLE'!BG21-0)/(2-0))*100 -> 0
B22: 1.1.3g | C22: Obesity-related stigma and discrimination | D22: 13% | E22: 0.4% | F22: =(('DATA TABLE'!J22-0)/(2-0))*100 -> 0 | G22: =(('DATA TABLE'!K22-0)/(2-0))*100 -> 0 | H22: =(('DATA TABLE'!L22-0)/(2-0))*100 -> 0 | I22: =(('DATA TABLE'!M22-0)/(2-0))*100 -> 0 | J22: =(('DATA TABLE'!N22-0)/(2-0))*100 -> 0 | K22: =(('DATA TABLE'!O22-0)/(2-0))*100 -> 50 | L22: =(('DATA TABLE'!P22-0)/(2-0))*100 -> 0 | M22: =(('DATA TABLE'!Q22-0)/(2-0))*100 -> 0 | N22: =(('DATA TABLE'!R22-0)/(2-0))*100 -> 0 | O22: =(('DATA TABLE'!S22-0)/(2-0))*100 -> 0 | P22: =(('DATA TABLE'!T22-0)/(2-0))*100 -> 0 | Q22: =(('DATA TABLE'!U22-0)/(2-0))*100 -> 0 | R22: =(('DATA TABLE'!V22-0)/(2-0))*100 -> 0 | S22: =(('DATA TABLE'!W22-0)/(2-0))*100 -> 0 | T22: =(('DATA TABLE'!X22-0)/(2-0))*100 -> 0 | U22: =(('DATA TABLE'!Y22-0)/(2-0))*100 -> 0 | V22: =(('DATA TABLE'!Z22-0)/(2-0))*100 -> 0 | W22: =(('DATA TABLE'!AA22-0)/(2-0))*100 -> 0 | X22: =(('DATA TABLE'!AB22-0)/(2-0))*100 -> 0 | Y22: =(('DATA TABLE'!AC22-0)/(2-0))*100 -> 0 | Z22: =(('DATA TABLE'!AD22-0)/(2-0))*100 -> 0 | AA22: =(('DATA TABLE'!AE22-0)/(2-0))*100 -> 0 | AB22: =(('DATA TABLE'!AF22-0)/(2-0))*100 -> 0 | AC22: =(('DATA TABLE'!AG22-0)/(2-0))*100 -> 0 | AD22: =(('DATA TABLE'!AH22-0)/(2-0))*100 -> 0 | AE22: =(('DATA TABLE'!AI22-0)/(2-0))*100 -> 0 | AF22: =(('DATA TABLE'!AJ22-0)/(2-0))*100 -> 0 | AG22: =(('DATA TABLE'!AK22-0)/(2-0))*100 -> 0 | AH22: =(('DATA TABLE'!AL22-0)/(2-0))*100 -> 0 | AI22: =(('DATA TABLE'!AM22-0)/(2-0))*100 -> 0 | AJ22: =(('DATA TABLE'!AN22-0)/(2-0))*100 -> 0 | AK22: =(('DATA TABLE'!AO22-0)/(2-0))*100 -> 0 | AL22: =(('DATA TABLE'!AP22-0)/(2-0))*100 -> 0 | AM22: =(('DATA TABLE'!AQ22-0)/(2-0))*100 -> 0 | AN22: =(('DATA TABLE'!AR22-0)/(2-0))*100 -> 0 | AO22: =(('DATA TABLE'!AS22-0)/(2-0))*100 -> 100 | AP22: =(('DATA TABLE'!AT22-0)/(2-0))*100 -> 50 | AQ22: =(('DATA TABLE'!AU22-0)/(2-0))*100 -> 0 | AR22: =(('DATA TABLE'!AV22-0)/(2-0))*100 -> 0 | AS22: =(('DATA TABLE'!AW22-0)/(2-0))*100 -> 0 | AT22: =(('DATA TABLE'!AX22-0)/(2-0))*100 -> 0 | AU22: =(('DATA TABLE'!AY22-0)/(2-0))*100 -> 0 | AV22: =(('DATA TABLE'!AZ22-0)/(2-0))*100 -> 0 | AW22: =(('DATA TABLE'!BA22-0)/(2-0))*100 -> 0 | AX22: =(('DATA TABLE'!BB22-0)/(2-0))*100 -> 0 | AY22: =(('DATA TABLE'!BC22-0)/(2-0))*100 -> 0 | AZ22: =(('DATA TABLE'!BD22-0)/(2-0))*100 -> 0 | BA22: =(('DATA TABLE'!BE22-0)/(2-0))*100 -> 0 | BB22: =(('DATA TABLE'!BF22-0)/(2-0))*100 -> 0 | BC22: =(('DATA TABLE'!BG22-0)/(2-0))*100 -> 0
B23: 1.1.4 | C23: Obesity-related funding | D23: =1/5 -> 20% | E23: =$E$12/5 -> 3% | F23: =(('DATA TABLE'!J23-0)/(1-0))*100 -> 0 | G23: =(('DATA TABLE'!K23-0)/(1-0))*100 -> 0 | H23: =(('DATA TABLE'!L23-0)/(1-0))*100 -> 0 | I23: =(('DATA TABLE'!M23-0)/(1-0))*100 -> 0 | J23: =(('DATA TABLE'!N23-0)/(1-0))*100 -> 0 | K23: =(('DATA TABLE'!O23-0)/(1-0))*100 -> 100 | L23: =(('DATA TABLE'!P23-0)/(1-0))*100 -> 0 | M23: =(('DATA TABLE'!Q23-0)/(1-0))*100 -> 0 | N23: =(('DATA TABLE'!R23-0)/(1-0))*100 -> 0 | O23: =(('DATA TABLE'!S23-0)/(1-0))*100 -> 0 | P23: =(('DATA TABLE'!T23-0)/(1-0))*100 -> 0 | Q23: =(('DATA TABLE'!U23-0)/(1-0))*100 -> 0 | R23: =(('DATA TABLE'!V23-0)/(1-0))*100 -> 0 | S23: =(('DATA TABLE'!W23-0)/(1-0))*100 -> 0 | T23: =(('DATA TABLE'!X23-0)/(1-0))*100 -> 0 | U23: =(('DATA TABLE'!Y23-0)/(1-0))*100 -> 0 | V23: =(('DATA TABLE'!Z23-0)/(1-0))*100 -> 0 | W23: =(('DATA TABLE'!AA23-0)/(1-0))*100 -> 0 | X23: =(('DATA TABLE'!AB23-0)/(1-0))*100 -> 0 | Y23: =(('DATA TABLE'!AC23-0)/(1-0))*100 -> 0 | Z23: =(('DATA TABLE'!AD23-0)/(1-0))*100 -> 0 | AA23: =(('DATA TABLE'!AE23-0)/(1-0))*100 -> 0 | AB23: =(('DATA TABLE'!AF23-0)/(1-0))*100 -> 0 | AC23: =(('DATA TABLE'!AG23-0)/(1-0))*100 -> 0 | AD23: =(('DATA TABLE'!AH23-0)/(1-0))*100 -> 0 | AE23: =(('DATA TABLE'!AI23-0)/(1-0))*100 -> 0 | AF23: =(('DATA TABLE'!AJ23-0)/(1-0))*100 -> 0 | AG23: =(('DATA TABLE'!AK23-0)/(1-0))*100 -> 0 | AH23: =(('DATA TABLE'!AL23-0)/(1-0))*100 -> 0 | AI23: =(('DATA TABLE'!AM23-0)/(1-0))*100 -> 0 | AJ23: =(('DATA TABLE'!AN23-0)/(1-0))*100 -> 0 | AK23: =(('DATA TABLE'!AO23-0)/(1-0))*100 -> 0 | AL23: =(('DATA TABLE'!AP23-0)/(1-0))*100 -> 0 | AM23: =(('DATA TABLE'!AQ23-0)/(1-0))*100 -> 0 | AN23: =(('DATA TABLE'!AR23-0)/(1-0))*100 -> 0 | AO23: =(('DATA TABLE'!AS23-0)/(1-0))*100 -> 0 | AP23: =(('DATA TABLE'!AT23-0)/(1-0))*100 -> 0 | AQ23: =(('DATA TABLE'!AU23-0)/(1-0))*100 -> 0 | AR23: =(('DATA TABLE'!AV23-0)/(1-0))*100 -> 0 | AS23: =(('DATA TABLE'!AW23-0)/(1-0))*100 -> 0 | AT23: =(('DATA TABLE'!AX23-0)/(1-0))*100 -> 0 | AU23: =(('DATA TABLE'!AY23-0)/(1-0))*100 -> 0 | AV23: =(('DATA TABLE'!AZ23-0)/(1-0))*100 -> 100 | AW23: =(('DATA TABLE'!BA23-0)/(1-0))*100 -> 0 | AX23: =(('DATA TABLE'!BB23-0)/(1-0))*100 -> 0 | AY23: =(('DATA TABLE'!BC23-0)/(1-0))*100 -> 0 | AZ23: =(('DATA TABLE'!BD23-0)/(1-0))*100 -> 0 | BA23: =(('DATA TABLE'!BE23-0)/(1-0))*100 -> 0 | BB23: =(('DATA TABLE'!BF23-0)/(1-0))*100 -> 0 | BC23: =(('DATA TABLE'!BG23-0)/(1-0))*100 -> 0
B24: 1.1.5 | C24: Weight-related discrimination | D24: =1/5 -> 20% | E24: =$E$12/5 -> 3% | F24: =(('DATA TABLE'!J24-0)/(1-0))*100 -> 0 | G24: =(('DATA TABLE'!K24-0)/(1-0))*100 -> 0 | H24: =(('DATA TABLE'!L24-0)/(1-0))*100 -> 0 | I24: =(('DATA TABLE'!M24-0)/(1-0))*100 -> 0 | J24: =(('DATA TABLE'!N24-0)/(1-0))*100 -> 0 | K24: =(('DATA TABLE'!O24-0)/(1-0))*100 -> 0 | L24: =(('DATA TABLE'!P24-0)/(1-0))*100 -> 0 | M24: =(('DATA TABLE'!Q24-0)/(1-0))*100 -> 0 | N24: =(('DATA TABLE'!R24-0)/(1-0))*100 -> 0 | O24: =(('DATA TABLE'!S24-0)/(1-0))*100 -> 0 | P24: =(('DATA TABLE'!T24-0)/(1-0))*100 -> 0 | Q24: =(('DATA TABLE'!U24-0)/(1-0))*100 -> 0 | R24: =(('DATA TABLE'!V24-0)/(1-0))*100 -> 0 | S24: =(('DATA TABLE'!W24-0)/(1-0))*100 -> 0 | T24: =(('DATA TABLE'!X24-0)/(1-0))*100 -> 0 | U24: =(('DATA TABLE'!Y24-0)/(1-0))*100 -> 0 | V24: =(('DATA TABLE'!Z24-0)/(1-0))*100 -> 0 | W24: =(('DATA TABLE'!AA24-0)/(1-0))*100 -> 0 | X24: =(('DATA TABLE'!AB24-0)/(1-0))*100 -> 0 | Y24: =(('DATA TABLE'!AC24-0)/(1-0))*100 -> 0 | Z24: =(('DATA TABLE'!AD24-0)/(1-0))*100 -> 0 | AA24: =(('DATA TABLE'!AE24-0)/(1-0))*100 -> 100 | AB24: =(('DATA TABLE'!AF24-0)/(1-0))*100 -> 0 | AC24: =(('DATA TABLE'!AG24-0)/(1-0))*100 -> 0 | AD24: =(('DATA TABLE'!AH24-0)/(1-0))*100 -> 0 | AE24: =(('DATA TABLE'!AI24-0)/(1-0))*100 -> 0 | AF24: =(('DATA TABLE'!AJ24-0)/(1-0))*100 -> 0 | AG24: =(('DATA TABLE'!AK24-0)/(1-0))*100 -> 0 | AH24: =(('DATA TABLE'!AL24-0)/(1-0))*100 -> 0 | AI24: =(('DATA TABLE'!AM24-0)/(1-0))*100 -> 0 | AJ24: =(('DATA TABLE'!AN24-0)/(1-0))*100 -> 0 | AK24: =(('DATA TABLE'!AO24-0)/(1-0))*100 -> 0 | AL24: =(('DATA TABLE'!AP24-0)/(1-0))*100 -> 0 | AM24: =(('DATA TABLE'!AQ24-0)/(1-0))*100 -> 0 | AN24: =(('DATA TABLE'!AR24-0)/(1-0))*100 -> 0 | AO24: =(('DATA TABLE'!AS24-0)/(1-0))*100 -> 0 | AP24: =(('DATA TABLE'!AT24-0)/(1-0))*100 -> 0 | AQ24: =(('DATA TABLE'!AU24-0)/(1-0))*100 -> 0 | AR24: =(('DATA TABLE'!AV24-0)/(1-0))*100 -> 0 | AS24: =(('DATA TABLE'!AW24-0)/(1-0))*100 -> 0 | AT24: =(('DATA TABLE'!AX24-0)/(1-0))*100 -> 0 | AU24: =(('DATA TABLE'!AY24-0)/(1-0))*100 -> 0 | AV24: =(('DATA TABLE'!AZ24-0)/(1-0))*100 -> 0 | AW24: =(('DATA TABLE'!BA24-0)/(1-0))*100 -> 0 | AX24: =(('DATA TABLE'!BB24-0)/(1-0))*100 -> 0 | AY24: =(('DATA TABLE'!BC24-0)/(1-0))*100 -> 0 | AZ24: =(('DATA TABLE'!BD24-0)/(1-0))*100 -> 100 | BA24: =(('DATA TABLE'!BE24-0)/(1-0))*100 -> 0 | BB24: =(('DATA TABLE'!BF24-0)/(1-0))*100 -> 0 | BC24: =(('DATA TABLE'!BG24-0)/(1-0))*100 -> 0
B25: 1.2 | C25: Availability and affordability of obesity-related care | D25: 50% | E25: =0.5*$E$11 -> 17% | F25: =SUMPRODUCT($D26:$D27,F26:F27) -> 25 | G25: 25 | H25: 38 | I25: 25 | J25: 50 | K25: 38 | L25: 38 | M25: 50 | N25: 88 | O25: 25 | P25: 38 | Q25: 88 | R25: 25 | S25: 38 | T25: 88 | U25: 50 | V25: 88 | W25: 75 | X25: 38 | Y25: 50 | Z25: 50 | AA25: 38 | AB25: 100 | AC25: 75 | AD25: 50 | AE25: 63 | AF25: 88 | AG25: 88 | AH25: 38 | AI25: 25 | AJ25: 88 | AK25: 63 | AL25: =SUMPRODUCT($D26:$D27,AL26:AL27) -> 50 | AM25: 50 | AN25: 88 | AO25: 88 | AP25: 38 | AQ25: 38 | AR25: 50 | AS25: 38 | AT25: 38 | AU25: 38 | AV25: 38 | AW25: 38 | AX25: 38 | AY25: 50 | AZ25: 38 | BA25: 88 | BB25: 50 | BC25: 88
B26: 1.2.1 | C26: Obesity treatment coverage | D26: =1/2 -> 50% | E26: =$E$25/2 -> 8% | F26: =(('DATA TABLE'!J26-0)/(4-0))*100 -> 50 | G26: =(('DATA TABLE'!K26-0)/(4-0))*100 -> 50 | H26: =(('DATA TABLE'!L26-0)/(4-0))*100 -> 75 | I26: =(('DATA TABLE'!M26-0)/(4-0))*100 -> 50 | J26: =(('DATA TABLE'!N26-0)/(4-0))*100 -> 100 | K26: =(('DATA TABLE'!O26-0)/(4-0))*100 -> 75 | L26: =(('DATA TABLE'!P26-0)/(4-0))*100 -> 75 | M26: =(('DATA TABLE'!Q26-0)/(4-0))*100 -> 100 | N26: =(('DATA TABLE'!R26-0)/(4-0))*100 -> 75 | O26: =(('DATA TABLE'!S26-0)/(4-0))*100 -> 50 | P26: =(('DATA TABLE'!T26-0)/(4-0))*100 -> 75 | Q26: =(('DATA TABLE'!U26-0)/(4-0))*100 -> 75 | R26: =(('DATA TABLE'!V26-0)/(4-0))*100 -> 50 | S26: =(('DATA TABLE'!W26-0)/(4-0))*100 -> 75 | T26: =(('DATA TABLE'!X26-0)/(4-0))*100 -> 75 | U26: =(('DATA TABLE'!Y26-0)/(4-0))*100 -> 100 | V26: =(('DATA TABLE'!Z26-0)/(4-0))*100 -> 75 | W26: =(('DATA TABLE'!AA26-0)/(4-0))*100 -> 50 | X26: =(('DATA TABLE'!AB26-0)/(4-0))*100 -> 75 | Y26: =(('DATA TABLE'!AC26-0)/(4-0))*100 -> 100 | Z26: =(('DATA TABLE'!AD26-0)/(4-0))*100 -> 100 | AA26: =(('DATA TABLE'!AE26-0)/(4-0))*100 -> 75 | AB26: =(('DATA TABLE'!AF26-0)/(4-0))*100 -> 100 | AC26: =(('DATA TABLE'!AG26-0)/(4-0))*100 -> 50 | AD26: =(('DATA TABLE'!AH26-0)/(4-0))*100 -> 100 | AE26: =(('DATA TABLE'!AI26-0)/(4-0))*100 -> 25 | AF26: =(('DATA TABLE'!AJ26-0)/(4-0))*100 -> 75 | AG26: =(('DATA TABLE'!AK26-0)/(4-0))*100 -> 75 | AH26: =(('DATA TABLE'!AL26-0)/(4-0))*100 -> 75 | AI26: =(('DATA TABLE'!AM26-0)/(4-0))*100 -> 50 | AJ26: =(('DATA TABLE'!AN26-0)/(4-0))*100 -> 75 | AK26: =(('DATA TABLE'!AO26-0)/(4-0))*100 -> 25 | AL26: =(('DATA TABLE'!AP26-0)/(4-0))*100 -> 100 | AM26: =(('DATA TABLE'!AQ26-0)/(4-0))*100 -> 100 | AN26: =(('DATA TABLE'!AR26-0)/(4-0))*100 -> 75 | AO26: =(('DATA TABLE'!AS26-0)/(4-0))*100 -> 75 | AP26: =(('DATA TABLE'!AT26-0)/(4-0))*100 -> 75 | AQ26: =(('DATA TABLE'!AU26-0)/(4-0))*100 -> 75 | AR26: =(('DATA TABLE'!AV26-0)/(4-0))*100 -> 100 | AS26: =(('DATA TABLE'!AW26-0)/(4-0))*100 -> 75 | AT26: =(('DATA TABLE'!AX26-0)/(4-0))*100 -> 75 | AU26: =(('DATA TABLE'!AY26-0)/(4-0))*100 -> 75 | AV26: =(('DATA TABLE'!AZ26-0)/(4-0))*100 -> 75 | AW26: =(('DATA TABLE'!BA26-0)/(4-0))*100 -> 75 | AX26: =(('DATA TABLE'!BB26-0)/(4-0))*100 -> 75 | AY26: =(('DATA TABLE'!BC26-0)/(4-0))*100 -> 100 | AZ26: =(('DATA TABLE'!BD26-0)/(4-0))*100 -> 75 | BA26: =(('DATA TABLE'!BE26-0)/(4-0))*100 -> 75 | BB26: =(('DATA TABLE'!BF26-0)/(4-0))*100 -> 100 | BC26: =(('DATA TABLE'!BG26-0)/(4-0))*100 -> 75
B27: 1.2.2 | C27: State-level weight loss programmes | D27: =1/2 -> 50% | E27: =$E$25/2 -> 8% | F27: =(('DATA TABLE'!J27-0)/(1-0))*100 -> 0 | G27: =(('DATA TABLE'!K27-0)/(1-0))*100 -> 0 | H27: =(('DATA TABLE'!L27-0)/(1-0))*100 -> 0 | I27: =(('DATA TABLE'!M27-0)/(1-0))*100 -> 0 | J27: =(('DATA TABLE'!N27-0)/(1-0))*100 -> 0 | K27: =(('DATA TABLE'!O27-0)/(1-0))*100 -> 0 | L27: =(('DATA TABLE'!P27-0)/(1-0))*100 -> 0 | M27: =(('DATA TABLE'!Q27-0)/(1-0))*100 -> 0 | N27: =(('DATA TABLE'!R27-0)/(1-0))*100 -> 100 | O27: =(('DATA TABLE'!S27-0)/(1-0))*100 -> 0 | P27: =(('DATA TABLE'!T27-0)/(1-0))*100 -> 0 | Q27: =(('DATA TABLE'!U27-0)/(1-0))*100 -> 100 | R27: =(('DATA TABLE'!V27-0)/(1-0))*100 -> 0 | S27: =(('DATA TABLE'!W27-0)/(1-0))*100 -> 0 | T27: =(('DATA TABLE'!X27-0)/(1-0))*100 -> 100 | U27: =(('DATA TABLE'!Y27-0)/(1-0))*100 -> 0 | V27: =(('DATA TABLE'!Z27-0)/(1-0))*100 -> 100 | W27: =(('DATA TABLE'!AA27-0)/(1-0))*100 -> 100 | X27: =(('DATA TABLE'!AB27-0)/(1-0))*100 -> 0 | Y27: =(('DATA TABLE'!AC27-0)/(1-0))*100 -> 0 | Z27: =(('DATA TABLE'!AD27-0)/(1-0))*100 -> 0 | AA27: =(('DATA TABLE'!AE27-0)/(1-0))*100 -> 0 | AB27: =(('DATA TABLE'!AF27-0)/(1-0))*100 -> 100 | AC27: =(('DATA TABLE'!AG27-0)/(1-0))*100 -> 100 | AD27: =(('DATA TABLE'!AH27-0)/(1-0))*100 -> 0 | AE27: =(('DATA TABLE'!AI27-0)/(1-0))*100 -> 100 | AF27: =(('DATA TABLE'!AJ27-0)/(1-0))*100 -> 100 | AG27: =(('DATA TABLE'!AK27-0)/(1-0))*100 -> 100 | AH27: =(('DATA TABLE'!AL27-0)/(1-0))*100 -> 0 | AI27: =(('DATA TABLE'!AM27-0)/(1-0))*100 -> 0 | AJ27: =(('DATA TABLE'!AN27-0)/(1-0))*100 -> 100 | AK27: =(('DATA TABLE'!AO27-0)/(1-0))*100 -> 100 | AL27: =(('DATA TABLE'!AP27-0)/(1-0))*100 -> 0 | AM27: =(('DATA TABLE'!AQ27-0)/(1-0))*100 -> 0 | AN27: =(('DATA TABLE'!AR27-0)/(1-0))*100 -> 100 | AO27: =(('DATA TABLE'!AS27-0)/(1-0))*100 -> 100 | AP27: =(('DATA TABLE'!AT27-0)/(1-0))*100 -> 0 | AQ27: =(('DATA TABLE'!AU27-0)/(1-0))*100 -> 0 | AR27: =(('DATA TABLE'!AV27-0)/(1-0))*100 -> 0 | AS27: =(('DATA TABLE'!AW27-0)/(1-0))*100 -> 0 | AT27: =(('DATA TABLE'!AX27-0)/(1-0))*100 -> 0 | AU27: =(('DATA TABLE'!AY27-0)/(1-0))*100 -> 0 | AV27: =(('DATA TABLE'!AZ27-0)/(1-0))*100 -> 0 | AW27: =(('DATA TABLE'!BA27-0)/(1-0))*100 -> 0 | AX27: =(('DATA TABLE'!BB27-0)/(1-0))*100 -> 0 | AY27: =(('DATA TABLE'!BC27-0)/(1-0))*100 -> 0 | AZ27: =(('DATA TABLE'!BD27-0)/(1-0))*100 -> 0 | BA27: =(('DATA TABLE'!BE27-0)/(1-0))*100 -> 100 | BB27: =(('DATA TABLE'!BF27-0)/(1-0))*100 -> 0 | BC27: =(('DATA TABLE'!BG27-0)/(1-0))*100 -> 100
B28: 2 | C28: Food quality and access | D28: =1/3 -> 33% | E28: =1/3 -> 33% | F28: =SUM($D29*F29,$D34*F34,$D36*F36) -> 46 | G28: 50 | H28: 50 | I28: 81 | J28: 55 | K28: 78 | L28: 69 | M28: 46 | N28: 78 | O28: 50 | P28: 58 | Q28: 45 | R28: 86 | S28: 79 | T28: 90 | U28: 44 | V28: 82 | W28: 51 | X28: 79 | Y28: 84 | Z28: 59 | AA28: 56 | AB28: 88 | AC28: 43 | AD28: 46 | AE28: 34 | AF28: 45 | AG28: 50 | AH28: 39 | AI28: 50 | AJ28: 58 | AK28: 79 | AL28: =SUM($D29*AL29,$D34*AL34,$D36*AL36) -> 84 | AM28: 67 | AN28: 68 | AO28: 46 | AP28: 51 | AQ28: 58 | AR28: 76 | AS28: 55 | AT28: 46 | AU28: 68 | AV28: 82 | AW28: 45 | AX28: 75 | AY28: 67 | AZ28: 73 | BA28: 51 | BB28: 79 | BC28: 42
B29: 2.1 | C29: Food access and affordability | D29: =1/3 -> 33% | E29: =$E$28/3 -> 11% | F29: =SUMPRODUCT($D30:$D31,F30:F31) -> 71 | G29: 84 | H29: 66 | I29: 60 | J29: 64 | K29: 68 | L29: 73 | M29: 70 | N29: 68 | O29: 66 | P29: 91 | Q29: 69 | R29: 75 | S29: 69 | T29: 69 | U29: 66 | V29: 63 | W29: 70 | X29: 70 | Y29: 69 | Z29: 76 | AA29: 68 | AB29: 65 | AC29: 62 | AD29: 71 | AE29: 69 | AF29: 68 | AG29: 67 | AH29: 68 | AI29: 66 | AJ29: 73 | AK29: 71 | AL29: =SUMPRODUCT($D30:$D31,AL30:AL31) -> 69 | AM29: 67 | AN29: 71 | AO29: 70 | AP29: 70 | AQ29: 73 | AR29: 77 | AS29: 81 | AT29: 72 | AU29: 71 | AV29: 63 | AW29: 69 | AX29: 76 | AY29: 67 | AZ29: 70 | BA29: 69 | BB29: 70 | BC29: 60
B30: 2.1.1 | C30: Level of food security | D30: =1/2 -> 50% | E30: =$E$29/2 -> 6% | F30: ='DATA TABLE'!J30 -> 88 | G30: ='DATA TABLE'!K30 -> 90 | H30: ='DATA TABLE'!L30 -> 88 | I30: ='DATA TABLE'!M30 -> 81 | J30: ='DATA TABLE'!N30 -> 89 | K30: ='DATA TABLE'!O30 -> 90 | L30: ='DATA TABLE'!P30 -> 90 | M30: ='DATA TABLE'!Q30 -> 89 | N30: ='DATA TABLE'!R30 -> 88 | O30: ='DATA TABLE'!S30 -> 87 | P30: ='DATA TABLE'!T30 -> 90 | Q30: ='DATA TABLE'!U30 -> 89 | R30: ='DATA TABLE'!V30 -> 88 | S30: ='DATA TABLE'!W30 -> 88 | T30: ='DATA TABLE'!X30 -> 90 | U30: ='DATA TABLE'!Y30 -> 89 | V30: ='DATA TABLE'!Z30 -> 85 | W30: ='DATA TABLE'!AA30 -> 84 | X30: ='DATA TABLE'!AB30 -> 89 | Y30: ='DATA TABLE'!AC30 -> 90 | Z30: ='DATA TABLE'!AD30 -> 91 | AA30: ='DATA TABLE'!AE30 -> 87 | AB30: ='DATA TABLE'!AF30 -> 91 | AC30: ='DATA TABLE'!AG30 -> 84 | AD30: ='DATA TABLE'!AH30 -> 87 | AE30: ='DATA TABLE'!AI30 -> 91 | AF30: ='DATA TABLE'!AJ30 -> 87 | AG30: ='DATA TABLE'!AK30 -> 87 | AH30: ='DATA TABLE'!AL30 -> 93 | AI30: ='DATA TABLE'!AM30 -> 90 | AJ30: ='DATA TABLE'!AN30 -> 87 | AK30: ='DATA TABLE'!AO30 -> 88 | AL30: ='DATA TABLE'!AP30 -> 89 | AM30: ='DATA TABLE'!AQ30 -> 91 | AN30: ='DATA TABLE'!AR30 -> 87 | AO30: ='DATA TABLE'!AS30 -> 85 | AP30: ='DATA TABLE'!AT30 -> 87 | AQ30: ='DATA TABLE'!AU30 -> 89 | AR30: ='DATA TABLE'!AV30 -> 90 | AS30: ='DATA TABLE'!AW30 -> 86 | AT30: ='DATA TABLE'!AX30 -> 91 | AU30: ='DATA TABLE'!AY30 -> 88 | AV30: ='DATA TABLE'!AZ30 -> 83 | AW30: ='DATA TABLE'!BA30 -> 88 | AX30: ='DATA TABLE'!BB30 -> 91 | AY30: ='DATA TABLE'!BC30 -> 90 | AZ30: ='DATA TABLE'!BD30 -> 90 | BA30: ='DATA TABLE'!BE30 -> 86 | BB30: ='DATA TABLE'!BF30 -> 89 | BC30: ='DATA TABLE'!BG30 -> 87
B31: 2.1.2 | C31: Nutrition programmes for lower-income individuals | D31: =1/2 -> 50% | E31: =$E$29/2 -> 6% | F31: =SUMPRODUCT($D32:$D33,F32:F33) -> 53 | G31: 78 | H31: 44 | I31: 40 | J31: 39 | K31: 47 | L31: 56 | M31: 51 | N31: 48 | O31: 45 | P31: 92 | Q31: 48 | R31: 61 | S31: 51 | T31: 48 | U31: 43 | V31: 40 | W31: 56 | X31: 51 | Y31: 47 | Z31: 60 | AA31: 49 | AB31: 38 | AC31: 41 | AD31: 54 | AE31: 46 | AF31: 48 | AG31: 48 | AH31: 43 | AI31: 43 | AJ31: 58 | AK31: 54 | AL31: =SUMPRODUCT($D32:$D33,AL32:AL33) -> 50 | AM31: 43 | AN31: 54 | AO31: 55 | AP31: 54 | AQ31: 56 | AR31: 63 | AS31: 76 | AT31: 53 | AU31: 54 | AV31: 42 | AW31: 51 | AX31: 60 | AY31: 44 | AZ31: 51 | BA31: 52 | BB31: 50 | BC31: 34
B32: 2.1.2a | C32: Supplemental Nutrition Assistance Program (SNAP): monthly benefit per person, adjusted for regional price parities | D32: =1/2 -> 50% | E32: =$E$31/2 -> 3% | F32: =(('DATA TABLE'!J32-MIN('DATA TABLE'!$J32:$BG32))/(MAX('DATA TABLE'!$J32:$BG32)-(MIN('DATA TABLE'!$J32:$BG32))))*100 -> 26 | G32: =(('DATA TABLE'!K32-MIN('DATA TABLE'!$J32:$BG32))/(MAX('DATA TABLE'!$J32:$BG32)-(MIN('DATA TABLE'!$J32:$BG32))))*100 -> 76 | H32: =(('DATA TABLE'!L32-MIN('DATA TABLE'!$J32:$BG32))/(MAX('DATA TABLE'!$J32:$BG32)-(MIN('DATA TABLE'!$J32:$BG32))))*100 -> 15 | I32: =(('DATA TABLE'!M32-MIN('DATA TABLE'!$J32:$BG32))/(MAX('DATA TABLE'!$J32:$BG32)-(MIN('DATA TABLE'!$J32:$BG32))))*100 -> 17 | J32: =(('DATA TABLE'!N32-MIN('DATA TABLE'!$J32:$BG32))/(MAX('DATA TABLE'!$J32:$BG32)-(MIN('DATA TABLE'!$J32:$BG32))))*100 -> 11 | K32: =(('DATA TABLE'!O32-MIN('DATA TABLE'!$J32:$BG32))/(MAX('DATA TABLE'!$J32:$BG32)-(MIN('DATA TABLE'!$J32:$BG32))))*100 -> 17 | L32: =(('DATA TABLE'!P32-MIN('DATA TABLE'!$J32:$BG32))/(MAX('DATA TABLE'!$J32:$BG32)-(MIN('DATA TABLE'!$J32:$BG32))))*100 -> 23 | M32: =(('DATA TABLE'!Q32-MIN('DATA TABLE'!$J32:$BG32))/(MAX('DATA TABLE'!$J32:$BG32)-(MIN('DATA TABLE'!$J32:$BG32))))*100 -> 15 | N32: =(('DATA TABLE'!R32-MIN('DATA TABLE'!$J32:$BG32))/(MAX('DATA TABLE'!$J32:$BG32)-(MIN('DATA TABLE'!$J32:$BG32))))*100 -> 23 | O32: =(('DATA TABLE'!S32-MIN('DATA TABLE'!$J32:$BG32))/(MAX('DATA TABLE'!$J32:$BG32)-(MIN('DATA TABLE'!$J32:$BG32))))*100 -> 18 | P32: =(('DATA TABLE'!T32-MIN('DATA TABLE'!$J32:$BG32))/(MAX('DATA TABLE'!$J32:$BG32)-(MIN('DATA TABLE'!$J32:$BG32))))*100 -> 100 | Q32: =(('DATA TABLE'!U32-MIN('DATA TABLE'!$J32:$BG32))/(MAX('DATA TABLE'!$J32:$BG32)-(MIN('DATA TABLE'!$J32:$BG32))))*100 -> 17 | R32: =(('DATA TABLE'!V32-MIN('DATA TABLE'!$J32:$BG32))/(MAX('DATA TABLE'!$J32:$BG32)-(MIN('DATA TABLE'!$J32:$BG32))))*100 -> 22 | S32: =(('DATA TABLE'!W32-MIN('DATA TABLE'!$J32:$BG32))/(MAX('DATA TABLE'!$J32:$BG32)-(MIN('DATA TABLE'!$J32:$BG32))))*100 -> 28 | T32: =(('DATA TABLE'!X32-MIN('DATA TABLE'!$J32:$BG32))/(MAX('DATA TABLE'!$J32:$BG32)-(MIN('DATA TABLE'!$J32:$BG32))))*100 -> 12 | U32: =(('DATA TABLE'!Y32-MIN('DATA TABLE'!$J32:$BG32))/(MAX('DATA TABLE'!$J32:$BG32)-(MIN('DATA TABLE'!$J32:$BG32))))*100 -> 16 | V32: =(('DATA TABLE'!Z32-MIN('DATA TABLE'!$J32:$BG32))/(MAX('DATA TABLE'!$J32:$BG32)-(MIN('DATA TABLE'!$J32:$BG32))))*100 -> 16 | W32: =(('DATA TABLE'!AA32-MIN('DATA TABLE'!$J32:$BG32))/(MAX('DATA TABLE'!$J32:$BG32)-(MIN('DATA TABLE'!$J32:$BG32))))*100 -> 30 | X32: =(('DATA TABLE'!AB32-MIN('DATA TABLE'!$J32:$BG32))/(MAX('DATA TABLE'!$J32:$BG32)-(MIN('DATA TABLE'!$J32:$BG32))))*100 -> 13 | Y32: =(('DATA TABLE'!AC32-MIN('DATA TABLE'!$J32:$BG32))/(MAX('DATA TABLE'!$J32:$BG32)-(MIN('DATA TABLE'!$J32:$BG32))))*100 -> 9 | Z32: =(('DATA TABLE'!AD32-MIN('DATA TABLE'!$J32:$BG32))/(MAX('DATA TABLE'!$J32:$BG32)-(MIN('DATA TABLE'!$J32:$BG32))))*100 -> 20 | AA32: =(('DATA TABLE'!AE32-MIN('DATA TABLE'!$J32:$BG32))/(MAX('DATA TABLE'!$J32:$BG32)-(MIN('DATA TABLE'!$J32:$BG32))))*100 -> 13 | AB32: =(('DATA TABLE'!AF32-MIN('DATA TABLE'!$J32:$BG32))/(MAX('DATA TABLE'!$J32:$BG32)-(MIN('DATA TABLE'!$J32:$BG32))))*100 -> 0 | AC32: =(('DATA TABLE'!AG32-MIN('DATA TABLE'!$J32:$BG32))/(MAX('DATA TABLE'!$J32:$BG32)-(MIN('DATA TABLE'!$J32:$BG32))))*100 -> 19 | AD32: =(('DATA TABLE'!AH32-MIN('DATA TABLE'!$J32:$BG32))/(MAX('DATA TABLE'!$J32:$BG32)-(MIN('DATA TABLE'!$J32:$BG32))))*100 -> 24 | AE32: =(('DATA TABLE'!AI32-MIN('DATA TABLE'!$J32:$BG32))/(MAX('DATA TABLE'!$J32:$BG32)-(MIN('DATA TABLE'!$J32:$BG32))))*100 -> 13 | AF32: =(('DATA TABLE'!AJ32-MIN('DATA TABLE'!$J32:$BG32))/(MAX('DATA TABLE'!$J32:$BG32)-(MIN('DATA TABLE'!$J32:$BG32))))*100 -> 19 | AG32: =(('DATA TABLE'!AK32-MIN('DATA TABLE'!$J32:$BG32))/(MAX('DATA TABLE'!$J32:$BG32)-(MIN('DATA TABLE'!$J32:$BG32))))*100 -> 12 | AH32: =(('DATA TABLE'!AL32-MIN('DATA TABLE'!$J32:$BG32))/(MAX('DATA TABLE'!$J32:$BG32)-(MIN('DATA TABLE'!$J32:$BG32))))*100 -> 7 | AI32: =(('DATA TABLE'!AM32-MIN('DATA TABLE'!$J32:$BG32))/(MAX('DATA TABLE'!$J32:$BG32)-(MIN('DATA TABLE'!$J32:$BG32))))*100 -> 13 | AJ32: =(('DATA TABLE'!AN32-MIN('DATA TABLE'!$J32:$BG32))/(MAX('DATA TABLE'!$J32:$BG32)-(MIN('DATA TABLE'!$J32:$BG32))))*100 -> 16 | AK32: =(('DATA TABLE'!AO32-MIN('DATA TABLE'!$J32:$BG32))/(MAX('DATA TABLE'!$J32:$BG32)-(MIN('DATA TABLE'!$J32:$BG32))))*100 -> 26 | AL32: =(('DATA TABLE'!AP32-MIN('DATA TABLE'!$J32:$BG32))/(MAX('DATA TABLE'!$J32:$BG32)-(MIN('DATA TABLE'!$J32:$BG32))))*100 -> 26 | AM32: =(('DATA TABLE'!AQ32-MIN('DATA TABLE'!$J32:$BG32))/(MAX('DATA TABLE'!$J32:$BG32)-(MIN('DATA TABLE'!$J32:$BG32))))*100 -> 21 | AN32: =(('DATA TABLE'!AR32-MIN('DATA TABLE'!$J32:$BG32))/(MAX('DATA TABLE'!$J32:$BG32)-(MIN('DATA TABLE'!$J32:$BG32))))*100 -> 27 | AO32: =(('DATA TABLE'!AS32-MIN('DATA TABLE'!$J32:$BG32))/(MAX('DATA TABLE'!$J32:$BG32)-(MIN('DATA TABLE'!$J32:$BG32))))*100 -> 27 | AP32: =(('DATA TABLE'!AT32-MIN('DATA TABLE'!$J32:$BG32))/(MAX('DATA TABLE'!$J32:$BG32)-(MIN('DATA TABLE'!$J32:$BG32))))*100 -> 7 | AQ32: =(('DATA TABLE'!AU32-MIN('DATA TABLE'!$J32:$BG32))/(MAX('DATA TABLE'!$J32:$BG32)-(MIN('DATA TABLE'!$J32:$BG32))))*100 -> 12 | AR32: =(('DATA TABLE'!AV32-MIN('DATA TABLE'!$J32:$BG32))/(MAX('DATA TABLE'!$J32:$BG32)-(MIN('DATA TABLE'!$J32:$BG32))))*100 -> 27 | AS32: =(('DATA TABLE'!AW32-MIN('DATA TABLE'!$J32:$BG32))/(MAX('DATA TABLE'!$J32:$BG32)-(MIN('DATA TABLE'!$J32:$BG32))))*100 -> 83 | AT32: =(('DATA TABLE'!AX32-MIN('DATA TABLE'!$J32:$BG32))/(MAX('DATA TABLE'!$J32:$BG32)-(MIN('DATA TABLE'!$J32:$BG32))))*100 -> 26 | AU32: =(('DATA TABLE'!AY32-MIN('DATA TABLE'!$J32:$BG32))/(MAX('DATA TABLE'!$J32:$BG32)-(MIN('DATA TABLE'!$J32:$BG32))))*100 -> 24 | AV32: =(('DATA TABLE'!AZ32-MIN('DATA TABLE'!$J32:$BG32))/(MAX('DATA TABLE'!$J32:$BG32)-(MIN('DATA TABLE'!$J32:$BG32))))*100 -> 16 | AW32: =(('DATA TABLE'!BA32-MIN('DATA TABLE'!$J32:$BG32))/(MAX('DATA TABLE'!$J32:$BG32)-(MIN('DATA TABLE'!$J32:$BG32))))*100 -> 28 | AX32: =(('DATA TABLE'!BB32-MIN('DATA TABLE'!$J32:$BG32))/(MAX('DATA TABLE'!$J32:$BG32)-(MIN('DATA TABLE'!$J32:$BG32))))*100 -> 24 | AY32: =(('DATA TABLE'!BC32-MIN('DATA TABLE'!$J32:$BG32))/(MAX('DATA TABLE'!$J32:$BG32)-(MIN('DATA TABLE'!$J32:$BG32))))*100 -> 11 | AZ32: =(('DATA TABLE'!BD32-MIN('DATA TABLE'!$J32:$BG32))/(MAX('DATA TABLE'!$J32:$BG32)-(MIN('DATA TABLE'!$J32:$BG32))))*100 -> 8 | BA32: =(('DATA TABLE'!BE32-MIN('DATA TABLE'!$J32:$BG32))/(MAX('DATA TABLE'!$J32:$BG32)-(MIN('DATA TABLE'!$J32:$BG32))))*100 -> 11 | BB32: =(('DATA TABLE'!BF32-MIN('DATA TABLE'!$J32:$BG32))/(MAX('DATA TABLE'!$J32:$BG32)-(MIN('DATA TABLE'!$J32:$BG32))))*100 -> 8 | BC32: =(('DATA TABLE'!BG32-MIN('DATA TABLE'!$J32:$BG32))/(MAX('DATA TABLE'!$J32:$BG32)-(MIN('DATA TABLE'!$J32:$BG32))))*100 -> 18
B33: 2.1.2b | C33: Supplemental Nutrition Assistance Program (SNAP): participation rate | D33: =1/2 -> 50% | E33: =$E$31/2 -> 3% | F33: ='DATA TABLE'!J33 -> 81 | G33: ='DATA TABLE'!K33 -> 81 | H33: ='DATA TABLE'!L33 -> 74 | I33: ='DATA TABLE'!M33 -> 62 | J33: ='DATA TABLE'!N33 -> 66 | K33: ='DATA TABLE'!O33 -> 76 | L33: ='DATA TABLE'!P33 -> 89 | M33: ='DATA TABLE'!Q33 -> 87 | N33: ='DATA TABLE'!R33 -> 73 | O33: ='DATA TABLE'!S33 -> 72 | P33: ='DATA TABLE'!T33 -> 83 | Q33: ='DATA TABLE'!U33 -> 79 | R33: ='DATA TABLE'!V33 -> 100 | S33: ='DATA TABLE'!W33 -> 73 | T33: ='DATA TABLE'!X33 -> 85 | U33: ='DATA TABLE'!Y33 -> 70 | V33: ='DATA TABLE'!Z33 -> 65 | W33: ='DATA TABLE'!AA33 -> 83 | X33: ='DATA TABLE'!AB33 -> 90 | Y33: ='DATA TABLE'!AC33 -> 85 | Z33: ='DATA TABLE'!AD33 -> 100 | AA33: ='DATA TABLE'!AE33 -> 85 | AB33: ='DATA TABLE'!AF33 -> 76 | AC33: ='DATA TABLE'!AG33 -> 62 | AD33: ='DATA TABLE'!AH33 -> 84 | AE33: ='DATA TABLE'!AI33 -> 79 | AF33: ='DATA TABLE'!AJ33 -> 78 | AG33: ='DATA TABLE'!AK33 -> 84 | AH33: ='DATA TABLE'!AL33 -> 79 | AI33: ='DATA TABLE'!AM33 -> 72 | AJ33: ='DATA TABLE'!AN33 -> 100 | AK33: ='DATA TABLE'!AO33 -> 82 | AL33: ='DATA TABLE'!AP33 -> 74 | AM33: ='DATA TABLE'!AQ33 -> 66 | AN33: ='DATA TABLE'!AR33 -> 81 | AO33: ='DATA TABLE'!AS33 -> 84 | AP33: ='DATA TABLE'!AT33 -> 100 | AQ33: ='DATA TABLE'!AU33 -> 100 | AR33: ='DATA TABLE'!AV33 -> 100 | AS33: ='DATA TABLE'!AW33 -> 69 | AT33: ='DATA TABLE'!AX33 -> 80 | AU33: ='DATA TABLE'!AY33 -> 84 | AV33: ='DATA TABLE'!AZ33 -> 69 | AW33: ='DATA TABLE'!BA33 -> 74 | AX33: ='DATA TABLE'!BB33 -> 96 | AY33: ='DATA TABLE'!BC33 -> 77 | AZ33: ='DATA TABLE'!BD33 -> 94 | BA33: ='DATA TABLE'!BE33 -> 94 | BB33: ='DATA TABLE'!BF33 -> 92 | BC33: ='DATA TABLE'!BG33 -> 49
B34: 2.2 | C34: Nutrition regulation | D34: =1/3 -> 33% | E34: =$E$28/3 -> 11% | F34: =SUMPRODUCT($D35,F35) -> 0 | G34: 0 | H34: 0 | I34: 100 | J34: 0 | K34: 100 | L34: 100 | M34: 0 | N34: 100 | O34: 0 | P34: 0 | Q34: 0 | R34: 100 | S34: 100 | T34: 100 | U34: 0 | V34: 100 | W34: 0 | X34: 100 | Y34: 100 | Z34: 0 | AA34: 0 | AB34: 100 | AC34: 0 | AD34: 0 | AE34: 0 | AF34: 0 | AG34: 0 | AH34: 0 | AI34: 0 | AJ34: 0 | AK34: 100 | AL34: =SUMPRODUCT($D35,AL35) -> 100 | AM34: 100 | AN34: 50 | AO34: 0 | AP34: 0 | AQ34: 0 | AR34: 100 | AS34: 0 | AT34: 0 | AU34: 50 | AV34: 100 | AW34: 0 | AX34: 50 | AY34: 50 | AZ34: 50 | BA34: 0 | BB34: 100 | BC34: 0
B35: 2.2.1 | C35: Taxes on unhealthy food and beverages | D35: 100% | E35: =E34 -> 11% | F35: =(('DATA TABLE'!J35-0)/(2-0))*100 -> 0 | G35: =(('DATA TABLE'!K35-0)/(2-0))*100 -> 0 | H35: =(('DATA TABLE'!L35-0)/(2-0))*100 -> 0 | I35: =(('DATA TABLE'!M35-0)/(2-0))*100 -> 100 | J35: =(('DATA TABLE'!N35-0)/(2-0))*100 -> 0 | K35: =(('DATA TABLE'!O35-0)/(2-0))*100 -> 100 | L35: =(('DATA TABLE'!P35-0)/(2-0))*100 -> 100 | M35: =(('DATA TABLE'!Q35-0)/(2-0))*100 -> 0 | N35: =(('DATA TABLE'!R35-0)/(2-0))*100 -> 100 | O35: =(('DATA TABLE'!S35-0)/(2-0))*100 -> 0 | P35: =(('DATA TABLE'!T35-0)/(2-0))*100 -> 0 | Q35: =(('DATA TABLE'!U35-0)/(2-0))*100 -> 0 | R35: =(('DATA TABLE'!V35-0)/(2-0))*100 -> 100 | S35: =(('DATA TABLE'!W35-0)/(2-0))*100 -> 100 | T35: =(('DATA TABLE'!X35-0)/(2-0))*100 -> 100 | U35: =(('DATA TABLE'!Y35-0)/(2-0))*100 -> 0 | V35: =(('DATA TABLE'!Z35-0)/(2-0))*100 -> 100 | W35: =(('DATA TABLE'!AA35-0)/(2-0))*100 -> 0 | X35: =(('DATA TABLE'!AB35-0)/(2-0))*100 -> 100 | Y35: =(('DATA TABLE'!AC35-0)/(2-0))*100 -> 100 | Z35: =(('DATA TABLE'!AD35-0)/(2-0))*100 -> 0 | AA35: =(('DATA TABLE'!AE35-0)/(2-0))*100 -> 0 | AB35: =(('DATA TABLE'!AF35-0)/(2-0))*100 -> 100 | AC35: =(('DATA TABLE'!AG35-0)/(2-0))*100 -> 0 | AD35: =(('DATA TABLE'!AH35-0)/(2-0))*100 -> 0 | AE35: =(('DATA TABLE'!AI35-0)/(2-0))*100 -> 0 | AF35: =(('DATA TABLE'!AJ35-0)/(2-0))*100 -> 0 | AG35: =(('DATA TABLE'!AK35-0)/(2-0))*100 -> 0 | AH35: =(('DATA TABLE'!AL35-0)/(2-0))*100 -> 0 | AI35: =(('DATA TABLE'!AM35-0)/(2-0))*100 -> 0 | AJ35: =(('DATA TABLE'!AN35-0)/(2-0))*100 -> 0 | AK35: =(('DATA TABLE'!AO35-0)/(2-0))*100 -> 100 | AL35: =(('DATA TABLE'!AP35-0)/(2-0))*100 -> 100 | AM35: =(('DATA TABLE'!AQ35-0)/(2-0))*100 -> 100 | AN35: =(('DATA TABLE'!AR35-0)/(2-0))*100 -> 50 | AO35: =(('DATA TABLE'!AS35-0)/(2-0))*100 -> 0 | AP35: =(('DATA TABLE'!AT35-0)/(2-0))*100 -> 0 | AQ35: =(('DATA TABLE'!AU35-0)/(2-0))*100 -> 0 | AR35: =(('DATA TABLE'!AV35-0)/(2-0))*100 -> 100 | AS35: =(('DATA TABLE'!AW35-0)/(2-0))*100 -> 0 | AT35: =(('DATA TABLE'!AX35-0)/(2-0))*100 -> 0 | AU35: =(('DATA TABLE'!AY35-0)/(2-0))*100 -> 50 | AV35: =(('DATA TABLE'!AZ35-0)/(2-0))*100 -> 100 | AW35: =(('DATA TABLE'!BA35-0)/(2-0))*100 -> 0 | AX35: =(('DATA TABLE'!BB35-0)/(2-0))*100 -> 50 | AY35: =(('DATA TABLE'!BC35-0)/(2-0))*100 -> 50 | AZ35: =(('DATA TABLE'!BD35-0)/(2-0))*100 -> 50 | BA35: =(('DATA TABLE'!BE35-0)/(2-0))*100 -> 0 | BB35: =(('DATA TABLE'!BF35-0)/(2-0))*100 -> 100 | BC35: =(('DATA TABLE'!BG35-0)/(2-0))*100 -> 0
B36: 2.3 | C36: Nutrition in schools | D36: =1/3 -> 33% | E36: =$E$28/3 -> 11% | F36: =SUMPRODUCT($D37:$D39,F37:F39) -> 67 | G36: 67 | H36: 83 | I36: 83 | J36: 100 | K36: 67 | L36: 33 | M36: 67 | N36: 67 | O36: 83 | P36: 83 | Q36: 67 | R36: 83 | S36: 67 | T36: 100 | U36: 67 | V36: 83 | W36: 83 | X36: 67 | Y36: 83 | Z36: 100 | AA36: 100 | AB36: 100 | AC36: 67 | AD36: 67 | AE36: 33 | AF36: 67 | AG36: 83 | AH36: 50 | AI36: 83 | AJ36: 100 | AK36: 67 | AL36: =SUMPRODUCT($D37:$D39,AL37:AL39) -> 83 | AM36: 33 | AN36: 83 | AO36: 67 | AP36: 83 | AQ36: 100 | AR36: 50 | AS36: 83 | AT36: 67 | AU36: 83 | AV36: 83 | AW36: 67 | AX36: 100 | AY36: 83 | AZ36: 100 | BA36: 83 | BB36: 67 | BC36: 67
B37: 2.3.1 | C37: School nutrition standards | D37: =1/3 -> 33% | E37: =$E$36/3 -> 4% | F37: =(('DATA TABLE'!J37-0)/(1-0))*100 -> 100 | G37: =(('DATA TABLE'!K37-0)/(1-0))*100 -> 100 | H37: =(('DATA TABLE'!L37-0)/(1-0))*100 -> 100 | I37: =(('DATA TABLE'!M37-0)/(1-0))*100 -> 100 | J37: =(('DATA TABLE'!N37-0)/(1-0))*100 -> 100 | K37: =(('DATA TABLE'!O37-0)/(1-0))*100 -> 100 | L37: =(('DATA TABLE'!P37-0)/(1-0))*100 -> 100 | M37: =(('DATA TABLE'!Q37-0)/(1-0))*100 -> 100 | N37: =(('DATA TABLE'!R37-0)/(1-0))*100 -> 100 | O37: =(('DATA TABLE'!S37-0)/(1-0))*100 -> 100 | P37: =(('DATA TABLE'!T37-0)/(1-0))*100 -> 100 | Q37: =(('DATA TABLE'!U37-0)/(1-0))*100 -> 100 | R37: =(('DATA TABLE'!V37-0)/(1-0))*100 -> 100 | S37: =(('DATA TABLE'!W37-0)/(1-0))*100 -> 100 | T37: =(('DATA TABLE'!X37-0)/(1-0))*100 -> 100 | U37: =(('DATA TABLE'!Y37-0)/(1-0))*100 -> 100 | V37: =(('DATA TABLE'!Z37-0)/(1-0))*100 -> 100 | W37: =(('DATA TABLE'!AA37-0)/(1-0))*100 -> 100 | X37: =(('DATA TABLE'!AB37-0)/(1-0))*100 -> 100 | Y37: =(('DATA TABLE'!AC37-0)/(1-0))*100 -> 100 | Z37: =(('DATA TABLE'!AD37-0)/(1-0))*100 -> 100 | AA37: =(('DATA TABLE'!AE37-0)/(1-0))*100 -> 100 | AB37: =(('DATA TABLE'!AF37-0)/(1-0))*100 -> 100 | AC37: =(('DATA TABLE'!AG37-0)/(1-0))*100 -> 100 | AD37: =(('DATA TABLE'!AH37-0)/(1-0))*100 -> 100 | AE37: =(('DATA TABLE'!AI37-0)/(1-0))*100 -> 0 | AF37: =(('DATA TABLE'!AJ37-0)/(1-0))*100 -> 100 | AG37: =(('DATA TABLE'!AK37-0)/(1-0))*100 -> 100 | AH37: =(('DATA TABLE'!AL37-0)/(1-0))*100 -> 100 | AI37: =(('DATA TABLE'!AM37-0)/(1-0))*100 -> 100 | AJ37: =(('DATA TABLE'!AN37-0)/(1-0))*100 -> 100 | AK37: =(('DATA TABLE'!AO37-0)/(1-0))*100 -> 100 | AL37: =(('DATA TABLE'!AP37-0)/(1-0))*100 -> 100 | AM37: =(('DATA TABLE'!AQ37-0)/(1-0))*100 -> 100 | AN37: =(('DATA TABLE'!AR37-0)/(1-0))*100 -> 100 | AO37: =(('DATA TABLE'!AS37-0)/(1-0))*100 -> 100 | AP37: =(('DATA TABLE'!AT37-0)/(1-0))*100 -> 100 | AQ37: =(('DATA TABLE'!AU37-0)/(1-0))*100 -> 100 | AR37: =(('DATA TABLE'!AV37-0)/(1-0))*100 -> 100 | AS37: =(('DATA TABLE'!AW37-0)/(1-0))*100 -> 100 | AT37: =(('DATA TABLE'!AX37-0)/(1-0))*100 -> 100 | AU37: =(('DATA TABLE'!AY37-0)/(1-0))*100 -> 100 | AV37: =(('DATA TABLE'!AZ37-0)/(1-0))*100 -> 100 | AW37: =(('DATA TABLE'!BA37-0)/(1-0))*100 -> 100 | AX37: =(('DATA TABLE'!BB37-0)/(1-0))*100 -> 100 | AY37: =(('DATA TABLE'!BC37-0)/(1-0))*100 -> 100 | AZ37: =(('DATA TABLE'!BD37-0)/(1-0))*100 -> 100 | BA37: =(('DATA TABLE'!BE37-0)/(1-0))*100 -> 100 | BB37: =(('DATA TABLE'!BF37-0)/(1-0))*100 -> 100 | BC37: =(('DATA TABLE'!BG37-0)/(1-0))*100 -> 100
